Workbook

Sheet ročni vnos
C1: Izplačilo delovne uspešnosti za | D1: januar | E1: 2026
C2: Šifra proračunskega uporabnika: | D2: 1234
C3: Organizacijska enota: | D3: Sektor za splošne zadeve
C5: Določitev skupnega obsega sredstev za delovno uspešnost - za delitev po kriterijih (brez sredstev projektov)
C6: Masa osnovnih plač | D6: =SUM(D31:D1029) -> 55970.04
C7: Odstotek osnovnih plač | D7: 0.02
C8: Masa sredstev iz osnovnih plač za DU | D8: =+D6*D7 -> 1119.4008
C10: Prihranki iz naslova odsotnosti JU ali nezasedenih delovnih mest | D10: 4000
C11: Odstotek prihrankov za delitev | D11: 0.5
C12: Masa sredstev za DU iz prihrankov | D12: =+D10*D11 -> 2000
C14: Nerazdeljena sredstva iz prejšnjega meseca | D14: 100
C16: Razpoložljivi obseg sredstev za DU | D16: =+D8+D12+D14 -> 3219.4008
C17: Določen obseg mase za DU | D17: 3219.4 | E17: =IF(D17>D16," ZNESEK JE PREVISOK!","") -> 
C19: Razdelitev sredstev za delovno uspešnost glede na vpisane odstotke (brez sredstev projektov) - kontrola
C20: Masa sredstev za delovno uspešnost | D20: =D17 -> 3219.4 | F20: =IF(D21<D20,"RAZPOLOŽLJIVA SREDSTVA NISO RAZDELJENA V CELOTNEM OBSEGU","") -> 
C21: Razdeljena masa za delovno uspešnost | D21: =SUM(N31:O1029) -> 4179.1072 | F21: =IF(D21>D20,"RAZDELITI ŽELITE VEČ SREDSTEV, KOT JIH JE NA VOLJO.","") -> RAZDELITI ŽELITE VEČ SREDSTEV, KOT JIH JE NA VOLJO.
C22: Razlika | D22: =+D20-D21 -> -959.7072 | F22: =IF(D21>D20,"PRILAGODITE ODSTOTKE ALI SE PREMAKNITE NA LIST Z IZBRANIM NAČINOM KOREKCIJE.","") -> PRILAGODITE ODSTOTKE ALI SE PREMAKNITE NA LIST Z IZBRANIM NAČINOM KOREKCIJE.
C24: Razdelitev sredstev glede na vpisane odstotke (iz vseh virov sredstev)
C25: Razdeljena masa - nadomeščanje | D25: =SUM(N31:N1029) -> 2533.29 | F25: Izberi način preračuna:
C26: Razdeljena masa - nadpovprečni rezultati | D26: =SUM(O31:O1029) -> 1645.8172 | F26: selektivna korekcija vsi krit.
C27: Razdeljena masa - projekti | D27: =SUM(P31:P1029) -> 310.5789
C28: Skupaj | D28: =SUM(D25:D27) -> 4489.6861
A30: Zakleni vrstico | B30: Zapor. št. | C30: Javni uslužbenec | D30: Osnovna plača | E30: Opravljanje dodatnega dela ali večji obseg dela | F30: Kakovost | G30: Natančnost | H30: Samostojnost | I30: Obseg dela | J30: Učinkovitost dela | K30: Projekti | L30: Skupni odstotek osnovne plače za DU | M30: Delovna uspešnost | N30: Delovna uspešnost - nadomeščanje | O30: Delovna uspešnost - nadpovprečni rez. | P30: Delovna uspešnost - projekti | Q30: Kontrola | T30: Masa zaklenjenih | U30: Masa odklenjenih | W30: Masa zaklenjenih - brez nadom. | X30: Masa odklenjenih - brez nadom.
A31: O | B31: 1 | C31: Ana Novak | D31: 1330.26 | G31: 0.03 | K31: 0.02 | L31: =SUM(E31:K31) -> 0.05 | M31: =+D31*L31 -> 66.513 | N31: =D31*E31 -> 0 | O31: =(F31+G31+H31+I31+J31)*D31 -> 39.9078 | P31: =+D31*K31 -> 26.6052 | Q31: =IF(SUM(E31:K31)>30%,"VSOTA MORA BITI MANJŠA ALI ENAKA 30%","") ->  | T31: =IF(A31="Z",N31+O31,0) -> 0 | U31: =IF(A31="O",N31+O31,0) -> 39.9078 | W31: =IF(A31="Z",N31+O31,N31) -> 0 | X31: =IF(A31="O",O31,0) -> 39.9078
A32: O | B32: 2 | C32: Marko Kovač | D32: 1411.28 | E32: 0.05 | G32: 0.05 | L32: =SUM(E32:K32) -> 0.1 | M32: =+D32*L32 -> 141.128 | N32: =D32*E32 -> 70.564 | O32: =(F32+G32+H32+I32+J32)*D32 -> 70.564 | P32: =+D32*K32 -> 0 | Q32: =IF(SUM(E32:K32)>30%,"VSOTA MORA BITI MANJŠA ALI ENAKA 30%","") ->  | T32: =IF(A32="Z",N32+O32,0) -> 0 | U32: =IF(A32="O",N32+O32,0) -> 141.128 | W32: =IF(A32="Z",N32+O32,N32) -> 70.564 | X32: =IF(A32="O",O32,0) -> 70.564
A33: O | B33: 3 | C33: Maja Horvat | D33: 1477.72 | E33: 0.05 | L33: 0.05 | M33: 73.886 | N33: 73.886 | O33: 0 | P33: 0 | T33: 0 | U33: 73.886 | W33: 73.886 | X33: 0
A34: O | B34: 4 | C34: Luka Zupan | D34: 1804.47 | E34: 0.05 | K34: 0.07 | L34: 0.12 | M34: 216.5364 | N34: 90.2235 | O34: 0 | P34: 126.3129 | T34: 0 | U34: 90.2235 | W34: 90.2235 | X34: 0
A35: O | B35: 5 | C35: Nina Potočnik | D35: 1868.64 | E35: 0.05 | K35: 0.02 | L35: 0.07 | M35: 130.8048 | N35: 93.432 | O35: 0 | P35: 37.3728 | T35: 0 | U35: 93.432 | W35: 93.432 | X35: 0
A36: O | B36: 6 | C36: Peter Mlakar | D36: 1868.64 | F36: 0.02 | I36: 0.1 | L36: 0.12 | M36: 224.2368 | N36: 0 | O36: 224.2368 | P36: 0 | T36: 0 | U36: 224.2368 | W36: 0 | X36: 224.2368
A37: O | B37: 7 | C37: Sara Vidmar | D37: 2004.8 | I37: 0.1 | K37: 0.06 | L37: 0.16 | M37: 320.768 | N37: 0 | O37: 200.48 | P37: 120.288 | T37: 0 | U37: 200.48 | W37: 0 | X37: 200.48
A38: O | B38: 8 | C38: Tomaž Kranjc | D38: 2152.08 | H38: 0.03 | L38: 0.03 | M38: 64.5624 | N38: 0 | O38: 64.5624 | P38: 0 | T38: 0 | U38: 64.5624 | W38: 0 | X38: 64.5624
A39: O | B39: 9 | C39: Tina Turk | D39: 2395.84 | E39: 0.15 | H39: 0.03 | L39: 0.18 | M39: 431.2512 | N39: 359.376 | O39: 71.8752 | P39: 0 | T39: 0 | U39: 431.2512 | W39: 359.376 | X39: 71.8752
A40: O | B40: 10 | C40: Matej Oblak | D40: 2483.67 | E40: 0.15 | G40: 0.02 | H40: 0.02 | L40: 0.19 | M40: 471.8973 | N40: 372.5505 | O40: 99.3468 | P40: 0 | T40: 0 | U40: 471.8973 | W40: 372.5505 | X40: 99.3468
A41: O | B41: 11 | C41: Katarina Rozman | D41: 2575 | H41: 0.03 | L41: 0.03 | M41: 77.25 | N41: 0 | O41: 77.25 | P41: 0 | T41: 0 | U41: 77.25 | W41: 0 | X41: 77.25
A42: O | B42: 12 | C42: Jan Bizjak | D42: 2871.56 | F42: 0.02 | H42: 0.03 | I42: 0.15 | L42: 0.2 | M42: 574.312 | N42: 0 | O42: 574.312 | P42: 0 | T42: 0 | U42: 574.312 | W42: 0 | X42: 574.312
A43: O | B43: 13 | C43: Barbara Košir | D43: 3089.57 | L43: 0 | M43: 0 | N43: 0 | O43: =(F43+G43+H43+I43+J43)*D43 -> 0 | P43: 0 | T43: 0 | U43: 0 | W43: 0 | X43: 0
A44: O | B44: 14 | C44: Rok Petek | D44: 3387.86 | L44: 0 | M44: 0 | N44: 0 | O44: 0 | P44: 0 | T44: 0 | U44: 0 | W44: 0 | X44: 0
A45: O | B45: 15 | C45: Urška Golob | D45: 3580.38 | E45: 0.2 | L45: 0.2 | M45: 716.076 | N45: 716.076 | O45: 0 | P45: 0 | T45: 0 | U45: 716.076 | W45: 716.076 | X45: 0
A46: O | B46: 16 | C46: Miha Prevc | D46: 3785.91 | E46: 0.2 | H46: 0.02 | L46: 0.22 | M46: 832.9002 | N46: 757.182 | O46: 75.7182 | P46: 0 | T46: 0 | U46: 832.9002 | W46: 757.182 | X46: 75.7182
A47: O | B47: 17 | C47: Alenka Bajc | D47: 4002.47 | L47: 0 | M47: 0 | N47: 0 | O47: 0 | P47: 0 | T47: 0 | U47: 0 | W47: 0 | X47: 0
A48: O | B48: 18 | C48: Jure Krivec | D48: 4312.74 | L48: 0 | M48: 0 | N48: 0 | O48: 0 | P48: 0 | T48: 0 | U48: 0 | W48: 0 | X48: 0
A49: O | B49: 19 | C49: Nataša Štravs | D49: 4648.35 | L49: 0 | M49: 0 | N49: 0 | O49: 0 | P49: 0 | T49: 0 | U49: 0 | W49: 0 | X49: 0
A50: O | B50: 20 | C50: Blaž Pavlin | D50: 4918.8 | H50: 0.03 | L50: 0.03 | M50: 147.564 | N50: 0 | O50: 147.564 | P50: 0 | T50: 0 | U50: 147.564 | W50: 0 | X50: 147.564
A51: O | B51: 21 | L51: 0 | M51: 0 | N51: 0 | O51: 0 | P51: 0 | T51: 0 | U51: 0 | W51: 0 | X51: =IF(A51="O",O51,0) -> 0
A52: O | B52: 22 | L52: 0 | M52: 0 | N52: 0 | O52: 0 | P52: 0 | T52: 0 | U52: 0 | W52: 0 | X52: 0
A53: O | B53: 23 | L53: 0 | M53: 0 | N53: 0 | O53: 0 | P53: 0 | T53: 0 | U53: 0 | W53: 0 | X53: 0
A54: O | B54: 24 | L54: 0 | M54: 0 | N54: 0 | O54: 0 | P54: 0 | T54: 0 | U54: 0 | W54: 0 | X54: 0
A55: O | B55: 25 | L55: 0 | M55: 0 | N55: 0 | O55: 0 | P55: 0 | T55: 0 | U55: 0 | W55: 0 | X55: 0
A56: O | B56: 26 | L56: 0 | M56: 0 | N56: 0 | O56: 0 | P56: 0 | T56: 0 | U56: 0 | W56: 0 | X56: 0
A57: O | B57: 27 | L57: 0 | M57: 0 | N57: 0 | O57: 0 | P57: 0 | T57: 0 | U57: 0 | W57: 0 | X57: 0
A58: O | B58: 28 | L58: 0 | M58: 0 | N58: 0 | O58: 0 | P58: 0 | T58: 0 | U58: 0 | W58: 0 | X58: 0
A59: O | B59: 29 | L59: 0 | M59: 0 | N59: 0 | O59: 0 | P59: 0 | T59: 0 | U59: 0 | W59: 0 | X59: 0
A60: O | B60: 30 | L60: 0 | M60: 0 | N60: 0 | O60: 0 | P60: 0 | T60: 0 | U60: 0 | W60: 0 | X60: 0
A61: O | B61: 31 | L61: 0 | M61: 0 | N61: 0 | O61: 0 | P61: 0 | T61: 0 | U61: 0 | W61: 0 | X61: 0
A62: O | B62: 32 | L62: 0 | M62: 0 | N62: 0 | O62: 0 | P62: 0 | T62: 0 | U62: 0 | W62: 0 | X62: 0
A63: O | B63: 33 | L63: 0 | M63: 0 | N63: 0 | O63: 0 | P63: 0 | T63: 0 | U63: 0 | W63: 0 | X63: 0
A64: O | B64: 34 | L64: 0 | M64: 0 | N64: 0 | O64: 0 | P64: 0 | T64: 0 | U64: 0 | W64: 0 | X64: 0
A65: O | B65: 35 | L65: 0 | M65: 0 | N65: 0 | O65: 0 | P65: 0 | T65: 0 | U65: 0 | W65: 0 | X65: 0
A66: O | B66: 36 | L66: 0 | M66: 0 | N66: 0 | O66: 0 | P66: 0 | T66: 0 | U66: 0 | W66: 0 | X66: 0
A67: O | B67: 37 | L67: 0 | M67: 0 | N67: 0 | O67: 0 | P67: 0 | T67: 0 | U67: 0 | W67: 0 | X67: 0
A68: O | B68: 38 | L68: 0 | M68: 0 | N68: 0 | O68: 0 | P68: 0 | T68: 0 | U68: 0 | W68: 0 | X68: 0
A69: O | B69: 39 | L69: 0 | M69: 0 | N69: 0 | O69: 0 | P69: 0 | T69: 0 | U69: 0 | W69: 0 | X69: 0
A70: O | B70: 40 | L70: 0 | M70: 0 | N70: 0 | O70: 0 | P70: 0 | T70: 0 | U70: 0 | W70: 0 | X70: 0
A71: O | B71: 41 | L71: 0 | M71: 0 | N71: 0 | O71: 0 | P71: 0 | T71: 0 | U71: 0 | W71: 0 | X71: 0
A72: O | B72: 42 | L72: 0 | M72: 0 | N72: 0 | O72: 0 | P72: 0 | T72: 0 | U72: 0 | W72: 0 | X72: 0
A73: O | B73: 43 | L73: 0 | M73: 0 | N73: 0 | O73: 0 | P73: 0 | T73: 0 | U73: 0 | W73: 0 | X73: 0
A74: O | B74: 44 | L74: 0 | M74: 0 | N74: 0 | O74: 0 | P74: 0 | T74: 0 | U74: 0 | W74: 0 | X74: 0
A75: O | B75: 45 | L75: 0 | M75: 0 | N75: 0 | O75: 0 | P75: 0 | T75: 0 | U75: 0 | W75: 0 | X75: 0
A76: O | B76: 46 | L76: 0 | M76: 0 | N76: 0 | O76: 0 | P76: 0 | T76: 0 | U76: 0 | W76: 0 | X76: 0
A77: O | B77: 47 | L77: 0 | M77: 0 | N77: 0 | O77: 0 | P77: 0 | T77: 0 | U77: 0 | W77: 0 | X77: 0
A78: O | B78: 48 | L78: 0 | M78: 0 | N78: 0 | O78: 0 | P78: 0 | T78: 0 | U78: 0 | W78: 0 | X78: 0
A79: O | B79: 49 | L79: 0 | M79: 0 | N79: 0 | O79: 0 | P79: 0 | T79: 0 | U79: 0 | W79: 0 | X79: 0
A80: O | B80: 50 | L80: 0 | M80: 0 | N80: 0 | O80: 0 | P80: 0 | T80: 0 | U80: 0 | W80: 0 | X80: 0
A81: O | B81: 51 | L81: 0 | M81: 0 | N81: 0 | O81: 0 | P81: 0 | T81: 0 | U81: 0 | W81: 0 | X81: 0
A82: O | B82: 52 | L82: 0 | M82: 0 | N82: 0 | O82: 0 | P82: 0 | T82: 0 | U82: 0 | W82: 0 | X82: 0
A83: O | B83: 53 | L83: 0 | M83: 0 | N83: 0 | O83: 0 | P83: 0 | T83: 0 | U83: 0 | W83: 0 | X83: 0
A84: O | B84: 54 | L84: 0 | M84: 0 | N84: 0 | O84: 0 | P84: 0 | T84: 0 | U84: 0 | W84: 0 | X84: 0
A85: O | B85: 55 | L85: 0 | M85: 0 | N85: 0 | O85: 0 | P85: 0 | T85: 0 | U85: 0 | W85: 0 | X85: 0
A86: O | B86: 56 | L86: 0 | M86: 0 | N86: 0 | O86: 0 | P86: 0 | T86: 0 | U86: 0 | W86: 0 | X86: 0
A87: O | B87: 57 | L87: 0 | M87: 0 | N87: 0 | O87: 0 | P87: 0 | T87: 0 | U87: 0 | W87: 0 | X87: 0
A88: O | B88: 58 | L88: 0 | M88: 0 | N88: 0 | O88: 0 | P88: 0 | T88: 0 | U88: 0 | W88: 0 | X88: 0
A89: O | B89: 59 | L89: 0 | M89: 0 | N89: 0 | O89: 0 | P89: 0 | T89: 0 | U89: 0 | W89: 0 | X89: 0
A90: O | B90: 60 | L90: 0 | M90: 0 | N90: 0 | O90: 0 | P90: 0 | T90: 0 | U90: 0 | W90: 0 | X90: 0
A91: O | B91: 61 | L91: 0 | M91: 0 | N91: 0 | O91: 0 | P91: 0 | T91: 0 | U91: 0 | W91: 0 | X91: 0
A92: O | B92: 62 | L92: 0 | M92: 0 | N92: 0 | O92: 0 | P92: 0 | T92: 0 | U92: 0 | W92: 0 | X92: 0
A93: O | B93: 63 | L93: 0 | M93: 0 | N93: 0 | O93: 0 | P93: 0 | T93: 0 | U93: 0 | W93: 0 | X93: 0
A94: O | B94: 64 | L94: 0 | M94: 0 | N94: 0 | O94: 0 | P94: 0 | T94: 0 | U94: 0 | W94: 0 | X94: 0
A95: O | B95: 65 | L95: 0 | M95: 0 | N95: 0 | O95: 0 | P95: 0 | T95: 0 | U95: 0 | W95: 0 | X95: 0
A96: O | B96: 66 | L96: =SUM(E96:K96) -> 0 | M96: =+D96*L96 -> 0 | N96: =D96*E96 -> 0 | O96: =(F96+G96+H96+I96+J96)*D96 -> 0 | P96: =+D96*K96 -> 0 | Q96: =IF(SUM(E96:K96)>30%,"VSOTA MORA BITI MANJŠA ALI ENAKA 30%","") ->  | T96: =IF(A96="Z",N96+O96,0) -> 0 | U96: =IF(A96="O",N96+O96,0) -> 0 | W96: =IF(A96="Z",N96+O96,N96) -> 0 | X96: 0
A97: O | B97: 67 | L97: 0 | M97: 0 | N97: 0 | O97: 0 | P97: 0 | T97: 0 | U97: 0 | W97: 0 | X97: 0
A98: O | B98: 68 | L98: 0 | M98: 0 | N98: 0 | O98: 0 | P98: 0 | T98: 0 | U98: 0 | W98: 0 | X98: 0
A99: O | B99: 69 | L99: 0 | M99: 0 | N99: 0 | O99: 0 | P99: 0 | T99: 0 | U99: 0 | W99: 0 | X99: 0
A100: O | B100: 70 | L100: 0 | M100: 0 | N100: 0 | O100: 0 | P100: 0 | T100: 0 | U100: 0 | W100: 0 | X100: 0
A101: O | B101: 71 | L101: 0 | M101: 0 | N101: 0 | O101: 0 | P101: 0 | T101: 0 | U101: 0 | W101: 0 | X101: 0
A102: O | B102: 72 | L102: 0 | M102: 0 | N102: 0 | O102: 0 | P102: 0 | T102: 0 | U102: 0 | W102: 0 | X102: 0
A103: O | B103: 73 | L103: 0 | M103: 0 | N103: 0 | O103: 0 | P103: 0 | T103: 0 | U103: 0 | W103: 0 | X103: 0
A104: O | B104: 74 | L104: 0 | M104: 0 | N104: 0 | O104: 0 | P104: 0 | T104: 0 | U104: 0 | W104: 0 | X104: 0
A105: O | B105: 75 | L105: 0 | M105: 0 | N105: 0 | O105: 0 | P105: 0 | T105: 0 | U105: 0 | W105: 0 | X105: 0
A106: O | B106: 76 | L106: 0 | M106: 0 | N106: 0 | O106: 0 | P106: 0 | T106: 0 | U106: 0 | W106: 0 | X106: 0
A107: O | B107: 77 | L107: 0 | M107: 0 | N107: 0 | O107: 0 | P107: 0 | T107: 0 | U107: 0 | W107: 0 | X107: 0
A108: O | B108: 78 | L108: 0 | M108: 0 | N108: 0 | O108: 0 | P108: 0 | T108: 0 | U108: 0 | W108: 0 | X108: 0
A109: O | B109: 79 | L109: 0 | M109: 0 | N109: 0 | O109: 0 | P109: 0 | T109: 0 | U109: 0 | W109: 0 | X109: 0
A110: O | B110: 80 | L110: 0 | M110: 0 | N110: 0 | O110: 0 | P110: 0 | T110: 0 | U110: 0 | W110: 0 | X110: 0
A111: O | B111: 81 | L111: 0 | M111: 0 | N111: 0 | O111: 0 | P111: 0 | T111: 0 | U111: 0 | W111: 0 | X111: 0
A112: O | B112: 82 | L112: 0 | M112: 0 | N112: 0 | O112: 0 | P112: 0 | T112: 0 | U112: 0 | W112: 0 | X112: 0
A113: O | B113: 83 | L113: 0 | M113: 0 | N113: 0 | O113: 0 | P113: 0 | T113: 0 | U113: 0 | W113: 0 | X113: 0
A114: O | B114: 84 | L114: 0 | M114: 0 | N114: 0 | O114: 0 | P114: 0 | T114: 0 | U114: 0 | W114: 0 | X114: 0
A115: O | B115: 85 | L115: 0 | M115: 0 | N115: 0 | O115: 0 | P115: 0 | T115: 0 | U115: 0 | W115: 0 | X115: =IF(A115="O",O115,0) -> 0
A116: O | B116: 86 | L116: 0 | M116: 0 | N116: 0 | O116: 0 | P116: 0 | T116: 0 | U116: 0 | W116: 0 | X116: 0
A117: O | B117: 87 | L117: 0 | M117: 0 | N117: 0 | O117: 0 | P117: 0 | T117: 0 | U117: 0 | W117: 0 | X117: 0
A118: O | B118: 88 | L118: 0 | M118: 0 | N118: 0 | O118: 0 | P118: 0 | T118: 0 | U118: 0 | W118: 0 | X118: 0
A119: O | B119: 89 | L119: 0 | M119: 0 | N119: 0 | O119: 0 | P119: 0 | T119: 0 | U119: 0 | W119: 0 | X119: 0
A120: O | B120: 90 | L120: 0 | M120: 0 | N120: 0 | O120: 0 | P120: 0 | T120: 0 | U120: 0 | W120: 0 | X120: 0
A121: O | B121: 91 | L121: 0 | M121: 0 | N121: 0 | O121: 0 | P121: 0 | T121: 0 | U121: 0 | W121: 0 | X121: 0
A122: O | B122: 92 | L122: 0 | M122: 0 | N122: 0 | O122: 0 | P122: 0 | T122: 0 | U122: 0 | W122: 0 | X122: 0
A123: O | B123: 93 | L123: 0 | M123: 0 | N123: 0 | O123: 0 | P123: 0 | T123: 0 | U123: 0 | W123: 0 | X123: 0
A124: O | B124: 94 | L124: 0 | M124: 0 | N124: 0 | O124: 0 | P124: 0 | T124: 0 | U124: 0 | W124: 0 | X124: 0
A125: O | B125: 95 | L125: 0 | M125: 0 | N125: 0 | O125: 0 | P125: 0 | T125: 0 | U125: 0 | W125: 0 | X125: 0
A126: O | B126: 96 | L126: 0 | M126: 0 | N126: 0 | O126: 0 | P126: 0 | T126: 0 | U126: 0 | W126: 0 | X126: 0
A127: O | B127: 97 | L127: 0 | M127: 0 | N127: 0 | O127: 0 | P127: 0 | T127: 0 | U127: 0 | W127: 0 | X127: 0
A128: O | B128: 98 | L128: 0 | M128: 0 | N128: 0 | O128: 0 | P128: 0 | T128: 0 | U128: 0 | W128: 0 | X128: 0
A129: O | B129: 99 | L129: 0 | M129: 0 | N129: 0 | O129: 0 | P129: 0 | T129: 0 | U129: 0 | W129: 0 | X129: 0
A130: O | B130: 100 | L130: 0 | M130: 0 | N130: 0 | O130: 0 | P130: 0 | T130: 0 | U130: 0 | W130: 0 | X130: 0
A131: O | B131: 101 | L131: 0 | M131: 0 | N131: 0 | O131: 0 | P131: 0 | T131: 0 | U131: 0 | W131: 0 | X131: 0
A132: O | B132: 102 | L132: 0 | M132: 0 | N132: 0 | O132: 0 | P132: 0 | T132: 0 | U132: 0 | W132: 0 | X132: 0
A133: O | B133: 103 | L133: 0 | M133: 0 | N133: 0 | O133: 0 | P133: 0 | T133: 0 | U133: 0 | W133: 0 | X133: 0
A134: O | B134: 104 | L134: 0 | M134: 0 | N134: 0 | O134: 0 | P134: 0 | T134: 0 | U134: 0 | W134: 0 | X134: 0
A135: O | B135: 105 | L135: 0 | M135: 0 | N135: 0 | O135: 0 | P135: 0 | T135: 0 | U135: 0 | W135: 0 | X135: 0
A136: O | B136: 106 | L136: 0 | M136: 0 | N136: 0 | O136: 0 | P136: 0 | T136: 0 | U136: 0 | W136: 0 | X136: 0
A137: O | B137: 107 | L137: 0 | M137: 0 | N137: 0 | O137: 0 | P137: 0 | T137: 0 | U137: 0 | W137: 0 | X137: 0
A138: O | B138: 108 | L138: 0 | M138: 0 | N138: 0 | O138: 0 | P138: 0 | T138: 0 | U138: 0 | W138: 0 | X138: 0
A139: O | B139: 109 | L139: 0 | M139: 0 | N139: 0 | O139: 0 | P139: 0 | T139: 0 | U139: 0 | W139: 0 | X139: 0
A140: O | B140: 110 | L140: 0 | M140: 0 | N140: 0 | O140: 0 | P140: 0 | T140: 0 | U140: 0 | W140: 0 | X140: 0
A141: O | B141: 111 | L141: 0 | M141: 0 | N141: 0 | O141: 0 | P141: 0 | T141: 0 | U141: 0 | W141: 0 | X141: 0
A142: O | B142: 112 | L142: 0 | M142: 0 | N142: 0 | O142: 0 | P142: 0 | T142: 0 | U142: 0 | W142: 0 | X142: 0
A143: O | B143: 113 | L143: 0 | M143: 0 | N143: 0 | O143: 0 | P143: 0 | T143: 0 | U143: 0 | W143: 0 | X143: 0
A144: O | B144: 114 | L144: 0 | M144: 0 | N144: 0 | O144: 0 | P144: 0 | T144: 0 | U144: 0 | W144: 0 | X144: 0
A145: O | B145: 115 | L145: 0 | M145: 0 | N145: 0 | O145: 0 | P145: 0 | T145: 0 | U145: 0 | W145: 0 | X145: 0
A146: O | B146: 116 | L146: 0 | M146: 0 | N146: 0 | O146: 0 | P146: 0 | T146: 0 | U146: 0 | W146: 0 | X146: 0
A147: O | B147: 117 | L147: 0 | M147: 0 | N147: 0 | O147: 0 | P147: 0 | T147: 0 | U147: 0 | W147: 0 | X147: 0
A148: O | B148: 118 | L148: 0 | M148: 0 | N148: 0 | O148: 0 | P148: 0 | T148: 0 | U148: 0 | W148: 0 | X148: 0
A149: O | B149: 119 | L149: 0 | M149: 0 | N149: 0 | O149: 0 | P149: 0 | T149: 0 | U149: 0 | W149: 0 | X149: 0
A150: O | B150: 120 | L150: 0 | M150: 0 | N150: 0 | O150: 0 | P150: 0 | T150: 0 | U150: 0 | W150: 0 | X150: 0
A151: O | B151: 121 | L151: 0 | M151: 0 | N151: 0 | O151: 0 | P151: 0 | T151: 0 | U151: 0 | W151: 0 | X151: 0
A152: O | B152: 122 | L152: 0 | M152: 0 | N152: 0 | O152: 0 | P152: 0 | T152: 0 | U152: 0 | W152: 0 | X152: 0
A153: O | B153: 123 | L153: 0 | M153: 0 | N153: 0 | O153: 0 | P153: 0 | T153: 0 | U153: 0 | W153: 0 | X153: 0
A154: O | B154: 124 | L154: 0 | M154: 0 | N154: 0 | O154: 0 | P154: 0 | T154: 0 | U154: 0 | W154: 0 | X154: 0
A155: O | B155: 125 | L155: 0 | M155: 0 | N155: 0 | O155: 0 | P155: 0 | T155: 0 | U155: 0 | W155: 0 | X155: 0
A156: O | B156: 126 | L156: 0 | M156: 0 | N156: 0 | O156: 0 | P156: 0 | T156: 0 | U156: 0 | W156: 0 | X156: 0
A157: O | B157: 127 | L157: 0 | M157: 0 | N157: 0 | O157: 0 | P157: 0 | T157: 0 | U157: 0 | W157: 0 | X157: 0
A158: O | B158: 128 | L158: 0 | M158: 0 | N158: 0 | O158: 0 | P158: 0 | T158: 0 | U158: 0 | W158: 0 | X158: 0
A159: O | B159: 129 | L159: 0 | M159: 0 | N159: 0 | O159: 0 | P159: 0 | T159: 0 | U159: 0 | W159: 0 | X159: 0
A160: O | B160: 130 | L160: =SUM(E160:K160) -> 0 | M160: =+D160*L160 -> 0 | N160: =D160*E160 -> 0 | O160: =(F160+G160+H160+I160+J160)*D160 -> 0 | P160: =+D160*K160 -> 0 | Q160: =IF(SUM(E160:K160)>30%,"VSOTA MORA BITI MANJŠA ALI ENAKA 30%","") ->  | T160: =IF(A160="Z",N160+O160,0) -> 0 | U160: =IF(A160="O",N160+O160,0) -> 0 | W160: =IF(A160="Z",N160+O160,N160) -> 0 | X160: 0
A161: O | B161: 131 | L161: 0 | M161: 0 | N161: 0 | O161: 0 | P161: 0 | T161: 0 | U161: 0 | W161: 0 | X161: 0
A162: O | B162: 132 | L162: 0 | M162: 0 | N162: 0 | O162: 0 | P162: 0 | T162: 0 | U162: 0 | W162: 0 | X162: 0
A163: O | B163: 133 | L163: 0 | M163: 0 | N163: 0 | O163: 0 | P163: 0 | T163: 0 | U163: 0 | W163: 0 | X163: 0
A164: O | B164: 134 | L164: 0 | M164: 0 | N164: 0 | O164: 0 | P164: 0 | T164: 0 | U164: 0 | W164: 0 | X164: 0
A165: O | B165: 135 | L165: 0 | M165: 0 | N165: 0 | O165: 0 | P165: 0 | T165: 0 | U165: 0 | W165: 0 | X165: 0
A166: O | B166: 136 | L166: 0 | M166: 0 | N166: 0 | O166: 0 | P166: 0 | T166: 0 | U166: 0 | W166: 0 | X166: 0
A167: O | B167: 137 | L167: 0 | M167: 0 | N167: 0 | O167: 0 | P167: 0 | T167: 0 | U167: 0 | W167: 0 | X167: 0
A168: O | B168: 138 | L168: 0 | M168: 0 | N168: 0 | O168: 0 | P168: 0 | T168: 0 | U168: 0 | W168: 0 | X168: 0
A169: O | B169: 139 | L169: 0 | M169: 0 | N169: 0 | O169: 0 | P169: 0 | T169: 0 | U169: 0 | W169: 0 | X169: 0
A170: O | B170: 140 | L170: 0 | M170: 0 | N170: 0 | O170: 0 | P170: 0 | T170: 0 | U170: 0 | W170: 0 | X170: 0
A171: O | B171: 141 | L171: 0 | M171: 0 | N171: 0 | O171: 0 | P171: 0 | T171: 0 | U171: 0 | W171: 0 | X171: 0
A172: O | B172: 142 | L172: 0 | M172: 0 | N172: 0 | O172: 0 | P172: 0 | T172: 0 | U172: 0 | W172: 0 | X172: 0
A173: O | B173: 143 | L173: 0 | M173: 0 | N173: 0 | O173: 0 | P173: 0 | T173: 0 | U173: 0 | W173: 0 | X173: 0
A174: O | B174: 144 | L174: 0 | M174: 0 | N174: 0 | O174: 0 | P174: 0 | T174: 0 | U174: 0 | W174: 0 | X174: 0
A175: O | B175: 145 | L175: 0 | M175: 0 | N175: 0 | O175: 0 | P175: 0 | T175: 0 | U175: 0 | W175: 0 | X175: 0
A176: O | B176: 146 | L176: 0 | M176: 0 | N176: 0 | O176: 0 | P176: 0 | T176: 0 | U176: 0 | W176: 0 | X176: 0
A177: O | B177: 147 | L177: 0 | M177: 0 | N177: 0 | O177: 0 | P177: 0 | T177: 0 | U177: 0 | W177: 0 | X177: 0
A178: O | B178: 148 | L178: 0 | M178: 0 | N178: 0 | O178: 0 | P178: 0 | T178: 0 | U178: 0 | W178: 0 | X178: 0
A179: O | B179: 149 | L179: 0 | M179: 0 | N179: 0 | O179: 0 | P179: 0 | T179: 0 | U179: 0 | W179: 0 | X179: =IF(A179="O",O179,0) -> 0
A180: O | B180: 150 | L180: 0 | M180: 0 | N180: 0 | O180: 0 | P180: 0 | T180: 0 | U180: 0 | W180: 0 | X180: 0
A181: O | B181: 151 | L181: 0 | M181: 0 | N181: 0 | O181: 0 | P181: 0 | T181: 0 | U181: 0 | W181: 0 | X181: 0
A182: O | B182: 152 | L182: 0 | M182: 0 | N182: 0 | O182: 0 | P182: 0 | T182: 0 | U182: 0 | W182: 0 | X182: 0
A183: O | B183: 153 | L183: 0 | M183: 0 | N183: 0 | O183: 0 | P183: 0 | T183: 0 | U183: 0 | W183: 0 | X183: 0
A184: O | B184: 154 | L184: 0 | M184: 0 | N184: 0 | O184: 0 | P184: 0 | T184: 0 | U184: 0 | W184: 0 | X184: 0
A185: O | B185: 155 | L185: 0 | M185: 0 | N185: 0 | O185: 0 | P185: 0 | T185: 0 | U185: 0 | W185: 0 | X185: 0
A186: O | B186: 156 | L186: 0 | M186: 0 | N186: 0 | O186: 0 | P186: 0 | T186: 0 | U186: 0 | W186: 0 | X186: 0
A187: O | B187: 157 | L187: 0 | M187: 0 | N187: 0 | O187: 0 | P187: 0 | T187: 0 | U187: 0 | W187: 0 | X187: 0
A188: O | B188: 158 | L188: 0 | M188: 0 | N188: 0 | O188: 0 | P188: 0 | T188: 0 | U188: 0 | W188: 0 | X188: 0
A189: O | B189: 159 | L189: 0 | M189: 0 | N189: 0 | O189: 0 | P189: 0 | T189: 0 | U189: 0 | W189: 0 | X189: 0
A190: O | B190: 160 | L190: 0 | M190: 0 | N190: 0 | O190: 0 | P190: 0 | T190: 0 | U190: 0 | W190: 0 | X190: 0
A191: O | B191: 161 | L191: 0 | M191: 0 | N191: 0 | O191: 0 | P191: 0 | T191: 0 | U191: 0 | W191: 0 | X191: 0
A192: O | B192: 162 | L192: 0 | M192: 0 | N192: 0 | O192: 0 | P192: 0 | T192: 0 | U192: 0 | W192: 0 | X192: 0
A193: O | B193: 163 | L193: 0 | M193: 0 | N193: 0 | O193: 0 | P193: 0 | T193: 0 | U193: 0 | W193: 0 | X193: 0
A194: O | B194: 164 | L194: 0 | M194: 0 | N194: 0 | O194: 0 | P194: 0 | T194: 0 | U194: 0 | W194: 0 | X194: 0
A195: O | B195: 165 | L195: 0 | M195: 0 | N195: 0 | O195: 0 | P195: 0 | T195: 0 | U195: 0 | W195: 0 | X195: 0
A196: O | B196: 166 | L196: 0 | M196: 0 | N196: 0 | O196: 0 | P196: 0 | T196: 0 | U196: 0 | W196: 0 | X196: 0
A197: O | B197: 167 | L197: 0 | M197: 0 | N197: 0 | O197: 0 | P197: 0 | T197: 0 | U197: 0 | W197: 0 | X197: 0
A198: O | B198: 168 | L198: 0 | M198: 0 | N198: 0 | O198: 0 | P198: 0 | T198: 0 | U198: 0 | W198: 0 | X198: 0
A199: O | B199: 169 | L199: 0 | M199: 0 | N199: 0 | O199: 0 | P199: 0 | T199: 0 | U199: 0 | W199: 0 | X199: 0
A200: O | B200: 170 | L200: 0 | M200: 0 | N200: 0 | O200: 0 | P200: 0 | T200: 0 | U200: 0 | W200: 0 | X200: 0
A201: O | B201: 171 | L201: 0 | M201: 0 | N201: 0 | O201: 0 | P201: 0 | T201: 0 | U201: 0 | W201: 0 | X201: 0
A202: O | B202: 172 | L202: 0 | M202: 0 | N202: 0 | O202: 0 | P202: 0 | T202: 0 | U202: 0 | W202: 0 | X202: 0
A203: O | B203: 173 | L203: 0 | M203: 0 | N203: 0 | O203: 0 | P203: 0 | T203: 0 | U203: 0 | W203: 0 | X203: 0
A204: O | B204: 174 | L204: 0 | M204: 0 | N204: 0 | O204: 0 | P204: 0 | T204: 0 | U204: 0 | W204: 0 | X204: 0
A205: O | B205: 175 | L205: 0 | M205: 0 | N205: 0 | O205: 0 | P205: 0 | T205: 0 | U205: 0 | W205: 0 | X205: 0
A206: O | B206: 176 | L206: 0 | M206: 0 | N206: 0 | O206: 0 | P206: 0 | T206: 0 | U206: 0 | W206: 0 | X206: 0
A207: O | B207: 177 | L207: 0 | M207: 0 | N207: 0 | O207: 0 | P207: 0 | T207: 0 | U207: 0 | W207: 0 | X207: 0
... 823 more rows

Sheet korekcija na vse kriterije
C1: Izplačilo delovne uspešnosti za | D1: ='ročni vnos'!D1 -> januar | E1: ='ročni vnos'!E1 -> 2026
C2: Šifra proračunskega uporabnika: | D2: =IF(LEN('ročni vnos'!D2)>0,'ročni vnos'!D2,"") -> 1234
C3: Organizacijska enota: | D3: =IF(LEN('ročni vnos'!D3)>0,'ročni vnos'!D3,"") -> Sektor za splošne zadeve
C5: Določitev skupnega obsega sredstev za delovno uspešnost - za delitev po kriterijih (brez sredstev projektov)
C6: Masa osnovnih plač | D6: ='ročni vnos'!D6 -> 55970.04
C7: Odstotek osnovnih plač | D7: ='ročni vnos'!D7 -> 0.02
C8: Masa sredstev iz osnovnih plač za DU | D8: =+D6*D7 -> 1119.4008
C10: Prihranki iz naslova odsotnosti JU ali nezasedenih delovnih mest | D10: ='ročni vnos'!D10 -> 4000
C11: Odstotek prihrankov za delitev | D11: ='ročni vnos'!D11 -> 0.5
C12: Masa sredstev za DU iz prihrankov | D12: =+D10*D11 -> 2000
C14: Nerazdeljena sredstva iz prejšnjega meseca | D14: ='ročni vnos'!D14 -> 100
C16: Razpoložljivi obseg sredstev za DU | D16: =+D8+D12+D14 -> 3219.4008
C17: Določen obseg mase za DU | D17: =+'ročni vnos'!D17 -> 3219.4
C19: Razdelitev sredstev za delovno uspešnost glede na vpisane odstotke (brez sredstev projektov) - kontrola
C20: Masa sredstev za delovno uspešnost | D20: =D17 -> 3219.4
C21: Razdeljena masa za delovno uspešnost | D21: =SUM(N33:O1031) -> 3219.4
C22: Razlika | D22: =+D20-D21 -> 0
C24: Razdelitev sredstev glede na vpisane odstotke (iz vseh virov sredstev)
C25: Razdeljena masa - nadomeščanje | D25: =SUM(N33:N1031) -> 1951.534966 | L25: =IF(L27>30%,"VSAJ EN SKUPNI ODSTOTEK ZA DU JE VEČJI OD 30 %.","") -> 
C26: Razdeljena masa - nadpovprečni rezultati | D26: =SUM(O33:O1031) -> 1267.865034 | L26: =IF(L27>30%,"UREDITE VREDNOSTI NA ZAVIHKU 'ROČNI VNOS'.","") -> 
C27: Razdeljena masa - projekti | D27: =SUM(P33:P1031) -> 310.5789 | L27: =MAX(L33:L1031) -> 0.1694783039
C28: Skupaj | D28: =SUM(D25:D27) -> 3529.9789
C30: Korekcijski faktor - vsi kriteriji | D30: =+'ročni vnos'!D20/'ročni vnos'!D21 -> 0.7703559267
B32: Zapor. št. | C32: Javni uslužbenec | D32: Osnovna plača | E32: Opravljanje dodatnega dela ali večji obseg dela | F32: Kakovost | G32: Natančnost | H32: Samostojnost | I32: Obseg dela | J32: Učinkovitost dela | K32: Projekti | L32: Skupni odstotek osnovne plače za DU | M32: Delovna uspešnost | N32: Delovna uspešnost - nadomeščanje | O32: Delovna uspešnost - nadpovprečni rez. | P32: Delovna uspešnost - projekti | Q32: Kontrola
B33: 1 | C33: =IF(LEN('ročni vnos'!C31)>0,'ročni vnos'!C31,"") -> Ana Novak | D33: ='ročni vnos'!D31 -> 1330.26 | E33: ='ročni vnos'!E31*$D$30 -> 0 | F33: ='ročni vnos'!F31*$D$30 -> 0 | G33: ='ročni vnos'!G31*$D$30 -> 0.0231106778 | H33: ='ročni vnos'!H31*$D$30 -> 0 | I33: ='ročni vnos'!I31*$D$30 -> 0 | J33: ='ročni vnos'!J31*$D$30 -> 0 | K33: ='ročni vnos'!K31 -> 0.02 | L33: =SUM(E33:K33) -> 0.0431106778 | M33: =+D33*L33 -> 57.34841025 | N33: =D33*E33 -> 0 | O33: =(F33+G33+H33+I33+J33)*D33 -> 30.74321025 | P33: =+D33*K33 -> 26.6052 | Q33: =IF(SUM(E33:K33)>30%,"VSOTA MORA BITI MANJŠA ALI ENAKA 30%","") -> 
B34: 2 | C34: =IF(LEN('ročni vnos'!C32)>0,'ročni vnos'!C32,"") -> Marko Kovač | D34: ='ročni vnos'!D32 -> 1411.28 | E34: ='ročni vnos'!E32*$D$30 -> 0.03851779634 | F34: ='ročni vnos'!F32*$D$30 -> 0 | G34: ='ročni vnos'!G32*$D$30 -> 0.03851779634 | H34: ='ročni vnos'!H32*$D$30 -> 0 | I34: ='ročni vnos'!I32*$D$30 -> 0 | J34: ='ročni vnos'!J32*$D$30 -> 0 | K34: ='ročni vnos'!K32 -> 0 | L34: =SUM(E34:K34) -> 0.07703559267 | M34: =+D34*L34 -> 108.7187912 | N34: =D34*E34 -> 54.35939561 | O34: =(F34+G34+H34+I34+J34)*D34 -> 54.35939561 | P34: =+D34*K34 -> 0 | Q34: =IF(SUM(E34:K34)>30%,"VSOTA MORA BITI MANJŠA ALI ENAKA 30%","") -> 
B35: 3 | C35: =IF(LEN('ročni vnos'!C33)>0,'ročni vnos'!C33,"") -> Maja Horvat | D35: ='ročni vnos'!D33 -> 1477.72 | E35: ='ročni vnos'!E33*$D$30 -> 0.03851779634 | F35: ='ročni vnos'!F33*$D$30 -> 0 | G35: ='ročni vnos'!G33*$D$30 -> 0 | H35: ='ročni vnos'!H33*$D$30 -> 0 | I35: ='ročni vnos'!I33*$D$30 -> 0 | J35: ='ročni vnos'!J33*$D$30 -> 0 | K35: ='ročni vnos'!K33 -> 0 | L35: 0.03851779634 | M35: 56.918518 | N35: 56.918518 | O35: 0 | P35: 0
B36: 4 | C36: =IF(LEN('ročni vnos'!C34)>0,'ročni vnos'!C34,"") -> Luka Zupan | D36: ='ročni vnos'!D34 -> 1804.47 | E36: ='ročni vnos'!E34*$D$30 -> 0.03851779634 | F36: ='ročni vnos'!F34*$D$30 -> 0 | G36: ='ročni vnos'!G34*$D$30 -> 0 | H36: ='ročni vnos'!H34*$D$30 -> 0 | I36: ='ročni vnos'!I34*$D$30 -> 0 | J36: ='ročni vnos'!J34*$D$30 -> 0 | K36: ='ročni vnos'!K34 -> 0.07 | L36: 0.1085177963 | M36: 195.817108 | N36: 69.50420796 | O36: 0 | P36: 126.3129
B37: 5 | C37: =IF(LEN('ročni vnos'!C35)>0,'ročni vnos'!C35,"") -> Nina Potočnik | D37: ='ročni vnos'!D35 -> 1868.64 | E37: ='ročni vnos'!E35*$D$30 -> 0.03851779634 | F37: ='ročni vnos'!F35*$D$30 -> 0 | G37: ='ročni vnos'!G35*$D$30 -> 0 | H37: ='ročni vnos'!H35*$D$30 -> 0 | I37: ='ročni vnos'!I35*$D$30 -> 0 | J37: ='ročni vnos'!J35*$D$30 -> 0 | K37: ='ročni vnos'!K35 -> 0.02 | L37: 0.05851779634 | M37: 109.3486949 | N37: 71.97589495 | O37: 0 | P37: 37.3728
B38: 6 | C38: =IF(LEN('ročni vnos'!C36)>0,'ročni vnos'!C36,"") -> Peter Mlakar | D38: ='ročni vnos'!D36 -> 1868.64 | E38: ='ročni vnos'!E36*$D$30 -> 0 | F38: ='ročni vnos'!F36*$D$30 -> 0.01540711853 | G38: ='ročni vnos'!G36*$D$30 -> 0 | H38: ='ročni vnos'!H36*$D$30 -> 0 | I38: ='ročni vnos'!I36*$D$30 -> 0.07703559267 | J38: ='ročni vnos'!J36*$D$30 -> 0 | K38: ='ročni vnos'!K36 -> 0 | L38: 0.09244271121 | M38: 172.7421479 | N38: 0 | O38: 172.7421479 | P38: 0
B39: 7 | C39: =IF(LEN('ročni vnos'!C37)>0,'ročni vnos'!C37,"") -> Sara Vidmar | D39: ='ročni vnos'!D37 -> 2004.8 | E39: ='ročni vnos'!E37*$D$30 -> 0 | F39: ='ročni vnos'!F37*$D$30 -> 0 | G39: ='ročni vnos'!G37*$D$30 -> 0 | H39: ='ročni vnos'!H37*$D$30 -> 0 | I39: ='ročni vnos'!I37*$D$30 -> 0.07703559267 | J39: ='ročni vnos'!J37*$D$30 -> 0 | K39: ='ročni vnos'!K37 -> 0.06 | L39: 0.1370355927 | M39: 274.7289562 | N39: 0 | O39: 154.4409562 | P39: 120.288
B40: 8 | C40: =IF(LEN('ročni vnos'!C38)>0,'ročni vnos'!C38,"") -> Tomaž Kranjc | D40: ='ročni vnos'!D38 -> 2152.08 | E40: ='ročni vnos'!E38*$D$30 -> 0 | F40: ='ročni vnos'!F38*$D$30 -> 0 | G40: ='ročni vnos'!G38*$D$30 -> 0 | H40: ='ročni vnos'!H38*$D$30 -> 0.0231106778 | I40: ='ročni vnos'!I38*$D$30 -> 0 | J40: ='ročni vnos'!J38*$D$30 -> 0 | K40: ='ročni vnos'!K38 -> 0 | L40: 0.0231106778 | M40: 49.73602748 | N40: 0 | O40: 49.73602748 | P40: 0
B41: 9 | C41: =IF(LEN('ročni vnos'!C39)>0,'ročni vnos'!C39,"") -> Tina Turk | D41: ='ročni vnos'!D39 -> 2395.84 | E41: ='ročni vnos'!E39*$D$30 -> 0.115553389 | F41: ='ročni vnos'!F39*$D$30 -> 0 | G41: ='ročni vnos'!G39*$D$30 -> 0 | H41: ='ročni vnos'!H39*$D$30 -> 0.0231106778 | I41: ='ročni vnos'!I39*$D$30 -> 0 | J41: ='ročni vnos'!J39*$D$30 -> 0 | K41: ='ročni vnos'!K39 -> 0 | L41: 0.1386640668 | M41: 332.2169178 | N41: 276.8474315 | O41: 55.36948631 | P41: 0
B42: 10 | C42: =IF(LEN('ročni vnos'!C40)>0,'ročni vnos'!C40,"") -> Matej Oblak | D42: ='ročni vnos'!D40 -> 2483.67 | E42: ='ročni vnos'!E40*$D$30 -> 0.115553389 | F42: ='ročni vnos'!F40*$D$30 -> 0 | G42: ='ročni vnos'!G40*$D$30 -> 0.01540711853 | H42: ='ročni vnos'!H40*$D$30 -> 0.01540711853 | I42: ='ročni vnos'!I40*$D$30 -> 0 | J42: ='ročni vnos'!J40*$D$30 -> 0 | K42: ='ročni vnos'!K40 -> 0 | L42: 0.1463676261 | M42: 363.5288819 | N42: 286.9964857 | O42: 76.53239618 | P42: 0
B43: 11 | C43: =IF(LEN('ročni vnos'!C41)>0,'ročni vnos'!C41,"") -> Katarina Rozman | D43: ='ročni vnos'!D41 -> 2575 | E43: ='ročni vnos'!E41*$D$30 -> 0 | F43: ='ročni vnos'!F41*$D$30 -> 0 | G43: ='ročni vnos'!G41*$D$30 -> 0 | H43: ='ročni vnos'!H41*$D$30 -> 0.0231106778 | I43: ='ročni vnos'!I41*$D$30 -> 0 | J43: ='ročni vnos'!J41*$D$30 -> 0 | K43: ='ročni vnos'!K41 -> 0 | L43: 0.0231106778 | M43: 59.50999534 | N43: 0 | O43: 59.50999534 | P43: 0
B44: 12 | C44: =IF(LEN('ročni vnos'!C42)>0,'ročni vnos'!C42,"") -> Jan Bizjak | D44: ='ročni vnos'!D42 -> 2871.56 | E44: ='ročni vnos'!E42*$D$30 -> 0 | F44: ='ročni vnos'!F42*$D$30 -> 0.01540711853 | G44: ='ročni vnos'!G42*$D$30 -> 0 | H44: ='ročni vnos'!H42*$D$30 -> 0.0231106778 | I44: ='ročni vnos'!I42*$D$30 -> 0.115553389 | J44: ='ročni vnos'!J42*$D$30 -> 0 | K44: ='ročni vnos'!K42 -> 0 | L44: 0.1540711853 | M44: 442.424653 | N44: 0 | O44: 442.424653 | P44: 0
B45: 13 | C45: =IF(LEN('ročni vnos'!C43)>0,'ročni vnos'!C43,"") -> Barbara Košir | D45: ='ročni vnos'!D43 -> 3089.57 | E45: ='ročni vnos'!E43*$D$30 -> 0 | F45: ='ročni vnos'!F43*$D$30 -> 0 | G45: ='ročni vnos'!G43*$D$30 -> 0 | H45: ='ročni vnos'!H43*$D$30 -> 0 | I45: ='ročni vnos'!I43*$D$30 -> 0 | J45: ='ročni vnos'!J43*$D$30 -> 0 | K45: ='ročni vnos'!K43 -> 0 | L45: 0 | M45: 0 | N45: 0 | O45: =(F45+G45+H45+I45+J45)*D45 -> 0 | P45: 0
B46: 14 | C46: =IF(LEN('ročni vnos'!C44)>0,'ročni vnos'!C44,"") -> Rok Petek | D46: ='ročni vnos'!D44 -> 3387.86 | E46: ='ročni vnos'!E44*$D$30 -> 0 | F46: ='ročni vnos'!F44*$D$30 -> 0 | G46: ='ročni vnos'!G44*$D$30 -> 0 | H46: ='ročni vnos'!H44*$D$30 -> 0 | I46: ='ročni vnos'!I44*$D$30 -> 0 | J46: ='ročni vnos'!J44*$D$30 -> 0 | K46: ='ročni vnos'!K44 -> 0 | L46: 0 | M46: 0 | N46: 0 | O46: 0 | P46: 0
B47: 15 | C47: =IF(LEN('ročni vnos'!C45)>0,'ročni vnos'!C45,"") -> Urška Golob | D47: ='ročni vnos'!D45 -> 3580.38 | E47: ='ročni vnos'!E45*$D$30 -> 0.1540711853 | F47: ='ročni vnos'!F45*$D$30 -> 0 | G47: ='ročni vnos'!G45*$D$30 -> 0 | H47: ='ročni vnos'!H45*$D$30 -> 0 | I47: ='ročni vnos'!I45*$D$30 -> 0 | J47: ='ročni vnos'!J45*$D$30 -> 0 | K47: ='ročni vnos'!K45 -> 0 | L47: 0.1540711853 | M47: 551.6333906 | N47: 551.6333906 | O47: 0 | P47: 0
B48: 16 | C48: =IF(LEN('ročni vnos'!C46)>0,'ročni vnos'!C46,"") -> Miha Prevc | D48: ='ročni vnos'!D46 -> 3785.91 | E48: ='ročni vnos'!E46*$D$30 -> 0.1540711853 | F48: ='ročni vnos'!F46*$D$30 -> 0 | G48: ='ročni vnos'!G46*$D$30 -> 0 | H48: ='ročni vnos'!H46*$D$30 -> 0.01540711853 | I48: ='ročni vnos'!I46*$D$30 -> 0 | J48: ='ročni vnos'!J46*$D$30 -> 0 | K48: ='ročni vnos'!K46 -> 0 | L48: 0.1694783039 | M48: 641.6296055 | N48: 583.2996413 | O48: 58.32996413 | P48: 0
B49: 17 | C49: =IF(LEN('ročni vnos'!C47)>0,'ročni vnos'!C47,"") -> Alenka Bajc | D49: ='ročni vnos'!D47 -> 4002.47 | E49: ='ročni vnos'!E47*$D$30 -> 0 | F49: ='ročni vnos'!F47*$D$30 -> 0 | G49: ='ročni vnos'!G47*$D$30 -> 0 | H49: ='ročni vnos'!H47*$D$30 -> 0 | I49: ='ročni vnos'!I47*$D$30 -> 0 | J49: ='ročni vnos'!J47*$D$30 -> 0 | K49: ='ročni vnos'!K47 -> 0 | L49: 0 | M49: 0 | N49: 0 | O49: 0 | P49: 0
B50: 18 | C50: =IF(LEN('ročni vnos'!C48)>0,'ročni vnos'!C48,"") -> Jure Krivec | D50: ='ročni vnos'!D48 -> 4312.74 | E50: ='ročni vnos'!E48*$D$30 -> 0 | F50: ='ročni vnos'!F48*$D$30 -> 0 | G50: ='ročni vnos'!G48*$D$30 -> 0 | H50: ='ročni vnos'!H48*$D$30 -> 0 | I50: ='ročni vnos'!I48*$D$30 -> 0 | J50: ='ročni vnos'!J48*$D$30 -> 0 | K50: ='ročni vnos'!K48 -> 0 | L50: 0 | M50: 0 | N50: 0 | O50: 0 | P50: 0
B51: 19 | C51: =IF(LEN('ročni vnos'!C49)>0,'ročni vnos'!C49,"") -> Nataša Štravs | D51: ='ročni vnos'!D49 -> 4648.35 | E51: ='ročni vnos'!E49*$D$30 -> 0 | F51: ='ročni vnos'!F49*$D$30 -> 0 | G51: ='ročni vnos'!G49*$D$30 -> 0 | H51: ='ročni vnos'!H49*$D$30 -> 0 | I51: ='ročni vnos'!I49*$D$30 -> 0 | J51: ='ročni vnos'!J49*$D$30 -> 0 | K51: ='ročni vnos'!K49 -> 0 | L51: 0 | M51: 0 | N51: 0 | O51: 0 | P51: 0
B52: 20 | C52: =IF(LEN('ročni vnos'!C50)>0,'ročni vnos'!C50,"") -> Blaž Pavlin | D52: ='ročni vnos'!D50 -> 4918.8 | E52: ='ročni vnos'!E50*$D$30 -> 0 | F52: ='ročni vnos'!F50*$D$30 -> 0 | G52: ='ročni vnos'!G50*$D$30 -> 0 | H52: ='ročni vnos'!H50*$D$30 -> 0.0231106778 | I52: ='ročni vnos'!I50*$D$30 -> 0 | J52: ='ročni vnos'!J50*$D$30 -> 0 | K52: ='ročni vnos'!K50 -> 0 | L52: 0.0231106778 | M52: 113.676802 | N52: 0 | O52: 113.676802 | P52: 0
B53: 21 | C53: =IF(LEN('ročni vnos'!C51)>0,'ročni vnos'!C51,"") ->  | D53: ='ročni vnos'!D51 -> 0 | E53: ='ročni vnos'!E51*$D$30 -> 0 | F53: ='ročni vnos'!F51*$D$30 -> 0 | G53: ='ročni vnos'!G51*$D$30 -> 0 | H53: ='ročni vnos'!H51*$D$30 -> 0 | I53: ='ročni vnos'!I51*$D$30 -> 0 | J53: ='ročni vnos'!J51*$D$30 -> 0 | K53: ='ročni vnos'!K51 -> 0 | L53: 0 | M53: 0 | N53: 0 | O53: 0 | P53: 0
B54: 22 | C54: =IF(LEN('ročni vnos'!C52)>0,'ročni vnos'!C52,"") ->  | D54: ='ročni vnos'!D52 -> 0 | E54: ='ročni vnos'!E52*$D$30 -> 0 | F54: ='ročni vnos'!F52*$D$30 -> 0 | G54: ='ročni vnos'!G52*$D$30 -> 0 | H54: ='ročni vnos'!H52*$D$30 -> 0 | I54: ='ročni vnos'!I52*$D$30 -> 0 | J54: ='ročni vnos'!J52*$D$30 -> 0 | K54: ='ročni vnos'!K52 -> 0 | L54: 0 | M54: 0 | N54: 0 | O54: 0 | P54: 0
B55: 23 | C55: =IF(LEN('ročni vnos'!C53)>0,'ročni vnos'!C53,"") ->  | D55: ='ročni vnos'!D53 -> 0 | E55: ='ročni vnos'!E53*$D$30 -> 0 | F55: ='ročni vnos'!F53*$D$30 -> 0 | G55: ='ročni vnos'!G53*$D$30 -> 0 | H55: ='ročni vnos'!H53*$D$30 -> 0 | I55: ='ročni vnos'!I53*$D$30 -> 0 | J55: ='ročni vnos'!J53*$D$30 -> 0 | K55: ='ročni vnos'!K53 -> 0 | L55: 0 | M55: 0 | N55: 0 | O55: 0 | P55: 0
B56: 24 | C56: =IF(LEN('ročni vnos'!C54)>0,'ročni vnos'!C54,"") ->  | D56: ='ročni vnos'!D54 -> 0 | E56: ='ročni vnos'!E54*$D$30 -> 0 | F56: ='ročni vnos'!F54*$D$30 -> 0 | G56: ='ročni vnos'!G54*$D$30 -> 0 | H56: ='ročni vnos'!H54*$D$30 -> 0 | I56: ='ročni vnos'!I54*$D$30 -> 0 | J56: ='ročni vnos'!J54*$D$30 -> 0 | K56: ='ročni vnos'!K54 -> 0 | L56: 0 | M56: 0 | N56: 0 | O56: 0 | P56: 0
B57: 25 | C57: =IF(LEN('ročni vnos'!C55)>0,'ročni vnos'!C55,"") ->  | D57: ='ročni vnos'!D55 -> 0 | E57: ='ročni vnos'!E55*$D$30 -> 0 | F57: ='ročni vnos'!F55*$D$30 -> 0 | G57: ='ročni vnos'!G55*$D$30 -> 0 | H57: ='ročni vnos'!H55*$D$30 -> 0 | I57: ='ročni vnos'!I55*$D$30 -> 0 | J57: ='ročni vnos'!J55*$D$30 -> 0 | K57: ='ročni vnos'!K55 -> 0 | L57: 0 | M57: 0 | N57: 0 | O57: 0 | P57: 0
B58: 26 | C58: =IF(LEN('ročni vnos'!C56)>0,'ročni vnos'!C56,"") ->  | D58: ='ročni vnos'!D56 -> 0 | E58: ='ročni vnos'!E56*$D$30 -> 0 | F58: ='ročni vnos'!F56*$D$30 -> 0 | G58: ='ročni vnos'!G56*$D$30 -> 0 | H58: ='ročni vnos'!H56*$D$30 -> 0 | I58: ='ročni vnos'!I56*$D$30 -> 0 | J58: ='ročni vnos'!J56*$D$30 -> 0 | K58: ='ročni vnos'!K56 -> 0 | L58: 0 | M58: 0 | N58: 0 | O58: 0 | P58: 0
B59: 27 | C59: =IF(LEN('ročni vnos'!C57)>0,'ročni vnos'!C57,"") ->  | D59: ='ročni vnos'!D57 -> 0 | E59: ='ročni vnos'!E57*$D$30 -> 0 | F59: ='ročni vnos'!F57*$D$30 -> 0 | G59: ='ročni vnos'!G57*$D$30 -> 0 | H59: ='ročni vnos'!H57*$D$30 -> 0 | I59: ='ročni vnos'!I57*$D$30 -> 0 | J59: ='ročni vnos'!J57*$D$30 -> 0 | K59: ='ročni vnos'!K57 -> 0 | L59: 0 | M59: 0 | N59: 0 | O59: 0 | P59: 0
B60: 28 | C60: =IF(LEN('ročni vnos'!C58)>0,'ročni vnos'!C58,"") ->  | D60: ='ročni vnos'!D58 -> 0 | E60: ='ročni vnos'!E58*$D$30 -> 0 | F60: ='ročni vnos'!F58*$D$30 -> 0 | G60: ='ročni vnos'!G58*$D$30 -> 0 | H60: ='ročni vnos'!H58*$D$30 -> 0 | I60: ='ročni vnos'!I58*$D$30 -> 0 | J60: ='ročni vnos'!J58*$D$30 -> 0 | K60: ='ročni vnos'!K58 -> 0 | L60: 0 | M60: 0 | N60: 0 | O60: 0 | P60: 0
B61: 29 | C61: =IF(LEN('ročni vnos'!C59)>0,'ročni vnos'!C59,"") ->  | D61: ='ročni vnos'!D59 -> 0 | E61: ='ročni vnos'!E59*$D$30 -> 0 | F61: ='ročni vnos'!F59*$D$30 -> 0 | G61: ='ročni vnos'!G59*$D$30 -> 0 | H61: ='ročni vnos'!H59*$D$30 -> 0 | I61: ='ročni vnos'!I59*$D$30 -> 0 | J61: ='ročni vnos'!J59*$D$30 -> 0 | K61: ='ročni vnos'!K59 -> 0 | L61: 0 | M61: 0 | N61: 0 | O61: 0 | P61: 0
B62: 30 | C62: =IF(LEN('ročni vnos'!C60)>0,'ročni vnos'!C60,"") ->  | D62: ='ročni vnos'!D60 -> 0 | E62: ='ročni vnos'!E60*$D$30 -> 0 | F62: ='ročni vnos'!F60*$D$30 -> 0 | G62: ='ročni vnos'!G60*$D$30 -> 0 | H62: ='ročni vnos'!H60*$D$30 -> 0 | I62: ='ročni vnos'!I60*$D$30 -> 0 | J62: ='ročni vnos'!J60*$D$30 -> 0 | K62: ='ročni vnos'!K60 -> 0 | L62: 0 | M62: 0 | N62: 0 | O62: 0 | P62: 0
B63: 31 | C63: =IF(LEN('ročni vnos'!C61)>0,'ročni vnos'!C61,"") ->  | D63: ='ročni vnos'!D61 -> 0 | E63: ='ročni vnos'!E61*$D$30 -> 0 | F63: ='ročni vnos'!F61*$D$30 -> 0 | G63: ='ročni vnos'!G61*$D$30 -> 0 | H63: ='ročni vnos'!H61*$D$30 -> 0 | I63: ='ročni vnos'!I61*$D$30 -> 0 | J63: ='ročni vnos'!J61*$D$30 -> 0 | K63: ='ročni vnos'!K61 -> 0 | L63: 0 | M63: 0 | N63: 0 | O63: 0 | P63: 0
B64: 32 | C64: =IF(LEN('ročni vnos'!C62)>0,'ročni vnos'!C62,"") ->  | D64: ='ročni vnos'!D62 -> 0 | E64: ='ročni vnos'!E62*$D$30 -> 0 | F64: ='ročni vnos'!F62*$D$30 -> 0 | G64: ='ročni vnos'!G62*$D$30 -> 0 | H64: ='ročni vnos'!H62*$D$30 -> 0 | I64: ='ročni vnos'!I62*$D$30 -> 0 | J64: ='ročni vnos'!J62*$D$30 -> 0 | K64: ='ročni vnos'!K62 -> 0 | L64: 0 | M64: 0 | N64: 0 | O64: 0 | P64: 0
B65: 33 | C65: =IF(LEN('ročni vnos'!C63)>0,'ročni vnos'!C63,"") ->  | D65: ='ročni vnos'!D63 -> 0 | E65: ='ročni vnos'!E63*$D$30 -> 0 | F65: ='ročni vnos'!F63*$D$30 -> 0 | G65: ='ročni vnos'!G63*$D$30 -> 0 | H65: ='ročni vnos'!H63*$D$30 -> 0 | I65: ='ročni vnos'!I63*$D$30 -> 0 | J65: ='ročni vnos'!J63*$D$30 -> 0 | K65: ='ročni vnos'!K63 -> 0 | L65: 0 | M65: 0 | N65: 0 | O65: 0 | P65: 0
B66: 34 | C66: =IF(LEN('ročni vnos'!C64)>0,'ročni vnos'!C64,"") ->  | D66: ='ročni vnos'!D64 -> 0 | E66: ='ročni vnos'!E64*$D$30 -> 0 | F66: ='ročni vnos'!F64*$D$30 -> 0 | G66: ='ročni vnos'!G64*$D$30 -> 0 | H66: ='ročni vnos'!H64*$D$30 -> 0 | I66: ='ročni vnos'!I64*$D$30 -> 0 | J66: ='ročni vnos'!J64*$D$30 -> 0 | K66: ='ročni vnos'!K64 -> 0 | L66: 0 | M66: 0 | N66: 0 | O66: 0 | P66: 0
B67: 35 | C67: =IF(LEN('ročni vnos'!C65)>0,'ročni vnos'!C65,"") ->  | D67: ='ročni vnos'!D65 -> 0 | E67: ='ročni vnos'!E65*$D$30 -> 0 | F67: ='ročni vnos'!F65*$D$30 -> 0 | G67: ='ročni vnos'!G65*$D$30 -> 0 | H67: ='ročni vnos'!H65*$D$30 -> 0 | I67: ='ročni vnos'!I65*$D$30 -> 0 | J67: ='ročni vnos'!J65*$D$30 -> 0 | K67: ='ročni vnos'!K65 -> 0 | L67: 0 | M67: 0 | N67: 0 | O67: 0 | P67: 0
B68: 36 | C68: =IF(LEN('ročni vnos'!C66)>0,'ročni vnos'!C66,"") ->  | D68: ='ročni vnos'!D66 -> 0 | E68: ='ročni vnos'!E66*$D$30 -> 0 | F68: ='ročni vnos'!F66*$D$30 -> 0 | G68: ='ročni vnos'!G66*$D$30 -> 0 | H68: ='ročni vnos'!H66*$D$30 -> 0 | I68: ='ročni vnos'!I66*$D$30 -> 0 | J68: ='ročni vnos'!J66*$D$30 -> 0 | K68: ='ročni vnos'!K66 -> 0 | L68: 0 | M68: 0 | N68: 0 | O68: 0 | P68: 0
B69: 37 | C69: =IF(LEN('ročni vnos'!C67)>0,'ročni vnos'!C67,"") ->  | D69: ='ročni vnos'!D67 -> 0 | E69: ='ročni vnos'!E67*$D$30 -> 0 | F69: ='ročni vnos'!F67*$D$30 -> 0 | G69: ='ročni vnos'!G67*$D$30 -> 0 | H69: ='ročni vnos'!H67*$D$30 -> 0 | I69: ='ročni vnos'!I67*$D$30 -> 0 | J69: ='ročni vnos'!J67*$D$30 -> 0 | K69: ='ročni vnos'!K67 -> 0 | L69: 0 | M69: 0 | N69: 0 | O69: 0 | P69: 0
B70: 38 | C70: =IF(LEN('ročni vnos'!C68)>0,'ročni vnos'!C68,"") ->  | D70: ='ročni vnos'!D68 -> 0 | E70: ='ročni vnos'!E68*$D$30 -> 0 | F70: ='ročni vnos'!F68*$D$30 -> 0 | G70: ='ročni vnos'!G68*$D$30 -> 0 | H70: ='ročni vnos'!H68*$D$30 -> 0 | I70: ='ročni vnos'!I68*$D$30 -> 0 | J70: ='ročni vnos'!J68*$D$30 -> 0 | K70: ='ročni vnos'!K68 -> 0 | L70: 0 | M70: 0 | N70: 0 | O70: 0 | P70: 0
B71: 39 | C71: =IF(LEN('ročni vnos'!C69)>0,'ročni vnos'!C69,"") ->  | D71: ='ročni vnos'!D69 -> 0 | E71: ='ročni vnos'!E69*$D$30 -> 0 | F71: ='ročni vnos'!F69*$D$30 -> 0 | G71: ='ročni vnos'!G69*$D$30 -> 0 | H71: ='ročni vnos'!H69*$D$30 -> 0 | I71: ='ročni vnos'!I69*$D$30 -> 0 | J71: ='ročni vnos'!J69*$D$30 -> 0 | K71: ='ročni vnos'!K69 -> 0 | L71: 0 | M71: 0 | N71: 0 | O71: 0 | P71: 0
B72: 40 | C72: =IF(LEN('ročni vnos'!C70)>0,'ročni vnos'!C70,"") ->  | D72: ='ročni vnos'!D70 -> 0 | E72: ='ročni vnos'!E70*$D$30 -> 0 | F72: ='ročni vnos'!F70*$D$30 -> 0 | G72: ='ročni vnos'!G70*$D$30 -> 0 | H72: ='ročni vnos'!H70*$D$30 -> 0 | I72: ='ročni vnos'!I70*$D$30 -> 0 | J72: ='ročni vnos'!J70*$D$30 -> 0 | K72: ='ročni vnos'!K70 -> 0 | L72: 0 | M72: 0 | N72: 0 | O72: 0 | P72: 0
B73: 41 | C73: =IF(LEN('ročni vnos'!C71)>0,'ročni vnos'!C71,"") ->  | D73: ='ročni vnos'!D71 -> 0 | E73: ='ročni vnos'!E71*$D$30 -> 0 | F73: ='ročni vnos'!F71*$D$30 -> 0 | G73: ='ročni vnos'!G71*$D$30 -> 0 | H73: ='ročni vnos'!H71*$D$30 -> 0 | I73: ='ročni vnos'!I71*$D$30 -> 0 | J73: ='ročni vnos'!J71*$D$30 -> 0 | K73: ='ročni vnos'!K71 -> 0 | L73: 0 | M73: 0 | N73: 0 | O73: 0 | P73: 0
B74: 42 | C74: =IF(LEN('ročni vnos'!C72)>0,'ročni vnos'!C72,"") ->  | D74: ='ročni vnos'!D72 -> 0 | E74: ='ročni vnos'!E72*$D$30 -> 0 | F74: ='ročni vnos'!F72*$D$30 -> 0 | G74: ='ročni vnos'!G72*$D$30 -> 0 | H74: ='ročni vnos'!H72*$D$30 -> 0 | I74: ='ročni vnos'!I72*$D$30 -> 0 | J74: ='ročni vnos'!J72*$D$30 -> 0 | K74: ='ročni vnos'!K72 -> 0 | L74: 0 | M74: 0 | N74: 0 | O74: 0 | P74: 0
B75: 43 | C75: =IF(LEN('ročni vnos'!C73)>0,'ročni vnos'!C73,"") ->  | D75: ='ročni vnos'!D73 -> 0 | E75: ='ročni vnos'!E73*$D$30 -> 0 | F75: ='ročni vnos'!F73*$D$30 -> 0 | G75: ='ročni vnos'!G73*$D$30 -> 0 | H75: ='ročni vnos'!H73*$D$30 -> 0 | I75: ='ročni vnos'!I73*$D$30 -> 0 | J75: ='ročni vnos'!J73*$D$30 -> 0 | K75: ='ročni vnos'!K73 -> 0 | L75: 0 | M75: 0 | N75: 0 | O75: 0 | P75: 0
B76: 44 | C76: =IF(LEN('ročni vnos'!C74)>0,'ročni vnos'!C74,"") ->  | D76: ='ročni vnos'!D74 -> 0 | E76: ='ročni vnos'!E74*$D$30 -> 0 | F76: ='ročni vnos'!F74*$D$30 -> 0 | G76: ='ročni vnos'!G74*$D$30 -> 0 | H76: ='ročni vnos'!H74*$D$30 -> 0 | I76: ='ročni vnos'!I74*$D$30 -> 0 | J76: ='ročni vnos'!J74*$D$30 -> 0 | K76: ='ročni vnos'!K74 -> 0 | L76: 0 | M76: 0 | N76: 0 | O76: 0 | P76: 0
B77: 45 | C77: =IF(LEN('ročni vnos'!C75)>0,'ročni vnos'!C75,"") ->  | D77: ='ročni vnos'!D75 -> 0 | E77: ='ročni vnos'!E75*$D$30 -> 0 | F77: ='ročni vnos'!F75*$D$30 -> 0 | G77: ='ročni vnos'!G75*$D$30 -> 0 | H77: ='ročni vnos'!H75*$D$30 -> 0 | I77: ='ročni vnos'!I75*$D$30 -> 0 | J77: ='ročni vnos'!J75*$D$30 -> 0 | K77: ='ročni vnos'!K75 -> 0 | L77: 0 | M77: 0 | N77: 0 | O77: 0 | P77: 0
B78: 46 | C78: =IF(LEN('ročni vnos'!C76)>0,'ročni vnos'!C76,"") ->  | D78: ='ročni vnos'!D76 -> 0 | E78: ='ročni vnos'!E76*$D$30 -> 0 | F78: ='ročni vnos'!F76*$D$30 -> 0 | G78: ='ročni vnos'!G76*$D$30 -> 0 | H78: ='ročni vnos'!H76*$D$30 -> 0 | I78: ='ročni vnos'!I76*$D$30 -> 0 | J78: ='ročni vnos'!J76*$D$30 -> 0 | K78: ='ročni vnos'!K76 -> 0 | L78: 0 | M78: 0 | N78: 0 | O78: 0 | P78: 0
B79: 47 | C79: =IF(LEN('ročni vnos'!C77)>0,'ročni vnos'!C77,"") ->  | D79: ='ročni vnos'!D77 -> 0 | E79: ='ročni vnos'!E77*$D$30 -> 0 | F79: ='ročni vnos'!F77*$D$30 -> 0 | G79: ='ročni vnos'!G77*$D$30 -> 0 | H79: ='ročni vnos'!H77*$D$30 -> 0 | I79: ='ročni vnos'!I77*$D$30 -> 0 | J79: ='ročni vnos'!J77*$D$30 -> 0 | K79: ='ročni vnos'!K77 -> 0 | L79: 0 | M79: 0 | N79: 0 | O79: 0 | P79: 0
B80: 48 | C80: =IF(LEN('ročni vnos'!C78)>0,'ročni vnos'!C78,"") ->  | D80: ='ročni vnos'!D78 -> 0 | E80: ='ročni vnos'!E78*$D$30 -> 0 | F80: ='ročni vnos'!F78*$D$30 -> 0 | G80: ='ročni vnos'!G78*$D$30 -> 0 | H80: ='ročni vnos'!H78*$D$30 -> 0 | I80: ='ročni vnos'!I78*$D$30 -> 0 | J80: ='ročni vnos'!J78*$D$30 -> 0 | K80: ='ročni vnos'!K78 -> 0 | L80: 0 | M80: 0 | N80: 0 | O80: 0 | P80: 0
B81: 49 | C81: =IF(LEN('ročni vnos'!C79)>0,'ročni vnos'!C79,"") ->  | D81: ='ročni vnos'!D79 -> 0 | E81: ='ročni vnos'!E79*$D$30 -> 0 | F81: ='ročni vnos'!F79*$D$30 -> 0 | G81: ='ročni vnos'!G79*$D$30 -> 0 | H81: ='ročni vnos'!H79*$D$30 -> 0 | I81: ='ročni vnos'!I79*$D$30 -> 0 | J81: ='ročni vnos'!J79*$D$30 -> 0 | K81: ='ročni vnos'!K79 -> 0 | L81: 0 | M81: 0 | N81: 0 | O81: 0 | P81: 0
B82: 50 | C82: =IF(LEN('ročni vnos'!C80)>0,'ročni vnos'!C80,"") ->  | D82: ='ročni vnos'!D80 -> 0 | E82: ='ročni vnos'!E80*$D$30 -> 0 | F82: ='ročni vnos'!F80*$D$30 -> 0 | G82: ='ročni vnos'!G80*$D$30 -> 0 | H82: ='ročni vnos'!H80*$D$30 -> 0 | I82: ='ročni vnos'!I80*$D$30 -> 0 | J82: ='ročni vnos'!J80*$D$30 -> 0 | K82: ='ročni vnos'!K80 -> 0 | L82: 0 | M82: 0 | N82: 0 | O82: 0 | P82: 0
B83: 51 | C83: =IF(LEN('ročni vnos'!C81)>0,'ročni vnos'!C81,"") ->  | D83: ='ročni vnos'!D81 -> 0 | E83: ='ročni vnos'!E81*$D$30 -> 0 | F83: ='ročni vnos'!F81*$D$30 -> 0 | G83: ='ročni vnos'!G81*$D$30 -> 0 | H83: ='ročni vnos'!H81*$D$30 -> 0 | I83: ='ročni vnos'!I81*$D$30 -> 0 | J83: ='ročni vnos'!J81*$D$30 -> 0 | K83: ='ročni vnos'!K81 -> 0 | L83: 0 | M83: 0 | N83: 0 | O83: 0 | P83: 0
B84: 52 | C84: =IF(LEN('ročni vnos'!C82)>0,'ročni vnos'!C82,"") ->  | D84: ='ročni vnos'!D82 -> 0 | E84: ='ročni vnos'!E82*$D$30 -> 0 | F84: ='ročni vnos'!F82*$D$30 -> 0 | G84: ='ročni vnos'!G82*$D$30 -> 0 | H84: ='ročni vnos'!H82*$D$30 -> 0 | I84: ='ročni vnos'!I82*$D$30 -> 0 | J84: ='ročni vnos'!J82*$D$30 -> 0 | K84: ='ročni vnos'!K82 -> 0 | L84: 0 | M84: 0 | N84: 0 | O84: 0 | P84: 0
B85: 53 | C85: =IF(LEN('ročni vnos'!C83)>0,'ročni vnos'!C83,"") ->  | D85: ='ročni vnos'!D83 -> 0 | E85: ='ročni vnos'!E83*$D$30 -> 0 | F85: ='ročni vnos'!F83*$D$30 -> 0 | G85: ='ročni vnos'!G83*$D$30 -> 0 | H85: ='ročni vnos'!H83*$D$30 -> 0 | I85: ='ročni vnos'!I83*$D$30 -> 0 | J85: ='ročni vnos'!J83*$D$30 -> 0 | K85: ='ročni vnos'!K83 -> 0 | L85: 0 | M85: 0 | N85: 0 | O85: 0 | P85: 0
B86: 54 | C86: =IF(LEN('ročni vnos'!C84)>0,'ročni vnos'!C84,"") ->  | D86: ='ročni vnos'!D84 -> 0 | E86: ='ročni vnos'!E84*$D$30 -> 0 | F86: ='ročni vnos'!F84*$D$30 -> 0 | G86: ='ročni vnos'!G84*$D$30 -> 0 | H86: ='ročni vnos'!H84*$D$30 -> 0 | I86: ='ročni vnos'!I84*$D$30 -> 0 | J86: ='ročni vnos'!J84*$D$30 -> 0 | K86: ='ročni vnos'!K84 -> 0 | L86: 0 | M86: 0 | N86: 0 | O86: 0 | P86: 0
B87: 55 | C87: =IF(LEN('ročni vnos'!C85)>0,'ročni vnos'!C85,"") ->  | D87: ='ročni vnos'!D85 -> 0 | E87: ='ročni vnos'!E85*$D$30 -> 0 | F87: ='ročni vnos'!F85*$D$30 -> 0 | G87: ='ročni vnos'!G85*$D$30 -> 0 | H87: ='ročni vnos'!H85*$D$30 -> 0 | I87: ='ročni vnos'!I85*$D$30 -> 0 | J87: ='ročni vnos'!J85*$D$30 -> 0 | K87: ='ročni vnos'!K85 -> 0 | L87: 0 | M87: 0 | N87: 0 | O87: 0 | P87: 0
B88: 56 | C88: =IF(LEN('ročni vnos'!C86)>0,'ročni vnos'!C86,"") ->  | D88: ='ročni vnos'!D86 -> 0 | E88: ='ročni vnos'!E86*$D$30 -> 0 | F88: ='ročni vnos'!F86*$D$30 -> 0 | G88: ='ročni vnos'!G86*$D$30 -> 0 | H88: ='ročni vnos'!H86*$D$30 -> 0 | I88: ='ročni vnos'!I86*$D$30 -> 0 | J88: ='ročni vnos'!J86*$D$30 -> 0 | K88: ='ročni vnos'!K86 -> 0 | L88: 0 | M88: 0 | N88: 0 | O88: 0 | P88: 0
B89: 57 | C89: =IF(LEN('ročni vnos'!C87)>0,'ročni vnos'!C87,"") ->  | D89: ='ročni vnos'!D87 -> 0 | E89: ='ročni vnos'!E87*$D$30 -> 0 | F89: ='ročni vnos'!F87*$D$30 -> 0 | G89: ='ročni vnos'!G87*$D$30 -> 0 | H89: ='ročni vnos'!H87*$D$30 -> 0 | I89: ='ročni vnos'!I87*$D$30 -> 0 | J89: ='ročni vnos'!J87*$D$30 -> 0 | K89: ='ročni vnos'!K87 -> 0 | L89: 0 | M89: 0 | N89: 0 | O89: 0 | P89: 0
B90: 58 | C90: =IF(LEN('ročni vnos'!C88)>0,'ročni vnos'!C88,"") ->  | D90: ='ročni vnos'!D88 -> 0 | E90: ='ročni vnos'!E88*$D$30 -> 0 | F90: ='ročni vnos'!F88*$D$30 -> 0 | G90: ='ročni vnos'!G88*$D$30 -> 0 | H90: ='ročni vnos'!H88*$D$30 -> 0 | I90: ='ročni vnos'!I88*$D$30 -> 0 | J90: ='ročni vnos'!J88*$D$30 -> 0 | K90: ='ročni vnos'!K88 -> 0 | L90: 0 | M90: 0 | N90: 0 | O90: 0 | P90: 0
B91: 59 | C91: =IF(LEN('ročni vnos'!C89)>0,'ročni vnos'!C89,"") ->  | D91: ='ročni vnos'!D89 -> 0 | E91: ='ročni vnos'!E89*$D$30 -> 0 | F91: ='ročni vnos'!F89*$D$30 -> 0 | G91: ='ročni vnos'!G89*$D$30 -> 0 | H91: ='ročni vnos'!H89*$D$30 -> 0 | I91: ='ročni vnos'!I89*$D$30 -> 0 | J91: ='ročni vnos'!J89*$D$30 -> 0 | K91: ='ročni vnos'!K89 -> 0 | L91: 0 | M91: 0 | N91: 0 | O91: 0 | P91: 0
B92: 60 | C92: =IF(LEN('ročni vnos'!C90)>0,'ročni vnos'!C90,"") ->  | D92: ='ročni vnos'!D90 -> 0 | E92: ='ročni vnos'!E90*$D$30 -> 0 | F92: ='ročni vnos'!F90*$D$30 -> 0 | G92: ='ročni vnos'!G90*$D$30 -> 0 | H92: ='ročni vnos'!H90*$D$30 -> 0 | I92: ='ročni vnos'!I90*$D$30 -> 0 | J92: ='ročni vnos'!J90*$D$30 -> 0 | K92: ='ročni vnos'!K90 -> 0 | L92: 0 | M92: 0 | N92: 0 | O92: 0 | P92: 0
B93: 61 | C93: =IF(LEN('ročni vnos'!C91)>0,'ročni vnos'!C91,"") ->  | D93: ='ročni vnos'!D91 -> 0 | E93: ='ročni vnos'!E91*$D$30 -> 0 | F93: ='ročni vnos'!F91*$D$30 -> 0 | G93: ='ročni vnos'!G91*$D$30 -> 0 | H93: ='ročni vnos'!H91*$D$30 -> 0 | I93: ='ročni vnos'!I91*$D$30 -> 0 | J93: ='ročni vnos'!J91*$D$30 -> 0 | K93: ='ročni vnos'!K91 -> 0 | L93: 0 | M93: 0 | N93: 0 | O93: 0 | P93: 0
B94: 62 | C94: =IF(LEN('ročni vnos'!C92)>0,'ročni vnos'!C92,"") ->  | D94: ='ročni vnos'!D92 -> 0 | E94: ='ročni vnos'!E92*$D$30 -> 0 | F94: ='ročni vnos'!F92*$D$30 -> 0 | G94: ='ročni vnos'!G92*$D$30 -> 0 | H94: ='ročni vnos'!H92*$D$30 -> 0 | I94: ='ročni vnos'!I92*$D$30 -> 0 | J94: ='ročni vnos'!J92*$D$30 -> 0 | K94: ='ročni vnos'!K92 -> 0 | L94: 0 | M94: 0 | N94: 0 | O94: 0 | P94: 0
B95: 63 | C95: =IF(LEN('ročni vnos'!C93)>0,'ročni vnos'!C93,"") ->  | D95: ='ročni vnos'!D93 -> 0 | E95: ='ročni vnos'!E93*$D$30 -> 0 | F95: ='ročni vnos'!F93*$D$30 -> 0 | G95: ='ročni vnos'!G93*$D$30 -> 0 | H95: ='ročni vnos'!H93*$D$30 -> 0 | I95: ='ročni vnos'!I93*$D$30 -> 0 | J95: ='ročni vnos'!J93*$D$30 -> 0 | K95: ='ročni vnos'!K93 -> 0 | L95: 0 | M95: 0 | N95: 0 | O95: 0 | P95: 0
B96: 64 | C96: =IF(LEN('ročni vnos'!C94)>0,'ročni vnos'!C94,"") ->  | D96: ='ročni vnos'!D94 -> 0 | E96: ='ročni vnos'!E94*$D$30 -> 0 | F96: ='ročni vnos'!F94*$D$30 -> 0 | G96: ='ročni vnos'!G94*$D$30 -> 0 | H96: ='ročni vnos'!H94*$D$30 -> 0 | I96: ='ročni vnos'!I94*$D$30 -> 0 | J96: ='ročni vnos'!J94*$D$30 -> 0 | K96: ='ročni vnos'!K94 -> 0 | L96: 0 | M96: 0 | N96: 0 | O96: 0 | P96: 0
B97: 65 | C97: =IF(LEN('ročni vnos'!C95)>0,'ročni vnos'!C95,"") ->  | D97: ='ročni vnos'!D95 -> 0 | E97: ='ročni vnos'!E95*$D$30 -> 0 | F97: ='ročni vnos'!F95*$D$30 -> 0 | G97: ='ročni vnos'!G95*$D$30 -> 0 | H97: ='ročni vnos'!H95*$D$30 -> 0 | I97: ='ročni vnos'!I95*$D$30 -> 0 | J97: ='ročni vnos'!J95*$D$30 -> 0 | K97: ='ročni vnos'!K95 -> 0 | L97: 0 | M97: 0 | N97: 0 | O97: 0 | P97: 0
B98: 66 | C98: =IF(LEN('ročni vnos'!C96)>0,'ročni vnos'!C96,"") ->  | D98: ='ročni vnos'!D96 -> 0 | E98: ='ročni vnos'!E96*$D$30 -> 0 | F98: ='ročni vnos'!F96*$D$30 -> 0 | G98: ='ročni vnos'!G96*$D$30 -> 0 | H98: ='ročni vnos'!H96*$D$30 -> 0 | I98: ='ročni vnos'!I96*$D$30 -> 0 | J98: ='ročni vnos'!J96*$D$30 -> 0 | K98: ='ročni vnos'!K96 -> 0 | L98: =SUM(E98:K98) -> 0 | M98: =+D98*L98 -> 0 | N98: =D98*E98 -> 0 | O98: =(F98+G98+H98+I98+J98)*D98 -> 0 | P98: =+D98*K98 -> 0 | Q98: =IF(SUM(E98:K98)>30%,"VSOTA MORA BITI MANJŠA ALI ENAKA 30%","") -> 
B99: 67 | C99: =IF(LEN('ročni vnos'!C97)>0,'ročni vnos'!C97,"") ->  | D99: ='ročni vnos'!D97 -> 0 | E99: ='ročni vnos'!E97*$D$30 -> 0 | F99: ='ročni vnos'!F97*$D$30 -> 0 | G99: ='ročni vnos'!G97*$D$30 -> 0 | H99: ='ročni vnos'!H97*$D$30 -> 0 | I99: ='ročni vnos'!I97*$D$30 -> 0 | J99: ='ročni vnos'!J97*$D$30 -> 0 | K99: ='ročni vnos'!K97 -> 0 | L99: 0 | M99: 0 | N99: 0 | O99: 0 | P99: 0
B100: 68 | C100: =IF(LEN('ročni vnos'!C98)>0,'ročni vnos'!C98,"") ->  | D100: ='ročni vnos'!D98 -> 0 | E100: ='ročni vnos'!E98*$D$30 -> 0 | F100: ='ročni vnos'!F98*$D$30 -> 0 | G100: ='ročni vnos'!G98*$D$30 -> 0 | H100: ='ročni vnos'!H98*$D$30 -> 0 | I100: ='ročni vnos'!I98*$D$30 -> 0 | J100: ='ročni vnos'!J98*$D$30 -> 0 | K100: ='ročni vnos'!K98 -> 0 | L100: 0 | M100: 0 | N100: 0 | O100: 0 | P100: 0
B101: 69 | C101: =IF(LEN('ročni vnos'!C99)>0,'ročni vnos'!C99,"") ->  | D101: ='ročni vnos'!D99 -> 0 | E101: ='ročni vnos'!E99*$D$30 -> 0 | F101: ='ročni vnos'!F99*$D$30 -> 0 | G101: ='ročni vnos'!G99*$D$30 -> 0 | H101: ='ročni vnos'!H99*$D$30 -> 0 | I101: ='ročni vnos'!I99*$D$30 -> 0 | J101: ='ročni vnos'!J99*$D$30 -> 0 | K101: ='ročni vnos'!K99 -> 0 | L101: 0 | M101: 0 | N101: 0 | O101: 0 | P101: 0
B102: 70 | C102: =IF(LEN('ročni vnos'!C100)>0,'ročni vnos'!C100,"") ->  | D102: ='ročni vnos'!D100 -> 0 | E102: ='ročni vnos'!E100*$D$30 -> 0 | F102: ='ročni vnos'!F100*$D$30 -> 0 | G102: ='ročni vnos'!G100*$D$30 -> 0 | H102: ='ročni vnos'!H100*$D$30 -> 0 | I102: ='ročni vnos'!I100*$D$30 -> 0 | J102: ='ročni vnos'!J100*$D$30 -> 0 | K102: ='ročni vnos'!K100 -> 0 | L102: 0 | M102: 0 | N102: 0 | O102: 0 | P102: 0
B103: 71 | C103: =IF(LEN('ročni vnos'!C101)>0,'ročni vnos'!C101,"") ->  | D103: ='ročni vnos'!D101 -> 0 | E103: ='ročni vnos'!E101*$D$30 -> 0 | F103: ='ročni vnos'!F101*$D$30 -> 0 | G103: ='ročni vnos'!G101*$D$30 -> 0 | H103: ='ročni vnos'!H101*$D$30 -> 0 | I103: ='ročni vnos'!I101*$D$30 -> 0 | J103: ='ročni vnos'!J101*$D$30 -> 0 | K103: ='ročni vnos'!K101 -> 0 | L103: 0 | M103: 0 | N103: 0 | O103: 0 | P103: 0
B104: 72 | C104: =IF(LEN('ročni vnos'!C102)>0,'ročni vnos'!C102,"") ->  | D104: ='ročni vnos'!D102 -> 0 | E104: ='ročni vnos'!E102*$D$30 -> 0 | F104: ='ročni vnos'!F102*$D$30 -> 0 | G104: ='ročni vnos'!G102*$D$30 -> 0 | H104: ='ročni vnos'!H102*$D$30 -> 0 | I104: ='ročni vnos'!I102*$D$30 -> 0 | J104: ='ročni vnos'!J102*$D$30 -> 0 | K104: ='ročni vnos'!K102 -> 0 | L104: 0 | M104: 0 | N104: 0 | O104: 0 | P104: 0
B105: 73 | C105: =IF(LEN('ročni vnos'!C103)>0,'ročni vnos'!C103,"") ->  | D105: ='ročni vnos'!D103 -> 0 | E105: ='ročni vnos'!E103*$D$30 -> 0 | F105: ='ročni vnos'!F103*$D$30 -> 0 | G105: ='ročni vnos'!G103*$D$30 -> 0 | H105: ='ročni vnos'!H103*$D$30 -> 0 | I105: ='ročni vnos'!I103*$D$30 -> 0 | J105: ='ročni vnos'!J103*$D$30 -> 0 | K105: ='ročni vnos'!K103 -> 0 | L105: 0 | M105: 0 | N105: 0 | O105: 0 | P105: 0
B106: 74 | C106: =IF(LEN('ročni vnos'!C104)>0,'ročni vnos'!C104,"") ->  | D106: ='ročni vnos'!D104 -> 0 | E106: ='ročni vnos'!E104*$D$30 -> 0 | F106: ='ročni vnos'!F104*$D$30 -> 0 | G106: ='ročni vnos'!G104*$D$30 -> 0 | H106: ='ročni vnos'!H104*$D$30 -> 0 | I106: ='ročni vnos'!I104*$D$30 -> 0 | J106: ='ročni vnos'!J104*$D$30 -> 0 | K106: ='ročni vnos'!K104 -> 0 | L106: 0 | M106: 0 | N106: 0 | O106: 0 | P106: 0
B107: 75 | C107: =IF(LEN('ročni vnos'!C105)>0,'ročni vnos'!C105,"") ->  | D107: ='ročni vnos'!D105 -> 0 | E107: ='ročni vnos'!E105*$D$30 -> 0 | F107: ='ročni vnos'!F105*$D$30 -> 0 | G107: ='ročni vnos'!G105*$D$30 -> 0 | H107: ='ročni vnos'!H105*$D$30 -> 0 | I107: ='ročni vnos'!I105*$D$30 -> 0 | J107: ='ročni vnos'!J105*$D$30 -> 0 | K107: ='ročni vnos'!K105 -> 0 | L107: 0 | M107: 0 | N107: 0 | O107: 0 | P107: 0
B108: 76 | C108: =IF(LEN('ročni vnos'!C106)>0,'ročni vnos'!C106,"") ->  | D108: ='ročni vnos'!D106 -> 0 | E108: ='ročni vnos'!E106*$D$30 -> 0 | F108: ='ročni vnos'!F106*$D$30 -> 0 | G108: ='ročni vnos'!G106*$D$30 -> 0 | H108: ='ročni vnos'!H106*$D$30 -> 0 | I108: ='ročni vnos'!I106*$D$30 -> 0 | J108: ='ročni vnos'!J106*$D$30 -> 0 | K108: ='ročni vnos'!K106 -> 0 | L108: 0 | M108: 0 | N108: 0 | O108: 0 | P108: 0
B109: 77 | C109: =IF(LEN('ročni vnos'!C107)>0,'ročni vnos'!C107,"") ->  | D109: ='ročni vnos'!D107 -> 0 | E109: ='ročni vnos'!E107*$D$30 -> 0 | F109: ='ročni vnos'!F107*$D$30 -> 0 | G109: ='ročni vnos'!G107*$D$30 -> 0 | H109: ='ročni vnos'!H107*$D$30 -> 0 | I109: ='ročni vnos'!I107*$D$30 -> 0 | J109: ='ročni vnos'!J107*$D$30 -> 0 | K109: ='ročni vnos'!K107 -> 0 | L109: 0 | M109: 0 | N109: 0 | O109: 0 | P109: 0
B110: 78 | C110: =IF(LEN('ročni vnos'!C108)>0,'ročni vnos'!C108,"") ->  | D110: ='ročni vnos'!D108 -> 0 | E110: ='ročni vnos'!E108*$D$30 -> 0 | F110: ='ročni vnos'!F108*$D$30 -> 0 | G110: ='ročni vnos'!G108*$D$30 -> 0 | H110: ='ročni vnos'!H108*$D$30 -> 0 | I110: ='ročni vnos'!I108*$D$30 -> 0 | J110: ='ročni vnos'!J108*$D$30 -> 0 | K110: ='ročni vnos'!K108 -> 0 | L110: 0 | M110: 0 | N110: 0 | O110: 0 | P110: 0
B111: 79 | C111: =IF(LEN('ročni vnos'!C109)>0,'ročni vnos'!C109,"") ->  | D111: ='ročni vnos'!D109 -> 0 | E111: ='ročni vnos'!E109*$D$30 -> 0 | F111: ='ročni vnos'!F109*$D$30 -> 0 | G111: ='ročni vnos'!G109*$D$30 -> 0 | H111: ='ročni vnos'!H109*$D$30 -> 0 | I111: ='ročni vnos'!I109*$D$30 -> 0 | J111: ='ročni vnos'!J109*$D$30 -> 0 | K111: ='ročni vnos'!K109 -> 0 | L111: 0 | M111: 0 | N111: 0 | O111: 0 | P111: 0
B112: 80 | C112: =IF(LEN('ročni vnos'!C110)>0,'ročni vnos'!C110,"") ->  | D112: ='ročni vnos'!D110 -> 0 | E112: ='ročni vnos'!E110*$D$30 -> 0 | F112: ='ročni vnos'!F110*$D$30 -> 0 | G112: ='ročni vnos'!G110*$D$30 -> 0 | H112: ='ročni vnos'!H110*$D$30 -> 0 | I112: ='ročni vnos'!I110*$D$30 -> 0 | J112: ='ročni vnos'!J110*$D$30 -> 0 | K112: ='ročni vnos'!K110 -> 0 | L112: 0 | M112: 0 | N112: 0 | O112: 0 | P112: 0
B113: 81 | C113: =IF(LEN('ročni vnos'!C111)>0,'ročni vnos'!C111,"") ->  | D113: ='ročni vnos'!D111 -> 0 | E113: ='ročni vnos'!E111*$D$30 -> 0 | F113: ='ročni vnos'!F111*$D$30 -> 0 | G113: ='ročni vnos'!G111*$D$30 -> 0 | H113: ='ročni vnos'!H111*$D$30 -> 0 | I113: ='ročni vnos'!I111*$D$30 -> 0 | J113: ='ročni vnos'!J111*$D$30 -> 0 | K113: ='ročni vnos'!K111 -> 0 | L113: 0 | M113: 0 | N113: 0 | O113: 0 | P113: 0
B114: 82 | C114: =IF(LEN('ročni vnos'!C112)>0,'ročni vnos'!C112,"") ->  | D114: ='ročni vnos'!D112 -> 0 | E114: ='ročni vnos'!E112*$D$30 -> 0 | F114: ='ročni vnos'!F112*$D$30 -> 0 | G114: ='ročni vnos'!G112*$D$30 -> 0 | H114: ='ročni vnos'!H112*$D$30 -> 0 | I114: ='ročni vnos'!I112*$D$30 -> 0 | J114: ='ročni vnos'!J112*$D$30 -> 0 | K114: ='ročni vnos'!K112 -> 0 | L114: 0 | M114: 0 | N114: 0 | O114: 0 | P114: 0
B115: 83 | C115: =IF(LEN('ročni vnos'!C113)>0,'ročni vnos'!C113,"") ->  | D115: ='ročni vnos'!D113 -> 0 | E115: ='ročni vnos'!E113*$D$30 -> 0 | F115: ='ročni vnos'!F113*$D$30 -> 0 | G115: ='ročni vnos'!G113*$D$30 -> 0 | H115: ='ročni vnos'!H113*$D$30 -> 0 | I115: ='ročni vnos'!I113*$D$30 -> 0 | J115: ='ročni vnos'!J113*$D$30 -> 0 | K115: ='ročni vnos'!K113 -> 0 | L115: 0 | M115: 0 | N115: 0 | O115: 0 | P115: 0
B116: 84 | C116: =IF(LEN('ročni vnos'!C114)>0,'ročni vnos'!C114,"") ->  | D116: ='ročni vnos'!D114 -> 0 | E116: ='ročni vnos'!E114*$D$30 -> 0 | F116: ='ročni vnos'!F114*$D$30 -> 0 | G116: ='ročni vnos'!G114*$D$30 -> 0 | H116: ='ročni vnos'!H114*$D$30 -> 0 | I116: ='ročni vnos'!I114*$D$30 -> 0 | J116: ='ročni vnos'!J114*$D$30 -> 0 | K116: ='ročni vnos'!K114 -> 0 | L116: 0 | M116: 0 | N116: 0 | O116: 0 | P116: 0
B117: 85 | C117: =IF(LEN('ročni vnos'!C115)>0,'ročni vnos'!C115,"") ->  | D117: ='ročni vnos'!D115 -> 0 | E117: ='ročni vnos'!E115*$D$30 -> 0 | F117: ='ročni vnos'!F115*$D$30 -> 0 | G117: ='ročni vnos'!G115*$D$30 -> 0 | H117: ='ročni vnos'!H115*$D$30 -> 0 | I117: ='ročni vnos'!I115*$D$30 -> 0 | J117: ='ročni vnos'!J115*$D$30 -> 0 | K117: ='ročni vnos'!K115 -> 0 | L117: 0 | M117: 0 | N117: 0 | O117: 0 | P117: 0
B118: 86 | C118: =IF(LEN('ročni vnos'!C116)>0,'ročni vnos'!C116,"") ->  | D118: ='ročni vnos'!D116 -> 0 | E118: ='ročni vnos'!E116*$D$30 -> 0 | F118: ='ročni vnos'!F116*$D$30 -> 0 | G118: ='ročni vnos'!G116*$D$30 -> 0 | H118: ='ročni vnos'!H116*$D$30 -> 0 | I118: ='ročni vnos'!I116*$D$30 -> 0 | J118: ='ročni vnos'!J116*$D$30 -> 0 | K118: ='ročni vnos'!K116 -> 0 | L118: 0 | M118: 0 | N118: 0 | O118: 0 | P118: 0
B119: 87 | C119: =IF(LEN('ročni vnos'!C117)>0,'ročni vnos'!C117,"") ->  | D119: ='ročni vnos'!D117 -> 0 | E119: ='ročni vnos'!E117*$D$30 -> 0 | F119: ='ročni vnos'!F117*$D$30 -> 0 | G119: ='ročni vnos'!G117*$D$30 -> 0 | H119: ='ročni vnos'!H117*$D$30 -> 0 | I119: ='ročni vnos'!I117*$D$30 -> 0 | J119: ='ročni vnos'!J117*$D$30 -> 0 | K119: ='ročni vnos'!K117 -> 0 | L119: 0 | M119: 0 | N119: 0 | O119: 0 | P119: 0
B120: 88 | C120: =IF(LEN('ročni vnos'!C118)>0,'ročni vnos'!C118,"") ->  | D120: ='ročni vnos'!D118 -> 0 | E120: ='ročni vnos'!E118*$D$30 -> 0 | F120: ='ročni vnos'!F118*$D$30 -> 0 | G120: ='ročni vnos'!G118*$D$30 -> 0 | H120: ='ročni vnos'!H118*$D$30 -> 0 | I120: ='ročni vnos'!I118*$D$30 -> 0 | J120: ='ročni vnos'!J118*$D$30 -> 0 | K120: ='ročni vnos'!K118 -> 0 | L120: 0 | M120: 0 | N120: 0 | O120: 0 | P120: 0
B121: 89 | C121: =IF(LEN('ročni vnos'!C119)>0,'ročni vnos'!C119,"") ->  | D121: ='ročni vnos'!D119 -> 0 | E121: ='ročni vnos'!E119*$D$30 -> 0 | F121: ='ročni vnos'!F119*$D$30 -> 0 | G121: ='ročni vnos'!G119*$D$30 -> 0 | H121: ='ročni vnos'!H119*$D$30 -> 0 | I121: ='ročni vnos'!I119*$D$30 -> 0 | J121: ='ročni vnos'!J119*$D$30 -> 0 | K121: ='ročni vnos'!K119 -> 0 | L121: 0 | M121: 0 | N121: 0 | O121: 0 | P121: 0
B122: 90 | C122: =IF(LEN('ročni vnos'!C120)>0,'ročni vnos'!C120,"") ->  | D122: ='ročni vnos'!D120 -> 0 | E122: ='ročni vnos'!E120*$D$30 -> 0 | F122: ='ročni vnos'!F120*$D$30 -> 0 | G122: ='ročni vnos'!G120*$D$30 -> 0 | H122: ='ročni vnos'!H120*$D$30 -> 0 | I122: ='ročni vnos'!I120*$D$30 -> 0 | J122: ='ročni vnos'!J120*$D$30 -> 0 | K122: ='ročni vnos'!K120 -> 0 | L122: 0 | M122: 0 | N122: 0 | O122: 0 | P122: 0
B123: 91 | C123: =IF(LEN('ročni vnos'!C121)>0,'ročni vnos'!C121,"") ->  | D123: ='ročni vnos'!D121 -> 0 | E123: ='ročni vnos'!E121*$D$30 -> 0 | F123: ='ročni vnos'!F121*$D$30 -> 0 | G123: ='ročni vnos'!G121*$D$30 -> 0 | H123: ='ročni vnos'!H121*$D$30 -> 0 | I123: ='ročni vnos'!I121*$D$30 -> 0 | J123: ='ročni vnos'!J121*$D$30 -> 0 | K123: ='ročni vnos'!K121 -> 0 | L123: 0 | M123: 0 | N123: 0 | O123: 0 | P123: 0
B124: 92 | C124: =IF(LEN('ročni vnos'!C122)>0,'ročni vnos'!C122,"") ->  | D124: ='ročni vnos'!D122 -> 0 | E124: ='ročni vnos'!E122*$D$30 -> 0 | F124: ='ročni vnos'!F122*$D$30 -> 0 | G124: ='ročni vnos'!G122*$D$30 -> 0 | H124: ='ročni vnos'!H122*$D$30 -> 0 | I124: ='ročni vnos'!I122*$D$30 -> 0 | J124: ='ročni vnos'!J122*$D$30 -> 0 | K124: ='ročni vnos'!K122 -> 0 | L124: 0 | M124: 0 | N124: 0 | O124: 0 | P124: 0
B125: 93 | C125: =IF(LEN('ročni vnos'!C123)>0,'ročni vnos'!C123,"") ->  | D125: ='ročni vnos'!D123 -> 0 | E125: ='ročni vnos'!E123*$D$30 -> 0 | F125: ='ročni vnos'!F123*$D$30 -> 0 | G125: ='ročni vnos'!G123*$D$30 -> 0 | H125: ='ročni vnos'!H123*$D$30 -> 0 | I125: ='ročni vnos'!I123*$D$30 -> 0 | J125: ='ročni vnos'!J123*$D$30 -> 0 | K125: ='ročni vnos'!K123 -> 0 | L125: 0 | M125: 0 | N125: 0 | O125: 0 | P125: 0
B126: 94 | C126: =IF(LEN('ročni vnos'!C124)>0,'ročni vnos'!C124,"") ->  | D126: ='ročni vnos'!D124 -> 0 | E126: ='ročni vnos'!E124*$D$30 -> 0 | F126: ='ročni vnos'!F124*$D$30 -> 0 | G126: ='ročni vnos'!G124*$D$30 -> 0 | H126: ='ročni vnos'!H124*$D$30 -> 0 | I126: ='ročni vnos'!I124*$D$30 -> 0 | J126: ='ročni vnos'!J124*$D$30 -> 0 | K126: ='ročni vnos'!K124 -> 0 | L126: 0 | M126: 0 | N126: 0 | O126: 0 | P126: 0
B127: 95 | C127: =IF(LEN('ročni vnos'!C125)>0,'ročni vnos'!C125,"") ->  | D127: ='ročni vnos'!D125 -> 0 | E127: ='ročni vnos'!E125*$D$30 -> 0 | F127: ='ročni vnos'!F125*$D$30 -> 0 | G127: ='ročni vnos'!G125*$D$30 -> 0 | H127: ='ročni vnos'!H125*$D$30 -> 0 | I127: ='ročni vnos'!I125*$D$30 -> 0 | J127: ='ročni vnos'!J125*$D$30 -> 0 | K127: ='ročni vnos'!K125 -> 0 | L127: 0 | M127: 0 | N127: 0 | O127: 0 | P127: 0
B128: 96 | C128: =IF(LEN('ročni vnos'!C126)>0,'ročni vnos'!C126,"") ->  | D128: ='ročni vnos'!D126 -> 0 | E128: ='ročni vnos'!E126*$D$30 -> 0 | F128: ='ročni vnos'!F126*$D$30 -> 0 | G128: ='ročni vnos'!G126*$D$30 -> 0 | H128: ='ročni vnos'!H126*$D$30 -> 0 | I128: ='ročni vnos'!I126*$D$30 -> 0 | J128: ='ročni vnos'!J126*$D$30 -> 0 | K128: ='ročni vnos'!K126 -> 0 | L128: 0 | M128: 0 | N128: 0 | O128: 0 | P128: 0
B129: 97 | C129: =IF(LEN('ročni vnos'!C127)>0,'ročni vnos'!C127,"") ->  | D129: ='ročni vnos'!D127 -> 0 | E129: ='ročni vnos'!E127*$D$30 -> 0 | F129: ='ročni vnos'!F127*$D$30 -> 0 | G129: ='ročni vnos'!G127*$D$30 -> 0 | H129: ='ročni vnos'!H127*$D$30 -> 0 | I129: ='ročni vnos'!I127*$D$30 -> 0 | J129: ='ročni vnos'!J127*$D$30 -> 0 | K129: ='ročni vnos'!K127 -> 0 | L129: 0 | M129: 0 | N129: 0 | O129: 0 | P129: 0
B130: 98 | C130: =IF(LEN('ročni vnos'!C128)>0,'ročni vnos'!C128,"") ->  | D130: ='ročni vnos'!D128 -> 0 | E130: ='ročni vnos'!E128*$D$30 -> 0 | F130: ='ročni vnos'!F128*$D$30 -> 0 | G130: ='ročni vnos'!G128*$D$30 -> 0 | H130: ='ročni vnos'!H128*$D$30 -> 0 | I130: ='ročni vnos'!I128*$D$30 -> 0 | J130: ='ročni vnos'!J128*$D$30 -> 0 | K130: ='ročni vnos'!K128 -> 0 | L130: 0 | M130: 0 | N130: 0 | O130: 0 | P130: 0
B131: 99 | C131: =IF(LEN('ročni vnos'!C129)>0,'ročni vnos'!C129,"") ->  | D131: ='ročni vnos'!D129 -> 0 | E131: ='ročni vnos'!E129*$D$30 -> 0 | F131: ='ročni vnos'!F129*$D$30 -> 0 | G131: ='ročni vnos'!G129*$D$30 -> 0 | H131: ='ročni vnos'!H129*$D$30 -> 0 | I131: ='ročni vnos'!I129*$D$30 -> 0 | J131: ='ročni vnos'!J129*$D$30 -> 0 | K131: ='ročni vnos'!K129 -> 0 | L131: 0 | M131: 0 | N131: 0 | O131: 0 | P131: 0
B132: 100 | C132: =IF(LEN('ročni vnos'!C130)>0,'ročni vnos'!C130,"") ->  | D132: ='ročni vnos'!D130 -> 0 | E132: ='ročni vnos'!E130*$D$30 -> 0 | F132: ='ročni vnos'!F130*$D$30 -> 0 | G132: ='ročni vnos'!G130*$D$30 -> 0 | H132: ='ročni vnos'!H130*$D$30 -> 0 | I132: ='ročni vnos'!I130*$D$30 -> 0 | J132: ='ročni vnos'!J130*$D$30 -> 0 | K132: ='ročni vnos'!K130 -> 0 | L132: 0 | M132: 0 | N132: 0 | O132: 0 | P132: 0
B133: 101 | C133: =IF(LEN('ročni vnos'!C131)>0,'ročni vnos'!C131,"") ->  | D133: ='ročni vnos'!D131 -> 0 | E133: ='ročni vnos'!E131*$D$30 -> 0 | F133: ='ročni vnos'!F131*$D$30 -> 0 | G133: ='ročni vnos'!G131*$D$30 -> 0 | H133: ='ročni vnos'!H131*$D$30 -> 0 | I133: ='ročni vnos'!I131*$D$30 -> 0 | J133: ='ročni vnos'!J131*$D$30 -> 0 | K133: ='ročni vnos'!K131 -> 0 | L133: 0 | M133: 0 | N133: 0 | O133: 0 | P133: 0
B134: 102 | C134: =IF(LEN('ročni vnos'!C132)>0,'ročni vnos'!C132,"") ->  | D134: ='ročni vnos'!D132 -> 0 | E134: ='ročni vnos'!E132*$D$30 -> 0 | F134: ='ročni vnos'!F132*$D$30 -> 0 | G134: ='ročni vnos'!G132*$D$30 -> 0 | H134: ='ročni vnos'!H132*$D$30 -> 0 | I134: ='ročni vnos'!I132*$D$30 -> 0 | J134: ='ročni vnos'!J132*$D$30 -> 0 | K134: ='ročni vnos'!K132 -> 0 | L134: 0 | M134: 0 | N134: 0 | O134: 0 | P134: 0
B135: 103 | C135: =IF(LEN('ročni vnos'!C133)>0,'ročni vnos'!C133,"") ->  | D135: ='ročni vnos'!D133 -> 0 | E135: ='ročni vnos'!E133*$D$30 -> 0 | F135: ='ročni vnos'!F133*$D$30 -> 0 | G135: ='ročni vnos'!G133*$D$30 -> 0 | H135: ='ročni vnos'!H133*$D$30 -> 0 | I135: ='ročni vnos'!I133*$D$30 -> 0 | J135: ='ročni vnos'!J133*$D$30 -> 0 | K135: ='ročni vnos'!K133 -> 0 | L135: 0 | M135: 0 | N135: 0 | O135: 0 | P135: 0
B136: 104 | C136: =IF(LEN('ročni vnos'!C134)>0,'ročni vnos'!C134,"") ->  | D136: ='ročni vnos'!D134 -> 0 | E136: ='ročni vnos'!E134*$D$30 -> 0 | F136: ='ročni vnos'!F134*$D$30 -> 0 | G136: ='ročni vnos'!G134*$D$30 -> 0 | H136: ='ročni vnos'!H134*$D$30 -> 0 | I136: ='ročni vnos'!I134*$D$30 -> 0 | J136: ='ročni vnos'!J134*$D$30 -> 0 | K136: ='ročni vnos'!K134 -> 0 | L136: 0 | M136: 0 | N136: 0 | O136: 0 | P136: 0
B137: 105 | C137: =IF(LEN('ročni vnos'!C135)>0,'ročni vnos'!C135,"") ->  | D137: ='ročni vnos'!D135 -> 0 | E137: ='ročni vnos'!E135*$D$30 -> 0 | F137: ='ročni vnos'!F135*$D$30 -> 0 | G137: ='ročni vnos'!G135*$D$30 -> 0 | H137: ='ročni vnos'!H135*$D$30 -> 0 | I137: ='ročni vnos'!I135*$D$30 -> 0 | J137: ='ročni vnos'!J135*$D$30 -> 0 | K137: ='ročni vnos'!K135 -> 0 | L137: 0 | M137: 0 | N137: 0 | O137: 0 | P137: 0
B138: 106 | C138: =IF(LEN('ročni vnos'!C136)>0,'ročni vnos'!C136,"") ->  | D138: ='ročni vnos'!D136 -> 0 | E138: ='ročni vnos'!E136*$D$30 -> 0 | F138: ='ročni vnos'!F136*$D$30 -> 0 | G138: ='ročni vnos'!G136*$D$30 -> 0 | H138: ='ročni vnos'!H136*$D$30 -> 0 | I138: ='ročni vnos'!I136*$D$30 -> 0 | J138: ='ročni vnos'!J136*$D$30 -> 0 | K138: ='ročni vnos'!K136 -> 0 | L138: 0 | M138: 0 | N138: 0 | O138: 0 | P138: 0
B139: 107 | C139: =IF(LEN('ročni vnos'!C137)>0,'ročni vnos'!C137,"") ->  | D139: ='ročni vnos'!D137 -> 0 | E139: ='ročni vnos'!E137*$D$30 -> 0 | F139: ='ročni vnos'!F137*$D$30 -> 0 | G139: ='ročni vnos'!G137*$D$30 -> 0 | H139: ='ročni vnos'!H137*$D$30 -> 0 | I139: ='ročni vnos'!I137*$D$30 -> 0 | J139: ='ročni vnos'!J137*$D$30 -> 0 | K139: ='ročni vnos'!K137 -> 0 | L139: 0 | M139: 0 | N139: 0 | O139: 0 | P139: 0
B140: 108 | C140: =IF(LEN('ročni vnos'!C138)>0,'ročni vnos'!C138,"") ->  | D140: ='ročni vnos'!D138 -> 0 | E140: ='ročni vnos'!E138*$D$30 -> 0 | F140: ='ročni vnos'!F138*$D$30 -> 0 | G140: ='ročni vnos'!G138*$D$30 -> 0 | H140: ='ročni vnos'!H138*$D$30 -> 0 | I140: ='ročni vnos'!I138*$D$30 -> 0 | J140: ='ročni vnos'!J138*$D$30 -> 0 | K140: ='ročni vnos'!K138 -> 0 | L140: 0 | M140: 0 | N140: 0 | O140: 0 | P140: 0
B141: 109 | C141: =IF(LEN('ročni vnos'!C139)>0,'ročni vnos'!C139,"") ->  | D141: ='ročni vnos'!D139 -> 0 | E141: ='ročni vnos'!E139*$D$30 -> 0 | F141: ='ročni vnos'!F139*$D$30 -> 0 | G141: ='ročni vnos'!G139*$D$30 -> 0 | H141: ='ročni vnos'!H139*$D$30 -> 0 | I141: ='ročni vnos'!I139*$D$30 -> 0 | J141: ='ročni vnos'!J139*$D$30 -> 0 | K141: ='ročni vnos'!K139 -> 0 | L141: 0 | M141: 0 | N141: 0 | O141: 0 | P141: 0
B142: 110 | C142: =IF(LEN('ročni vnos'!C140)>0,'ročni vnos'!C140,"") ->  | D142: ='ročni vnos'!D140 -> 0 | E142: ='ročni vnos'!E140*$D$30 -> 0 | F142: ='ročni vnos'!F140*$D$30 -> 0 | G142: ='ročni vnos'!G140*$D$30 -> 0 | H142: ='ročni vnos'!H140*$D$30 -> 0 | I142: ='ročni vnos'!I140*$D$30 -> 0 | J142: ='ročni vnos'!J140*$D$30 -> 0 | K142: ='ročni vnos'!K140 -> 0 | L142: 0 | M142: 0 | N142: 0 | O142: 0 | P142: 0
B143: 111 | C143: =IF(LEN('ročni vnos'!C141)>0,'ročni vnos'!C141,"") ->  | D143: ='ročni vnos'!D141 -> 0 | E143: ='ročni vnos'!E141*$D$30 -> 0 | F143: ='ročni vnos'!F141*$D$30 -> 0 | G143: ='ročni vnos'!G141*$D$30 -> 0 | H143: ='ročni vnos'!H141*$D$30 -> 0 | I143: ='ročni vnos'!I141*$D$30 -> 0 | J143: ='ročni vnos'!J141*$D$30 -> 0 | K143: ='ročni vnos'!K141 -> 0 | L143: 0 | M143: 0 | N143: 0 | O143: 0 | P143: 0
B144: 112 | C144: =IF(LEN('ročni vnos'!C142)>0,'ročni vnos'!C142,"") ->  | D144: ='ročni vnos'!D142 -> 0 | E144: ='ročni vnos'!E142*$D$30 -> 0 | F144: ='ročni vnos'!F142*$D$30 -> 0 | G144: ='ročni vnos'!G142*$D$30 -> 0 | H144: ='ročni vnos'!H142*$D$30 -> 0 | I144: ='ročni vnos'!I142*$D$30 -> 0 | J144: ='ročni vnos'!J142*$D$30 -> 0 | K144: ='ročni vnos'!K142 -> 0 | L144: 0 | M144: 0 | N144: 0 | O144: 0 | P144: 0
B145: 113 | C145: =IF(LEN('ročni vnos'!C143)>0,'ročni vnos'!C143,"") ->  | D145: ='ročni vnos'!D143 -> 0 | E145: ='ročni vnos'!E143*$D$30 -> 0 | F145: ='ročni vnos'!F143*$D$30 -> 0 | G145: ='ročni vnos'!G143*$D$30 -> 0 | H145: ='ročni vnos'!H143*$D$30 -> 0 | I145: ='ročni vnos'!I143*$D$30 -> 0 | J145: ='ročni vnos'!J143*$D$30 -> 0 | K145: ='ročni vnos'!K143 -> 0 | L145: 0 | M145: 0 | N145: 0 | O145: 0 | P145: 0
B146: 114 | C146: =IF(LEN('ročni vnos'!C144)>0,'ročni vnos'!C144,"") ->  | D146: ='ročni vnos'!D144 -> 0 | E146: ='ročni vnos'!E144*$D$30 -> 0 | F146: ='ročni vnos'!F144*$D$30 -> 0 | G146: ='ročni vnos'!G144*$D$30 -> 0 | H146: ='ročni vnos'!H144*$D$30 -> 0 | I146: ='ročni vnos'!I144*$D$30 -> 0 | J146: ='ročni vnos'!J144*$D$30 -> 0 | K146: ='ročni vnos'!K144 -> 0 | L146: 0 | M146: 0 | N146: 0 | O146: 0 | P146: 0
B147: 115 | C147: =IF(LEN('ročni vnos'!C145)>0,'ročni vnos'!C145,"") ->  | D147: ='ročni vnos'!D145 -> 0 | E147: ='ročni vnos'!E145*$D$30 -> 0 | F147: ='ročni vnos'!F145*$D$30 -> 0 | G147: ='ročni vnos'!G145*$D$30 -> 0 | H147: ='ročni vnos'!H145*$D$30 -> 0 | I147: ='ročni vnos'!I145*$D$30 -> 0 | J147: ='ročni vnos'!J145*$D$30 -> 0 | K147: ='ročni vnos'!K145 -> 0 | L147: 0 | M147: 0 | N147: 0 | O147: 0 | P147: 0
B148: 116 | C148: =IF(LEN('ročni vnos'!C146)>0,'ročni vnos'!C146,"") ->  | D148: ='ročni vnos'!D146 -> 0 | E148: ='ročni vnos'!E146*$D$30 -> 0 | F148: ='ročni vnos'!F146*$D$30 -> 0 | G148: ='ročni vnos'!G146*$D$30 -> 0 | H148: ='ročni vnos'!H146*$D$30 -> 0 | I148: ='ročni vnos'!I146*$D$30 -> 0 | J148: ='ročni vnos'!J146*$D$30 -> 0 | K148: ='ročni vnos'!K146 -> 0 | L148: 0 | M148: 0 | N148: 0 | O148: 0 | P148: 0
B149: 117 | C149: =IF(LEN('ročni vnos'!C147)>0,'ročni vnos'!C147,"") ->  | D149: ='ročni vnos'!D147 -> 0 | E149: ='ročni vnos'!E147*$D$30 -> 0 | F149: ='ročni vnos'!F147*$D$30 -> 0 | G149: ='ročni vnos'!G147*$D$30 -> 0 | H149: ='ročni vnos'!H147*$D$30 -> 0 | I149: ='ročni vnos'!I147*$D$30 -> 0 | J149: ='ročni vnos'!J147*$D$30 -> 0 | K149: ='ročni vnos'!K147 -> 0 | L149: 0 | M149: 0 | N149: 0 | O149: 0 | P149: 0
B150: 118 | C150: =IF(LEN('ročni vnos'!C148)>0,'ročni vnos'!C148,"") ->  | D150: ='ročni vnos'!D148 -> 0 | E150: ='ročni vnos'!E148*$D$30 -> 0 | F150: ='ročni vnos'!F148*$D$30 -> 0 | G150: ='ročni vnos'!G148*$D$30 -> 0 | H150: ='ročni vnos'!H148*$D$30 -> 0 | I150: ='ročni vnos'!I148*$D$30 -> 0 | J150: ='ročni vnos'!J148*$D$30 -> 0 | K150: ='ročni vnos'!K148 -> 0 | L150: 0 | M150: 0 | N150: 0 | O150: 0 | P150: 0
B151: 119 | C151: =IF(LEN('ročni vnos'!C149)>0,'ročni vnos'!C149,"") ->  | D151: ='ročni vnos'!D149 -> 0 | E151: ='ročni vnos'!E149*$D$30 -> 0 | F151: ='ročni vnos'!F149*$D$30 -> 0 | G151: ='ročni vnos'!G149*$D$30 -> 0 | H151: ='ročni vnos'!H149*$D$30 -> 0 | I151: ='ročni vnos'!I149*$D$30 -> 0 | J151: ='ročni vnos'!J149*$D$30 -> 0 | K151: ='ročni vnos'!K149 -> 0 | L151: 0 | M151: 0 | N151: 0 | O151: 0 | P151: 0
B152: 120 | C152: =IF(LEN('ročni vnos'!C150)>0,'ročni vnos'!C150,"") ->  | D152: ='ročni vnos'!D150 -> 0 | E152: ='ročni vnos'!E150*$D$30 -> 0 | F152: ='ročni vnos'!F150*$D$30 -> 0 | G152: ='ročni vnos'!G150*$D$30 -> 0 | H152: ='ročni vnos'!H150*$D$30 -> 0 | I152: ='ročni vnos'!I150*$D$30 -> 0 | J152: ='ročni vnos'!J150*$D$30 -> 0 | K152: ='ročni vnos'!K150 -> 0 | L152: 0 | M152: 0 | N152: 0 | O152: 0 | P152: 0
B153: 121 | C153: =IF(LEN('ročni vnos'!C151)>0,'ročni vnos'!C151,"") ->  | D153: ='ročni vnos'!D151 -> 0 | E153: ='ročni vnos'!E151*$D$30 -> 0 | F153: ='ročni vnos'!F151*$D$30 -> 0 | G153: ='ročni vnos'!G151*$D$30 -> 0 | H153: ='ročni vnos'!H151*$D$30 -> 0 | I153: ='ročni vnos'!I151*$D$30 -> 0 | J153: ='ročni vnos'!J151*$D$30 -> 0 | K153: ='ročni vnos'!K151 -> 0 | L153: 0 | M153: 0 | N153: 0 | O153: 0 | P153: 0
B154: 122 | C154: =IF(LEN('ročni vnos'!C152)>0,'ročni vnos'!C152,"") ->  | D154: ='ročni vnos'!D152 -> 0 | E154: ='ročni vnos'!E152*$D$30 -> 0 | F154: ='ročni vnos'!F152*$D$30 -> 0 | G154: ='ročni vnos'!G152*$D$30 -> 0 | H154: ='ročni vnos'!H152*$D$30 -> 0 | I154: ='ročni vnos'!I152*$D$30 -> 0 | J154: ='ročni vnos'!J152*$D$30 -> 0 | K154: ='ročni vnos'!K152 -> 0 | L154: 0 | M154: 0 | N154: 0 | O154: 0 | P154: 0
B155: 123 | C155: =IF(LEN('ročni vnos'!C153)>0,'ročni vnos'!C153,"") ->  | D155: ='ročni vnos'!D153 -> 0 | E155: ='ročni vnos'!E153*$D$30 -> 0 | F155: ='ročni vnos'!F153*$D$30 -> 0 | G155: ='ročni vnos'!G153*$D$30 -> 0 | H155: ='ročni vnos'!H153*$D$30 -> 0 | I155: ='ročni vnos'!I153*$D$30 -> 0 | J155: ='ročni vnos'!J153*$D$30 -> 0 | K155: ='ročni vnos'!K153 -> 0 | L155: 0 | M155: 0 | N155: 0 | O155: 0 | P155: 0
B156: 124 | C156: =IF(LEN('ročni vnos'!C154)>0,'ročni vnos'!C154,"") ->  | D156: ='ročni vnos'!D154 -> 0 | E156: ='ročni vnos'!E154*$D$30 -> 0 | F156: ='ročni vnos'!F154*$D$30 -> 0 | G156: ='ročni vnos'!G154*$D$30 -> 0 | H156: ='ročni vnos'!H154*$D$30 -> 0 | I156: ='ročni vnos'!I154*$D$30 -> 0 | J156: ='ročni vnos'!J154*$D$30 -> 0 | K156: ='ročni vnos'!K154 -> 0 | L156: 0 | M156: 0 | N156: 0 | O156: 0 | P156: 0
B157: 125 | C157: =IF(LEN('ročni vnos'!C155)>0,'ročni vnos'!C155,"") ->  | D157: ='ročni vnos'!D155 -> 0 | E157: ='ročni vnos'!E155*$D$30 -> 0 | F157: ='ročni vnos'!F155*$D$30 -> 0 | G157: ='ročni vnos'!G155*$D$30 -> 0 | H157: ='ročni vnos'!H155*$D$30 -> 0 | I157: ='ročni vnos'!I155*$D$30 -> 0 | J157: ='ročni vnos'!J155*$D$30 -> 0 | K157: ='ročni vnos'!K155 -> 0 | L157: 0 | M157: 0 | N157: 0 | O157: 0 | P157: 0
B158: 126 | C158: =IF(LEN('ročni vnos'!C156)>0,'ročni vnos'!C156,"") ->  | D158: ='ročni vnos'!D156 -> 0 | E158: ='ročni vnos'!E156*$D$30 -> 0 | F158: ='ročni vnos'!F156*$D$30 -> 0 | G158: ='ročni vnos'!G156*$D$30 -> 0 | H158: ='ročni vnos'!H156*$D$30 -> 0 | I158: ='ročni vnos'!I156*$D$30 -> 0 | J158: ='ročni vnos'!J156*$D$30 -> 0 | K158: ='ročni vnos'!K156 -> 0 | L158: 0 | M158: 0 | N158: 0 | O158: 0 | P158: 0
B159: 127 | C159: =IF(LEN('ročni vnos'!C157)>0,'ročni vnos'!C157,"") ->  | D159: ='ročni vnos'!D157 -> 0 | E159: ='ročni vnos'!E157*$D$30 -> 0 | F159: ='ročni vnos'!F157*$D$30 -> 0 | G159: ='ročni vnos'!G157*$D$30 -> 0 | H159: ='ročni vnos'!H157*$D$30 -> 0 | I159: ='ročni vnos'!I157*$D$30 -> 0 | J159: ='ročni vnos'!J157*$D$30 -> 0 | K159: ='ročni vnos'!K157 -> 0 | L159: 0 | M159: 0 | N159: 0 | O159: 0 | P159: 0
B160: 128 | C160: =IF(LEN('ročni vnos'!C158)>0,'ročni vnos'!C158,"") ->  | D160: ='ročni vnos'!D158 -> 0 | E160: ='ročni vnos'!E158*$D$30 -> 0 | F160: ='ročni vnos'!F158*$D$30 -> 0 | G160: ='ročni vnos'!G158*$D$30 -> 0 | H160: ='ročni vnos'!H158*$D$30 -> 0 | I160: ='ročni vnos'!I158*$D$30 -> 0 | J160: ='ročni vnos'!J158*$D$30 -> 0 | K160: ='ročni vnos'!K158 -> 0 | L160: 0 | M160: 0 | N160: 0 | O160: 0 | P160: 0
B161: 129 | C161: =IF(LEN('ročni vnos'!C159)>0,'ročni vnos'!C159,"") ->  | D161: ='ročni vnos'!D159 -> 0 | E161: ='ročni vnos'!E159*$D$30 -> 0 | F161: ='ročni vnos'!F159*$D$30 -> 0 | G161: ='ročni vnos'!G159*$D$30 -> 0 | H161: ='ročni vnos'!H159*$D$30 -> 0 | I161: ='ročni vnos'!I159*$D$30 -> 0 | J161: ='ročni vnos'!J159*$D$30 -> 0 | K161: ='ročni vnos'!K159 -> 0 | L161: 0 | M161: 0 | N161: 0 | O161: 0 | P161: 0
B162: 130 | C162: =IF(LEN('ročni vnos'!C160)>0,'ročni vnos'!C160,"") ->  | D162: ='ročni vnos'!D160 -> 0 | E162: ='ročni vnos'!E160*$D$30 -> 0 | F162: ='ročni vnos'!F160*$D$30 -> 0 | G162: ='ročni vnos'!G160*$D$30 -> 0 | H162: ='ročni vnos'!H160*$D$30 -> 0 | I162: ='ročni vnos'!I160*$D$30 -> 0 | J162: ='ročni vnos'!J160*$D$30 -> 0 | K162: ='ročni vnos'!K160 -> 0 | L162: =SUM(E162:K162) -> 0 | M162: =+D162*L162 -> 0 | N162: =D162*E162 -> 0 | O162: =(F162+G162+H162+I162+J162)*D162 -> 0 | P162: =+D162*K162 -> 0 | Q162: =IF(SUM(E162:K162)>30%,"VSOTA MORA BITI MANJŠA ALI ENAKA 30%","") -> 
B163: 131 | C163: =IF(LEN('ročni vnos'!C161)>0,'ročni vnos'!C161,"") ->  | D163: ='ročni vnos'!D161 -> 0 | E163: ='ročni vnos'!E161*$D$30 -> 0 | F163: ='ročni vnos'!F161*$D$30 -> 0 | G163: ='ročni vnos'!G161*$D$30 -> 0 | H163: ='ročni vnos'!H161*$D$30 -> 0 | I163: ='ročni vnos'!I161*$D$30 -> 0 | J163: ='ročni vnos'!J161*$D$30 -> 0 | K163: ='ročni vnos'!K161 -> 0 | L163: 0 | M163: 0 | N163: 0 | O163: 0 | P163: 0
B164: 132 | C164: =IF(LEN('ročni vnos'!C162)>0,'ročni vnos'!C162,"") ->  | D164: ='ročni vnos'!D162 -> 0 | E164: ='ročni vnos'!E162*$D$30 -> 0 | F164: ='ročni vnos'!F162*$D$30 -> 0 | G164: ='ročni vnos'!G162*$D$30 -> 0 | H164: ='ročni vnos'!H162*$D$30 -> 0 | I164: ='ročni vnos'!I162*$D$30 -> 0 | J164: ='ročni vnos'!J162*$D$30 -> 0 | K164: ='ročni vnos'!K162 -> 0 | L164: 0 | M164: 0 | N164: 0 | O164: 0 | P164: 0
B165: 133 | C165: =IF(LEN('ročni vnos'!C163)>0,'ročni vnos'!C163,"") ->  | D165: ='ročni vnos'!D163 -> 0 | E165: ='ročni vnos'!E163*$D$30 -> 0 | F165: ='ročni vnos'!F163*$D$30 -> 0 | G165: ='ročni vnos'!G163*$D$30 -> 0 | H165: ='ročni vnos'!H163*$D$30 -> 0 | I165: ='ročni vnos'!I163*$D$30 -> 0 | J165: ='ročni vnos'!J163*$D$30 -> 0 | K165: ='ročni vnos'!K163 -> 0 | L165: 0 | M165: 0 | N165: 0 | O165: 0 | P165: 0
B166: 134 | C166: =IF(LEN('ročni vnos'!C164)>0,'ročni vnos'!C164,"") ->  | D166: ='ročni vnos'!D164 -> 0 | E166: ='ročni vnos'!E164*$D$30 -> 0 | F166: ='ročni vnos'!F164*$D$30 -> 0 | G166: ='ročni vnos'!G164*$D$30 -> 0 | H166: ='ročni vnos'!H164*$D$30 -> 0 | I166: ='ročni vnos'!I164*$D$30 -> 0 | J166: ='ročni vnos'!J164*$D$30 -> 0 | K166: ='ročni vnos'!K164 -> 0 | L166: 0 | M166: 0 | N166: 0 | O166: 0 | P166: 0
B167: 135 | C167: =IF(LEN('ročni vnos'!C165)>0,'ročni vnos'!C165,"") ->  | D167: ='ročni vnos'!D165 -> 0 | E167: ='ročni vnos'!E165*$D$30 -> 0 | F167: ='ročni vnos'!F165*$D$30 -> 0 | G167: ='ročni vnos'!G165*$D$30 -> 0 | H167: ='ročni vnos'!H165*$D$30 -> 0 | I167: ='ročni vnos'!I165*$D$30 -> 0 | J167: ='ročni vnos'!J165*$D$30 -> 0 | K167: ='ročni vnos'!K165 -> 0 | L167: 0 | M167: 0 | N167: 0 | O167: 0 | P167: 0
B168: 136 | C168: =IF(LEN('ročni vnos'!C166)>0,'ročni vnos'!C166,"") ->  | D168: ='ročni vnos'!D166 -> 0 | E168: ='ročni vnos'!E166*$D$30 -> 0 | F168: ='ročni vnos'!F166*$D$30 -> 0 | G168: ='ročni vnos'!G166*$D$30 -> 0 | H168: ='ročni vnos'!H166*$D$30 -> 0 | I168: ='ročni vnos'!I166*$D$30 -> 0 | J168: ='ročni vnos'!J166*$D$30 -> 0 | K168: ='ročni vnos'!K166 -> 0 | L168: 0 | M168: 0 | N168: 0 | O168: 0 | P168: 0
B169: 137 | C169: =IF(LEN('ročni vnos'!C167)>0,'ročni vnos'!C167,"") ->  | D169: ='ročni vnos'!D167 -> 0 | E169: ='ročni vnos'!E167*$D$30 -> 0 | F169: ='ročni vnos'!F167*$D$30 -> 0 | G169: ='ročni vnos'!G167*$D$30 -> 0 | H169: ='ročni vnos'!H167*$D$30 -> 0 | I169: ='ročni vnos'!I167*$D$30 -> 0 | J169: ='ročni vnos'!J167*$D$30 -> 0 | K169: ='ročni vnos'!K167 -> 0 | L169: 0 | M169: 0 | N169: 0 | O169: 0 | P169: 0
B170: 138 | C170: =IF(LEN('ročni vnos'!C168)>0,'ročni vnos'!C168,"") ->  | D170: ='ročni vnos'!D168 -> 0 | E170: ='ročni vnos'!E168*$D$30 -> 0 | F170: ='ročni vnos'!F168*$D$30 -> 0 | G170: ='ročni vnos'!G168*$D$30 -> 0 | H170: ='ročni vnos'!H168*$D$30 -> 0 | I170: ='ročni vnos'!I168*$D$30 -> 0 | J170: ='ročni vnos'!J168*$D$30 -> 0 | K170: ='ročni vnos'!K168 -> 0 | L170: 0 | M170: 0 | N170: 0 | O170: 0 | P170: 0
B171: 139 | C171: =IF(LEN('ročni vnos'!C169)>0,'ročni vnos'!C169,"") ->  | D171: ='ročni vnos'!D169 -> 0 | E171: ='ročni vnos'!E169*$D$30 -> 0 | F171: ='ročni vnos'!F169*$D$30 -> 0 | G171: ='ročni vnos'!G169*$D$30 -> 0 | H171: ='ročni vnos'!H169*$D$30 -> 0 | I171: ='ročni vnos'!I169*$D$30 -> 0 | J171: ='ročni vnos'!J169*$D$30 -> 0 | K171: ='ročni vnos'!K169 -> 0 | L171: 0 | M171: 0 | N171: 0 | O171: 0 | P171: 0
B172: 140 | C172: =IF(LEN('ročni vnos'!C170)>0,'ročni vnos'!C170,"") ->  | D172: ='ročni vnos'!D170 -> 0 | E172: ='ročni vnos'!E170*$D$30 -> 0 | F172: ='ročni vnos'!F170*$D$30 -> 0 | G172: ='ročni vnos'!G170*$D$30 -> 0 | H172: ='ročni vnos'!H170*$D$30 -> 0 | I172: ='ročni vnos'!I170*$D$30 -> 0 | J172: ='ročni vnos'!J170*$D$30 -> 0 | K172: ='ročni vnos'!K170 -> 0 | L172: 0 | M172: 0 | N172: 0 | O172: 0 | P172: 0
B173: 141 | C173: =IF(LEN('ročni vnos'!C171)>0,'ročni vnos'!C171,"") ->  | D173: ='ročni vnos'!D171 -> 0 | E173: ='ročni vnos'!E171*$D$30 -> 0 | F173: ='ročni vnos'!F171*$D$30 -> 0 | G173: ='ročni vnos'!G171*$D$30 -> 0 | H173: ='ročni vnos'!H171*$D$30 -> 0 | I173: ='ročni vnos'!I171*$D$30 -> 0 | J173: ='ročni vnos'!J171*$D$30 -> 0 | K173: ='ročni vnos'!K171 -> 0 | L173: 0 | M173: 0 | N173: 0 | O173: 0 | P173: 0
B174: 142 | C174: =IF(LEN('ročni vnos'!C172)>0,'ročni vnos'!C172,"") ->  | D174: ='ročni vnos'!D172 -> 0 | E174: ='ročni vnos'!E172*$D$30 -> 0 | F174: ='ročni vnos'!F172*$D$30 -> 0 | G174: ='ročni vnos'!G172*$D$30 -> 0 | H174: ='ročni vnos'!H172*$D$30 -> 0 | I174: ='ročni vnos'!I172*$D$30 -> 0 | J174: ='ročni vnos'!J172*$D$30 -> 0 | K174: ='ročni vnos'!K172 -> 0 | L174: 0 | M174: 0 | N174: 0 | O174: 0 | P174: 0
B175: 143 | C175: =IF(LEN('ročni vnos'!C173)>0,'ročni vnos'!C173,"") ->  | D175: ='ročni vnos'!D173 -> 0 | E175: ='ročni vnos'!E173*$D$30 -> 0 | F175: ='ročni vnos'!F173*$D$30 -> 0 | G175: ='ročni vnos'!G173*$D$30 -> 0 | H175: ='ročni vnos'!H173*$D$30 -> 0 | I175: ='ročni vnos'!I173*$D$30 -> 0 | J175: ='ročni vnos'!J173*$D$30 -> 0 | K175: ='ročni vnos'!K173 -> 0 | L175: 0 | M175: 0 | N175: 0 | O175: 0 | P175: 0
B176: 144 | C176: =IF(LEN('ročni vnos'!C174)>0,'ročni vnos'!C174,"") ->  | D176: ='ročni vnos'!D174 -> 0 | E176: ='ročni vnos'!E174*$D$30 -> 0 | F176: ='ročni vnos'!F174*$D$30 -> 0 | G176: ='ročni vnos'!G174*$D$30 -> 0 | H176: ='ročni vnos'!H174*$D$30 -> 0 | I176: ='ročni vnos'!I174*$D$30 -> 0 | J176: ='ročni vnos'!J174*$D$30 -> 0 | K176: ='ročni vnos'!K174 -> 0 | L176: 0 | M176: 0 | N176: 0 | O176: 0 | P176: 0
B177: 145 | C177: =IF(LEN('ročni vnos'!C175)>0,'ročni vnos'!C175,"") ->  | D177: ='ročni vnos'!D175 -> 0 | E177: ='ročni vnos'!E175*$D$30 -> 0 | F177: ='ročni vnos'!F175*$D$30 -> 0 | G177: ='ročni vnos'!G175*$D$30 -> 0 | H177: ='ročni vnos'!H175*$D$30 -> 0 | I177: ='ročni vnos'!I175*$D$30 -> 0 | J177: ='ročni vnos'!J175*$D$30 -> 0 | K177: ='ročni vnos'!K175 -> 0 | L177: 0 | M177: 0 | N177: 0 | O177: 0 | P177: 0
B178: 146 | C178: =IF(LEN('ročni vnos'!C176)>0,'ročni vnos'!C176,"") ->  | D178: ='ročni vnos'!D176 -> 0 | E178: ='ročni vnos'!E176*$D$30 -> 0 | F178: ='ročni vnos'!F176*$D$30 -> 0 | G178: ='ročni vnos'!G176*$D$30 -> 0 | H178: ='ročni vnos'!H176*$D$30 -> 0 | I178: ='ročni vnos'!I176*$D$30 -> 0 | J178: ='ročni vnos'!J176*$D$30 -> 0 | K178: ='ročni vnos'!K176 -> 0 | L178: 0 | M178: 0 | N178: 0 | O178: 0 | P178: 0
B179: 147 | C179: =IF(LEN('ročni vnos'!C177)>0,'ročni vnos'!C177,"") ->  | D179: ='ročni vnos'!D177 -> 0 | E179: ='ročni vnos'!E177*$D$30 -> 0 | F179: ='ročni vnos'!F177*$D$30 -> 0 | G179: ='ročni vnos'!G177*$D$30 -> 0 | H179: ='ročni vnos'!H177*$D$30 -> 0 | I179: ='ročni vnos'!I177*$D$30 -> 0 | J179: ='ročni vnos'!J177*$D$30 -> 0 | K179: ='ročni vnos'!K177 -> 0 | L179: 0 | M179: 0 | N179: 0 | O179: 0 | P179: 0
B180: 148 | C180: =IF(LEN('ročni vnos'!C178)>0,'ročni vnos'!C178,"") ->  | D180: ='ročni vnos'!D178 -> 0 | E180: ='ročni vnos'!E178*$D$30 -> 0 | F180: ='ročni vnos'!F178*$D$30 -> 0 | G180: ='ročni vnos'!G178*$D$30 -> 0 | H180: ='ročni vnos'!H178*$D$30 -> 0 | I180: ='ročni vnos'!I178*$D$30 -> 0 | J180: ='ročni vnos'!J178*$D$30 -> 0 | K180: ='ročni vnos'!K178 -> 0 | L180: 0 | M180: 0 | N180: 0 | O180: 0 | P180: 0
B181: 149 | C181: =IF(LEN('ročni vnos'!C179)>0,'ročni vnos'!C179,"") ->  | D181: ='ročni vnos'!D179 -> 0 | E181: ='ročni vnos'!E179*$D$30 -> 0 | F181: ='ročni vnos'!F179*$D$30 -> 0 | G181: ='ročni vnos'!G179*$D$30 -> 0 | H181: ='ročni vnos'!H179*$D$30 -> 0 | I181: ='ročni vnos'!I179*$D$30 -> 0 | J181: ='ročni vnos'!J179*$D$30 -> 0 | K181: ='ročni vnos'!K179 -> 0 | L181: 0 | M181: 0 | N181: 0 | O181: 0 | P181: 0
B182: 150 | C182: =IF(LEN('ročni vnos'!C180)>0,'ročni vnos'!C180,"") ->  | D182: ='ročni vnos'!D180 -> 0 | E182: ='ročni vnos'!E180*$D$30 -> 0 | F182: ='ročni vnos'!F180*$D$30 -> 0 | G182: ='ročni vnos'!G180*$D$30 -> 0 | H182: ='ročni vnos'!H180*$D$30 -> 0 | I182: ='ročni vnos'!I180*$D$30 -> 0 | J182: ='ročni vnos'!J180*$D$30 -> 0 | K182: ='ročni vnos'!K180 -> 0 | L182: 0 | M182: 0 | N182: 0 | O182: 0 | P182: 0
B183: 151 | C183: =IF(LEN('ročni vnos'!C181)>0,'ročni vnos'!C181,"") ->  | D183: ='ročni vnos'!D181 -> 0 | E183: ='ročni vnos'!E181*$D$30 -> 0 | F183: ='ročni vnos'!F181*$D$30 -> 0 | G183: ='ročni vnos'!G181*$D$30 -> 0 | H183: ='ročni vnos'!H181*$D$30 -> 0 | I183: ='ročni vnos'!I181*$D$30 -> 0 | J183: ='ročni vnos'!J181*$D$30 -> 0 | K183: ='ročni vnos'!K181 -> 0 | L183: 0 | M183: 0 | N183: 0 | O183: 0 | P183: 0
B184: 152 | C184: =IF(LEN('ročni vnos'!C182)>0,'ročni vnos'!C182,"") ->  | D184: ='ročni vnos'!D182 -> 0 | E184: ='ročni vnos'!E182*$D$30 -> 0 | F184: ='ročni vnos'!F182*$D$30 -> 0 | G184: ='ročni vnos'!G182*$D$30 -> 0 | H184: ='ročni vnos'!H182*$D$30 -> 0 | I184: ='ročni vnos'!I182*$D$30 -> 0 | J184: ='ročni vnos'!J182*$D$30 -> 0 | K184: ='ročni vnos'!K182 -> 0 | L184: 0 | M184: 0 | N184: 0 | O184: 0 | P184: 0
B185: 153 | C185: =IF(LEN('ročni vnos'!C183)>0,'ročni vnos'!C183,"") ->  | D185: ='ročni vnos'!D183 -> 0 | E185: ='ročni vnos'!E183*$D$30 -> 0 | F185: ='ročni vnos'!F183*$D$30 -> 0 | G185: ='ročni vnos'!G183*$D$30 -> 0 | H185: ='ročni vnos'!H183*$D$30 -> 0 | I185: ='ročni vnos'!I183*$D$30 -> 0 | J185: ='ročni vnos'!J183*$D$30 -> 0 | K185: ='ročni vnos'!K183 -> 0 | L185: 0 | M185: 0 | N185: 0 | O185: 0 | P185: 0
B186: 154 | C186: =IF(LEN('ročni vnos'!C184)>0,'ročni vnos'!C184,"") ->  | D186: ='ročni vnos'!D184 -> 0 | E186: ='ročni vnos'!E184*$D$30 -> 0 | F186: ='ročni vnos'!F184*$D$30 -> 0 | G186: ='ročni vnos'!G184*$D$30 -> 0 | H186: ='ročni vnos'!H184*$D$30 -> 0 | I186: ='ročni vnos'!I184*$D$30 -> 0 | J186: ='ročni vnos'!J184*$D$30 -> 0 | K186: ='ročni vnos'!K184 -> 0 | L186: 0 | M186: 0 | N186: 0 | O186: 0 | P186: 0
B187: 155 | C187: =IF(LEN('ročni vnos'!C185)>0,'ročni vnos'!C185,"") ->  | D187: ='ročni vnos'!D185 -> 0 | E187: ='ročni vnos'!E185*$D$30 -> 0 | F187: ='ročni vnos'!F185*$D$30 -> 0 | G187: ='ročni vnos'!G185*$D$30 -> 0 | H187: ='ročni vnos'!H185*$D$30 -> 0 | I187: ='ročni vnos'!I185*$D$30 -> 0 | J187: ='ročni vnos'!J185*$D$30 -> 0 | K187: ='ročni vnos'!K185 -> 0 | L187: 0 | M187: 0 | N187: 0 | O187: 0 | P187: 0
B188: 156 | C188: =IF(LEN('ročni vnos'!C186)>0,'ročni vnos'!C186,"") ->  | D188: ='ročni vnos'!D186 -> 0 | E188: ='ročni vnos'!E186*$D$30 -> 0 | F188: ='ročni vnos'!F186*$D$30 -> 0 | G188: ='ročni vnos'!G186*$D$30 -> 0 | H188: ='ročni vnos'!H186*$D$30 -> 0 | I188: ='ročni vnos'!I186*$D$30 -> 0 | J188: ='ročni vnos'!J186*$D$30 -> 0 | K188: ='ročni vnos'!K186 -> 0 | L188: 0 | M188: 0 | N188: 0 | O188: 0 | P188: 0
B189: 157 | C189: =IF(LEN('ročni vnos'!C187)>0,'ročni vnos'!C187,"") ->  | D189: ='ročni vnos'!D187 -> 0 | E189: ='ročni vnos'!E187*$D$30 -> 0 | F189: ='ročni vnos'!F187*$D$30 -> 0 | G189: ='ročni vnos'!G187*$D$30 -> 0 | H189: ='ročni vnos'!H187*$D$30 -> 0 | I189: ='ročni vnos'!I187*$D$30 -> 0 | J189: ='ročni vnos'!J187*$D$30 -> 0 | K189: ='ročni vnos'!K187 -> 0 | L189: 0 | M189: 0 | N189: 0 | O189: 0 | P189: 0
B190: 158 | C190: =IF(LEN('ročni vnos'!C188)>0,'ročni vnos'!C188,"") ->  | D190: ='ročni vnos'!D188 -> 0 | E190: ='ročni vnos'!E188*$D$30 -> 0 | F190: ='ročni vnos'!F188*$D$30 -> 0 | G190: ='ročni vnos'!G188*$D$30 -> 0 | H190: ='ročni vnos'!H188*$D$30 -> 0 | I190: ='ročni vnos'!I188*$D$30 -> 0 | J190: ='ročni vnos'!J188*$D$30 -> 0 | K190: ='ročni vnos'!K188 -> 0 | L190: 0 | M190: 0 | N190: 0 | O190: 0 | P190: 0
B191: 159 | C191: =IF(LEN('ročni vnos'!C189)>0,'ročni vnos'!C189,"") ->  | D191: ='ročni vnos'!D189 -> 0 | E191: ='ročni vnos'!E189*$D$30 -> 0 | F191: ='ročni vnos'!F189*$D$30 -> 0 | G191: ='ročni vnos'!G189*$D$30 -> 0 | H191: ='ročni vnos'!H189*$D$30 -> 0 | I191: ='ročni vnos'!I189*$D$30 -> 0 | J191: ='ročni vnos'!J189*$D$30 -> 0 | K191: ='ročni vnos'!K189 -> 0 | L191: 0 | M191: 0 | N191: 0 | O191: 0 | P191: 0
B192: 160 | C192: =IF(LEN('ročni vnos'!C190)>0,'ročni vnos'!C190,"") ->  | D192: ='ročni vnos'!D190 -> 0 | E192: ='ročni vnos'!E190*$D$30 -> 0 | F192: ='ročni vnos'!F190*$D$30 -> 0 | G192: ='ročni vnos'!G190*$D$30 -> 0 | H192: ='ročni vnos'!H190*$D$30 -> 0 | I192: ='ročni vnos'!I190*$D$30 -> 0 | J192: ='ročni vnos'!J190*$D$30 -> 0 | K192: ='ročni vnos'!K190 -> 0 | L192: 0 | M192: 0 | N192: 0 | O192: 0 | P192: 0
B193: 161 | C193: =IF(LEN('ročni vnos'!C191)>0,'ročni vnos'!C191,"") ->  | D193: ='ročni vnos'!D191 -> 0 | E193: ='ročni vnos'!E191*$D$30 -> 0 | F193: ='ročni vnos'!F191*$D$30 -> 0 | G193: ='ročni vnos'!G191*$D$30 -> 0 | H193: ='ročni vnos'!H191*$D$30 -> 0 | I193: ='ročni vnos'!I191*$D$30 -> 0 | J193: ='ročni vnos'!J191*$D$30 -> 0 | K193: ='ročni vnos'!K191 -> 0 | L193: 0 | M193: 0 | N193: 0 | O193: 0 | P193: 0
B194: 162 | C194: =IF(LEN('ročni vnos'!C192)>0,'ročni vnos'!C192,"") ->  | D194: ='ročni vnos'!D192 -> 0 | E194: ='ročni vnos'!E192*$D$30 -> 0 | F194: ='ročni vnos'!F192*$D$30 -> 0 | G194: ='ročni vnos'!G192*$D$30 -> 0 | H194: ='ročni vnos'!H192*$D$30 -> 0 | I194: ='ročni vnos'!I192*$D$30 -> 0 | J194: ='ročni vnos'!J192*$D$30 -> 0 | K194: ='ročni vnos'!K192 -> 0 | L194: 0 | M194: 0 | N194: 0 | O194: 0 | P194: 0
B195: 163 | C195: =IF(LEN('ročni vnos'!C193)>0,'ročni vnos'!C193,"") ->  | D195: ='ročni vnos'!D193 -> 0 | E195: ='ročni vnos'!E193*$D$30 -> 0 | F195: ='ročni vnos'!F193*$D$30 -> 0 | G195: ='ročni vnos'!G193*$D$30 -> 0 | H195: ='ročni vnos'!H193*$D$30 -> 0 | I195: ='ročni vnos'!I193*$D$30 -> 0 | J195: ='ročni vnos'!J193*$D$30 -> 0 | K195: ='ročni vnos'!K193 -> 0 | L195: 0 | M195: 0 | N195: 0 | O195: 0 | P195: 0
B196: 164 | C196: =IF(LEN('ročni vnos'!C194)>0,'ročni vnos'!C194,"") ->  | D196: ='ročni vnos'!D194 -> 0 | E196: ='ročni vnos'!E194*$D$30 -> 0 | F196: ='ročni vnos'!F194*$D$30 -> 0 | G196: ='ročni vnos'!G194*$D$30 -> 0 | H196: ='ročni vnos'!H194*$D$30 -> 0 | I196: ='ročni vnos'!I194*$D$30 -> 0 | J196: ='ročni vnos'!J194*$D$30 -> 0 | K196: ='ročni vnos'!K194 -> 0 | L196: 0 | M196: 0 | N196: 0 | O196: 0 | P196: 0
B197: 165 | C197: =IF(LEN('ročni vnos'!C195)>0,'ročni vnos'!C195,"") ->  | D197: ='ročni vnos'!D195 -> 0 | E197: ='ročni vnos'!E195*$D$30 -> 0 | F197: ='ročni vnos'!F195*$D$30 -> 0 | G197: ='ročni vnos'!G195*$D$30 -> 0 | H197: ='ročni vnos'!H195*$D$30 -> 0 | I197: ='ročni vnos'!I195*$D$30 -> 0 | J197: ='ročni vnos'!J195*$D$30 -> 0 | K197: ='ročni vnos'!K195 -> 0 | L197: 0 | M197: 0 | N197: 0 | O197: 0 | P197: 0
B198: 166 | C198: =IF(LEN('ročni vnos'!C196)>0,'ročni vnos'!C196,"") ->  | D198: ='ročni vnos'!D196 -> 0 | E198: ='ročni vnos'!E196*$D$30 -> 0 | F198: ='ročni vnos'!F196*$D$30 -> 0 | G198: ='ročni vnos'!G196*$D$30 -> 0 | H198: ='ročni vnos'!H196*$D$30 -> 0 | I198: ='ročni vnos'!I196*$D$30 -> 0 | J198: ='ročni vnos'!J196*$D$30 -> 0 | K198: ='ročni vnos'!K196 -> 0 | L198: 0 | M198: 0 | N198: 0 | O198: 0 | P198: 0
B199: 167 | C199: =IF(LEN('ročni vnos'!C197)>0,'ročni vnos'!C197,"") ->  | D199: ='ročni vnos'!D197 -> 0 | E199: ='ročni vnos'!E197*$D$30 -> 0 | F199: ='ročni vnos'!F197*$D$30 -> 0 | G199: ='ročni vnos'!G197*$D$30 -> 0 | H199: ='ročni vnos'!H197*$D$30 -> 0 | I199: ='ročni vnos'!I197*$D$30 -> 0 | J199: ='ročni vnos'!J197*$D$30 -> 0 | K199: ='ročni vnos'!K197 -> 0 | L199: 0 | M199: 0 | N199: 0 | O199: 0 | P199: 0
B200: 168 | C200: =IF(LEN('ročni vnos'!C198)>0,'ročni vnos'!C198,"") ->  | D200: ='ročni vnos'!D198 -> 0 | E200: ='ročni vnos'!E198*$D$30 -> 0 | F200: ='ročni vnos'!F198*$D$30 -> 0 | G200: ='ročni vnos'!G198*$D$30 -> 0 | H200: ='ročni vnos'!H198*$D$30 -> 0 | I200: ='ročni vnos'!I198*$D$30 -> 0 | J200: ='ročni vnos'!J198*$D$30 -> 0 | K200: ='ročni vnos'!K198 -> 0 | L200: 0 | M200: 0 | N200: 0 | O200: 0 | P200: 0
B201: 169 | C201: =IF(LEN('ročni vnos'!C199)>0,'ročni vnos'!C199,"") ->  | D201: ='ročni vnos'!D199 -> 0 | E201: ='ročni vnos'!E199*$D$30 -> 0 | F201: ='ročni vnos'!F199*$D$30 -> 0 | G201: ='ročni vnos'!G199*$D$30 -> 0 | H201: ='ročni vnos'!H199*$D$30 -> 0 | I201: ='ročni vnos'!I199*$D$30 -> 0 | J201: ='ročni vnos'!J199*$D$30 -> 0 | K201: ='ročni vnos'!K199 -> 0 | L201: 0 | M201: 0 | N201: 0 | O201: 0 | P201: 0
B202: 170 | C202: =IF(LEN('ročni vnos'!C200)>0,'ročni vnos'!C200,"") ->  | D202: ='ročni vnos'!D200 -> 0 | E202: ='ročni vnos'!E200*$D$30 -> 0 | F202: ='ročni vnos'!F200*$D$30 -> 0 | G202: ='ročni vnos'!G200*$D$30 -> 0 | H202: ='ročni vnos'!H200*$D$30 -> 0 | I202: ='ročni vnos'!I200*$D$30 -> 0 | J202: ='ročni vnos'!J200*$D$30 -> 0 | K202: ='ročni vnos'!K200 -> 0 | L202: 0 | M202: 0 | N202: 0 | O202: 0 | P202: 0
B203: 171 | C203: =IF(LEN('ročni vnos'!C201)>0,'ročni vnos'!C201,"") ->  | D203: ='ročni vnos'!D201 -> 0 | E203: ='ročni vnos'!E201*$D$30 -> 0 | F203: ='ročni vnos'!F201*$D$30 -> 0 | G203: ='ročni vnos'!G201*$D$30 -> 0 | H203: ='ročni vnos'!H201*$D$30 -> 0 | I203: ='ročni vnos'!I201*$D$30 -> 0 | J203: ='ročni vnos'!J201*$D$30 -> 0 | K203: ='ročni vnos'!K201 -> 0 | L203: 0 | M203: 0 | N203: 0 | O203: 0 | P203: 0
B204: 172 | C204: =IF(LEN('ročni vnos'!C202)>0,'ročni vnos'!C202,"") ->  | D204: ='ročni vnos'!D202 -> 0 | E204: ='ročni vnos'!E202*$D$30 -> 0 | F204: ='ročni vnos'!F202*$D$30 -> 0 | G204: ='ročni vnos'!G202*$D$30 -> 0 | H204: ='ročni vnos'!H202*$D$30 -> 0 | I204: ='ročni vnos'!I202*$D$30 -> 0 | J204: ='ročni vnos'!J202*$D$30 -> 0 | K204: ='ročni vnos'!K202 -> 0 | L204: 0 | M204: 0 | N204: 0 | O204: 0 | P204: 0
B205: 173 | C205: =IF(LEN('ročni vnos'!C203)>0,'ročni vnos'!C203,"") ->  | D205: ='ročni vnos'!D203 -> 0 | E205: ='ročni vnos'!E203*$D$30 -> 0 | F205: ='ročni vnos'!F203*$D$30 -> 0 | G205: ='ročni vnos'!G203*$D$30 -> 0 | H205: ='ročni vnos'!H203*$D$30 -> 0 | I205: ='ročni vnos'!I203*$D$30 -> 0 | J205: ='ročni vnos'!J203*$D$30 -> 0 | K205: ='ročni vnos'!K203 -> 0 | L205: 0 | M205: 0 | N205: 0 | O205: 0 | P205: 0
B206: 174 | C206: =IF(LEN('ročni vnos'!C204)>0,'ročni vnos'!C204,"") ->  | D206: ='ročni vnos'!D204 -> 0 | E206: ='ročni vnos'!E204*$D$30 -> 0 | F206: ='ročni vnos'!F204*$D$30 -> 0 | G206: ='ročni vnos'!G204*$D$30 -> 0 | H206: ='ročni vnos'!H204*$D$30 -> 0 | I206: ='ročni vnos'!I204*$D$30 -> 0 | J206: ='ročni vnos'!J204*$D$30 -> 0 | K206: ='ročni vnos'!K204 -> 0 | L206: 0 | M206: 0 | N206: 0 | O206: 0 | P206: 0
B207: 175 | C207: =IF(LEN('ročni vnos'!C205)>0,'ročni vnos'!C205,"") ->  | D207: ='ročni vnos'!D205 -> 0 | E207: ='ročni vnos'!E205*$D$30 -> 0 | F207: ='ročni vnos'!F205*$D$30 -> 0 | G207: ='ročni vnos'!G205*$D$30 -> 0 | H207: ='ročni vnos'!H205*$D$30 -> 0 | I207: ='ročni vnos'!I205*$D$30 -> 0 | J207: ='ročni vnos'!J205*$D$30 -> 0 | K207: ='ročni vnos'!K205 -> 0 | L207: 0 | M207: 0 | N207: 0 | O207: 0 | P207: 0
B208: 176 | C208: =IF(LEN('ročni vnos'!C206)>0,'ročni vnos'!C206,"") ->  | D208: ='ročni vnos'!D206 -> 0 | E208: ='ročni vnos'!E206*$D$30 -> 0 | F208: ='ročni vnos'!F206*$D$30 -> 0 | G208: ='ročni vnos'!G206*$D$30 -> 0 | H208: ='ročni vnos'!H206*$D$30 -> 0 | I208: ='ročni vnos'!I206*$D$30 -> 0 | J208: ='ročni vnos'!J206*$D$30 -> 0 | K208: ='ročni vnos'!K206 -> 0 | L208: 0 | M208: 0 | N208: 0 | O208: 0 | P208: 0
... 823 more rows

Sheet korekcija brez krit. nadomeščan
C1: Izplačilo delovne uspešnosti za | D1: ='ročni vnos'!D1 -> januar | E1: ='ročni vnos'!E1 -> 2026
C2: Šifra proračunskega uporabnika: | D2: =IF(LEN('ročni vnos'!D2)>0,'ročni vnos'!D2,"") -> 1234
C3: Organizacijska enota: | D3: =IF(LEN('ročni vnos'!D3)>0,'ročni vnos'!D3,"") -> Sektor za splošne zadeve
C5: Določitev skupnega obsega sredstev za delovno uspešnost - za delitev po kriterijih (brez sredstev projektov)
C6: Masa osnovnih plač | D6: ='ročni vnos'!D6 -> 55970.04
C7: Odstotek osnovnih plač | D7: ='ročni vnos'!D7 -> 0.02
C8: Masa sredstev iz osnovnih plač za DU | D8: =+D6*D7 -> 1119.4008
C10: Prihranki iz naslova odsotnosti JU ali nezasedenih delovnih mest | D10: ='ročni vnos'!D10 -> 4000
C11: Odstotek prihrankov za delitev | D11: ='ročni vnos'!D11 -> 0.5
C12: Masa sredstev za DU iz prihrankov | D12: =+D10*D11 -> 2000
C14: Nerazdeljena sredstva iz prejšnjega meseca | D14: ='ročni vnos'!D14 -> 100
C16: Razpoložljivi obseg sredstev za DU | D16: =+D8+D12+D14 -> 3219.4008
C17: Določen obseg mase za DU | D17: =+'ročni vnos'!D17 -> 3219.4
C19: Razdelitev sredstev za delovno uspešnost glede na vpisane odstotke (brez sredstev projektov) - kontrola
C20: Masa sredstev za delovno uspešnost | D20: =D17 -> 3219.4
C21: Razdeljena masa za delovno uspešnost | D21: =SUM(N33:O1031) -> 3219.4
C22: Razlika | D22: =+D20-D21 -> 0
C24: Razdelitev sredstev glede na vpisane odstotke (iz vseh virov sredstev)
C25: Razdeljena masa - nadomeščanje | D25: =SUM(N33:N1031) -> 2533.29 | F25: =IF(D25>D17,"RAZDELITI ŽELITE VEČ SREDSTEV PO KRITERIJU ZA NAMEN NADOMEŠČANJA, KOT JIH JE NA VOLJO ZA VSO DU ","") ->  | L25: =IF(L27>30%,"VSAJ EN SKUPNI ODSTOTEK ZA DU JE VEČJI OD 30 %.","") -> 
C26: Razdeljena masa - nadpovprečni rezultati | D26: =SUM(O33:O1031) -> 686.11 | F26: =IF(D25>D17,"POTREBEN JE POPRAVEK ODSTOTKOV NA PRVEM LISTU","") ->  | L26: =IF(L27>30%,"UREDITE VREDNOSTI NA ZAVIHKU 'ROČNI VNOS'.","") -> 
C27: Razdeljena masa - projekti | D27: =SUM(P33:P42) -> 310.5789 | L27: =MAX(L33:L1031) -> 0.208337621
C28: Skupaj | D28: =SUM(D25:D27) -> 3529.9789
C30: Korekcijski faktor - nadpovprečni rezultati | D30: =(D17-SUM('ročni vnos'!N31:'ročni vnos'!N1029))/SUM('ročni vnos'!O31:'ročni vnos'!O1029) -> 0.4168810485
B32: Zapor. št. | C32: Javni uslužbenec | D32: Osnovna plača | E32: Opravljanje dodatnega dela ali večji obseg dela | F32: Kakovost | G32: Natančnost | H32: Samostojnost | I32: Obseg dela | J32: Učinkovitost dela | K32: Projekti | L32: Skupni odstotek osnovne plače za DU | M32: Delovna uspešnost | N32: Delovna uspešnost - nadomeščanje | O32: Delovna uspešnost - nadpovprečni rez. | P32: Delovna uspešnost - projekti | Q32: Kontrola
B33: 1 | C33: =IF(LEN('ročni vnos'!C31)>0,'ročni vnos'!C31,"") -> Ana Novak | D33: ='ročni vnos'!D31 -> 1330.26 | E33: ='ročni vnos'!E31 -> 0 | F33: ='ročni vnos'!F31*$D$30 -> 0 | G33: ='ročni vnos'!G31*$D$30 -> 0.01250643146 | H33: ='ročni vnos'!H31*$D$30 -> 0 | I33: ='ročni vnos'!I31*$D$30 -> 0 | J33: ='ročni vnos'!J31*$D$30 -> 0 | K33: =+'ročni vnos'!K31 -> 0.02 | L33: =SUM(E33:K33) -> 0.03250643146 | M33: =+D33*L33 -> 43.24200551 | N33: =D33*E33 -> 0 | O33: =(F33+G33+H33+I33+J33)*D33 -> 16.63680551 | P33: =+D33*K33 -> 26.6052 | Q33: =IF(SUM(E33:K33)>30%,"VSOTA MORA BITI MANJŠA ALI ENAKA 30%","") -> 
B34: 2 | C34: =IF(LEN('ročni vnos'!C32)>0,'ročni vnos'!C32,"") -> Marko Kovač | D34: ='ročni vnos'!D32 -> 1411.28 | E34: ='ročni vnos'!E32 -> 0.05 | F34: ='ročni vnos'!F32*$D$30 -> 0 | G34: ='ročni vnos'!G32*$D$30 -> 0.02084405243 | H34: ='ročni vnos'!H32*$D$30 -> 0 | I34: ='ročni vnos'!I32*$D$30 -> 0 | J34: ='ročni vnos'!J32*$D$30 -> 0 | K34: =+'ročni vnos'!K32 -> 0 | L34: =SUM(E34:K34) -> 0.07084405243 | M34: =+D34*L34 -> 99.98079431 | N34: =D34*E34 -> 70.564 | O34: =(F34+G34+H34+I34+J34)*D34 -> 29.41679431 | P34: =+D34*K34 -> 0 | Q34: =IF(SUM(E34:K34)>30%,"VSOTA MORA BITI MANJŠA ALI ENAKA 30%","") -> 
B35: 3 | C35: =IF(LEN('ročni vnos'!C33)>0,'ročni vnos'!C33,"") -> Maja Horvat | D35: ='ročni vnos'!D33 -> 1477.72 | E35: ='ročni vnos'!E33 -> 0.05 | F35: ='ročni vnos'!F33*$D$30 -> 0 | G35: ='ročni vnos'!G33*$D$30 -> 0 | H35: ='ročni vnos'!H33*$D$30 -> 0 | I35: ='ročni vnos'!I33*$D$30 -> 0 | J35: ='ročni vnos'!J33*$D$30 -> 0 | K35: =+'ročni vnos'!K33 -> 0 | L35: 0.05 | M35: 73.886 | N35: 73.886 | O35: 0 | P35: 0
B36: 4 | C36: =IF(LEN('ročni vnos'!C34)>0,'ročni vnos'!C34,"") -> Luka Zupan | D36: ='ročni vnos'!D34 -> 1804.47 | E36: ='ročni vnos'!E34 -> 0.05 | F36: ='ročni vnos'!F34*$D$30 -> 0 | G36: ='ročni vnos'!G34*$D$30 -> 0 | H36: ='ročni vnos'!H34*$D$30 -> 0 | I36: ='ročni vnos'!I34*$D$30 -> 0 | J36: ='ročni vnos'!J34*$D$30 -> 0 | K36: =+'ročni vnos'!K34 -> 0.07 | L36: 0.12 | M36: 216.5364 | N36: 90.2235 | O36: 0 | P36: 126.3129
B37: 5 | C37: =IF(LEN('ročni vnos'!C35)>0,'ročni vnos'!C35,"") -> Nina Potočnik | D37: ='ročni vnos'!D35 -> 1868.64 | E37: ='ročni vnos'!E35 -> 0.05 | F37: ='ročni vnos'!F35*$D$30 -> 0 | G37: ='ročni vnos'!G35*$D$30 -> 0 | H37: ='ročni vnos'!H35*$D$30 -> 0 | I37: ='ročni vnos'!I35*$D$30 -> 0 | J37: ='ročni vnos'!J35*$D$30 -> 0 | K37: =+'ročni vnos'!K35 -> 0.02 | L37: 0.07 | M37: 130.8048 | N37: 93.432 | O37: 0 | P37: 37.3728
B38: 6 | C38: =IF(LEN('ročni vnos'!C36)>0,'ročni vnos'!C36,"") -> Peter Mlakar | D38: ='ročni vnos'!D36 -> 1868.64 | E38: ='ročni vnos'!E36 -> 0 | F38: ='ročni vnos'!F36*$D$30 -> 0.00833762097 | G38: ='ročni vnos'!G36*$D$30 -> 0 | H38: ='ročni vnos'!H36*$D$30 -> 0 | I38: ='ročni vnos'!I36*$D$30 -> 0.04168810485 | J38: ='ročni vnos'!J36*$D$30 -> 0 | K38: =+'ročni vnos'!K36 -> 0 | L38: 0.05002572582 | M38: 93.4800723 | N38: 0 | O38: 93.4800723 | P38: 0
B39: 7 | C39: =IF(LEN('ročni vnos'!C37)>0,'ročni vnos'!C37,"") -> Sara Vidmar | D39: ='ročni vnos'!D37 -> 2004.8 | E39: ='ročni vnos'!E37 -> 0 | F39: ='ročni vnos'!F37*$D$30 -> 0 | G39: ='ročni vnos'!G37*$D$30 -> 0 | H39: ='ročni vnos'!H37*$D$30 -> 0 | I39: ='ročni vnos'!I37*$D$30 -> 0.04168810485 | J39: ='ročni vnos'!J37*$D$30 -> 0 | K39: =+'ročni vnos'!K37 -> 0.06 | L39: 0.1016881049 | M39: 203.8643126 | N39: 0 | O39: 83.57631261 | P39: 120.288
B40: 8 | C40: =IF(LEN('ročni vnos'!C38)>0,'ročni vnos'!C38,"") -> Tomaž Kranjc | D40: ='ročni vnos'!D38 -> 2152.08 | E40: ='ročni vnos'!E38 -> 0 | F40: ='ročni vnos'!F38*$D$30 -> 0 | G40: ='ročni vnos'!G38*$D$30 -> 0 | H40: ='ročni vnos'!H38*$D$30 -> 0.01250643146 | I40: ='ročni vnos'!I38*$D$30 -> 0 | J40: ='ročni vnos'!J38*$D$30 -> 0 | K40: =+'ročni vnos'!K38 -> 0 | L40: 0.01250643146 | M40: 26.91484101 | N40: 0 | O40: 26.91484101 | P40: 0
B41: 9 | C41: =IF(LEN('ročni vnos'!C39)>0,'ročni vnos'!C39,"") -> Tina Turk | D41: ='ročni vnos'!D39 -> 2395.84 | E41: ='ročni vnos'!E39 -> 0.15 | F41: ='ročni vnos'!F39*$D$30 -> 0 | G41: ='ročni vnos'!G39*$D$30 -> 0 | H41: ='ročni vnos'!H39*$D$30 -> 0.01250643146 | I41: ='ročni vnos'!I39*$D$30 -> 0 | J41: ='ročni vnos'!J39*$D$30 -> 0 | K41: =+'ročni vnos'!K39 -> 0 | L41: 0.1625064315 | M41: 389.3394087 | N41: 359.376 | O41: 29.96340874 | P41: 0
B42: 10 | C42: =IF(LEN('ročni vnos'!C40)>0,'ročni vnos'!C40,"") -> Matej Oblak | D42: ='ročni vnos'!D40 -> 2483.67 | E42: ='ročni vnos'!E40 -> 0.15 | F42: ='ročni vnos'!F40*$D$30 -> 0 | G42: ='ročni vnos'!G40*$D$30 -> 0.00833762097 | H42: ='ročni vnos'!H40*$D$30 -> 0.00833762097 | I42: ='ročni vnos'!I40*$D$30 -> 0 | J42: ='ročni vnos'!J40*$D$30 -> 0 | K42: =+'ročni vnos'!K40 -> 0 | L42: 0.1666752419 | M42: 413.9662982 | N42: 372.5505 | O42: 41.41579815 | P42: 0
B43: 11 | C43: =IF(LEN('ročni vnos'!C41)>0,'ročni vnos'!C41,"") -> Katarina Rozman | D43: ='ročni vnos'!D41 -> 2575 | E43: ='ročni vnos'!E41 -> 0 | F43: ='ročni vnos'!F41*$D$30 -> 0 | G43: ='ročni vnos'!G41*$D$30 -> 0 | H43: ='ročni vnos'!H41*$D$30 -> 0.01250643146 | I43: ='ročni vnos'!I41*$D$30 -> 0 | J43: ='ročni vnos'!J41*$D$30 -> 0 | K43: =+'ročni vnos'!K41 -> 0 | L43: 0.01250643146 | M43: 32.204061 | N43: 0 | O43: 32.204061 | P43: 0
B44: 12 | C44: =IF(LEN('ročni vnos'!C42)>0,'ročni vnos'!C42,"") -> Jan Bizjak | D44: ='ročni vnos'!D42 -> 2871.56 | E44: ='ročni vnos'!E42 -> 0 | F44: ='ročni vnos'!F42*$D$30 -> 0.00833762097 | G44: ='ročni vnos'!G42*$D$30 -> 0 | H44: ='ročni vnos'!H42*$D$30 -> 0.01250643146 | I44: ='ročni vnos'!I42*$D$30 -> 0.06253215728 | J44: ='ročni vnos'!J42*$D$30 -> 0 | K44: =+'ročni vnos'!K42 -> 0 | L44: 0.0833762097 | M44: 239.4197887 | N44: 0 | O44: 239.4197887 | P44: 0
B45: 13 | C45: =IF(LEN('ročni vnos'!C43)>0,'ročni vnos'!C43,"") -> Barbara Košir | D45: ='ročni vnos'!D43 -> 3089.57 | E45: ='ročni vnos'!E43 -> 0 | F45: ='ročni vnos'!F43*$D$30 -> 0 | G45: ='ročni vnos'!G43*$D$30 -> 0 | H45: ='ročni vnos'!H43*$D$30 -> 0 | I45: ='ročni vnos'!I43*$D$30 -> 0 | J45: ='ročni vnos'!J43*$D$30 -> 0 | K45: =+'ročni vnos'!K43 -> 0 | L45: 0 | M45: 0 | N45: 0 | O45: =(F45+G45+H45+I45+J45)*D45 -> 0 | P45: 0
B46: 14 | C46: =IF(LEN('ročni vnos'!C44)>0,'ročni vnos'!C44,"") -> Rok Petek | D46: ='ročni vnos'!D44 -> 3387.86 | E46: ='ročni vnos'!E44 -> 0 | F46: ='ročni vnos'!F44*$D$30 -> 0 | G46: ='ročni vnos'!G44*$D$30 -> 0 | H46: ='ročni vnos'!H44*$D$30 -> 0 | I46: ='ročni vnos'!I44*$D$30 -> 0 | J46: ='ročni vnos'!J44*$D$30 -> 0 | K46: =+'ročni vnos'!K44 -> 0 | L46: 0 | M46: 0 | N46: 0 | O46: 0 | P46: 0
B47: 15 | C47: =IF(LEN('ročni vnos'!C45)>0,'ročni vnos'!C45,"") -> Urška Golob | D47: ='ročni vnos'!D45 -> 3580.38 | E47: ='ročni vnos'!E45 -> 0.2 | F47: ='ročni vnos'!F45*$D$30 -> 0 | G47: ='ročni vnos'!G45*$D$30 -> 0 | H47: ='ročni vnos'!H45*$D$30 -> 0 | I47: ='ročni vnos'!I45*$D$30 -> 0 | J47: ='ročni vnos'!J45*$D$30 -> 0 | K47: =+'ročni vnos'!K45 -> 0 | L47: 0.2 | M47: 716.076 | N47: 716.076 | O47: 0 | P47: 0
B48: 16 | C48: =IF(LEN('ročni vnos'!C46)>0,'ročni vnos'!C46,"") -> Miha Prevc | D48: ='ročni vnos'!D46 -> 3785.91 | E48: ='ročni vnos'!E46 -> 0.2 | F48: ='ročni vnos'!F46*$D$30 -> 0 | G48: ='ročni vnos'!G46*$D$30 -> 0 | H48: ='ročni vnos'!H46*$D$30 -> 0.00833762097 | I48: ='ročni vnos'!I46*$D$30 -> 0 | J48: ='ročni vnos'!J46*$D$30 -> 0 | K48: =+'ročni vnos'!K46 -> 0 | L48: 0.208337621 | M48: 788.7474826 | N48: 757.182 | O48: 31.56548261 | P48: 0
B49: 17 | C49: =IF(LEN('ročni vnos'!C47)>0,'ročni vnos'!C47,"") -> Alenka Bajc | D49: ='ročni vnos'!D47 -> 4002.47 | E49: ='ročni vnos'!E47 -> 0 | F49: ='ročni vnos'!F47*$D$30 -> 0 | G49: ='ročni vnos'!G47*$D$30 -> 0 | H49: ='ročni vnos'!H47*$D$30 -> 0 | I49: ='ročni vnos'!I47*$D$30 -> 0 | J49: ='ročni vnos'!J47*$D$30 -> 0 | K49: =+'ročni vnos'!K47 -> 0 | L49: 0 | M49: 0 | N49: 0 | O49: 0 | P49: 0
B50: 18 | C50: =IF(LEN('ročni vnos'!C48)>0,'ročni vnos'!C48,"") -> Jure Krivec | D50: ='ročni vnos'!D48 -> 4312.74 | E50: ='ročni vnos'!E48 -> 0 | F50: ='ročni vnos'!F48*$D$30 -> 0 | G50: ='ročni vnos'!G48*$D$30 -> 0 | H50: ='ročni vnos'!H48*$D$30 -> 0 | I50: ='ročni vnos'!I48*$D$30 -> 0 | J50: ='ročni vnos'!J48*$D$30 -> 0 | K50: =+'ročni vnos'!K48 -> 0 | L50: 0 | M50: 0 | N50: 0 | O50: 0 | P50: 0
B51: 19 | C51: =IF(LEN('ročni vnos'!C49)>0,'ročni vnos'!C49,"") -> Nataša Štravs | D51: ='ročni vnos'!D49 -> 4648.35 | E51: ='ročni vnos'!E49 -> 0 | F51: ='ročni vnos'!F49*$D$30 -> 0 | G51: ='ročni vnos'!G49*$D$30 -> 0 | H51: ='ročni vnos'!H49*$D$30 -> 0 | I51: ='ročni vnos'!I49*$D$30 -> 0 | J51: ='ročni vnos'!J49*$D$30 -> 0 | K51: =+'ročni vnos'!K49 -> 0 | L51: 0 | M51: 0 | N51: 0 | O51: 0 | P51: 0
B52: 20 | C52: =IF(LEN('ročni vnos'!C50)>0,'ročni vnos'!C50,"") -> Blaž Pavlin | D52: ='ročni vnos'!D50 -> 4918.8 | E52: ='ročni vnos'!E50 -> 0 | F52: ='ročni vnos'!F50*$D$30 -> 0 | G52: ='ročni vnos'!G50*$D$30 -> 0 | H52: ='ročni vnos'!H50*$D$30 -> 0.01250643146 | I52: ='ročni vnos'!I50*$D$30 -> 0 | J52: ='ročni vnos'!J50*$D$30 -> 0 | K52: =+'ročni vnos'!K50 -> 0 | L52: 0.01250643146 | M52: 61.51663504 | N52: 0 | O52: 61.51663504 | P52: 0
B53: 21 | C53: =IF(LEN('ročni vnos'!C51)>0,'ročni vnos'!C51,"") ->  | D53: ='ročni vnos'!D51 -> 0 | E53: ='ročni vnos'!E51 -> 0 | F53: ='ročni vnos'!F51*$D$30 -> 0 | G53: ='ročni vnos'!G51*$D$30 -> 0 | H53: ='ročni vnos'!H51*$D$30 -> 0 | I53: ='ročni vnos'!I51*$D$30 -> 0 | J53: ='ročni vnos'!J51*$D$30 -> 0 | K53: =+'ročni vnos'!K51 -> 0 | L53: 0 | M53: 0 | N53: 0 | O53: 0 | P53: 0
B54: 22 | C54: =IF(LEN('ročni vnos'!C52)>0,'ročni vnos'!C52,"") ->  | D54: ='ročni vnos'!D52 -> 0 | E54: ='ročni vnos'!E52 -> 0 | F54: ='ročni vnos'!F52*$D$30 -> 0 | G54: ='ročni vnos'!G52*$D$30 -> 0 | H54: ='ročni vnos'!H52*$D$30 -> 0 | I54: ='ročni vnos'!I52*$D$30 -> 0 | J54: ='ročni vnos'!J52*$D$30 -> 0 | K54: =+'ročni vnos'!K52 -> 0 | L54: 0 | M54: 0 | N54: 0 | O54: 0 | P54: 0
B55: 23 | C55: =IF(LEN('ročni vnos'!C53)>0,'ročni vnos'!C53,"") ->  | D55: ='ročni vnos'!D53 -> 0 | E55: ='ročni vnos'!E53 -> 0 | F55: ='ročni vnos'!F53*$D$30 -> 0 | G55: ='ročni vnos'!G53*$D$30 -> 0 | H55: ='ročni vnos'!H53*$D$30 -> 0 | I55: ='ročni vnos'!I53*$D$30 -> 0 | J55: ='ročni vnos'!J53*$D$30 -> 0 | K55: =+'ročni vnos'!K53 -> 0 | L55: 0 | M55: 0 | N55: 0 | O55: 0 | P55: 0
B56: 24 | C56: =IF(LEN('ročni vnos'!C54)>0,'ročni vnos'!C54,"") ->  | D56: ='ročni vnos'!D54 -> 0 | E56: ='ročni vnos'!E54 -> 0 | F56: ='ročni vnos'!F54*$D$30 -> 0 | G56: ='ročni vnos'!G54*$D$30 -> 0 | H56: ='ročni vnos'!H54*$D$30 -> 0 | I56: ='ročni vnos'!I54*$D$30 -> 0 | J56: ='ročni vnos'!J54*$D$30 -> 0 | K56: =+'ročni vnos'!K54 -> 0 | L56: 0 | M56: 0 | N56: 0 | O56: 0 | P56: 0
B57: 25 | C57: =IF(LEN('ročni vnos'!C55)>0,'ročni vnos'!C55,"") ->  | D57: ='ročni vnos'!D55 -> 0 | E57: ='ročni vnos'!E55 -> 0 | F57: ='ročni vnos'!F55*$D$30 -> 0 | G57: ='ročni vnos'!G55*$D$30 -> 0 | H57: ='ročni vnos'!H55*$D$30 -> 0 | I57: ='ročni vnos'!I55*$D$30 -> 0 | J57: ='ročni vnos'!J55*$D$30 -> 0 | K57: =+'ročni vnos'!K55 -> 0 | L57: 0 | M57: 0 | N57: 0 | O57: 0 | P57: 0
B58: 26 | C58: =IF(LEN('ročni vnos'!C56)>0,'ročni vnos'!C56,"") ->  | D58: ='ročni vnos'!D56 -> 0 | E58: ='ročni vnos'!E56 -> 0 | F58: ='ročni vnos'!F56*$D$30 -> 0 | G58: ='ročni vnos'!G56*$D$30 -> 0 | H58: ='ročni vnos'!H56*$D$30 -> 0 | I58: ='ročni vnos'!I56*$D$30 -> 0 | J58: ='ročni vnos'!J56*$D$30 -> 0 | K58: =+'ročni vnos'!K56 -> 0 | L58: 0 | M58: 0 | N58: 0 | O58: 0 | P58: 0
B59: 27 | C59: =IF(LEN('ročni vnos'!C57)>0,'ročni vnos'!C57,"") ->  | D59: ='ročni vnos'!D57 -> 0 | E59: ='ročni vnos'!E57 -> 0 | F59: ='ročni vnos'!F57*$D$30 -> 0 | G59: ='ročni vnos'!G57*$D$30 -> 0 | H59: ='ročni vnos'!H57*$D$30 -> 0 | I59: ='ročni vnos'!I57*$D$30 -> 0 | J59: ='ročni vnos'!J57*$D$30 -> 0 | K59: =+'ročni vnos'!K57 -> 0 | L59: 0 | M59: 0 | N59: 0 | O59: 0 | P59: 0
B60: 28 | C60: =IF(LEN('ročni vnos'!C58)>0,'ročni vnos'!C58,"") ->  | D60: ='ročni vnos'!D58 -> 0 | E60: ='ročni vnos'!E58 -> 0 | F60: ='ročni vnos'!F58*$D$30 -> 0 | G60: ='ročni vnos'!G58*$D$30 -> 0 | H60: ='ročni vnos'!H58*$D$30 -> 0 | I60: ='ročni vnos'!I58*$D$30 -> 0 | J60: ='ročni vnos'!J58*$D$30 -> 0 | K60: =+'ročni vnos'!K58 -> 0 | L60: 0 | M60: 0 | N60: 0 | O60: 0 | P60: 0
B61: 29 | C61: =IF(LEN('ročni vnos'!C59)>0,'ročni vnos'!C59,"") ->  | D61: ='ročni vnos'!D59 -> 0 | E61: ='ročni vnos'!E59 -> 0 | F61: ='ročni vnos'!F59*$D$30 -> 0 | G61: ='ročni vnos'!G59*$D$30 -> 0 | H61: ='ročni vnos'!H59*$D$30 -> 0 | I61: ='ročni vnos'!I59*$D$30 -> 0 | J61: ='ročni vnos'!J59*$D$30 -> 0 | K61: =+'ročni vnos'!K59 -> 0 | L61: 0 | M61: 0 | N61: 0 | O61: 0 | P61: 0
B62: 30 | C62: =IF(LEN('ročni vnos'!C60)>0,'ročni vnos'!C60,"") ->  | D62: ='ročni vnos'!D60 -> 0 | E62: ='ročni vnos'!E60 -> 0 | F62: ='ročni vnos'!F60*$D$30 -> 0 | G62: ='ročni vnos'!G60*$D$30 -> 0 | H62: ='ročni vnos'!H60*$D$30 -> 0 | I62: ='ročni vnos'!I60*$D$30 -> 0 | J62: ='ročni vnos'!J60*$D$30 -> 0 | K62: =+'ročni vnos'!K60 -> 0 | L62: 0 | M62: 0 | N62: 0 | O62: 0 | P62: 0
B63: 31 | C63: =IF(LEN('ročni vnos'!C61)>0,'ročni vnos'!C61,"") ->  | D63: ='ročni vnos'!D61 -> 0 | E63: ='ročni vnos'!E61 -> 0 | F63: ='ročni vnos'!F61*$D$30 -> 0 | G63: ='ročni vnos'!G61*$D$30 -> 0 | H63: ='ročni vnos'!H61*$D$30 -> 0 | I63: ='ročni vnos'!I61*$D$30 -> 0 | J63: ='ročni vnos'!J61*$D$30 -> 0 | K63: =+'ročni vnos'!K61 -> 0 | L63: 0 | M63: 0 | N63: 0 | O63: 0 | P63: 0
B64: 32 | C64: =IF(LEN('ročni vnos'!C62)>0,'ročni vnos'!C62,"") ->  | D64: ='ročni vnos'!D62 -> 0 | E64: ='ročni vnos'!E62 -> 0 | F64: ='ročni vnos'!F62*$D$30 -> 0 | G64: ='ročni vnos'!G62*$D$30 -> 0 | H64: ='ročni vnos'!H62*$D$30 -> 0 | I64: ='ročni vnos'!I62*$D$30 -> 0 | J64: ='ročni vnos'!J62*$D$30 -> 0 | K64: =+'ročni vnos'!K62 -> 0 | L64: 0 | M64: 0 | N64: 0 | O64: 0 | P64: 0
B65: 33 | C65: =IF(LEN('ročni vnos'!C63)>0,'ročni vnos'!C63,"") ->  | D65: ='ročni vnos'!D63 -> 0 | E65: ='ročni vnos'!E63 -> 0 | F65: ='ročni vnos'!F63*$D$30 -> 0 | G65: ='ročni vnos'!G63*$D$30 -> 0 | H65: ='ročni vnos'!H63*$D$30 -> 0 | I65: ='ročni vnos'!I63*$D$30 -> 0 | J65: ='ročni vnos'!J63*$D$30 -> 0 | K65: =+'ročni vnos'!K63 -> 0 | L65: 0 | M65: 0 | N65: 0 | O65: 0 | P65: 0
B66: 34 | C66: =IF(LEN('ročni vnos'!C64)>0,'ročni vnos'!C64,"") ->  | D66: ='ročni vnos'!D64 -> 0 | E66: ='ročni vnos'!E64 -> 0 | F66: ='ročni vnos'!F64*$D$30 -> 0 | G66: ='ročni vnos'!G64*$D$30 -> 0 | H66: ='ročni vnos'!H64*$D$30 -> 0 | I66: ='ročni vnos'!I64*$D$30 -> 0 | J66: ='ročni vnos'!J64*$D$30 -> 0 | K66: =+'ročni vnos'!K64 -> 0 | L66: 0 | M66: 0 | N66: 0 | O66: 0 | P66: 0
B67: 35 | C67: =IF(LEN('ročni vnos'!C65)>0,'ročni vnos'!C65,"") ->  | D67: ='ročni vnos'!D65 -> 0 | E67: ='ročni vnos'!E65 -> 0 | F67: ='ročni vnos'!F65*$D$30 -> 0 | G67: ='ročni vnos'!G65*$D$30 -> 0 | H67: ='ročni vnos'!H65*$D$30 -> 0 | I67: ='ročni vnos'!I65*$D$30 -> 0 | J67: ='ročni vnos'!J65*$D$30 -> 0 | K67: =+'ročni vnos'!K65 -> 0 | L67: 0 | M67: 0 | N67: 0 | O67: 0 | P67: 0
B68: 36 | C68: =IF(LEN('ročni vnos'!C66)>0,'ročni vnos'!C66,"") ->  | D68: ='ročni vnos'!D66 -> 0 | E68: ='ročni vnos'!E66 -> 0 | F68: ='ročni vnos'!F66*$D$30 -> 0 | G68: ='ročni vnos'!G66*$D$30 -> 0 | H68: ='ročni vnos'!H66*$D$30 -> 0 | I68: ='ročni vnos'!I66*$D$30 -> 0 | J68: ='ročni vnos'!J66*$D$30 -> 0 | K68: =+'ročni vnos'!K66 -> 0 | L68: 0 | M68: 0 | N68: 0 | O68: 0 | P68: 0
B69: 37 | C69: =IF(LEN('ročni vnos'!C67)>0,'ročni vnos'!C67,"") ->  | D69: ='ročni vnos'!D67 -> 0 | E69: ='ročni vnos'!E67 -> 0 | F69: ='ročni vnos'!F67*$D$30 -> 0 | G69: ='ročni vnos'!G67*$D$30 -> 0 | H69: ='ročni vnos'!H67*$D$30 -> 0 | I69: ='ročni vnos'!I67*$D$30 -> 0 | J69: ='ročni vnos'!J67*$D$30 -> 0 | K69: =+'ročni vnos'!K67 -> 0 | L69: 0 | M69: 0 | N69: 0 | O69: 0 | P69: 0
B70: 38 | C70: =IF(LEN('ročni vnos'!C68)>0,'ročni vnos'!C68,"") ->  | D70: ='ročni vnos'!D68 -> 0 | E70: ='ročni vnos'!E68 -> 0 | F70: ='ročni vnos'!F68*$D$30 -> 0 | G70: ='ročni vnos'!G68*$D$30 -> 0 | H70: ='ročni vnos'!H68*$D$30 -> 0 | I70: ='ročni vnos'!I68*$D$30 -> 0 | J70: ='ročni vnos'!J68*$D$30 -> 0 | K70: =+'ročni vnos'!K68 -> 0 | L70: 0 | M70: 0 | N70: 0 | O70: 0 | P70: 0
B71: 39 | C71: =IF(LEN('ročni vnos'!C69)>0,'ročni vnos'!C69,"") ->  | D71: ='ročni vnos'!D69 -> 0 | E71: ='ročni vnos'!E69 -> 0 | F71: ='ročni vnos'!F69*$D$30 -> 0 | G71: ='ročni vnos'!G69*$D$30 -> 0 | H71: ='ročni vnos'!H69*$D$30 -> 0 | I71: ='ročni vnos'!I69*$D$30 -> 0 | J71: ='ročni vnos'!J69*$D$30 -> 0 | K71: =+'ročni vnos'!K69 -> 0 | L71: 0 | M71: 0 | N71: 0 | O71: 0 | P71: 0
B72: 40 | C72: =IF(LEN('ročni vnos'!C70)>0,'ročni vnos'!C70,"") ->  | D72: ='ročni vnos'!D70 -> 0 | E72: ='ročni vnos'!E70 -> 0 | F72: ='ročni vnos'!F70*$D$30 -> 0 | G72: ='ročni vnos'!G70*$D$30 -> 0 | H72: ='ročni vnos'!H70*$D$30 -> 0 | I72: ='ročni vnos'!I70*$D$30 -> 0 | J72: ='ročni vnos'!J70*$D$30 -> 0 | K72: =+'ročni vnos'!K70 -> 0 | L72: 0 | M72: 0 | N72: 0 | O72: 0 | P72: 0
B73: 41 | C73: =IF(LEN('ročni vnos'!C71)>0,'ročni vnos'!C71,"") ->  | D73: ='ročni vnos'!D71 -> 0 | E73: ='ročni vnos'!E71 -> 0 | F73: ='ročni vnos'!F71*$D$30 -> 0 | G73: ='ročni vnos'!G71*$D$30 -> 0 | H73: ='ročni vnos'!H71*$D$30 -> 0 | I73: ='ročni vnos'!I71*$D$30 -> 0 | J73: ='ročni vnos'!J71*$D$30 -> 0 | K73: =+'ročni vnos'!K71 -> 0 | L73: 0 | M73: 0 | N73: 0 | O73: 0 | P73: 0
B74: 42 | C74: =IF(LEN('ročni vnos'!C72)>0,'ročni vnos'!C72,"") ->  | D74: ='ročni vnos'!D72 -> 0 | E74: ='ročni vnos'!E72 -> 0 | F74: ='ročni vnos'!F72*$D$30 -> 0 | G74: ='ročni vnos'!G72*$D$30 -> 0 | H74: ='ročni vnos'!H72*$D$30 -> 0 | I74: ='ročni vnos'!I72*$D$30 -> 0 | J74: ='ročni vnos'!J72*$D$30 -> 0 | K74: =+'ročni vnos'!K72 -> 0 | L74: 0 | M74: 0 | N74: 0 | O74: 0 | P74: 0
B75: 43 | C75: =IF(LEN('ročni vnos'!C73)>0,'ročni vnos'!C73,"") ->  | D75: ='ročni vnos'!D73 -> 0 | E75: ='ročni vnos'!E73 -> 0 | F75: ='ročni vnos'!F73*$D$30 -> 0 | G75: ='ročni vnos'!G73*$D$30 -> 0 | H75: ='ročni vnos'!H73*$D$30 -> 0 | I75: ='ročni vnos'!I73*$D$30 -> 0 | J75: ='ročni vnos'!J73*$D$30 -> 0 | K75: =+'ročni vnos'!K73 -> 0 | L75: 0 | M75: 0 | N75: 0 | O75: 0 | P75: 0
B76: 44 | C76: =IF(LEN('ročni vnos'!C74)>0,'ročni vnos'!C74,"") ->  | D76: ='ročni vnos'!D74 -> 0 | E76: ='ročni vnos'!E74 -> 0 | F76: ='ročni vnos'!F74*$D$30 -> 0 | G76: ='ročni vnos'!G74*$D$30 -> 0 | H76: ='ročni vnos'!H74*$D$30 -> 0 | I76: ='ročni vnos'!I74*$D$30 -> 0 | J76: ='ročni vnos'!J74*$D$30 -> 0 | K76: =+'ročni vnos'!K74 -> 0 | L76: 0 | M76: 0 | N76: 0 | O76: 0 | P76: 0
B77: 45 | C77: =IF(LEN('ročni vnos'!C75)>0,'ročni vnos'!C75,"") ->  | D77: ='ročni vnos'!D75 -> 0 | E77: ='ročni vnos'!E75 -> 0 | F77: ='ročni vnos'!F75*$D$30 -> 0 | G77: ='ročni vnos'!G75*$D$30 -> 0 | H77: ='ročni vnos'!H75*$D$30 -> 0 | I77: ='ročni vnos'!I75*$D$30 -> 0 | J77: ='ročni vnos'!J75*$D$30 -> 0 | K77: =+'ročni vnos'!K75 -> 0 | L77: 0 | M77: 0 | N77: 0 | O77: 0 | P77: 0
B78: 46 | C78: =IF(LEN('ročni vnos'!C76)>0,'ročni vnos'!C76,"") ->  | D78: ='ročni vnos'!D76 -> 0 | E78: ='ročni vnos'!E76 -> 0 | F78: ='ročni vnos'!F76*$D$30 -> 0 | G78: ='ročni vnos'!G76*$D$30 -> 0 | H78: ='ročni vnos'!H76*$D$30 -> 0 | I78: ='ročni vnos'!I76*$D$30 -> 0 | J78: ='ročni vnos'!J76*$D$30 -> 0 | K78: =+'ročni vnos'!K76 -> 0 | L78: 0 | M78: 0 | N78: 0 | O78: 0 | P78: 0
B79: 47 | C79: =IF(LEN('ročni vnos'!C77)>0,'ročni vnos'!C77,"") ->  | D79: ='ročni vnos'!D77 -> 0 | E79: ='ročni vnos'!E77 -> 0 | F79: ='ročni vnos'!F77*$D$30 -> 0 | G79: ='ročni vnos'!G77*$D$30 -> 0 | H79: ='ročni vnos'!H77*$D$30 -> 0 | I79: ='ročni vnos'!I77*$D$30 -> 0 | J79: ='ročni vnos'!J77*$D$30 -> 0 | K79: =+'ročni vnos'!K77 -> 0 | L79: 0 | M79: 0 | N79: 0 | O79: 0 | P79: 0
B80: 48 | C80: =IF(LEN('ročni vnos'!C78)>0,'ročni vnos'!C78,"") ->  | D80: ='ročni vnos'!D78 -> 0 | E80: ='ročni vnos'!E78 -> 0 | F80: ='ročni vnos'!F78*$D$30 -> 0 | G80: ='ročni vnos'!G78*$D$30 -> 0 | H80: ='ročni vnos'!H78*$D$30 -> 0 | I80: ='ročni vnos'!I78*$D$30 -> 0 | J80: ='ročni vnos'!J78*$D$30 -> 0 | K80: =+'ročni vnos'!K78 -> 0 | L80: 0 | M80: 0 | N80: 0 | O80: 0 | P80: 0
B81: 49 | C81: =IF(LEN('ročni vnos'!C79)>0,'ročni vnos'!C79,"") ->  | D81: ='ročni vnos'!D79 -> 0 | E81: ='ročni vnos'!E79 -> 0 | F81: ='ročni vnos'!F79*$D$30 -> 0 | G81: ='ročni vnos'!G79*$D$30 -> 0 | H81: ='ročni vnos'!H79*$D$30 -> 0 | I81: ='ročni vnos'!I79*$D$30 -> 0 | J81: ='ročni vnos'!J79*$D$30 -> 0 | K81: =+'ročni vnos'!K79 -> 0 | L81: 0 | M81: 0 | N81: 0 | O81: 0 | P81: 0
B82: 50 | C82: =IF(LEN('ročni vnos'!C80)>0,'ročni vnos'!C80,"") ->  | D82: ='ročni vnos'!D80 -> 0 | E82: ='ročni vnos'!E80 -> 0 | F82: ='ročni vnos'!F80*$D$30 -> 0 | G82: ='ročni vnos'!G80*$D$30 -> 0 | H82: ='ročni vnos'!H80*$D$30 -> 0 | I82: ='ročni vnos'!I80*$D$30 -> 0 | J82: ='ročni vnos'!J80*$D$30 -> 0 | K82: =+'ročni vnos'!K80 -> 0 | L82: 0 | M82: 0 | N82: 0 | O82: 0 | P82: 0
B83: 51 | C83: =IF(LEN('ročni vnos'!C81)>0,'ročni vnos'!C81,"") ->  | D83: ='ročni vnos'!D81 -> 0 | E83: ='ročni vnos'!E81 -> 0 | F83: ='ročni vnos'!F81*$D$30 -> 0 | G83: ='ročni vnos'!G81*$D$30 -> 0 | H83: ='ročni vnos'!H81*$D$30 -> 0 | I83: ='ročni vnos'!I81*$D$30 -> 0 | J83: ='ročni vnos'!J81*$D$30 -> 0 | K83: =+'ročni vnos'!K81 -> 0 | L83: 0 | M83: 0 | N83: 0 | O83: 0 | P83: 0
B84: 52 | C84: =IF(LEN('ročni vnos'!C82)>0,'ročni vnos'!C82,"") ->  | D84: ='ročni vnos'!D82 -> 0 | E84: ='ročni vnos'!E82 -> 0 | F84: ='ročni vnos'!F82*$D$30 -> 0 | G84: ='ročni vnos'!G82*$D$30 -> 0 | H84: ='ročni vnos'!H82*$D$30 -> 0 | I84: ='ročni vnos'!I82*$D$30 -> 0 | J84: ='ročni vnos'!J82*$D$30 -> 0 | K84: =+'ročni vnos'!K82 -> 0 | L84: 0 | M84: 0 | N84: 0 | O84: 0 | P84: 0
B85: 53 | C85: =IF(LEN('ročni vnos'!C83)>0,'ročni vnos'!C83,"") ->  | D85: ='ročni vnos'!D83 -> 0 | E85: ='ročni vnos'!E83 -> 0 | F85: ='ročni vnos'!F83*$D$30 -> 0 | G85: ='ročni vnos'!G83*$D$30 -> 0 | H85: ='ročni vnos'!H83*$D$30 -> 0 | I85: ='ročni vnos'!I83*$D$30 -> 0 | J85: ='ročni vnos'!J83*$D$30 -> 0 | K85: =+'ročni vnos'!K83 -> 0 | L85: 0 | M85: 0 | N85: 0 | O85: 0 | P85: 0
B86: 54 | C86: =IF(LEN('ročni vnos'!C84)>0,'ročni vnos'!C84,"") ->  | D86: ='ročni vnos'!D84 -> 0 | E86: ='ročni vnos'!E84 -> 0 | F86: ='ročni vnos'!F84*$D$30 -> 0 | G86: ='ročni vnos'!G84*$D$30 -> 0 | H86: ='ročni vnos'!H84*$D$30 -> 0 | I86: ='ročni vnos'!I84*$D$30 -> 0 | J86: ='ročni vnos'!J84*$D$30 -> 0 | K86: =+'ročni vnos'!K84 -> 0 | L86: 0 | M86: 0 | N86: 0 | O86: 0 | P86: 0
B87: 55 | C87: =IF(LEN('ročni vnos'!C85)>0,'ročni vnos'!C85,"") ->  | D87: ='ročni vnos'!D85 -> 0 | E87: ='ročni vnos'!E85 -> 0 | F87: ='ročni vnos'!F85*$D$30 -> 0 | G87: ='ročni vnos'!G85*$D$30 -> 0 | H87: ='ročni vnos'!H85*$D$30 -> 0 | I87: ='ročni vnos'!I85*$D$30 -> 0 | J87: ='ročni vnos'!J85*$D$30 -> 0 | K87: =+'ročni vnos'!K85 -> 0 | L87: 0 | M87: 0 | N87: 0 | O87: 0 | P87: 0
B88: 56 | C88: =IF(LEN('ročni vnos'!C86)>0,'ročni vnos'!C86,"") ->  | D88: ='ročni vnos'!D86 -> 0 | E88: ='ročni vnos'!E86 -> 0 | F88: ='ročni vnos'!F86*$D$30 -> 0 | G88: ='ročni vnos'!G86*$D$30 -> 0 | H88: ='ročni vnos'!H86*$D$30 -> 0 | I88: ='ročni vnos'!I86*$D$30 -> 0 | J88: ='ročni vnos'!J86*$D$30 -> 0 | K88: =+'ročni vnos'!K86 -> 0 | L88: 0 | M88: 0 | N88: 0 | O88: 0 | P88: 0
B89: 57 | C89: =IF(LEN('ročni vnos'!C87)>0,'ročni vnos'!C87,"") ->  | D89: ='ročni vnos'!D87 -> 0 | E89: ='ročni vnos'!E87 -> 0 | F89: ='ročni vnos'!F87*$D$30 -> 0 | G89: ='ročni vnos'!G87*$D$30 -> 0 | H89: ='ročni vnos'!H87*$D$30 -> 0 | I89: ='ročni vnos'!I87*$D$30 -> 0 | J89: ='ročni vnos'!J87*$D$30 -> 0 | K89: =+'ročni vnos'!K87 -> 0 | L89: 0 | M89: 0 | N89: 0 | O89: 0 | P89: 0
B90: 58 | C90: =IF(LEN('ročni vnos'!C88)>0,'ročni vnos'!C88,"") ->  | D90: ='ročni vnos'!D88 -> 0 | E90: ='ročni vnos'!E88 -> 0 | F90: ='ročni vnos'!F88*$D$30 -> 0 | G90: ='ročni vnos'!G88*$D$30 -> 0 | H90: ='ročni vnos'!H88*$D$30 -> 0 | I90: ='ročni vnos'!I88*$D$30 -> 0 | J90: ='ročni vnos'!J88*$D$30 -> 0 | K90: =+'ročni vnos'!K88 -> 0 | L90: 0 | M90: 0 | N90: 0 | O90: 0 | P90: 0
B91: 59 | C91: =IF(LEN('ročni vnos'!C89)>0,'ročni vnos'!C89,"") ->  | D91: ='ročni vnos'!D89 -> 0 | E91: ='ročni vnos'!E89 -> 0 | F91: ='ročni vnos'!F89*$D$30 -> 0 | G91: ='ročni vnos'!G89*$D$30 -> 0 | H91: ='ročni vnos'!H89*$D$30 -> 0 | I91: ='ročni vnos'!I89*$D$30 -> 0 | J91: ='ročni vnos'!J89*$D$30 -> 0 | K91: =+'ročni vnos'!K89 -> 0 | L91: 0 | M91: 0 | N91: 0 | O91: 0 | P91: 0
B92: 60 | C92: =IF(LEN('ročni vnos'!C90)>0,'ročni vnos'!C90,"") ->  | D92: ='ročni vnos'!D90 -> 0 | E92: ='ročni vnos'!E90 -> 0 | F92: ='ročni vnos'!F90*$D$30 -> 0 | G92: ='ročni vnos'!G90*$D$30 -> 0 | H92: ='ročni vnos'!H90*$D$30 -> 0 | I92: ='ročni vnos'!I90*$D$30 -> 0 | J92: ='ročni vnos'!J90*$D$30 -> 0 | K92: =+'ročni vnos'!K90 -> 0 | L92: 0 | M92: 0 | N92: 0 | O92: 0 | P92: 0
B93: 61 | C93: =IF(LEN('ročni vnos'!C91)>0,'ročni vnos'!C91,"") ->  | D93: ='ročni vnos'!D91 -> 0 | E93: ='ročni vnos'!E91 -> 0 | F93: ='ročni vnos'!F91*$D$30 -> 0 | G93: ='ročni vnos'!G91*$D$30 -> 0 | H93: ='ročni vnos'!H91*$D$30 -> 0 | I93: ='ročni vnos'!I91*$D$30 -> 0 | J93: ='ročni vnos'!J91*$D$30 -> 0 | K93: =+'ročni vnos'!K91 -> 0 | L93: 0 | M93: 0 | N93: 0 | O93: 0 | P93: 0
B94: 62 | C94: =IF(LEN('ročni vnos'!C92)>0,'ročni vnos'!C92,"") ->  | D94: ='ročni vnos'!D92 -> 0 | E94: ='ročni vnos'!E92 -> 0 | F94: ='ročni vnos'!F92*$D$30 -> 0 | G94: ='ročni vnos'!G92*$D$30 -> 0 | H94: ='ročni vnos'!H92*$D$30 -> 0 | I94: ='ročni vnos'!I92*$D$30 -> 0 | J94: ='ročni vnos'!J92*$D$30 -> 0 | K94: =+'ročni vnos'!K92 -> 0 | L94: 0 | M94: 0 | N94: 0 | O94: 0 | P94: 0
B95: 63 | C95: =IF(LEN('ročni vnos'!C93)>0,'ročni vnos'!C93,"") ->  | D95: ='ročni vnos'!D93 -> 0 | E95: ='ročni vnos'!E93 -> 0 | F95: ='ročni vnos'!F93*$D$30 -> 0 | G95: ='ročni vnos'!G93*$D$30 -> 0 | H95: ='ročni vnos'!H93*$D$30 -> 0 | I95: ='ročni vnos'!I93*$D$30 -> 0 | J95: ='ročni vnos'!J93*$D$30 -> 0 | K95: =+'ročni vnos'!K93 -> 0 | L95: 0 | M95: 0 | N95: 0 | O95: 0 | P95: 0
B96: 64 | C96: =IF(LEN('ročni vnos'!C94)>0,'ročni vnos'!C94,"") ->  | D96: ='ročni vnos'!D94 -> 0 | E96: ='ročni vnos'!E94 -> 0 | F96: ='ročni vnos'!F94*$D$30 -> 0 | G96: ='ročni vnos'!G94*$D$30 -> 0 | H96: ='ročni vnos'!H94*$D$30 -> 0 | I96: ='ročni vnos'!I94*$D$30 -> 0 | J96: ='ročni vnos'!J94*$D$30 -> 0 | K96: =+'ročni vnos'!K94 -> 0 | L96: 0 | M96: 0 | N96: 0 | O96: 0 | P96: 0
B97: 65 | C97: =IF(LEN('ročni vnos'!C95)>0,'ročni vnos'!C95,"") ->  | D97: ='ročni vnos'!D95 -> 0 | E97: ='ročni vnos'!E95 -> 0 | F97: ='ročni vnos'!F95*$D$30 -> 0 | G97: ='ročni vnos'!G95*$D$30 -> 0 | H97: ='ročni vnos'!H95*$D$30 -> 0 | I97: ='ročni vnos'!I95*$D$30 -> 0 | J97: ='ročni vnos'!J95*$D$30 -> 0 | K97: =+'ročni vnos'!K95 -> 0 | L97: 0 | M97: 0 | N97: 0 | O97: 0 | P97: 0
B98: 66 | C98: =IF(LEN('ročni vnos'!C96)>0,'ročni vnos'!C96,"") ->  | D98: ='ročni vnos'!D96 -> 0 | E98: ='ročni vnos'!E96 -> 0 | F98: ='ročni vnos'!F96*$D$30 -> 0 | G98: ='ročni vnos'!G96*$D$30 -> 0 | H98: ='ročni vnos'!H96*$D$30 -> 0 | I98: ='ročni vnos'!I96*$D$30 -> 0 | J98: ='ročni vnos'!J96*$D$30 -> 0 | K98: =+'ročni vnos'!K96 -> 0 | L98: =SUM(E98:K98) -> 0 | M98: =+D98*L98 -> 0 | N98: =D98*E98 -> 0 | O98: =(F98+G98+H98+I98+J98)*D98 -> 0 | P98: =+D98*K98 -> 0 | Q98: =IF(SUM(E98:K98)>30%,"VSOTA MORA BITI MANJŠA ALI ENAKA 30%","") -> 
B99: 67 | C99: =IF(LEN('ročni vnos'!C97)>0,'ročni vnos'!C97,"") ->  | D99: ='ročni vnos'!D97 -> 0 | E99: ='ročni vnos'!E97 -> 0 | F99: ='ročni vnos'!F97*$D$30 -> 0 | G99: ='ročni vnos'!G97*$D$30 -> 0 | H99: ='ročni vnos'!H97*$D$30 -> 0 | I99: ='ročni vnos'!I97*$D$30 -> 0 | J99: ='ročni vnos'!J97*$D$30 -> 0 | K99: =+'ročni vnos'!K97 -> 0 | L99: 0 | M99: 0 | N99: 0 | O99: 0 | P99: 0
B100: 68 | C100: =IF(LEN('ročni vnos'!C98)>0,'ročni vnos'!C98,"") ->  | D100: ='ročni vnos'!D98 -> 0 | E100: ='ročni vnos'!E98 -> 0 | F100: ='ročni vnos'!F98*$D$30 -> 0 | G100: ='ročni vnos'!G98*$D$30 -> 0 | H100: ='ročni vnos'!H98*$D$30 -> 0 | I100: ='ročni vnos'!I98*$D$30 -> 0 | J100: ='ročni vnos'!J98*$D$30 -> 0 | K100: =+'ročni vnos'!K98 -> 0 | L100: 0 | M100: 0 | N100: 0 | O100: 0 | P100: 0
B101: 69 | C101: =IF(LEN('ročni vnos'!C99)>0,'ročni vnos'!C99,"") ->  | D101: ='ročni vnos'!D99 -> 0 | E101: ='ročni vnos'!E99 -> 0 | F101: ='ročni vnos'!F99*$D$30 -> 0 | G101: ='ročni vnos'!G99*$D$30 -> 0 | H101: ='ročni vnos'!H99*$D$30 -> 0 | I101: ='ročni vnos'!I99*$D$30 -> 0 | J101: ='ročni vnos'!J99*$D$30 -> 0 | K101: =+'ročni vnos'!K99 -> 0 | L101: 0 | M101: 0 | N101: 0 | O101: 0 | P101: 0
B102: 70 | C102: =IF(LEN('ročni vnos'!C100)>0,'ročni vnos'!C100,"") ->  | D102: ='ročni vnos'!D100 -> 0 | E102: ='ročni vnos'!E100 -> 0 | F102: ='ročni vnos'!F100*$D$30 -> 0 | G102: ='ročni vnos'!G100*$D$30 -> 0 | H102: ='ročni vnos'!H100*$D$30 -> 0 | I102: ='ročni vnos'!I100*$D$30 -> 0 | J102: ='ročni vnos'!J100*$D$30 -> 0 | K102: =+'ročni vnos'!K100 -> 0 | L102: 0 | M102: 0 | N102: 0 | O102: 0 | P102: 0
B103: 71 | C103: =IF(LEN('ročni vnos'!C101)>0,'ročni vnos'!C101,"") ->  | D103: ='ročni vnos'!D101 -> 0 | E103: ='ročni vnos'!E101 -> 0 | F103: ='ročni vnos'!F101*$D$30 -> 0 | G103: ='ročni vnos'!G101*$D$30 -> 0 | H103: ='ročni vnos'!H101*$D$30 -> 0 | I103: ='ročni vnos'!I101*$D$30 -> 0 | J103: ='ročni vnos'!J101*$D$30 -> 0 | K103: =+'ročni vnos'!K101 -> 0 | L103: 0 | M103: 0 | N103: 0 | O103: 0 | P103: 0
B104: 72 | C104: =IF(LEN('ročni vnos'!C102)>0,'ročni vnos'!C102,"") ->  | D104: ='ročni vnos'!D102 -> 0 | E104: ='ročni vnos'!E102 -> 0 | F104: ='ročni vnos'!F102*$D$30 -> 0 | G104: ='ročni vnos'!G102*$D$30 -> 0 | H104: ='ročni vnos'!H102*$D$30 -> 0 | I104: ='ročni vnos'!I102*$D$30 -> 0 | J104: ='ročni vnos'!J102*$D$30 -> 0 | K104: =+'ročni vnos'!K102 -> 0 | L104: 0 | M104: 0 | N104: 0 | O104: 0 | P104: 0
B105: 73 | C105: =IF(LEN('ročni vnos'!C103)>0,'ročni vnos'!C103,"") ->  | D105: ='ročni vnos'!D103 -> 0 | E105: ='ročni vnos'!E103 -> 0 | F105: ='ročni vnos'!F103*$D$30 -> 0 | G105: ='ročni vnos'!G103*$D$30 -> 0 | H105: ='ročni vnos'!H103*$D$30 -> 0 | I105: ='ročni vnos'!I103*$D$30 -> 0 | J105: ='ročni vnos'!J103*$D$30 -> 0 | K105: =+'ročni vnos'!K103 -> 0 | L105: 0 | M105: 0 | N105: 0 | O105: 0 | P105: 0
B106: 74 | C106: =IF(LEN('ročni vnos'!C104)>0,'ročni vnos'!C104,"") ->  | D106: ='ročni vnos'!D104 -> 0 | E106: ='ročni vnos'!E104 -> 0 | F106: ='ročni vnos'!F104*$D$30 -> 0 | G106: ='ročni vnos'!G104*$D$30 -> 0 | H106: ='ročni vnos'!H104*$D$30 -> 0 | I106: ='ročni vnos'!I104*$D$30 -> 0 | J106: ='ročni vnos'!J104*$D$30 -> 0 | K106: =+'ročni vnos'!K104 -> 0 | L106: 0 | M106: 0 | N106: 0 | O106: 0 | P106: 0
B107: 75 | C107: =IF(LEN('ročni vnos'!C105)>0,'ročni vnos'!C105,"") ->  | D107: ='ročni vnos'!D105 -> 0 | E107: ='ročni vnos'!E105 -> 0 | F107: ='ročni vnos'!F105*$D$30 -> 0 | G107: ='ročni vnos'!G105*$D$30 -> 0 | H107: ='ročni vnos'!H105*$D$30 -> 0 | I107: ='ročni vnos'!I105*$D$30 -> 0 | J107: ='ročni vnos'!J105*$D$30 -> 0 | K107: =+'ročni vnos'!K105 -> 0 | L107: 0 | M107: 0 | N107: 0 | O107: 0 | P107: 0
B108: 76 | C108: =IF(LEN('ročni vnos'!C106)>0,'ročni vnos'!C106,"") ->  | D108: ='ročni vnos'!D106 -> 0 | E108: ='ročni vnos'!E106 -> 0 | F108: ='ročni vnos'!F106*$D$30 -> 0 | G108: ='ročni vnos'!G106*$D$30 -> 0 | H108: ='ročni vnos'!H106*$D$30 -> 0 | I108: ='ročni vnos'!I106*$D$30 -> 0 | J108: ='ročni vnos'!J106*$D$30 -> 0 | K108: =+'ročni vnos'!K106 -> 0 | L108: 0 | M108: 0 | N108: 0 | O108: 0 | P108: 0
B109: 77 | C109: =IF(LEN('ročni vnos'!C107)>0,'ročni vnos'!C107,"") ->  | D109: ='ročni vnos'!D107 -> 0 | E109: ='ročni vnos'!E107 -> 0 | F109: ='ročni vnos'!F107*$D$30 -> 0 | G109: ='ročni vnos'!G107*$D$30 -> 0 | H109: ='ročni vnos'!H107*$D$30 -> 0 | I109: ='ročni vnos'!I107*$D$30 -> 0 | J109: ='ročni vnos'!J107*$D$30 -> 0 | K109: =+'ročni vnos'!K107 -> 0 | L109: 0 | M109: 0 | N109: 0 | O109: 0 | P109: 0
B110: 78 | C110: =IF(LEN('ročni vnos'!C108)>0,'ročni vnos'!C108,"") ->  | D110: ='ročni vnos'!D108 -> 0 | E110: ='ročni vnos'!E108 -> 0 | F110: ='ročni vnos'!F108*$D$30 -> 0 | G110: ='ročni vnos'!G108*$D$30 -> 0 | H110: ='ročni vnos'!H108*$D$30 -> 0 | I110: ='ročni vnos'!I108*$D$30 -> 0 | J110: ='ročni vnos'!J108*$D$30 -> 0 | K110: =+'ročni vnos'!K108 -> 0 | L110: 0 | M110: 0 | N110: 0 | O110: 0 | P110: 0
B111: 79 | C111: =IF(LEN('ročni vnos'!C109)>0,'ročni vnos'!C109,"") ->  | D111: ='ročni vnos'!D109 -> 0 | E111: ='ročni vnos'!E109 -> 0 | F111: ='ročni vnos'!F109*$D$30 -> 0 | G111: ='ročni vnos'!G109*$D$30 -> 0 | H111: ='ročni vnos'!H109*$D$30 -> 0 | I111: ='ročni vnos'!I109*$D$30 -> 0 | J111: ='ročni vnos'!J109*$D$30 -> 0 | K111: =+'ročni vnos'!K109 -> 0 | L111: 0 | M111: 0 | N111: 0 | O111: 0 | P111: 0
B112: 80 | C112: =IF(LEN('ročni vnos'!C110)>0,'ročni vnos'!C110,"") ->  | D112: ='ročni vnos'!D110 -> 0 | E112: ='ročni vnos'!E110 -> 0 | F112: ='ročni vnos'!F110*$D$30 -> 0 | G112: ='ročni vnos'!G110*$D$30 -> 0 | H112: ='ročni vnos'!H110*$D$30 -> 0 | I112: ='ročni vnos'!I110*$D$30 -> 0 | J112: ='ročni vnos'!J110*$D$30 -> 0 | K112: =+'ročni vnos'!K110 -> 0 | L112: 0 | M112: 0 | N112: 0 | O112: 0 | P112: 0
B113: 81 | C113: =IF(LEN('ročni vnos'!C111)>0,'ročni vnos'!C111,"") ->  | D113: ='ročni vnos'!D111 -> 0 | E113: ='ročni vnos'!E111 -> 0 | F113: ='ročni vnos'!F111*$D$30 -> 0 | G113: ='ročni vnos'!G111*$D$30 -> 0 | H113: ='ročni vnos'!H111*$D$30 -> 0 | I113: ='ročni vnos'!I111*$D$30 -> 0 | J113: ='ročni vnos'!J111*$D$30 -> 0 | K113: =+'ročni vnos'!K111 -> 0 | L113: 0 | M113: 0 | N113: 0 | O113: 0 | P113: 0
B114: 82 | C114: =IF(LEN('ročni vnos'!C112)>0,'ročni vnos'!C112,"") ->  | D114: ='ročni vnos'!D112 -> 0 | E114: ='ročni vnos'!E112 -> 0 | F114: ='ročni vnos'!F112*$D$30 -> 0 | G114: ='ročni vnos'!G112*$D$30 -> 0 | H114: ='ročni vnos'!H112*$D$30 -> 0 | I114: ='ročni vnos'!I112*$D$30 -> 0 | J114: ='ročni vnos'!J112*$D$30 -> 0 | K114: =+'ročni vnos'!K112 -> 0 | L114: 0 | M114: 0 | N114: 0 | O114: 0 | P114: 0
B115: 83 | C115: =IF(LEN('ročni vnos'!C113)>0,'ročni vnos'!C113,"") ->  | D115: ='ročni vnos'!D113 -> 0 | E115: ='ročni vnos'!E113 -> 0 | F115: ='ročni vnos'!F113*$D$30 -> 0 | G115: ='ročni vnos'!G113*$D$30 -> 0 | H115: ='ročni vnos'!H113*$D$30 -> 0 | I115: ='ročni vnos'!I113*$D$30 -> 0 | J115: ='ročni vnos'!J113*$D$30 -> 0 | K115: =+'ročni vnos'!K113 -> 0 | L115: 0 | M115: 0 | N115: 0 | O115: 0 | P115: 0
B116: 84 | C116: =IF(LEN('ročni vnos'!C114)>0,'ročni vnos'!C114,"") ->  | D116: ='ročni vnos'!D114 -> 0 | E116: ='ročni vnos'!E114 -> 0 | F116: ='ročni vnos'!F114*$D$30 -> 0 | G116: ='ročni vnos'!G114*$D$30 -> 0 | H116: ='ročni vnos'!H114*$D$30 -> 0 | I116: ='ročni vnos'!I114*$D$30 -> 0 | J116: ='ročni vnos'!J114*$D$30 -> 0 | K116: =+'ročni vnos'!K114 -> 0 | L116: 0 | M116: 0 | N116: 0 | O116: 0 | P116: 0
B117: 85 | C117: =IF(LEN('ročni vnos'!C115)>0,'ročni vnos'!C115,"") ->  | D117: ='ročni vnos'!D115 -> 0 | E117: ='ročni vnos'!E115 -> 0 | F117: ='ročni vnos'!F115*$D$30 -> 0 | G117: ='ročni vnos'!G115*$D$30 -> 0 | H117: ='ročni vnos'!H115*$D$30 -> 0 | I117: ='ročni vnos'!I115*$D$30 -> 0 | J117: ='ročni vnos'!J115*$D$30 -> 0 | K117: =+'ročni vnos'!K115 -> 0 | L117: 0 | M117: 0 | N117: 0 | O117: 0 | P117: 0
B118: 86 | C118: =IF(LEN('ročni vnos'!C116)>0,'ročni vnos'!C116,"") ->  | D118: ='ročni vnos'!D116 -> 0 | E118: ='ročni vnos'!E116 -> 0 | F118: ='ročni vnos'!F116*$D$30 -> 0 | G118: ='ročni vnos'!G116*$D$30 -> 0 | H118: ='ročni vnos'!H116*$D$30 -> 0 | I118: ='ročni vnos'!I116*$D$30 -> 0 | J118: ='ročni vnos'!J116*$D$30 -> 0 | K118: =+'ročni vnos'!K116 -> 0 | L118: 0 | M118: 0 | N118: 0 | O118: 0 | P118: 0
B119: 87 | C119: =IF(LEN('ročni vnos'!C117)>0,'ročni vnos'!C117,"") ->  | D119: ='ročni vnos'!D117 -> 0 | E119: ='ročni vnos'!E117 -> 0 | F119: ='ročni vnos'!F117*$D$30 -> 0 | G119: ='ročni vnos'!G117*$D$30 -> 0 | H119: ='ročni vnos'!H117*$D$30 -> 0 | I119: ='ročni vnos'!I117*$D$30 -> 0 | J119: ='ročni vnos'!J117*$D$30 -> 0 | K119: =+'ročni vnos'!K117 -> 0 | L119: 0 | M119: 0 | N119: 0 | O119: 0 | P119: 0
B120: 88 | C120: =IF(LEN('ročni vnos'!C118)>0,'ročni vnos'!C118,"") ->  | D120: ='ročni vnos'!D118 -> 0 | E120: ='ročni vnos'!E118 -> 0 | F120: ='ročni vnos'!F118*$D$30 -> 0 | G120: ='ročni vnos'!G118*$D$30 -> 0 | H120: ='ročni vnos'!H118*$D$30 -> 0 | I120: ='ročni vnos'!I118*$D$30 -> 0 | J120: ='ročni vnos'!J118*$D$30 -> 0 | K120: =+'ročni vnos'!K118 -> 0 | L120: 0 | M120: 0 | N120: 0 | O120: 0 | P120: 0
B121: 89 | C121: =IF(LEN('ročni vnos'!C119)>0,'ročni vnos'!C119,"") ->  | D121: ='ročni vnos'!D119 -> 0 | E121: ='ročni vnos'!E119 -> 0 | F121: ='ročni vnos'!F119*$D$30 -> 0 | G121: ='ročni vnos'!G119*$D$30 -> 0 | H121: ='ročni vnos'!H119*$D$30 -> 0 | I121: ='ročni vnos'!I119*$D$30 -> 0 | J121: ='ročni vnos'!J119*$D$30 -> 0 | K121: =+'ročni vnos'!K119 -> 0 | L121: 0 | M121: 0 | N121: 0 | O121: 0 | P121: 0
B122: 90 | C122: =IF(LEN('ročni vnos'!C120)>0,'ročni vnos'!C120,"") ->  | D122: ='ročni vnos'!D120 -> 0 | E122: ='ročni vnos'!E120 -> 0 | F122: ='ročni vnos'!F120*$D$30 -> 0 | G122: ='ročni vnos'!G120*$D$30 -> 0 | H122: ='ročni vnos'!H120*$D$30 -> 0 | I122: ='ročni vnos'!I120*$D$30 -> 0 | J122: ='ročni vnos'!J120*$D$30 -> 0 | K122: =+'ročni vnos'!K120 -> 0 | L122: 0 | M122: 0 | N122: 0 | O122: 0 | P122: 0
B123: 91 | C123: =IF(LEN('ročni vnos'!C121)>0,'ročni vnos'!C121,"") ->  | D123: ='ročni vnos'!D121 -> 0 | E123: ='ročni vnos'!E121 -> 0 | F123: ='ročni vnos'!F121*$D$30 -> 0 | G123: ='ročni vnos'!G121*$D$30 -> 0 | H123: ='ročni vnos'!H121*$D$30 -> 0 | I123: ='ročni vnos'!I121*$D$30 -> 0 | J123: ='ročni vnos'!J121*$D$30 -> 0 | K123: =+'ročni vnos'!K121 -> 0 | L123: 0 | M123: 0 | N123: 0 | O123: 0 | P123: 0
B124: 92 | C124: =IF(LEN('ročni vnos'!C122)>0,'ročni vnos'!C122,"") ->  | D124: ='ročni vnos'!D122 -> 0 | E124: ='ročni vnos'!E122 -> 0 | F124: ='ročni vnos'!F122*$D$30 -> 0 | G124: ='ročni vnos'!G122*$D$30 -> 0 | H124: ='ročni vnos'!H122*$D$30 -> 0 | I124: ='ročni vnos'!I122*$D$30 -> 0 | J124: ='ročni vnos'!J122*$D$30 -> 0 | K124: =+'ročni vnos'!K122 -> 0 | L124: 0 | M124: 0 | N124: 0 | O124: 0 | P124: 0
B125: 93 | C125: =IF(LEN('ročni vnos'!C123)>0,'ročni vnos'!C123,"") ->  | D125: ='ročni vnos'!D123 -> 0 | E125: ='ročni vnos'!E123 -> 0 | F125: ='ročni vnos'!F123*$D$30 -> 0 | G125: ='ročni vnos'!G123*$D$30 -> 0 | H125: ='ročni vnos'!H123*$D$30 -> 0 | I125: ='ročni vnos'!I123*$D$30 -> 0 | J125: ='ročni vnos'!J123*$D$30 -> 0 | K125: =+'ročni vnos'!K123 -> 0 | L125: 0 | M125: 0 | N125: 0 | O125: 0 | P125: 0
B126: 94 | C126: =IF(LEN('ročni vnos'!C124)>0,'ročni vnos'!C124,"") ->  | D126: ='ročni vnos'!D124 -> 0 | E126: ='ročni vnos'!E124 -> 0 | F126: ='ročni vnos'!F124*$D$30 -> 0 | G126: ='ročni vnos'!G124*$D$30 -> 0 | H126: ='ročni vnos'!H124*$D$30 -> 0 | I126: ='ročni vnos'!I124*$D$30 -> 0 | J126: ='ročni vnos'!J124*$D$30 -> 0 | K126: =+'ročni vnos'!K124 -> 0 | L126: 0 | M126: 0 | N126: 0 | O126: 0 | P126: 0
B127: 95 | C127: =IF(LEN('ročni vnos'!C125)>0,'ročni vnos'!C125,"") ->  | D127: ='ročni vnos'!D125 -> 0 | E127: ='ročni vnos'!E125 -> 0 | F127: ='ročni vnos'!F125*$D$30 -> 0 | G127: ='ročni vnos'!G125*$D$30 -> 0 | H127: ='ročni vnos'!H125*$D$30 -> 0 | I127: ='ročni vnos'!I125*$D$30 -> 0 | J127: ='ročni vnos'!J125*$D$30 -> 0 | K127: =+'ročni vnos'!K125 -> 0 | L127: 0 | M127: 0 | N127: 0 | O127: 0 | P127: 0
B128: 96 | C128: =IF(LEN('ročni vnos'!C126)>0,'ročni vnos'!C126,"") ->  | D128: ='ročni vnos'!D126 -> 0 | E128: ='ročni vnos'!E126 -> 0 | F128: ='ročni vnos'!F126*$D$30 -> 0 | G128: ='ročni vnos'!G126*$D$30 -> 0 | H128: ='ročni vnos'!H126*$D$30 -> 0 | I128: ='ročni vnos'!I126*$D$30 -> 0 | J128: ='ročni vnos'!J126*$D$30 -> 0 | K128: =+'ročni vnos'!K126 -> 0 | L128: 0 | M128: 0 | N128: 0 | O128: 0 | P128: 0
B129: 97 | C129: =IF(LEN('ročni vnos'!C127)>0,'ročni vnos'!C127,"") ->  | D129: ='ročni vnos'!D127 -> 0 | E129: ='ročni vnos'!E127 -> 0 | F129: ='ročni vnos'!F127*$D$30 -> 0 | G129: ='ročni vnos'!G127*$D$30 -> 0 | H129: ='ročni vnos'!H127*$D$30 -> 0 | I129: ='ročni vnos'!I127*$D$30 -> 0 | J129: ='ročni vnos'!J127*$D$30 -> 0 | K129: =+'ročni vnos'!K127 -> 0 | L129: 0 | M129: 0 | N129: 0 | O129: 0 | P129: 0
B130: 98 | C130: =IF(LEN('ročni vnos'!C128)>0,'ročni vnos'!C128,"") ->  | D130: ='ročni vnos'!D128 -> 0 | E130: ='ročni vnos'!E128 -> 0 | F130: ='ročni vnos'!F128*$D$30 -> 0 | G130: ='ročni vnos'!G128*$D$30 -> 0 | H130: ='ročni vnos'!H128*$D$30 -> 0 | I130: ='ročni vnos'!I128*$D$30 -> 0 | J130: ='ročni vnos'!J128*$D$30 -> 0 | K130: =+'ročni vnos'!K128 -> 0 | L130: 0 | M130: 0 | N130: 0 | O130: 0 | P130: 0
B131: 99 | C131: =IF(LEN('ročni vnos'!C129)>0,'ročni vnos'!C129,"") ->  | D131: ='ročni vnos'!D129 -> 0 | E131: ='ročni vnos'!E129 -> 0 | F131: ='ročni vnos'!F129*$D$30 -> 0 | G131: ='ročni vnos'!G129*$D$30 -> 0 | H131: ='ročni vnos'!H129*$D$30 -> 0 | I131: ='ročni vnos'!I129*$D$30 -> 0 | J131: ='ročni vnos'!J129*$D$30 -> 0 | K131: =+'ročni vnos'!K129 -> 0 | L131: 0 | M131: 0 | N131: 0 | O131: 0 | P131: 0
B132: 100 | C132: =IF(LEN('ročni vnos'!C130)>0,'ročni vnos'!C130,"") ->  | D132: ='ročni vnos'!D130 -> 0 | E132: ='ročni vnos'!E130 -> 0 | F132: ='ročni vnos'!F130*$D$30 -> 0 | G132: ='ročni vnos'!G130*$D$30 -> 0 | H132: ='ročni vnos'!H130*$D$30 -> 0 | I132: ='ročni vnos'!I130*$D$30 -> 0 | J132: ='ročni vnos'!J130*$D$30 -> 0 | K132: =+'ročni vnos'!K130 -> 0 | L132: 0 | M132: 0 | N132: 0 | O132: 0 | P132: 0
B133: 101 | C133: =IF(LEN('ročni vnos'!C131)>0,'ročni vnos'!C131,"") ->  | D133: ='ročni vnos'!D131 -> 0 | E133: ='ročni vnos'!E131 -> 0 | F133: ='ročni vnos'!F131*$D$30 -> 0 | G133: ='ročni vnos'!G131*$D$30 -> 0 | H133: ='ročni vnos'!H131*$D$30 -> 0 | I133: ='ročni vnos'!I131*$D$30 -> 0 | J133: ='ročni vnos'!J131*$D$30 -> 0 | K133: =+'ročni vnos'!K131 -> 0 | L133: 0 | M133: 0 | N133: 0 | O133: 0 | P133: 0
B134: 102 | C134: =IF(LEN('ročni vnos'!C132)>0,'ročni vnos'!C132,"") ->  | D134: ='ročni vnos'!D132 -> 0 | E134: ='ročni vnos'!E132 -> 0 | F134: ='ročni vnos'!F132*$D$30 -> 0 | G134: ='ročni vnos'!G132*$D$30 -> 0 | H134: ='ročni vnos'!H132*$D$30 -> 0 | I134: ='ročni vnos'!I132*$D$30 -> 0 | J134: ='ročni vnos'!J132*$D$30 -> 0 | K134: =+'ročni vnos'!K132 -> 0 | L134: 0 | M134: 0 | N134: 0 | O134: 0 | P134: 0
B135: 103 | C135: =IF(LEN('ročni vnos'!C133)>0,'ročni vnos'!C133,"") ->  | D135: ='ročni vnos'!D133 -> 0 | E135: ='ročni vnos'!E133 -> 0 | F135: ='ročni vnos'!F133*$D$30 -> 0 | G135: ='ročni vnos'!G133*$D$30 -> 0 | H135: ='ročni vnos'!H133*$D$30 -> 0 | I135: ='ročni vnos'!I133*$D$30 -> 0 | J135: ='ročni vnos'!J133*$D$30 -> 0 | K135: =+'ročni vnos'!K133 -> 0 | L135: 0 | M135: 0 | N135: 0 | O135: 0 | P135: 0
B136: 104 | C136: =IF(LEN('ročni vnos'!C134)>0,'ročni vnos'!C134,"") ->  | D136: ='ročni vnos'!D134 -> 0 | E136: ='ročni vnos'!E134 -> 0 | F136: ='ročni vnos'!F134*$D$30 -> 0 | G136: ='ročni vnos'!G134*$D$30 -> 0 | H136: ='ročni vnos'!H134*$D$30 -> 0 | I136: ='ročni vnos'!I134*$D$30 -> 0 | J136: ='ročni vnos'!J134*$D$30 -> 0 | K136: =+'ročni vnos'!K134 -> 0 | L136: 0 | M136: 0 | N136: 0 | O136: 0 | P136: 0
B137: 105 | C137: =IF(LEN('ročni vnos'!C135)>0,'ročni vnos'!C135,"") ->  | D137: ='ročni vnos'!D135 -> 0 | E137: ='ročni vnos'!E135 -> 0 | F137: ='ročni vnos'!F135*$D$30 -> 0 | G137: ='ročni vnos'!G135*$D$30 -> 0 | H137: ='ročni vnos'!H135*$D$30 -> 0 | I137: ='ročni vnos'!I135*$D$30 -> 0 | J137: ='ročni vnos'!J135*$D$30 -> 0 | K137: =+'ročni vnos'!K135 -> 0 | L137: 0 | M137: 0 | N137: 0 | O137: 0 | P137: 0
B138: 106 | C138: =IF(LEN('ročni vnos'!C136)>0,'ročni vnos'!C136,"") ->  | D138: ='ročni vnos'!D136 -> 0 | E138: ='ročni vnos'!E136 -> 0 | F138: ='ročni vnos'!F136*$D$30 -> 0 | G138: ='ročni vnos'!G136*$D$30 -> 0 | H138: ='ročni vnos'!H136*$D$30 -> 0 | I138: ='ročni vnos'!I136*$D$30 -> 0 | J138: ='ročni vnos'!J136*$D$30 -> 0 | K138: =+'ročni vnos'!K136 -> 0 | L138: 0 | M138: 0 | N138: 0 | O138: 0 | P138: 0
B139: 107 | C139: =IF(LEN('ročni vnos'!C137)>0,'ročni vnos'!C137,"") ->  | D139: ='ročni vnos'!D137 -> 0 | E139: ='ročni vnos'!E137 -> 0 | F139: ='ročni vnos'!F137*$D$30 -> 0 | G139: ='ročni vnos'!G137*$D$30 -> 0 | H139: ='ročni vnos'!H137*$D$30 -> 0 | I139: ='ročni vnos'!I137*$D$30 -> 0 | J139: ='ročni vnos'!J137*$D$30 -> 0 | K139: =+'ročni vnos'!K137 -> 0 | L139: 0 | M139: 0 | N139: 0 | O139: 0 | P139: 0
B140: 108 | C140: =IF(LEN('ročni vnos'!C138)>0,'ročni vnos'!C138,"") ->  | D140: ='ročni vnos'!D138 -> 0 | E140: ='ročni vnos'!E138 -> 0 | F140: ='ročni vnos'!F138*$D$30 -> 0 | G140: ='ročni vnos'!G138*$D$30 -> 0 | H140: ='ročni vnos'!H138*$D$30 -> 0 | I140: ='ročni vnos'!I138*$D$30 -> 0 | J140: ='ročni vnos'!J138*$D$30 -> 0 | K140: =+'ročni vnos'!K138 -> 0 | L140: 0 | M140: 0 | N140: 0 | O140: 0 | P140: 0
B141: 109 | C141: =IF(LEN('ročni vnos'!C139)>0,'ročni vnos'!C139,"") ->  | D141: ='ročni vnos'!D139 -> 0 | E141: ='ročni vnos'!E139 -> 0 | F141: ='ročni vnos'!F139*$D$30 -> 0 | G141: ='ročni vnos'!G139*$D$30 -> 0 | H141: ='ročni vnos'!H139*$D$30 -> 0 | I141: ='ročni vnos'!I139*$D$30 -> 0 | J141: ='ročni vnos'!J139*$D$30 -> 0 | K141: =+'ročni vnos'!K139 -> 0 | L141: 0 | M141: 0 | N141: 0 | O141: 0 | P141: 0
B142: 110 | C142: =IF(LEN('ročni vnos'!C140)>0,'ročni vnos'!C140,"") ->  | D142: ='ročni vnos'!D140 -> 0 | E142: ='ročni vnos'!E140 -> 0 | F142: ='ročni vnos'!F140*$D$30 -> 0 | G142: ='ročni vnos'!G140*$D$30 -> 0 | H142: ='ročni vnos'!H140*$D$30 -> 0 | I142: ='ročni vnos'!I140*$D$30 -> 0 | J142: ='ročni vnos'!J140*$D$30 -> 0 | K142: =+'ročni vnos'!K140 -> 0 | L142: 0 | M142: 0 | N142: 0 | O142: 0 | P142: 0
B143: 111 | C143: =IF(LEN('ročni vnos'!C141)>0,'ročni vnos'!C141,"") ->  | D143: ='ročni vnos'!D141 -> 0 | E143: ='ročni vnos'!E141 -> 0 | F143: ='ročni vnos'!F141*$D$30 -> 0 | G143: ='ročni vnos'!G141*$D$30 -> 0 | H143: ='ročni vnos'!H141*$D$30 -> 0 | I143: ='ročni vnos'!I141*$D$30 -> 0 | J143: ='ročni vnos'!J141*$D$30 -> 0 | K143: =+'ročni vnos'!K141 -> 0 | L143: 0 | M143: 0 | N143: 0 | O143: 0 | P143: 0
B144: 112 | C144: =IF(LEN('ročni vnos'!C142)>0,'ročni vnos'!C142,"") ->  | D144: ='ročni vnos'!D142 -> 0 | E144: ='ročni vnos'!E142 -> 0 | F144: ='ročni vnos'!F142*$D$30 -> 0 | G144: ='ročni vnos'!G142*$D$30 -> 0 | H144: ='ročni vnos'!H142*$D$30 -> 0 | I144: ='ročni vnos'!I142*$D$30 -> 0 | J144: ='ročni vnos'!J142*$D$30 -> 0 | K144: =+'ročni vnos'!K142 -> 0 | L144: 0 | M144: 0 | N144: 0 | O144: 0 | P144: 0
B145: 113 | C145: =IF(LEN('ročni vnos'!C143)>0,'ročni vnos'!C143,"") ->  | D145: ='ročni vnos'!D143 -> 0 | E145: ='ročni vnos'!E143 -> 0 | F145: ='ročni vnos'!F143*$D$30 -> 0 | G145: ='ročni vnos'!G143*$D$30 -> 0 | H145: ='ročni vnos'!H143*$D$30 -> 0 | I145: ='ročni vnos'!I143*$D$30 -> 0 | J145: ='ročni vnos'!J143*$D$30 -> 0 | K145: =+'ročni vnos'!K143 -> 0 | L145: 0 | M145: 0 | N145: 0 | O145: 0 | P145: 0
B146: 114 | C146: =IF(LEN('ročni vnos'!C144)>0,'ročni vnos'!C144,"") ->  | D146: ='ročni vnos'!D144 -> 0 | E146: ='ročni vnos'!E144 -> 0 | F146: ='ročni vnos'!F144*$D$30 -> 0 | G146: ='ročni vnos'!G144*$D$30 -> 0 | H146: ='ročni vnos'!H144*$D$30 -> 0 | I146: ='ročni vnos'!I144*$D$30 -> 0 | J146: ='ročni vnos'!J144*$D$30 -> 0 | K146: =+'ročni vnos'!K144 -> 0 | L146: 0 | M146: 0 | N146: 0 | O146: 0 | P146: 0
B147: 115 | C147: =IF(LEN('ročni vnos'!C145)>0,'ročni vnos'!C145,"") ->  | D147: ='ročni vnos'!D145 -> 0 | E147: ='ročni vnos'!E145 -> 0 | F147: ='ročni vnos'!F145*$D$30 -> 0 | G147: ='ročni vnos'!G145*$D$30 -> 0 | H147: ='ročni vnos'!H145*$D$30 -> 0 | I147: ='ročni vnos'!I145*$D$30 -> 0 | J147: ='ročni vnos'!J145*$D$30 -> 0 | K147: =+'ročni vnos'!K145 -> 0 | L147: 0 | M147: 0 | N147: 0 | O147: 0 | P147: 0
B148: 116 | C148: =IF(LEN('ročni vnos'!C146)>0,'ročni vnos'!C146,"") ->  | D148: ='ročni vnos'!D146 -> 0 | E148: ='ročni vnos'!E146 -> 0 | F148: ='ročni vnos'!F146*$D$30 -> 0 | G148: ='ročni vnos'!G146*$D$30 -> 0 | H148: ='ročni vnos'!H146*$D$30 -> 0 | I148: ='ročni vnos'!I146*$D$30 -> 0 | J148: ='ročni vnos'!J146*$D$30 -> 0 | K148: =+'ročni vnos'!K146 -> 0 | L148: 0 | M148: 0 | N148: 0 | O148: 0 | P148: 0
B149: 117 | C149: =IF(LEN('ročni vnos'!C147)>0,'ročni vnos'!C147,"") ->  | D149: ='ročni vnos'!D147 -> 0 | E149: ='ročni vnos'!E147 -> 0 | F149: ='ročni vnos'!F147*$D$30 -> 0 | G149: ='ročni vnos'!G147*$D$30 -> 0 | H149: ='ročni vnos'!H147*$D$30 -> 0 | I149: ='ročni vnos'!I147*$D$30 -> 0 | J149: ='ročni vnos'!J147*$D$30 -> 0 | K149: =+'ročni vnos'!K147 -> 0 | L149: 0 | M149: 0 | N149: 0 | O149: 0 | P149: 0
B150: 118 | C150: =IF(LEN('ročni vnos'!C148)>0,'ročni vnos'!C148,"") ->  | D150: ='ročni vnos'!D148 -> 0 | E150: ='ročni vnos'!E148 -> 0 | F150: ='ročni vnos'!F148*$D$30 -> 0 | G150: ='ročni vnos'!G148*$D$30 -> 0 | H150: ='ročni vnos'!H148*$D$30 -> 0 | I150: ='ročni vnos'!I148*$D$30 -> 0 | J150: ='ročni vnos'!J148*$D$30 -> 0 | K150: =+'ročni vnos'!K148 -> 0 | L150: 0 | M150: 0 | N150: 0 | O150: 0 | P150: 0
B151: 119 | C151: =IF(LEN('ročni vnos'!C149)>0,'ročni vnos'!C149,"") ->  | D151: ='ročni vnos'!D149 -> 0 | E151: ='ročni vnos'!E149 -> 0 | F151: ='ročni vnos'!F149*$D$30 -> 0 | G151: ='ročni vnos'!G149*$D$30 -> 0 | H151: ='ročni vnos'!H149*$D$30 -> 0 | I151: ='ročni vnos'!I149*$D$30 -> 0 | J151: ='ročni vnos'!J149*$D$30 -> 0 | K151: =+'ročni vnos'!K149 -> 0 | L151: 0 | M151: 0 | N151: 0 | O151: 0 | P151: 0
B152: 120 | C152: =IF(LEN('ročni vnos'!C150)>0,'ročni vnos'!C150,"") ->  | D152: ='ročni vnos'!D150 -> 0 | E152: ='ročni vnos'!E150 -> 0 | F152: ='ročni vnos'!F150*$D$30 -> 0 | G152: ='ročni vnos'!G150*$D$30 -> 0 | H152: ='ročni vnos'!H150*$D$30 -> 0 | I152: ='ročni vnos'!I150*$D$30 -> 0 | J152: ='ročni vnos'!J150*$D$30 -> 0 | K152: =+'ročni vnos'!K150 -> 0 | L152: 0 | M152: 0 | N152: 0 | O152: 0 | P152: 0
B153: 121 | C153: =IF(LEN('ročni vnos'!C151)>0,'ročni vnos'!C151,"") ->  | D153: ='ročni vnos'!D151 -> 0 | E153: ='ročni vnos'!E151 -> 0 | F153: ='ročni vnos'!F151*$D$30 -> 0 | G153: ='ročni vnos'!G151*$D$30 -> 0 | H153: ='ročni vnos'!H151*$D$30 -> 0 | I153: ='ročni vnos'!I151*$D$30 -> 0 | J153: ='ročni vnos'!J151*$D$30 -> 0 | K153: =+'ročni vnos'!K151 -> 0 | L153: 0 | M153: 0 | N153: 0 | O153: 0 | P153: 0
B154: 122 | C154: =IF(LEN('ročni vnos'!C152)>0,'ročni vnos'!C152,"") ->  | D154: ='ročni vnos'!D152 -> 0 | E154: ='ročni vnos'!E152 -> 0 | F154: ='ročni vnos'!F152*$D$30 -> 0 | G154: ='ročni vnos'!G152*$D$30 -> 0 | H154: ='ročni vnos'!H152*$D$30 -> 0 | I154: ='ročni vnos'!I152*$D$30 -> 0 | J154: ='ročni vnos'!J152*$D$30 -> 0 | K154: =+'ročni vnos'!K152 -> 0 | L154: 0 | M154: 0 | N154: 0 | O154: 0 | P154: 0
B155: 123 | C155: =IF(LEN('ročni vnos'!C153)>0,'ročni vnos'!C153,"") ->  | D155: ='ročni vnos'!D153 -> 0 | E155: ='ročni vnos'!E153 -> 0 | F155: ='ročni vnos'!F153*$D$30 -> 0 | G155: ='ročni vnos'!G153*$D$30 -> 0 | H155: ='ročni vnos'!H153*$D$30 -> 0 | I155: ='ročni vnos'!I153*$D$30 -> 0 | J155: ='ročni vnos'!J153*$D$30 -> 0 | K155: =+'ročni vnos'!K153 -> 0 | L155: 0 | M155: 0 | N155: 0 | O155: 0 | P155: 0
B156: 124 | C156: =IF(LEN('ročni vnos'!C154)>0,'ročni vnos'!C154,"") ->  | D156: ='ročni vnos'!D154 -> 0 | E156: ='ročni vnos'!E154 -> 0 | F156: ='ročni vnos'!F154*$D$30 -> 0 | G156: ='ročni vnos'!G154*$D$30 -> 0 | H156: ='ročni vnos'!H154*$D$30 -> 0 | I156: ='ročni vnos'!I154*$D$30 -> 0 | J156: ='ročni vnos'!J154*$D$30 -> 0 | K156: =+'ročni vnos'!K154 -> 0 | L156: 0 | M156: 0 | N156: 0 | O156: 0 | P156: 0
B157: 125 | C157: =IF(LEN('ročni vnos'!C155)>0,'ročni vnos'!C155,"") ->  | D157: ='ročni vnos'!D155 -> 0 | E157: ='ročni vnos'!E155 -> 0 | F157: ='ročni vnos'!F155*$D$30 -> 0 | G157: ='ročni vnos'!G155*$D$30 -> 0 | H157: ='ročni vnos'!H155*$D$30 -> 0 | I157: ='ročni vnos'!I155*$D$30 -> 0 | J157: ='ročni vnos'!J155*$D$30 -> 0 | K157: =+'ročni vnos'!K155 -> 0 | L157: 0 | M157: 0 | N157: 0 | O157: 0 | P157: 0
B158: 126 | C158: =IF(LEN('ročni vnos'!C156)>0,'ročni vnos'!C156,"") ->  | D158: ='ročni vnos'!D156 -> 0 | E158: ='ročni vnos'!E156 -> 0 | F158: ='ročni vnos'!F156*$D$30 -> 0 | G158: ='ročni vnos'!G156*$D$30 -> 0 | H158: ='ročni vnos'!H156*$D$30 -> 0 | I158: ='ročni vnos'!I156*$D$30 -> 0 | J158: ='ročni vnos'!J156*$D$30 -> 0 | K158: =+'ročni vnos'!K156 -> 0 | L158: 0 | M158: 0 | N158: 0 | O158: 0 | P158: 0
B159: 127 | C159: =IF(LEN('ročni vnos'!C157)>0,'ročni vnos'!C157,"") ->  | D159: ='ročni vnos'!D157 -> 0 | E159: ='ročni vnos'!E157 -> 0 | F159: ='ročni vnos'!F157*$D$30 -> 0 | G159: ='ročni vnos'!G157*$D$30 -> 0 | H159: ='ročni vnos'!H157*$D$30 -> 0 | I159: ='ročni vnos'!I157*$D$30 -> 0 | J159: ='ročni vnos'!J157*$D$30 -> 0 | K159: =+'ročni vnos'!K157 -> 0 | L159: 0 | M159: 0 | N159: 0 | O159: 0 | P159: 0
B160: 128 | C160: =IF(LEN('ročni vnos'!C158)>0,'ročni vnos'!C158,"") ->  | D160: ='ročni vnos'!D158 -> 0 | E160: ='ročni vnos'!E158 -> 0 | F160: ='ročni vnos'!F158*$D$30 -> 0 | G160: ='ročni vnos'!G158*$D$30 -> 0 | H160: ='ročni vnos'!H158*$D$30 -> 0 | I160: ='ročni vnos'!I158*$D$30 -> 0 | J160: ='ročni vnos'!J158*$D$30 -> 0 | K160: =+'ročni vnos'!K158 -> 0 | L160: 0 | M160: 0 | N160: 0 | O160: 0 | P160: 0
B161: 129 | C161: =IF(LEN('ročni vnos'!C159)>0,'ročni vnos'!C159,"") ->  | D161: ='ročni vnos'!D159 -> 0 | E161: ='ročni vnos'!E159 -> 0 | F161: ='ročni vnos'!F159*$D$30 -> 0 | G161: ='ročni vnos'!G159*$D$30 -> 0 | H161: ='ročni vnos'!H159*$D$30 -> 0 | I161: ='ročni vnos'!I159*$D$30 -> 0 | J161: ='ročni vnos'!J159*$D$30 -> 0 | K161: =+'ročni vnos'!K159 -> 0 | L161: 0 | M161: 0 | N161: 0 | O161: 0 | P161: 0
B162: 130 | C162: =IF(LEN('ročni vnos'!C160)>0,'ročni vnos'!C160,"") ->  | D162: ='ročni vnos'!D160 -> 0 | E162: ='ročni vnos'!E160 -> 0 | F162: ='ročni vnos'!F160*$D$30 -> 0 | G162: ='ročni vnos'!G160*$D$30 -> 0 | H162: ='ročni vnos'!H160*$D$30 -> 0 | I162: ='ročni vnos'!I160*$D$30 -> 0 | J162: ='ročni vnos'!J160*$D$30 -> 0 | K162: =+'ročni vnos'!K160 -> 0 | L162: =SUM(E162:K162) -> 0 | M162: =+D162*L162 -> 0 | N162: =D162*E162 -> 0 | O162: =(F162+G162+H162+I162+J162)*D162 -> 0 | P162: =+D162*K162 -> 0 | Q162: =IF(SUM(E162:K162)>30%,"VSOTA MORA BITI MANJŠA ALI ENAKA 30%","") -> 
B163: 131 | C163: =IF(LEN('ročni vnos'!C161)>0,'ročni vnos'!C161,"") ->  | D163: ='ročni vnos'!D161 -> 0 | E163: ='ročni vnos'!E161 -> 0 | F163: ='ročni vnos'!F161*$D$30 -> 0 | G163: ='ročni vnos'!G161*$D$30 -> 0 | H163: ='ročni vnos'!H161*$D$30 -> 0 | I163: ='ročni vnos'!I161*$D$30 -> 0 | J163: ='ročni vnos'!J161*$D$30 -> 0 | K163: =+'ročni vnos'!K161 -> 0 | L163: 0 | M163: 0 | N163: 0 | O163: 0 | P163: 0
B164: 132 | C164: =IF(LEN('ročni vnos'!C162)>0,'ročni vnos'!C162,"") ->  | D164: ='ročni vnos'!D162 -> 0 | E164: ='ročni vnos'!E162 -> 0 | F164: ='ročni vnos'!F162*$D$30 -> 0 | G164: ='ročni vnos'!G162*$D$30 -> 0 | H164: ='ročni vnos'!H162*$D$30 -> 0 | I164: ='ročni vnos'!I162*$D$30 -> 0 | J164: ='ročni vnos'!J162*$D$30 -> 0 | K164: =+'ročni vnos'!K162 -> 0 | L164: 0 | M164: 0 | N164: 0 | O164: 0 | P164: 0
B165: 133 | C165: =IF(LEN('ročni vnos'!C163)>0,'ročni vnos'!C163,"") ->  | D165: ='ročni vnos'!D163 -> 0 | E165: ='ročni vnos'!E163 -> 0 | F165: ='ročni vnos'!F163*$D$30 -> 0 | G165: ='ročni vnos'!G163*$D$30 -> 0 | H165: ='ročni vnos'!H163*$D$30 -> 0 | I165: ='ročni vnos'!I163*$D$30 -> 0 | J165: ='ročni vnos'!J163*$D$30 -> 0 | K165: =+'ročni vnos'!K163 -> 0 | L165: 0 | M165: 0 | N165: 0 | O165: 0 | P165: 0
B166: 134 | C166: =IF(LEN('ročni vnos'!C164)>0,'ročni vnos'!C164,"") ->  | D166: ='ročni vnos'!D164 -> 0 | E166: ='ročni vnos'!E164 -> 0 | F166: ='ročni vnos'!F164*$D$30 -> 0 | G166: ='ročni vnos'!G164*$D$30 -> 0 | H166: ='ročni vnos'!H164*$D$30 -> 0 | I166: ='ročni vnos'!I164*$D$30 -> 0 | J166: ='ročni vnos'!J164*$D$30 -> 0 | K166: =+'ročni vnos'!K164 -> 0 | L166: 0 | M166: 0 | N166: 0 | O166: 0 | P166: 0
B167: 135 | C167: =IF(LEN('ročni vnos'!C165)>0,'ročni vnos'!C165,"") ->  | D167: ='ročni vnos'!D165 -> 0 | E167: ='ročni vnos'!E165 -> 0 | F167: ='ročni vnos'!F165*$D$30 -> 0 | G167: ='ročni vnos'!G165*$D$30 -> 0 | H167: ='ročni vnos'!H165*$D$30 -> 0 | I167: ='ročni vnos'!I165*$D$30 -> 0 | J167: ='ročni vnos'!J165*$D$30 -> 0 | K167: =+'ročni vnos'!K165 -> 0 | L167: 0 | M167: 0 | N167: 0 | O167: 0 | P167: 0
B168: 136 | C168: =IF(LEN('ročni vnos'!C166)>0,'ročni vnos'!C166,"") ->  | D168: ='ročni vnos'!D166 -> 0 | E168: ='ročni vnos'!E166 -> 0 | F168: ='ročni vnos'!F166*$D$30 -> 0 | G168: ='ročni vnos'!G166*$D$30 -> 0 | H168: ='ročni vnos'!H166*$D$30 -> 0 | I168: ='ročni vnos'!I166*$D$30 -> 0 | J168: ='ročni vnos'!J166*$D$30 -> 0 | K168: =+'ročni vnos'!K166 -> 0 | L168: 0 | M168: 0 | N168: 0 | O168: 0 | P168: 0
B169: 137 | C169: =IF(LEN('ročni vnos'!C167)>0,'ročni vnos'!C167,"") ->  | D169: ='ročni vnos'!D167 -> 0 | E169: ='ročni vnos'!E167 -> 0 | F169: ='ročni vnos'!F167*$D$30 -> 0 | G169: ='ročni vnos'!G167*$D$30 -> 0 | H169: ='ročni vnos'!H167*$D$30 -> 0 | I169: ='ročni vnos'!I167*$D$30 -> 0 | J169: ='ročni vnos'!J167*$D$30 -> 0 | K169: =+'ročni vnos'!K167 -> 0 | L169: 0 | M169: 0 | N169: 0 | O169: 0 | P169: 0
B170: 138 | C170: =IF(LEN('ročni vnos'!C168)>0,'ročni vnos'!C168,"") ->  | D170: ='ročni vnos'!D168 -> 0 | E170: ='ročni vnos'!E168 -> 0 | F170: ='ročni vnos'!F168*$D$30 -> 0 | G170: ='ročni vnos'!G168*$D$30 -> 0 | H170: ='ročni vnos'!H168*$D$30 -> 0 | I170: ='ročni vnos'!I168*$D$30 -> 0 | J170: ='ročni vnos'!J168*$D$30 -> 0 | K170: =+'ročni vnos'!K168 -> 0 | L170: 0 | M170: 0 | N170: 0 | O170: 0 | P170: 0
B171: 139 | C171: =IF(LEN('ročni vnos'!C169)>0,'ročni vnos'!C169,"") ->  | D171: ='ročni vnos'!D169 -> 0 | E171: ='ročni vnos'!E169 -> 0 | F171: ='ročni vnos'!F169*$D$30 -> 0 | G171: ='ročni vnos'!G169*$D$30 -> 0 | H171: ='ročni vnos'!H169*$D$30 -> 0 | I171: ='ročni vnos'!I169*$D$30 -> 0 | J171: ='ročni vnos'!J169*$D$30 -> 0 | K171: =+'ročni vnos'!K169 -> 0 | L171: 0 | M171: 0 | N171: 0 | O171: 0 | P171: 0
B172: 140 | C172: =IF(LEN('ročni vnos'!C170)>0,'ročni vnos'!C170,"") ->  | D172: ='ročni vnos'!D170 -> 0 | E172: ='ročni vnos'!E170 -> 0 | F172: ='ročni vnos'!F170*$D$30 -> 0 | G172: ='ročni vnos'!G170*$D$30 -> 0 | H172: ='ročni vnos'!H170*$D$30 -> 0 | I172: ='ročni vnos'!I170*$D$30 -> 0 | J172: ='ročni vnos'!J170*$D$30 -> 0 | K172: =+'ročni vnos'!K170 -> 0 | L172: 0 | M172: 0 | N172: 0 | O172: 0 | P172: 0
B173: 141 | C173: =IF(LEN('ročni vnos'!C171)>0,'ročni vnos'!C171,"") ->  | D173: ='ročni vnos'!D171 -> 0 | E173: ='ročni vnos'!E171 -> 0 | F173: ='ročni vnos'!F171*$D$30 -> 0 | G173: ='ročni vnos'!G171*$D$30 -> 0 | H173: ='ročni vnos'!H171*$D$30 -> 0 | I173: ='ročni vnos'!I171*$D$30 -> 0 | J173: ='ročni vnos'!J171*$D$30 -> 0 | K173: =+'ročni vnos'!K171 -> 0 | L173: 0 | M173: 0 | N173: 0 | O173: 0 | P173: 0
B174: 142 | C174: =IF(LEN('ročni vnos'!C172)>0,'ročni vnos'!C172,"") ->  | D174: ='ročni vnos'!D172 -> 0 | E174: ='ročni vnos'!E172 -> 0 | F174: ='ročni vnos'!F172*$D$30 -> 0 | G174: ='ročni vnos'!G172*$D$30 -> 0 | H174: ='ročni vnos'!H172*$D$30 -> 0 | I174: ='ročni vnos'!I172*$D$30 -> 0 | J174: ='ročni vnos'!J172*$D$30 -> 0 | K174: =+'ročni vnos'!K172 -> 0 | L174: 0 | M174: 0 | N174: 0 | O174: 0 | P174: 0
B175: 143 | C175: =IF(LEN('ročni vnos'!C173)>0,'ročni vnos'!C173,"") ->  | D175: ='ročni vnos'!D173 -> 0 | E175: ='ročni vnos'!E173 -> 0 | F175: ='ročni vnos'!F173*$D$30 -> 0 | G175: ='ročni vnos'!G173*$D$30 -> 0 | H175: ='ročni vnos'!H173*$D$30 -> 0 | I175: ='ročni vnos'!I173*$D$30 -> 0 | J175: ='ročni vnos'!J173*$D$30 -> 0 | K175: =+'ročni vnos'!K173 -> 0 | L175: 0 | M175: 0 | N175: 0 | O175: 0 | P175: 0
B176: 144 | C176: =IF(LEN('ročni vnos'!C174)>0,'ročni vnos'!C174,"") ->  | D176: ='ročni vnos'!D174 -> 0 | E176: ='ročni vnos'!E174 -> 0 | F176: ='ročni vnos'!F174*$D$30 -> 0 | G176: ='ročni vnos'!G174*$D$30 -> 0 | H176: ='ročni vnos'!H174*$D$30 -> 0 | I176: ='ročni vnos'!I174*$D$30 -> 0 | J176: ='ročni vnos'!J174*$D$30 -> 0 | K176: =+'ročni vnos'!K174 -> 0 | L176: 0 | M176: 0 | N176: 0 | O176: 0 | P176: 0
B177: 145 | C177: =IF(LEN('ročni vnos'!C175)>0,'ročni vnos'!C175,"") ->  | D177: ='ročni vnos'!D175 -> 0 | E177: ='ročni vnos'!E175 -> 0 | F177: ='ročni vnos'!F175*$D$30 -> 0 | G177: ='ročni vnos'!G175*$D$30 -> 0 | H177: ='ročni vnos'!H175*$D$30 -> 0 | I177: ='ročni vnos'!I175*$D$30 -> 0 | J177: ='ročni vnos'!J175*$D$30 -> 0 | K177: =+'ročni vnos'!K175 -> 0 | L177: 0 | M177: 0 | N177: 0 | O177: 0 | P177: 0
B178: 146 | C178: =IF(LEN('ročni vnos'!C176)>0,'ročni vnos'!C176,"") ->  | D178: ='ročni vnos'!D176 -> 0 | E178: ='ročni vnos'!E176 -> 0 | F178: ='ročni vnos'!F176*$D$30 -> 0 | G178: ='ročni vnos'!G176*$D$30 -> 0 | H178: ='ročni vnos'!H176*$D$30 -> 0 | I178: ='ročni vnos'!I176*$D$30 -> 0 | J178: ='ročni vnos'!J176*$D$30 -> 0 | K178: =+'ročni vnos'!K176 -> 0 | L178: 0 | M178: 0 | N178: 0 | O178: 0 | P178: 0
B179: 147 | C179: =IF(LEN('ročni vnos'!C177)>0,'ročni vnos'!C177,"") ->  | D179: ='ročni vnos'!D177 -> 0 | E179: ='ročni vnos'!E177 -> 0 | F179: ='ročni vnos'!F177*$D$30 -> 0 | G179: ='ročni vnos'!G177*$D$30 -> 0 | H179: ='ročni vnos'!H177*$D$30 -> 0 | I179: ='ročni vnos'!I177*$D$30 -> 0 | J179: ='ročni vnos'!J177*$D$30 -> 0 | K179: =+'ročni vnos'!K177 -> 0 | L179: 0 | M179: 0 | N179: 0 | O179: 0 | P179: 0
B180: 148 | C180: =IF(LEN('ročni vnos'!C178)>0,'ročni vnos'!C178,"") ->  | D180: ='ročni vnos'!D178 -> 0 | E180: ='ročni vnos'!E178 -> 0 | F180: ='ročni vnos'!F178*$D$30 -> 0 | G180: ='ročni vnos'!G178*$D$30 -> 0 | H180: ='ročni vnos'!H178*$D$30 -> 0 | I180: ='ročni vnos'!I178*$D$30 -> 0 | J180: ='ročni vnos'!J178*$D$30 -> 0 | K180: =+'ročni vnos'!K178 -> 0 | L180: 0 | M180: 0 | N180: 0 | O180: 0 | P180: 0
B181: 149 | C181: =IF(LEN('ročni vnos'!C179)>0,'ročni vnos'!C179,"") ->  | D181: ='ročni vnos'!D179 -> 0 | E181: ='ročni vnos'!E179 -> 0 | F181: ='ročni vnos'!F179*$D$30 -> 0 | G181: ='ročni vnos'!G179*$D$30 -> 0 | H181: ='ročni vnos'!H179*$D$30 -> 0 | I181: ='ročni vnos'!I179*$D$30 -> 0 | J181: ='ročni vnos'!J179*$D$30 -> 0 | K181: =+'ročni vnos'!K179 -> 0 | L181: 0 | M181: 0 | N181: 0 | O181: 0 | P181: 0
B182: 150 | C182: =IF(LEN('ročni vnos'!C180)>0,'ročni vnos'!C180,"") ->  | D182: ='ročni vnos'!D180 -> 0 | E182: ='ročni vnos'!E180 -> 0 | F182: ='ročni vnos'!F180*$D$30 -> 0 | G182: ='ročni vnos'!G180*$D$30 -> 0 | H182: ='ročni vnos'!H180*$D$30 -> 0 | I182: ='ročni vnos'!I180*$D$30 -> 0 | J182: ='ročni vnos'!J180*$D$30 -> 0 | K182: =+'ročni vnos'!K180 -> 0 | L182: 0 | M182: 0 | N182: 0 | O182: 0 | P182: 0
B183: 151 | C183: =IF(LEN('ročni vnos'!C181)>0,'ročni vnos'!C181,"") ->  | D183: ='ročni vnos'!D181 -> 0 | E183: ='ročni vnos'!E181 -> 0 | F183: ='ročni vnos'!F181*$D$30 -> 0 | G183: ='ročni vnos'!G181*$D$30 -> 0 | H183: ='ročni vnos'!H181*$D$30 -> 0 | I183: ='ročni vnos'!I181*$D$30 -> 0 | J183: ='ročni vnos'!J181*$D$30 -> 0 | K183: =+'ročni vnos'!K181 -> 0 | L183: 0 | M183: 0 | N183: 0 | O183: 0 | P183: 0
B184: 152 | C184: =IF(LEN('ročni vnos'!C182)>0,'ročni vnos'!C182,"") ->  | D184: ='ročni vnos'!D182 -> 0 | E184: ='ročni vnos'!E182 -> 0 | F184: ='ročni vnos'!F182*$D$30 -> 0 | G184: ='ročni vnos'!G182*$D$30 -> 0 | H184: ='ročni vnos'!H182*$D$30 -> 0 | I184: ='ročni vnos'!I182*$D$30 -> 0 | J184: ='ročni vnos'!J182*$D$30 -> 0 | K184: =+'ročni vnos'!K182 -> 0 | L184: 0 | M184: 0 | N184: 0 | O184: 0 | P184: 0
B185: 153 | C185: =IF(LEN('ročni vnos'!C183)>0,'ročni vnos'!C183,"") ->  | D185: ='ročni vnos'!D183 -> 0 | E185: ='ročni vnos'!E183 -> 0 | F185: ='ročni vnos'!F183*$D$30 -> 0 | G185: ='ročni vnos'!G183*$D$30 -> 0 | H185: ='ročni vnos'!H183*$D$30 -> 0 | I185: ='ročni vnos'!I183*$D$30 -> 0 | J185: ='ročni vnos'!J183*$D$30 -> 0 | K185: =+'ročni vnos'!K183 -> 0 | L185: 0 | M185: 0 | N185: 0 | O185: 0 | P185: 0
B186: 154 | C186: =IF(LEN('ročni vnos'!C184)>0,'ročni vnos'!C184,"") ->  | D186: ='ročni vnos'!D184 -> 0 | E186: ='ročni vnos'!E184 -> 0 | F186: ='ročni vnos'!F184*$D$30 -> 0 | G186: ='ročni vnos'!G184*$D$30 -> 0 | H186: ='ročni vnos'!H184*$D$30 -> 0 | I186: ='ročni vnos'!I184*$D$30 -> 0 | J186: ='ročni vnos'!J184*$D$30 -> 0 | K186: =+'ročni vnos'!K184 -> 0 | L186: 0 | M186: 0 | N186: 0 | O186: 0 | P186: 0
B187: 155 | C187: =IF(LEN('ročni vnos'!C185)>0,'ročni vnos'!C185,"") ->  | D187: ='ročni vnos'!D185 -> 0 | E187: ='ročni vnos'!E185 -> 0 | F187: ='ročni vnos'!F185*$D$30 -> 0 | G187: ='ročni vnos'!G185*$D$30 -> 0 | H187: ='ročni vnos'!H185*$D$30 -> 0 | I187: ='ročni vnos'!I185*$D$30 -> 0 | J187: ='ročni vnos'!J185*$D$30 -> 0 | K187: =+'ročni vnos'!K185 -> 0 | L187: 0 | M187: 0 | N187: 0 | O187: 0 | P187: 0
B188: 156 | C188: =IF(LEN('ročni vnos'!C186)>0,'ročni vnos'!C186,"") ->  | D188: ='ročni vnos'!D186 -> 0 | E188: ='ročni vnos'!E186 -> 0 | F188: ='ročni vnos'!F186*$D$30 -> 0 | G188: ='ročni vnos'!G186*$D$30 -> 0 | H188: ='ročni vnos'!H186*$D$30 -> 0 | I188: ='ročni vnos'!I186*$D$30 -> 0 | J188: ='ročni vnos'!J186*$D$30 -> 0 | K188: =+'ročni vnos'!K186 -> 0 | L188: 0 | M188: 0 | N188: 0 | O188: 0 | P188: 0
B189: 157 | C189: =IF(LEN('ročni vnos'!C187)>0,'ročni vnos'!C187,"") ->  | D189: ='ročni vnos'!D187 -> 0 | E189: ='ročni vnos'!E187 -> 0 | F189: ='ročni vnos'!F187*$D$30 -> 0 | G189: ='ročni vnos'!G187*$D$30 -> 0 | H189: ='ročni vnos'!H187*$D$30 -> 0 | I189: ='ročni vnos'!I187*$D$30 -> 0 | J189: ='ročni vnos'!J187*$D$30 -> 0 | K189: =+'ročni vnos'!K187 -> 0 | L189: 0 | M189: 0 | N189: 0 | O189: 0 | P189: 0
B190: 158 | C190: =IF(LEN('ročni vnos'!C188)>0,'ročni vnos'!C188,"") ->  | D190: ='ročni vnos'!D188 -> 0 | E190: ='ročni vnos'!E188 -> 0 | F190: ='ročni vnos'!F188*$D$30 -> 0 | G190: ='ročni vnos'!G188*$D$30 -> 0 | H190: ='ročni vnos'!H188*$D$30 -> 0 | I190: ='ročni vnos'!I188*$D$30 -> 0 | J190: ='ročni vnos'!J188*$D$30 -> 0 | K190: =+'ročni vnos'!K188 -> 0 | L190: 0 | M190: 0 | N190: 0 | O190: 0 | P190: 0
B191: 159 | C191: =IF(LEN('ročni vnos'!C189)>0,'ročni vnos'!C189,"") ->  | D191: ='ročni vnos'!D189 -> 0 | E191: ='ročni vnos'!E189 -> 0 | F191: ='ročni vnos'!F189*$D$30 -> 0 | G191: ='ročni vnos'!G189*$D$30 -> 0 | H191: ='ročni vnos'!H189*$D$30 -> 0 | I191: ='ročni vnos'!I189*$D$30 -> 0 | J191: ='ročni vnos'!J189*$D$30 -> 0 | K191: =+'ročni vnos'!K189 -> 0 | L191: 0 | M191: 0 | N191: 0 | O191: 0 | P191: 0
B192: 160 | C192: =IF(LEN('ročni vnos'!C190)>0,'ročni vnos'!C190,"") ->  | D192: ='ročni vnos'!D190 -> 0 | E192: ='ročni vnos'!E190 -> 0 | F192: ='ročni vnos'!F190*$D$30 -> 0 | G192: ='ročni vnos'!G190*$D$30 -> 0 | H192: ='ročni vnos'!H190*$D$30 -> 0 | I192: ='ročni vnos'!I190*$D$30 -> 0 | J192: ='ročni vnos'!J190*$D$30 -> 0 | K192: =+'ročni vnos'!K190 -> 0 | L192: 0 | M192: 0 | N192: 0 | O192: 0 | P192: 0
B193: 161 | C193: =IF(LEN('ročni vnos'!C191)>0,'ročni vnos'!C191,"") ->  | D193: ='ročni vnos'!D191 -> 0 | E193: ='ročni vnos'!E191 -> 0 | F193: ='ročni vnos'!F191*$D$30 -> 0 | G193: ='ročni vnos'!G191*$D$30 -> 0 | H193: ='ročni vnos'!H191*$D$30 -> 0 | I193: ='ročni vnos'!I191*$D$30 -> 0 | J193: ='ročni vnos'!J191*$D$30 -> 0 | K193: =+'ročni vnos'!K191 -> 0 | L193: 0 | M193: 0 | N193: 0 | O193: 0 | P193: 0
B194: 162 | C194: =IF(LEN('ročni vnos'!C192)>0,'ročni vnos'!C192,"") ->  | D194: ='ročni vnos'!D192 -> 0 | E194: ='ročni vnos'!E192 -> 0 | F194: ='ročni vnos'!F192*$D$30 -> 0 | G194: ='ročni vnos'!G192*$D$30 -> 0 | H194: ='ročni vnos'!H192*$D$30 -> 0 | I194: ='ročni vnos'!I192*$D$30 -> 0 | J194: ='ročni vnos'!J192*$D$30 -> 0 | K194: =+'ročni vnos'!K192 -> 0 | L194: 0 | M194: 0 | N194: 0 | O194: 0 | P194: 0
B195: 163 | C195: =IF(LEN('ročni vnos'!C193)>0,'ročni vnos'!C193,"") ->  | D195: ='ročni vnos'!D193 -> 0 | E195: ='ročni vnos'!E193 -> 0 | F195: ='ročni vnos'!F193*$D$30 -> 0 | G195: ='ročni vnos'!G193*$D$30 -> 0 | H195: ='ročni vnos'!H193*$D$30 -> 0 | I195: ='ročni vnos'!I193*$D$30 -> 0 | J195: ='ročni vnos'!J193*$D$30 -> 0 | K195: =+'ročni vnos'!K193 -> 0 | L195: 0 | M195: 0 | N195: 0 | O195: 0 | P195: 0
B196: 164 | C196: =IF(LEN('ročni vnos'!C194)>0,'ročni vnos'!C194,"") ->  | D196: ='ročni vnos'!D194 -> 0 | E196: ='ročni vnos'!E194 -> 0 | F196: ='ročni vnos'!F194*$D$30 -> 0 | G196: ='ročni vnos'!G194*$D$30 -> 0 | H196: ='ročni vnos'!H194*$D$30 -> 0 | I196: ='ročni vnos'!I194*$D$30 -> 0 | J196: ='ročni vnos'!J194*$D$30 -> 0 | K196: =+'ročni vnos'!K194 -> 0 | L196: 0 | M196: 0 | N196: 0 | O196: 0 | P196: 0
B197: 165 | C197: =IF(LEN('ročni vnos'!C195)>0,'ročni vnos'!C195,"") ->  | D197: ='ročni vnos'!D195 -> 0 | E197: ='ročni vnos'!E195 -> 0 | F197: ='ročni vnos'!F195*$D$30 -> 0 | G197: ='ročni vnos'!G195*$D$30 -> 0 | H197: ='ročni vnos'!H195*$D$30 -> 0 | I197: ='ročni vnos'!I195*$D$30 -> 0 | J197: ='ročni vnos'!J195*$D$30 -> 0 | K197: =+'ročni vnos'!K195 -> 0 | L197: 0 | M197: 0 | N197: 0 | O197: 0 | P197: 0
B198: 166 | C198: =IF(LEN('ročni vnos'!C196)>0,'ročni vnos'!C196,"") ->  | D198: ='ročni vnos'!D196 -> 0 | E198: ='ročni vnos'!E196 -> 0 | F198: ='ročni vnos'!F196*$D$30 -> 0 | G198: ='ročni vnos'!G196*$D$30 -> 0 | H198: ='ročni vnos'!H196*$D$30 -> 0 | I198: ='ročni vnos'!I196*$D$30 -> 0 | J198: ='ročni vnos'!J196*$D$30 -> 0 | K198: =+'ročni vnos'!K196 -> 0 | L198: 0 | M198: 0 | N198: 0 | O198: 0 | P198: 0
B199: 167 | C199: =IF(LEN('ročni vnos'!C197)>0,'ročni vnos'!C197,"") ->  | D199: ='ročni vnos'!D197 -> 0 | E199: ='ročni vnos'!E197 -> 0 | F199: ='ročni vnos'!F197*$D$30 -> 0 | G199: ='ročni vnos'!G197*$D$30 -> 0 | H199: ='ročni vnos'!H197*$D$30 -> 0 | I199: ='ročni vnos'!I197*$D$30 -> 0 | J199: ='ročni vnos'!J197*$D$30 -> 0 | K199: =+'ročni vnos'!K197 -> 0 | L199: 0 | M199: 0 | N199: 0 | O199: 0 | P199: 0
B200: 168 | C200: =IF(LEN('ročni vnos'!C198)>0,'ročni vnos'!C198,"") ->  | D200: ='ročni vnos'!D198 -> 0 | E200: ='ročni vnos'!E198 -> 0 | F200: ='ročni vnos'!F198*$D$30 -> 0 | G200: ='ročni vnos'!G198*$D$30 -> 0 | H200: ='ročni vnos'!H198*$D$30 -> 0 | I200: ='ročni vnos'!I198*$D$30 -> 0 | J200: ='ročni vnos'!J198*$D$30 -> 0 | K200: =+'ročni vnos'!K198 -> 0 | L200: 0 | M200: 0 | N200: 0 | O200: 0 | P200: 0
B201: 169 | C201: =IF(LEN('ročni vnos'!C199)>0,'ročni vnos'!C199,"") ->  | D201: ='ročni vnos'!D199 -> 0 | E201: ='ročni vnos'!E199 -> 0 | F201: ='ročni vnos'!F199*$D$30 -> 0 | G201: ='ročni vnos'!G199*$D$30 -> 0 | H201: ='ročni vnos'!H199*$D$30 -> 0 | I201: ='ročni vnos'!I199*$D$30 -> 0 | J201: ='ročni vnos'!J199*$D$30 -> 0 | K201: =+'ročni vnos'!K199 -> 0 | L201: 0 | M201: 0 | N201: 0 | O201: 0 | P201: 0
B202: 170 | C202: =IF(LEN('ročni vnos'!C200)>0,'ročni vnos'!C200,"") ->  | D202: ='ročni vnos'!D200 -> 0 | E202: ='ročni vnos'!E200 -> 0 | F202: ='ročni vnos'!F200*$D$30 -> 0 | G202: ='ročni vnos'!G200*$D$30 -> 0 | H202: ='ročni vnos'!H200*$D$30 -> 0 | I202: ='ročni vnos'!I200*$D$30 -> 0 | J202: ='ročni vnos'!J200*$D$30 -> 0 | K202: =+'ročni vnos'!K200 -> 0 | L202: 0 | M202: 0 | N202: 0 | O202: 0 | P202: 0
B203: 171 | C203: =IF(LEN('ročni vnos'!C201)>0,'ročni vnos'!C201,"") ->  | D203: ='ročni vnos'!D201 -> 0 | E203: ='ročni vnos'!E201 -> 0 | F203: ='ročni vnos'!F201*$D$30 -> 0 | G203: ='ročni vnos'!G201*$D$30 -> 0 | H203: ='ročni vnos'!H201*$D$30 -> 0 | I203: ='ročni vnos'!I201*$D$30 -> 0 | J203: ='ročni vnos'!J201*$D$30 -> 0 | K203: =+'ročni vnos'!K201 -> 0 | L203: 0 | M203: 0 | N203: 0 | O203: 0 | P203: 0
B204: 172 | C204: =IF(LEN('ročni vnos'!C202)>0,'ročni vnos'!C202,"") ->  | D204: ='ročni vnos'!D202 -> 0 | E204: ='ročni vnos'!E202 -> 0 | F204: ='ročni vnos'!F202*$D$30 -> 0 | G204: ='ročni vnos'!G202*$D$30 -> 0 | H204: ='ročni vnos'!H202*$D$30 -> 0 | I204: ='ročni vnos'!I202*$D$30 -> 0 | J204: ='ročni vnos'!J202*$D$30 -> 0 | K204: =+'ročni vnos'!K202 -> 0 | L204: 0 | M204: 0 | N204: 0 | O204: 0 | P204: 0
B205: 173 | C205: =IF(LEN('ročni vnos'!C203)>0,'ročni vnos'!C203,"") ->  | D205: ='ročni vnos'!D203 -> 0 | E205: ='ročni vnos'!E203 -> 0 | F205: ='ročni vnos'!F203*$D$30 -> 0 | G205: ='ročni vnos'!G203*$D$30 -> 0 | H205: ='ročni vnos'!H203*$D$30 -> 0 | I205: ='ročni vnos'!I203*$D$30 -> 0 | J205: ='ročni vnos'!J203*$D$30 -> 0 | K205: =+'ročni vnos'!K203 -> 0 | L205: 0 | M205: 0 | N205: 0 | O205: 0 | P205: 0
B206: 174 | C206: =IF(LEN('ročni vnos'!C204)>0,'ročni vnos'!C204,"") ->  | D206: ='ročni vnos'!D204 -> 0 | E206: ='ročni vnos'!E204 -> 0 | F206: ='ročni vnos'!F204*$D$30 -> 0 | G206: ='ročni vnos'!G204*$D$30 -> 0 | H206: ='ročni vnos'!H204*$D$30 -> 0 | I206: ='ročni vnos'!I204*$D$30 -> 0 | J206: ='ročni vnos'!J204*$D$30 -> 0 | K206: =+'ročni vnos'!K204 -> 0 | L206: 0 | M206: 0 | N206: 0 | O206: 0 | P206: 0
B207: 175 | C207: =IF(LEN('ročni vnos'!C205)>0,'ročni vnos'!C205,"") ->  | D207: ='ročni vnos'!D205 -> 0 | E207: ='ročni vnos'!E205 -> 0 | F207: ='ročni vnos'!F205*$D$30 -> 0 | G207: ='ročni vnos'!G205*$D$30 -> 0 | H207: ='ročni vnos'!H205*$D$30 -> 0 | I207: ='ročni vnos'!I205*$D$30 -> 0 | J207: ='ročni vnos'!J205*$D$30 -> 0 | K207: =+'ročni vnos'!K205 -> 0 | L207: 0 | M207: 0 | N207: 0 | O207: 0 | P207: 0
B208: 176 | C208: =IF(LEN('ročni vnos'!C206)>0,'ročni vnos'!C206,"") ->  | D208: ='ročni vnos'!D206 -> 0 | E208: ='ročni vnos'!E206 -> 0 | F208: ='ročni vnos'!F206*$D$30 -> 0 | G208: ='ročni vnos'!G206*$D$30 -> 0 | H208: ='ročni vnos'!H206*$D$30 -> 0 | I208: ='ročni vnos'!I206*$D$30 -> 0 | J208: ='ročni vnos'!J206*$D$30 -> 0 | K208: =+'ročni vnos'!K206 -> 0 | L208: 0 | M208: 0 | N208: 0 | O208: 0 | P208: 0
... 823 more rows

Sheet fiks sredstva za nadomešč.
C1: Izplačilo delovne uspešnosti za | D1: ='ročni vnos'!D1 -> januar | E1: ='ročni vnos'!E1 -> 2026
C2: Šifra proračunskega uporabnika: | D2: =IF(LEN('ročni vnos'!D2)>0,'ročni vnos'!D2,"") -> 1234
C3: Organizacijska enota: | D3: =IF(LEN('ročni vnos'!D3)>0,'ročni vnos'!D3,"") -> Sektor za splošne zadeve
C5: Določitev skupnega obsega sredstev za delovno uspešnost - za delitev po kriterijih (brez sredstev projektov)
C6: Masa osnovnih plač | D6: ='ročni vnos'!D6 -> 55970.04
C7: Odstotek osnovnih plač | D7: ='ročni vnos'!D7 -> 0.02
C8: Masa sredstev iz osnovnih plač za DU | D8: =+D6*D7 -> 1119.4008
C10: Prihranki iz naslova odsotnosti JU ali nezasedenih delovnih mest | D10: ='ročni vnos'!D10 -> 4000
C11: Odstotek prihrankov za delitev | D11: ='ročni vnos'!D11 -> 0.5
C12: Masa sredstev za DU iz prihrankov | D12: =+D10*D11 -> 2000
C14: Nerazdeljena sredstva iz prejšnjega meseca | D14: ='ročni vnos'!D14 -> 100
C16: Razpoložljivi obseg sredstev za DU | D16: =+D8+D12+D14 -> 3219.4008
C17: Določen obseg mase za DU | D17: =+'ročni vnos'!D17 -> 3219.4
C19: Določitev mase ločeno za nadomeščanje in ločeno za nadpovprečne rezultate
C20: Določitev mase za nadomeščanje | D20: 2000 | E20: ← | F20: =IF(D20>D17,"ZA NADOMEŠČANJE ŽELITE RAZDELITI VEČ SREDSTEV, KOT JIH JE DOLOČENO ZA DELITEV","") -> 
C21: Razlika mase za nadpovprečne rezultate | D21: =+D17-D20 -> 1219.4 | F21: =IF(D20>D17,"ZMANJŠAJTE VPISANO VREDNOST ZA NADOMEŠČANJE","") -> 
C23: Razdelitev sredstev za delovno uspešnost glede na vpisane odstotke (brez sredstev projektov) - kontrola
C24: Masa sredstev za delovno uspešnost | D24: =D17 -> 3219.4
C25: Razdeljena masa za delovno uspešnost | D25: =SUM(N38:O1036) -> 3219.4
C26: Razlika | D26: =+D24-D25 -> 0
C28: Razdelitev sredstev glede na vpisane odstotke (iz vseh virov sredstev)
C29: Razdeljena masa - nadomeščanje | D29: =SUM(N38:N1036) -> 2000 | F29: =IF(D29>D17,"RAZDELITI ŽELITE VEČ SREDSTEV PO KRITERIJU ZA NAMEN NADOMEŠČANJA, KOT JIH JE NA VOLJO ZA VSO DU ","") ->  | L29: =IF(L31>30%,"VSAJ EN SKUPNI ODSTOTEK ZA DU JE VEČJI OD 30 %.","") -> 
C30: Razdeljena masa - nadpovprečni rezultati | D30: =SUM(O38:O1036) -> 1219.4 | F30: =IF(D29>D17,"POTREBEN JE POPRAVEK ODSTOTKOV NA PRVEM LISTU","") ->  | L30: =IF(L31>30%,"UREDITE VREDNOSTI NA ZAVIHKU 'ROČNI VNOS'.","") -> 
C31: Razdeljena masa - projekti | D31: =SUM(P38:P1036) -> 310.5789 | L31: =MAX(L38:L1036) -> 0.1727156083
C32: Skupaj | D32: =SUM(D29:D31) -> 3529.9789
C34: Korekcijski faktor - nadomeščanje | D34: =D20/SUM('ročni vnos'!N31:'ročni vnos'!N1029) -> 0.7894871886
C35: Korekcijski faktor - nadpovprečni rezultati | D35: =D21/SUM('ročni vnos'!O31:'ročni vnos'!O1029) -> 0.7409085286
C37: Javni uslužbenec | D37: Osnovna plača | E37: Opravljanje dodatnega dela ali večji obseg dela | F37: Kakovost | G37: Natančnost | H37: Samostojnost | I37: Obseg dela | J37: Učinkovitost dela | K37: Projekti | L37: Skupni odstotek osnovne plače za DU | M37: Delovna uspešnost | N37: Delovna uspešnost - nadomeščanje | O37: Delovna uspešnost - nadpovprečni rez. | P37: Delovna uspešnost - projekti | Q37: Kontrola
B38: 1 | C38: =IF(LEN('ročni vnos'!C31)>0,'ročni vnos'!C31,"") -> Ana Novak | D38: ='ročni vnos'!D31 -> 1330.26 | E38: ='ročni vnos'!E31*$D$34 -> 0 | F38: ='ročni vnos'!F31*$D$35 -> 0 | G38: ='ročni vnos'!G31*$D$35 -> 0.02222725586 | H38: ='ročni vnos'!H31*$D$35 -> 0 | I38: ='ročni vnos'!I31*$D$35 -> 0 | J38: ='ročni vnos'!J31*$D$35 -> 0 | K38: ='ročni vnos'!K31 -> 0.02 | L38: =SUM(E38:K38) -> 0.04222725586 | M38: =+D38*L38 -> 56.17322938 | N38: =D38*E38 -> 0 | O38: =(F38+G38+H38+I38+J38)*D38 -> 29.56802938 | P38: =+D38*K38 -> 26.6052 | Q38: =IF(SUM(E38:K38)>30%,"VSOTA MORA BITI MANJŠA ALI ENAKA 30%","") -> 
B39: 2 | C39: =IF(LEN('ročni vnos'!C32)>0,'ročni vnos'!C32,"") -> Marko Kovač | D39: ='ročni vnos'!D32 -> 1411.28 | E39: ='ročni vnos'!E32*$D$34 -> 0.03947435943 | F39: ='ročni vnos'!F32*$D$35 -> 0 | G39: ='ročni vnos'!G32*$D$35 -> 0.03704542643 | H39: ='ročni vnos'!H32*$D$35 -> 0 | I39: ='ročni vnos'!I32*$D$35 -> 0 | J39: ='ročni vnos'!J32*$D$35 -> 0 | K39: ='ročni vnos'!K32 -> 0 | L39: =SUM(E39:K39) -> 0.07651978586 | M39: =+D39*L39 -> 107.9908434 | N39: =D39*E39 -> 55.70937398 | O39: =(F39+G39+H39+I39+J39)*D39 -> 52.28146941 | P39: =+D39*K39 -> 0 | Q39: =IF(SUM(E39:K39)>30%,"VSOTA MORA BITI MANJŠA ALI ENAKA 30%","") -> 
B40: 3 | C40: =IF(LEN('ročni vnos'!C33)>0,'ročni vnos'!C33,"") -> Maja Horvat | D40: ='ročni vnos'!D33 -> 1477.72 | E40: ='ročni vnos'!E33*$D$34 -> 0.03947435943 | F40: ='ročni vnos'!F33*$D$35 -> 0 | G40: ='ročni vnos'!G33*$D$35 -> 0 | H40: ='ročni vnos'!H33*$D$35 -> 0 | I40: ='ročni vnos'!I33*$D$35 -> 0 | J40: ='ročni vnos'!J33*$D$35 -> 0 | K40: ='ročni vnos'!K33 -> 0 | L40: 0.03947435943 | M40: 58.33205042 | N40: 58.33205042 | O40: 0 | P40: 0
B41: 4 | C41: =IF(LEN('ročni vnos'!C34)>0,'ročni vnos'!C34,"") -> Luka Zupan | D41: ='ročni vnos'!D34 -> 1804.47 | E41: ='ročni vnos'!E34*$D$34 -> 0.03947435943 | F41: ='ročni vnos'!F34*$D$35 -> 0 | G41: ='ročni vnos'!G34*$D$35 -> 0 | H41: ='ročni vnos'!H34*$D$35 -> 0 | I41: ='ročni vnos'!I34*$D$35 -> 0 | J41: ='ročni vnos'!J34*$D$35 -> 0 | K41: ='ročni vnos'!K34 -> 0.07 | L41: 0.1094743594 | M41: 197.5431974 | N41: 71.23029736 | O41: 0 | P41: 126.3129
B42: 5 | C42: =IF(LEN('ročni vnos'!C35)>0,'ročni vnos'!C35,"") -> Nina Potočnik | D42: ='ročni vnos'!D35 -> 1868.64 | E42: ='ročni vnos'!E35*$D$34 -> 0.03947435943 | F42: ='ročni vnos'!F35*$D$35 -> 0 | G42: ='ročni vnos'!G35*$D$35 -> 0 | H42: ='ročni vnos'!H35*$D$35 -> 0 | I42: ='ročni vnos'!I35*$D$35 -> 0 | J42: ='ročni vnos'!J35*$D$35 -> 0 | K42: ='ročni vnos'!K35 -> 0.02 | L42: 0.05947435943 | M42: 111.136167 | N42: 73.763367 | O42: 0 | P42: 37.3728
B43: 6 | C43: =IF(LEN('ročni vnos'!C36)>0,'ročni vnos'!C36,"") -> Peter Mlakar | D43: ='ročni vnos'!D36 -> 1868.64 | E43: ='ročni vnos'!E36*$D$34 -> 0 | F43: ='ročni vnos'!F36*$D$35 -> 0.01481817057 | G43: ='ročni vnos'!G36*$D$35 -> 0 | H43: ='ročni vnos'!H36*$D$35 -> 0 | I43: ='ročni vnos'!I36*$D$35 -> 0.07409085286 | J43: ='ročni vnos'!J36*$D$35 -> 0 | K43: ='ročni vnos'!K36 -> 0 | L43: 0.08890902343 | M43: 166.1389575 | N43: 0 | O43: 166.1389575 | P43: 0
B44: 7 | C44: =IF(LEN('ročni vnos'!C37)>0,'ročni vnos'!C37,"") -> Sara Vidmar | D44: ='ročni vnos'!D37 -> 2004.8 | E44: ='ročni vnos'!E37*$D$34 -> 0 | F44: ='ročni vnos'!F37*$D$35 -> 0 | G44: ='ročni vnos'!G37*$D$35 -> 0 | H44: ='ročni vnos'!H37*$D$35 -> 0 | I44: ='ročni vnos'!I37*$D$35 -> 0.07409085286 | J44: ='ročni vnos'!J37*$D$35 -> 0 | K44: ='ročni vnos'!K37 -> 0.06 | L44: 0.1340908529 | M44: 268.8253418 | N44: 0 | O44: 148.5373418 | P44: 120.288
B45: 8 | C45: =IF(LEN('ročni vnos'!C38)>0,'ročni vnos'!C38,"") -> Tomaž Kranjc | D45: ='ročni vnos'!D38 -> 2152.08 | E45: ='ročni vnos'!E38*$D$34 -> 0 | F45: ='ročni vnos'!F38*$D$35 -> 0 | G45: ='ročni vnos'!G38*$D$35 -> 0 | H45: ='ročni vnos'!H38*$D$35 -> 0.02222725586 | I45: ='ročni vnos'!I38*$D$35 -> 0 | J45: ='ročni vnos'!J38*$D$35 -> 0 | K45: ='ročni vnos'!K38 -> 0 | L45: 0.02222725586 | M45: 47.83483279 | N45: 0 | O45: 47.83483279 | P45: 0
B46: 9 | C46: =IF(LEN('ročni vnos'!C39)>0,'ročni vnos'!C39,"") -> Tina Turk | D46: ='ročni vnos'!D39 -> 2395.84 | E46: ='ročni vnos'!E39*$D$34 -> 0.1184230783 | F46: ='ročni vnos'!F39*$D$35 -> 0 | G46: ='ročni vnos'!G39*$D$35 -> 0 | H46: ='ročni vnos'!H39*$D$35 -> 0.02222725586 | I46: ='ročni vnos'!I39*$D$35 -> 0 | J46: ='ročni vnos'!J39*$D$35 -> 0 | K46: ='ročni vnos'!K39 -> 0 | L46: 0.1406503341 | M46: 336.9756966 | N46: 283.7227479 | O46: 53.25294867 | P46: 0
B47: 10 | C47: =IF(LEN('ročni vnos'!C40)>0,'ročni vnos'!C40,"") -> Matej Oblak | D47: ='ročni vnos'!D40 -> 2483.67 | E47: ='ročni vnos'!E40*$D$34 -> 0.1184230783 | F47: ='ročni vnos'!F40*$D$35 -> 0 | G47: ='ročni vnos'!G40*$D$35 -> 0.01481817057 | H47: ='ročni vnos'!H40*$D$35 -> 0.01481817057 | I47: ='ročni vnos'!I40*$D$35 -> 0 | J47: ='ročni vnos'!J40*$D$35 -> 0 | K47: ='ročni vnos'!K40 -> 0 | L47: 0.1480594194 | M47: 367.7307383 | N47: 294.1238469 | O47: 73.60689141 | P47: 0
B48: 11 | C48: =IF(LEN('ročni vnos'!C41)>0,'ročni vnos'!C41,"") -> Katarina Rozman | D48: ='ročni vnos'!D41 -> 2575 | E48: ='ročni vnos'!E41*$D$34 -> 0 | F48: ='ročni vnos'!F41*$D$35 -> 0 | G48: ='ročni vnos'!G41*$D$35 -> 0 | H48: ='ročni vnos'!H41*$D$35 -> 0.02222725586 | I48: ='ročni vnos'!I41*$D$35 -> 0 | J48: ='ročni vnos'!J41*$D$35 -> 0 | K48: ='ročni vnos'!K41 -> 0 | L48: 0.02222725586 | M48: 57.23518383 | N48: 0 | O48: 57.23518383 | P48: 0
B49: 12 | C49: =IF(LEN('ročni vnos'!C42)>0,'ročni vnos'!C42,"") -> Jan Bizjak | D49: ='ročni vnos'!D42 -> 2871.56 | E49: ='ročni vnos'!E42*$D$34 -> 0 | F49: ='ročni vnos'!F42*$D$35 -> 0.01481817057 | G49: ='ročni vnos'!G42*$D$35 -> 0 | H49: ='ročni vnos'!H42*$D$35 -> 0.02222725586 | I49: ='ročni vnos'!I42*$D$35 -> 0.1111362793 | J49: ='ročni vnos'!J42*$D$35 -> 0 | K49: ='ročni vnos'!K42 -> 0 | L49: 0.1481817057 | M49: 425.5126589 | N49: 0 | O49: 425.5126589 | P49: 0
B50: 13 | C50: =IF(LEN('ročni vnos'!C43)>0,'ročni vnos'!C43,"") -> Barbara Košir | D50: ='ročni vnos'!D43 -> 3089.57 | E50: ='ročni vnos'!E43*$D$34 -> 0 | F50: ='ročni vnos'!F43*$D$35 -> 0 | G50: ='ročni vnos'!G43*$D$35 -> 0 | H50: ='ročni vnos'!H43*$D$35 -> 0 | I50: ='ročni vnos'!I43*$D$35 -> 0 | J50: ='ročni vnos'!J43*$D$35 -> 0 | K50: ='ročni vnos'!K43 -> 0 | L50: 0 | M50: 0 | N50: 0 | O50: =(F50+G50+H50+I50+J50)*D50 -> 0 | P50: 0
B51: 14 | C51: =IF(LEN('ročni vnos'!C44)>0,'ročni vnos'!C44,"") -> Rok Petek | D51: ='ročni vnos'!D44 -> 3387.86 | E51: ='ročni vnos'!E44*$D$34 -> 0 | F51: ='ročni vnos'!F44*$D$35 -> 0 | G51: ='ročni vnos'!G44*$D$35 -> 0 | H51: ='ročni vnos'!H44*$D$35 -> 0 | I51: ='ročni vnos'!I44*$D$35 -> 0 | J51: ='ročni vnos'!J44*$D$35 -> 0 | K51: ='ročni vnos'!K44 -> 0 | L51: 0 | M51: 0 | N51: 0 | O51: 0 | P51: 0
B52: 15 | C52: =IF(LEN('ročni vnos'!C45)>0,'ročni vnos'!C45,"") -> Urška Golob | D52: ='ročni vnos'!D45 -> 3580.38 | E52: ='ročni vnos'!E45*$D$34 -> 0.1578974377 | F52: ='ročni vnos'!F45*$D$35 -> 0 | G52: ='ročni vnos'!G45*$D$35 -> 0 | H52: ='ročni vnos'!H45*$D$35 -> 0 | I52: ='ročni vnos'!I45*$D$35 -> 0 | J52: ='ročni vnos'!J45*$D$35 -> 0 | K52: ='ročni vnos'!K45 -> 0 | L52: 0.1578974377 | M52: 565.3328281 | N52: 565.3328281 | O52: 0 | P52: 0
B53: 16 | C53: =IF(LEN('ročni vnos'!C46)>0,'ročni vnos'!C46,"") -> Miha Prevc | D53: ='ročni vnos'!D46 -> 3785.91 | E53: ='ročni vnos'!E46*$D$34 -> 0.1578974377 | F53: ='ročni vnos'!F46*$D$35 -> 0 | G53: ='ročni vnos'!G46*$D$35 -> 0 | H53: ='ročni vnos'!H46*$D$35 -> 0.01481817057 | I53: ='ročni vnos'!I46*$D$35 -> 0 | J53: ='ročni vnos'!J46*$D$35 -> 0 | K53: ='ročni vnos'!K46 -> 0 | L53: 0.1727156083 | M53: 653.8857486 | N53: 597.7854884 | O53: 56.10026015 | P53: 0
B54: 17 | C54: =IF(LEN('ročni vnos'!C47)>0,'ročni vnos'!C47,"") -> Alenka Bajc | D54: ='ročni vnos'!D47 -> 4002.47 | E54: ='ročni vnos'!E47*$D$34 -> 0 | F54: ='ročni vnos'!F47*$D$35 -> 0 | G54: ='ročni vnos'!G47*$D$35 -> 0 | H54: ='ročni vnos'!H47*$D$35 -> 0 | I54: ='ročni vnos'!I47*$D$35 -> 0 | J54: ='ročni vnos'!J47*$D$35 -> 0 | K54: ='ročni vnos'!K47 -> 0 | L54: 0 | M54: 0 | N54: 0 | O54: 0 | P54: 0
B55: 18 | C55: =IF(LEN('ročni vnos'!C48)>0,'ročni vnos'!C48,"") -> Jure Krivec | D55: ='ročni vnos'!D48 -> 4312.74 | E55: ='ročni vnos'!E48*$D$34 -> 0 | F55: ='ročni vnos'!F48*$D$35 -> 0 | G55: ='ročni vnos'!G48*$D$35 -> 0 | H55: ='ročni vnos'!H48*$D$35 -> 0 | I55: ='ročni vnos'!I48*$D$35 -> 0 | J55: ='ročni vnos'!J48*$D$35 -> 0 | K55: ='ročni vnos'!K48 -> 0 | L55: 0 | M55: 0 | N55: 0 | O55: 0 | P55: 0
B56: 19 | C56: =IF(LEN('ročni vnos'!C49)>0,'ročni vnos'!C49,"") -> Nataša Štravs | D56: ='ročni vnos'!D49 -> 4648.35 | E56: ='ročni vnos'!E49*$D$34 -> 0 | F56: ='ročni vnos'!F49*$D$35 -> 0 | G56: ='ročni vnos'!G49*$D$35 -> 0 | H56: ='ročni vnos'!H49*$D$35 -> 0 | I56: ='ročni vnos'!I49*$D$35 -> 0 | J56: ='ročni vnos'!J49*$D$35 -> 0 | K56: ='ročni vnos'!K49 -> 0 | L56: 0 | M56: 0 | N56: 0 | O56: 0 | P56: 0
B57: 20 | C57: =IF(LEN('ročni vnos'!C50)>0,'ročni vnos'!C50,"") -> Blaž Pavlin | D57: ='ročni vnos'!D50 -> 4918.8 | E57: ='ročni vnos'!E50*$D$34 -> 0 | F57: ='ročni vnos'!F50*$D$35 -> 0 | G57: ='ročni vnos'!G50*$D$35 -> 0 | H57: ='ročni vnos'!H50*$D$35 -> 0.02222725586 | I57: ='ročni vnos'!I50*$D$35 -> 0 | J57: ='ročni vnos'!J50*$D$35 -> 0 | K57: ='ročni vnos'!K50 -> 0 | L57: 0.02222725586 | M57: 109.3314261 | N57: 0 | O57: 109.3314261 | P57: 0
B58: 21 | C58: =IF(LEN('ročni vnos'!C51)>0,'ročni vnos'!C51,"") ->  | D58: ='ročni vnos'!D51 -> 0 | E58: ='ročni vnos'!E51*$D$34 -> 0 | F58: ='ročni vnos'!F51*$D$35 -> 0 | G58: ='ročni vnos'!G51*$D$35 -> 0 | H58: ='ročni vnos'!H51*$D$35 -> 0 | I58: ='ročni vnos'!I51*$D$35 -> 0 | J58: ='ročni vnos'!J51*$D$35 -> 0 | K58: ='ročni vnos'!K51 -> 0 | L58: 0 | M58: 0 | N58: 0 | O58: 0 | P58: 0
B59: 22 | C59: =IF(LEN('ročni vnos'!C52)>0,'ročni vnos'!C52,"") ->  | D59: ='ročni vnos'!D52 -> 0 | E59: ='ročni vnos'!E52*$D$34 -> 0 | F59: ='ročni vnos'!F52*$D$35 -> 0 | G59: ='ročni vnos'!G52*$D$35 -> 0 | H59: ='ročni vnos'!H52*$D$35 -> 0 | I59: ='ročni vnos'!I52*$D$35 -> 0 | J59: ='ročni vnos'!J52*$D$35 -> 0 | K59: ='ročni vnos'!K52 -> 0 | L59: 0 | M59: 0 | N59: 0 | O59: 0 | P59: 0
B60: 23 | C60: =IF(LEN('ročni vnos'!C53)>0,'ročni vnos'!C53,"") ->  | D60: ='ročni vnos'!D53 -> 0 | E60: ='ročni vnos'!E53*$D$34 -> 0 | F60: ='ročni vnos'!F53*$D$35 -> 0 | G60: ='ročni vnos'!G53*$D$35 -> 0 | H60: ='ročni vnos'!H53*$D$35 -> 0 | I60: ='ročni vnos'!I53*$D$35 -> 0 | J60: ='ročni vnos'!J53*$D$35 -> 0 | K60: ='ročni vnos'!K53 -> 0 | L60: 0 | M60: 0 | N60: 0 | O60: 0 | P60: 0
B61: 24 | C61: =IF(LEN('ročni vnos'!C54)>0,'ročni vnos'!C54,"") ->  | D61: ='ročni vnos'!D54 -> 0 | E61: ='ročni vnos'!E54*$D$34 -> 0 | F61: ='ročni vnos'!F54*$D$35 -> 0 | G61: ='ročni vnos'!G54*$D$35 -> 0 | H61: ='ročni vnos'!H54*$D$35 -> 0 | I61: ='ročni vnos'!I54*$D$35 -> 0 | J61: ='ročni vnos'!J54*$D$35 -> 0 | K61: ='ročni vnos'!K54 -> 0 | L61: 0 | M61: 0 | N61: 0 | O61: 0 | P61: 0
B62: 25 | C62: =IF(LEN('ročni vnos'!C55)>0,'ročni vnos'!C55,"") ->  | D62: ='ročni vnos'!D55 -> 0 | E62: ='ročni vnos'!E55*$D$34 -> 0 | F62: ='ročni vnos'!F55*$D$35 -> 0 | G62: ='ročni vnos'!G55*$D$35 -> 0 | H62: ='ročni vnos'!H55*$D$35 -> 0 | I62: ='ročni vnos'!I55*$D$35 -> 0 | J62: ='ročni vnos'!J55*$D$35 -> 0 | K62: ='ročni vnos'!K55 -> 0 | L62: 0 | M62: 0 | N62: 0 | O62: 0 | P62: 0
B63: 26 | C63: =IF(LEN('ročni vnos'!C56)>0,'ročni vnos'!C56,"") ->  | D63: ='ročni vnos'!D56 -> 0 | E63: ='ročni vnos'!E56*$D$34 -> 0 | F63: ='ročni vnos'!F56*$D$35 -> 0 | G63: ='ročni vnos'!G56*$D$35 -> 0 | H63: ='ročni vnos'!H56*$D$35 -> 0 | I63: ='ročni vnos'!I56*$D$35 -> 0 | J63: ='ročni vnos'!J56*$D$35 -> 0 | K63: ='ročni vnos'!K56 -> 0 | L63: 0 | M63: 0 | N63: 0 | O63: 0 | P63: 0
B64: 27 | C64: =IF(LEN('ročni vnos'!C57)>0,'ročni vnos'!C57,"") ->  | D64: ='ročni vnos'!D57 -> 0 | E64: ='ročni vnos'!E57*$D$34 -> 0 | F64: ='ročni vnos'!F57*$D$35 -> 0 | G64: ='ročni vnos'!G57*$D$35 -> 0 | H64: ='ročni vnos'!H57*$D$35 -> 0 | I64: ='ročni vnos'!I57*$D$35 -> 0 | J64: ='ročni vnos'!J57*$D$35 -> 0 | K64: ='ročni vnos'!K57 -> 0 | L64: 0 | M64: 0 | N64: 0 | O64: 0 | P64: 0
B65: 28 | C65: =IF(LEN('ročni vnos'!C58)>0,'ročni vnos'!C58,"") ->  | D65: ='ročni vnos'!D58 -> 0 | E65: ='ročni vnos'!E58*$D$34 -> 0 | F65: ='ročni vnos'!F58*$D$35 -> 0 | G65: ='ročni vnos'!G58*$D$35 -> 0 | H65: ='ročni vnos'!H58*$D$35 -> 0 | I65: ='ročni vnos'!I58*$D$35 -> 0 | J65: ='ročni vnos'!J58*$D$35 -> 0 | K65: ='ročni vnos'!K58 -> 0 | L65: 0 | M65: 0 | N65: 0 | O65: 0 | P65: 0
B66: 29 | C66: =IF(LEN('ročni vnos'!C59)>0,'ročni vnos'!C59,"") ->  | D66: ='ročni vnos'!D59 -> 0 | E66: ='ročni vnos'!E59*$D$34 -> 0 | F66: ='ročni vnos'!F59*$D$35 -> 0 | G66: ='ročni vnos'!G59*$D$35 -> 0 | H66: ='ročni vnos'!H59*$D$35 -> 0 | I66: ='ročni vnos'!I59*$D$35 -> 0 | J66: ='ročni vnos'!J59*$D$35 -> 0 | K66: ='ročni vnos'!K59 -> 0 | L66: 0 | M66: 0 | N66: 0 | O66: 0 | P66: 0
B67: 30 | C67: =IF(LEN('ročni vnos'!C60)>0,'ročni vnos'!C60,"") ->  | D67: ='ročni vnos'!D60 -> 0 | E67: ='ročni vnos'!E60*$D$34 -> 0 | F67: ='ročni vnos'!F60*$D$35 -> 0 | G67: ='ročni vnos'!G60*$D$35 -> 0 | H67: ='ročni vnos'!H60*$D$35 -> 0 | I67: ='ročni vnos'!I60*$D$35 -> 0 | J67: ='ročni vnos'!J60*$D$35 -> 0 | K67: ='ročni vnos'!K60 -> 0 | L67: 0 | M67: 0 | N67: 0 | O67: 0 | P67: 0
B68: 31 | C68: =IF(LEN('ročni vnos'!C61)>0,'ročni vnos'!C61,"") ->  | D68: ='ročni vnos'!D61 -> 0 | E68: ='ročni vnos'!E61*$D$34 -> 0 | F68: ='ročni vnos'!F61*$D$35 -> 0 | G68: ='ročni vnos'!G61*$D$35 -> 0 | H68: ='ročni vnos'!H61*$D$35 -> 0 | I68: ='ročni vnos'!I61*$D$35 -> 0 | J68: ='ročni vnos'!J61*$D$35 -> 0 | K68: ='ročni vnos'!K61 -> 0 | L68: 0 | M68: 0 | N68: 0 | O68: 0 | P68: 0
B69: 32 | C69: =IF(LEN('ročni vnos'!C62)>0,'ročni vnos'!C62,"") ->  | D69: ='ročni vnos'!D62 -> 0 | E69: ='ročni vnos'!E62*$D$34 -> 0 | F69: ='ročni vnos'!F62*$D$35 -> 0 | G69: ='ročni vnos'!G62*$D$35 -> 0 | H69: ='ročni vnos'!H62*$D$35 -> 0 | I69: ='ročni vnos'!I62*$D$35 -> 0 | J69: ='ročni vnos'!J62*$D$35 -> 0 | K69: ='ročni vnos'!K62 -> 0 | L69: 0 | M69: 0 | N69: 0 | O69: 0 | P69: 0
B70: 33 | C70: =IF(LEN('ročni vnos'!C63)>0,'ročni vnos'!C63,"") ->  | D70: ='ročni vnos'!D63 -> 0 | E70: ='ročni vnos'!E63*$D$34 -> 0 | F70: ='ročni vnos'!F63*$D$35 -> 0 | G70: ='ročni vnos'!G63*$D$35 -> 0 | H70: ='ročni vnos'!H63*$D$35 -> 0 | I70: ='ročni vnos'!I63*$D$35 -> 0 | J70: ='ročni vnos'!J63*$D$35 -> 0 | K70: ='ročni vnos'!K63 -> 0 | L70: 0 | M70: 0 | N70: 0 | O70: 0 | P70: 0
B71: 34 | C71: =IF(LEN('ročni vnos'!C64)>0,'ročni vnos'!C64,"") ->  | D71: ='ročni vnos'!D64 -> 0 | E71: ='ročni vnos'!E64*$D$34 -> 0 | F71: ='ročni vnos'!F64*$D$35 -> 0 | G71: ='ročni vnos'!G64*$D$35 -> 0 | H71: ='ročni vnos'!H64*$D$35 -> 0 | I71: ='ročni vnos'!I64*$D$35 -> 0 | J71: ='ročni vnos'!J64*$D$35 -> 0 | K71: ='ročni vnos'!K64 -> 0 | L71: 0 | M71: 0 | N71: 0 | O71: 0 | P71: 0
B72: 35 | C72: =IF(LEN('ročni vnos'!C65)>0,'ročni vnos'!C65,"") ->  | D72: ='ročni vnos'!D65 -> 0 | E72: ='ročni vnos'!E65*$D$34 -> 0 | F72: ='ročni vnos'!F65*$D$35 -> 0 | G72: ='ročni vnos'!G65*$D$35 -> 0 | H72: ='ročni vnos'!H65*$D$35 -> 0 | I72: ='ročni vnos'!I65*$D$35 -> 0 | J72: ='ročni vnos'!J65*$D$35 -> 0 | K72: ='ročni vnos'!K65 -> 0 | L72: 0 | M72: 0 | N72: 0 | O72: 0 | P72: 0
B73: 36 | C73: =IF(LEN('ročni vnos'!C66)>0,'ročni vnos'!C66,"") ->  | D73: ='ročni vnos'!D66 -> 0 | E73: ='ročni vnos'!E66*$D$34 -> 0 | F73: ='ročni vnos'!F66*$D$35 -> 0 | G73: ='ročni vnos'!G66*$D$35 -> 0 | H73: ='ročni vnos'!H66*$D$35 -> 0 | I73: ='ročni vnos'!I66*$D$35 -> 0 | J73: ='ročni vnos'!J66*$D$35 -> 0 | K73: ='ročni vnos'!K66 -> 0 | L73: 0 | M73: 0 | N73: 0 | O73: 0 | P73: 0
B74: 37 | C74: =IF(LEN('ročni vnos'!C67)>0,'ročni vnos'!C67,"") ->  | D74: ='ročni vnos'!D67 -> 0 | E74: ='ročni vnos'!E67*$D$34 -> 0 | F74: ='ročni vnos'!F67*$D$35 -> 0 | G74: ='ročni vnos'!G67*$D$35 -> 0 | H74: ='ročni vnos'!H67*$D$35 -> 0 | I74: ='ročni vnos'!I67*$D$35 -> 0 | J74: ='ročni vnos'!J67*$D$35 -> 0 | K74: ='ročni vnos'!K67 -> 0 | L74: 0 | M74: 0 | N74: 0 | O74: 0 | P74: 0
B75: 38 | C75: =IF(LEN('ročni vnos'!C68)>0,'ročni vnos'!C68,"") ->  | D75: ='ročni vnos'!D68 -> 0 | E75: ='ročni vnos'!E68*$D$34 -> 0 | F75: ='ročni vnos'!F68*$D$35 -> 0 | G75: ='ročni vnos'!G68*$D$35 -> 0 | H75: ='ročni vnos'!H68*$D$35 -> 0 | I75: ='ročni vnos'!I68*$D$35 -> 0 | J75: ='ročni vnos'!J68*$D$35 -> 0 | K75: ='ročni vnos'!K68 -> 0 | L75: 0 | M75: 0 | N75: 0 | O75: 0 | P75: 0
B76: 39 | C76: =IF(LEN('ročni vnos'!C69)>0,'ročni vnos'!C69,"") ->  | D76: ='ročni vnos'!D69 -> 0 | E76: ='ročni vnos'!E69*$D$34 -> 0 | F76: ='ročni vnos'!F69*$D$35 -> 0 | G76: ='ročni vnos'!G69*$D$35 -> 0 | H76: ='ročni vnos'!H69*$D$35 -> 0 | I76: ='ročni vnos'!I69*$D$35 -> 0 | J76: ='ročni vnos'!J69*$D$35 -> 0 | K76: ='ročni vnos'!K69 -> 0 | L76: 0 | M76: 0 | N76: 0 | O76: 0 | P76: 0
B77: 40 | C77: =IF(LEN('ročni vnos'!C70)>0,'ročni vnos'!C70,"") ->  | D77: ='ročni vnos'!D70 -> 0 | E77: ='ročni vnos'!E70*$D$34 -> 0 | F77: ='ročni vnos'!F70*$D$35 -> 0 | G77: ='ročni vnos'!G70*$D$35 -> 0 | H77: ='ročni vnos'!H70*$D$35 -> 0 | I77: ='ročni vnos'!I70*$D$35 -> 0 | J77: ='ročni vnos'!J70*$D$35 -> 0 | K77: ='ročni vnos'!K70 -> 0 | L77: 0 | M77: 0 | N77: 0 | O77: 0 | P77: 0
B78: 41 | C78: =IF(LEN('ročni vnos'!C71)>0,'ročni vnos'!C71,"") ->  | D78: ='ročni vnos'!D71 -> 0 | E78: ='ročni vnos'!E71*$D$34 -> 0 | F78: ='ročni vnos'!F71*$D$35 -> 0 | G78: ='ročni vnos'!G71*$D$35 -> 0 | H78: ='ročni vnos'!H71*$D$35 -> 0 | I78: ='ročni vnos'!I71*$D$35 -> 0 | J78: ='ročni vnos'!J71*$D$35 -> 0 | K78: ='ročni vnos'!K71 -> 0 | L78: 0 | M78: 0 | N78: 0 | O78: 0 | P78: 0
B79: 42 | C79: =IF(LEN('ročni vnos'!C72)>0,'ročni vnos'!C72,"") ->  | D79: ='ročni vnos'!D72 -> 0 | E79: ='ročni vnos'!E72*$D$34 -> 0 | F79: ='ročni vnos'!F72*$D$35 -> 0 | G79: ='ročni vnos'!G72*$D$35 -> 0 | H79: ='ročni vnos'!H72*$D$35 -> 0 | I79: ='ročni vnos'!I72*$D$35 -> 0 | J79: ='ročni vnos'!J72*$D$35 -> 0 | K79: ='ročni vnos'!K72 -> 0 | L79: 0 | M79: 0 | N79: 0 | O79: 0 | P79: 0
B80: 43 | C80: =IF(LEN('ročni vnos'!C73)>0,'ročni vnos'!C73,"") ->  | D80: ='ročni vnos'!D73 -> 0 | E80: ='ročni vnos'!E73*$D$34 -> 0 | F80: ='ročni vnos'!F73*$D$35 -> 0 | G80: ='ročni vnos'!G73*$D$35 -> 0 | H80: ='ročni vnos'!H73*$D$35 -> 0 | I80: ='ročni vnos'!I73*$D$35 -> 0 | J80: ='ročni vnos'!J73*$D$35 -> 0 | K80: ='ročni vnos'!K73 -> 0 | L80: 0 | M80: 0 | N80: 0 | O80: 0 | P80: 0
B81: 44 | C81: =IF(LEN('ročni vnos'!C74)>0,'ročni vnos'!C74,"") ->  | D81: ='ročni vnos'!D74 -> 0 | E81: ='ročni vnos'!E74*$D$34 -> 0 | F81: ='ročni vnos'!F74*$D$35 -> 0 | G81: ='ročni vnos'!G74*$D$35 -> 0 | H81: ='ročni vnos'!H74*$D$35 -> 0 | I81: ='ročni vnos'!I74*$D$35 -> 0 | J81: ='ročni vnos'!J74*$D$35 -> 0 | K81: ='ročni vnos'!K74 -> 0 | L81: 0 | M81: 0 | N81: 0 | O81: 0 | P81: 0
B82: 45 | C82: =IF(LEN('ročni vnos'!C75)>0,'ročni vnos'!C75,"") ->  | D82: ='ročni vnos'!D75 -> 0 | E82: ='ročni vnos'!E75*$D$34 -> 0 | F82: ='ročni vnos'!F75*$D$35 -> 0 | G82: ='ročni vnos'!G75*$D$35 -> 0 | H82: ='ročni vnos'!H75*$D$35 -> 0 | I82: ='ročni vnos'!I75*$D$35 -> 0 | J82: ='ročni vnos'!J75*$D$35 -> 0 | K82: ='ročni vnos'!K75 -> 0 | L82: 0 | M82: 0 | N82: 0 | O82: 0 | P82: 0
B83: 46 | C83: =IF(LEN('ročni vnos'!C76)>0,'ročni vnos'!C76,"") ->  | D83: ='ročni vnos'!D76 -> 0 | E83: ='ročni vnos'!E76*$D$34 -> 0 | F83: ='ročni vnos'!F76*$D$35 -> 0 | G83: ='ročni vnos'!G76*$D$35 -> 0 | H83: ='ročni vnos'!H76*$D$35 -> 0 | I83: ='ročni vnos'!I76*$D$35 -> 0 | J83: ='ročni vnos'!J76*$D$35 -> 0 | K83: ='ročni vnos'!K76 -> 0 | L83: 0 | M83: 0 | N83: 0 | O83: 0 | P83: 0
B84: 47 | C84: =IF(LEN('ročni vnos'!C77)>0,'ročni vnos'!C77,"") ->  | D84: ='ročni vnos'!D77 -> 0 | E84: ='ročni vnos'!E77*$D$34 -> 0 | F84: ='ročni vnos'!F77*$D$35 -> 0 | G84: ='ročni vnos'!G77*$D$35 -> 0 | H84: ='ročni vnos'!H77*$D$35 -> 0 | I84: ='ročni vnos'!I77*$D$35 -> 0 | J84: ='ročni vnos'!J77*$D$35 -> 0 | K84: ='ročni vnos'!K77 -> 0 | L84: 0 | M84: 0 | N84: 0 | O84: 0 | P84: 0
B85: 48 | C85: =IF(LEN('ročni vnos'!C78)>0,'ročni vnos'!C78,"") ->  | D85: ='ročni vnos'!D78 -> 0 | E85: ='ročni vnos'!E78*$D$34 -> 0 | F85: ='ročni vnos'!F78*$D$35 -> 0 | G85: ='ročni vnos'!G78*$D$35 -> 0 | H85: ='ročni vnos'!H78*$D$35 -> 0 | I85: ='ročni vnos'!I78*$D$35 -> 0 | J85: ='ročni vnos'!J78*$D$35 -> 0 | K85: ='ročni vnos'!K78 -> 0 | L85: 0 | M85: 0 | N85: 0 | O85: 0 | P85: 0
B86: 49 | C86: =IF(LEN('ročni vnos'!C79)>0,'ročni vnos'!C79,"") ->  | D86: ='ročni vnos'!D79 -> 0 | E86: ='ročni vnos'!E79*$D$34 -> 0 | F86: ='ročni vnos'!F79*$D$35 -> 0 | G86: ='ročni vnos'!G79*$D$35 -> 0 | H86: ='ročni vnos'!H79*$D$35 -> 0 | I86: ='ročni vnos'!I79*$D$35 -> 0 | J86: ='ročni vnos'!J79*$D$35 -> 0 | K86: ='ročni vnos'!K79 -> 0 | L86: 0 | M86: 0 | N86: 0 | O86: 0 | P86: 0
B87: 50 | C87: =IF(LEN('ročni vnos'!C80)>0,'ročni vnos'!C80,"") ->  | D87: ='ročni vnos'!D80 -> 0 | E87: ='ročni vnos'!E80*$D$34 -> 0 | F87: ='ročni vnos'!F80*$D$35 -> 0 | G87: ='ročni vnos'!G80*$D$35 -> 0 | H87: ='ročni vnos'!H80*$D$35 -> 0 | I87: ='ročni vnos'!I80*$D$35 -> 0 | J87: ='ročni vnos'!J80*$D$35 -> 0 | K87: ='ročni vnos'!K80 -> 0 | L87: 0 | M87: 0 | N87: 0 | O87: 0 | P87: 0
B88: 51 | C88: =IF(LEN('ročni vnos'!C81)>0,'ročni vnos'!C81,"") ->  | D88: ='ročni vnos'!D81 -> 0 | E88: ='ročni vnos'!E81*$D$34 -> 0 | F88: ='ročni vnos'!F81*$D$35 -> 0 | G88: ='ročni vnos'!G81*$D$35 -> 0 | H88: ='ročni vnos'!H81*$D$35 -> 0 | I88: ='ročni vnos'!I81*$D$35 -> 0 | J88: ='ročni vnos'!J81*$D$35 -> 0 | K88: ='ročni vnos'!K81 -> 0 | L88: 0 | M88: 0 | N88: 0 | O88: 0 | P88: 0
B89: 52 | C89: =IF(LEN('ročni vnos'!C82)>0,'ročni vnos'!C82,"") ->  | D89: ='ročni vnos'!D82 -> 0 | E89: ='ročni vnos'!E82*$D$34 -> 0 | F89: ='ročni vnos'!F82*$D$35 -> 0 | G89: ='ročni vnos'!G82*$D$35 -> 0 | H89: ='ročni vnos'!H82*$D$35 -> 0 | I89: ='ročni vnos'!I82*$D$35 -> 0 | J89: ='ročni vnos'!J82*$D$35 -> 0 | K89: ='ročni vnos'!K82 -> 0 | L89: 0 | M89: 0 | N89: 0 | O89: 0 | P89: 0
B90: 53 | C90: =IF(LEN('ročni vnos'!C83)>0,'ročni vnos'!C83,"") ->  | D90: ='ročni vnos'!D83 -> 0 | E90: ='ročni vnos'!E83*$D$34 -> 0 | F90: ='ročni vnos'!F83*$D$35 -> 0 | G90: ='ročni vnos'!G83*$D$35 -> 0 | H90: ='ročni vnos'!H83*$D$35 -> 0 | I90: ='ročni vnos'!I83*$D$35 -> 0 | J90: ='ročni vnos'!J83*$D$35 -> 0 | K90: ='ročni vnos'!K83 -> 0 | L90: 0 | M90: 0 | N90: 0 | O90: 0 | P90: 0
B91: 54 | C91: =IF(LEN('ročni vnos'!C84)>0,'ročni vnos'!C84,"") ->  | D91: ='ročni vnos'!D84 -> 0 | E91: ='ročni vnos'!E84*$D$34 -> 0 | F91: ='ročni vnos'!F84*$D$35 -> 0 | G91: ='ročni vnos'!G84*$D$35 -> 0 | H91: ='ročni vnos'!H84*$D$35 -> 0 | I91: ='ročni vnos'!I84*$D$35 -> 0 | J91: ='ročni vnos'!J84*$D$35 -> 0 | K91: ='ročni vnos'!K84 -> 0 | L91: 0 | M91: 0 | N91: 0 | O91: 0 | P91: 0
B92: 55 | C92: =IF(LEN('ročni vnos'!C85)>0,'ročni vnos'!C85,"") ->  | D92: ='ročni vnos'!D85 -> 0 | E92: ='ročni vnos'!E85*$D$34 -> 0 | F92: ='ročni vnos'!F85*$D$35 -> 0 | G92: ='ročni vnos'!G85*$D$35 -> 0 | H92: ='ročni vnos'!H85*$D$35 -> 0 | I92: ='ročni vnos'!I85*$D$35 -> 0 | J92: ='ročni vnos'!J85*$D$35 -> 0 | K92: ='ročni vnos'!K85 -> 0 | L92: 0 | M92: 0 | N92: 0 | O92: 0 | P92: 0
B93: 56 | C93: =IF(LEN('ročni vnos'!C86)>0,'ročni vnos'!C86,"") ->  | D93: ='ročni vnos'!D86 -> 0 | E93: ='ročni vnos'!E86*$D$34 -> 0 | F93: ='ročni vnos'!F86*$D$35 -> 0 | G93: ='ročni vnos'!G86*$D$35 -> 0 | H93: ='ročni vnos'!H86*$D$35 -> 0 | I93: ='ročni vnos'!I86*$D$35 -> 0 | J93: ='ročni vnos'!J86*$D$35 -> 0 | K93: ='ročni vnos'!K86 -> 0 | L93: 0 | M93: 0 | N93: 0 | O93: 0 | P93: 0
B94: 57 | C94: =IF(LEN('ročni vnos'!C87)>0,'ročni vnos'!C87,"") ->  | D94: ='ročni vnos'!D87 -> 0 | E94: ='ročni vnos'!E87*$D$34 -> 0 | F94: ='ročni vnos'!F87*$D$35 -> 0 | G94: ='ročni vnos'!G87*$D$35 -> 0 | H94: ='ročni vnos'!H87*$D$35 -> 0 | I94: ='ročni vnos'!I87*$D$35 -> 0 | J94: ='ročni vnos'!J87*$D$35 -> 0 | K94: ='ročni vnos'!K87 -> 0 | L94: 0 | M94: 0 | N94: 0 | O94: 0 | P94: 0
B95: 58 | C95: =IF(LEN('ročni vnos'!C88)>0,'ročni vnos'!C88,"") ->  | D95: ='ročni vnos'!D88 -> 0 | E95: ='ročni vnos'!E88*$D$34 -> 0 | F95: ='ročni vnos'!F88*$D$35 -> 0 | G95: ='ročni vnos'!G88*$D$35 -> 0 | H95: ='ročni vnos'!H88*$D$35 -> 0 | I95: ='ročni vnos'!I88*$D$35 -> 0 | J95: ='ročni vnos'!J88*$D$35 -> 0 | K95: ='ročni vnos'!K88 -> 0 | L95: 0 | M95: 0 | N95: 0 | O95: 0 | P95: 0
B96: 59 | C96: =IF(LEN('ročni vnos'!C89)>0,'ročni vnos'!C89,"") ->  | D96: ='ročni vnos'!D89 -> 0 | E96: ='ročni vnos'!E89*$D$34 -> 0 | F96: ='ročni vnos'!F89*$D$35 -> 0 | G96: ='ročni vnos'!G89*$D$35 -> 0 | H96: ='ročni vnos'!H89*$D$35 -> 0 | I96: ='ročni vnos'!I89*$D$35 -> 0 | J96: ='ročni vnos'!J89*$D$35 -> 0 | K96: ='ročni vnos'!K89 -> 0 | L96: 0 | M96: 0 | N96: 0 | O96: 0 | P96: 0
B97: 60 | C97: =IF(LEN('ročni vnos'!C90)>0,'ročni vnos'!C90,"") ->  | D97: ='ročni vnos'!D90 -> 0 | E97: ='ročni vnos'!E90*$D$34 -> 0 | F97: ='ročni vnos'!F90*$D$35 -> 0 | G97: ='ročni vnos'!G90*$D$35 -> 0 | H97: ='ročni vnos'!H90*$D$35 -> 0 | I97: ='ročni vnos'!I90*$D$35 -> 0 | J97: ='ročni vnos'!J90*$D$35 -> 0 | K97: ='ročni vnos'!K90 -> 0 | L97: 0 | M97: 0 | N97: 0 | O97: 0 | P97: 0
B98: 61 | C98: =IF(LEN('ročni vnos'!C91)>0,'ročni vnos'!C91,"") ->  | D98: ='ročni vnos'!D91 -> 0 | E98: ='ročni vnos'!E91*$D$34 -> 0 | F98: ='ročni vnos'!F91*$D$35 -> 0 | G98: ='ročni vnos'!G91*$D$35 -> 0 | H98: ='ročni vnos'!H91*$D$35 -> 0 | I98: ='ročni vnos'!I91*$D$35 -> 0 | J98: ='ročni vnos'!J91*$D$35 -> 0 | K98: ='ročni vnos'!K91 -> 0 | L98: 0 | M98: 0 | N98: 0 | O98: 0 | P98: 0
B99: 62 | C99: =IF(LEN('ročni vnos'!C92)>0,'ročni vnos'!C92,"") ->  | D99: ='ročni vnos'!D92 -> 0 | E99: ='ročni vnos'!E92*$D$34 -> 0 | F99: ='ročni vnos'!F92*$D$35 -> 0 | G99: ='ročni vnos'!G92*$D$35 -> 0 | H99: ='ročni vnos'!H92*$D$35 -> 0 | I99: ='ročni vnos'!I92*$D$35 -> 0 | J99: ='ročni vnos'!J92*$D$35 -> 0 | K99: ='ročni vnos'!K92 -> 0 | L99: 0 | M99: 0 | N99: 0 | O99: 0 | P99: 0
B100: 63 | C100: =IF(LEN('ročni vnos'!C93)>0,'ročni vnos'!C93,"") ->  | D100: ='ročni vnos'!D93 -> 0 | E100: ='ročni vnos'!E93*$D$34 -> 0 | F100: ='ročni vnos'!F93*$D$35 -> 0 | G100: ='ročni vnos'!G93*$D$35 -> 0 | H100: ='ročni vnos'!H93*$D$35 -> 0 | I100: ='ročni vnos'!I93*$D$35 -> 0 | J100: ='ročni vnos'!J93*$D$35 -> 0 | K100: ='ročni vnos'!K93 -> 0 | L100: 0 | M100: 0 | N100: 0 | O100: 0 | P100: 0
B101: 64 | C101: =IF(LEN('ročni vnos'!C94)>0,'ročni vnos'!C94,"") ->  | D101: ='ročni vnos'!D94 -> 0 | E101: ='ročni vnos'!E94*$D$34 -> 0 | F101: ='ročni vnos'!F94*$D$35 -> 0 | G101: ='ročni vnos'!G94*$D$35 -> 0 | H101: ='ročni vnos'!H94*$D$35 -> 0 | I101: ='ročni vnos'!I94*$D$35 -> 0 | J101: ='ročni vnos'!J94*$D$35 -> 0 | K101: ='ročni vnos'!K94 -> 0 | L101: 0 | M101: 0 | N101: 0 | O101: 0 | P101: 0
B102: 65 | C102: =IF(LEN('ročni vnos'!C95)>0,'ročni vnos'!C95,"") ->  | D102: ='ročni vnos'!D95 -> 0 | E102: ='ročni vnos'!E95*$D$34 -> 0 | F102: ='ročni vnos'!F95*$D$35 -> 0 | G102: ='ročni vnos'!G95*$D$35 -> 0 | H102: ='ročni vnos'!H95*$D$35 -> 0 | I102: ='ročni vnos'!I95*$D$35 -> 0 | J102: ='ročni vnos'!J95*$D$35 -> 0 | K102: ='ročni vnos'!K95 -> 0 | L102: 0 | M102: 0 | N102: 0 | O102: 0 | P102: 0
B103: 66 | C103: =IF(LEN('ročni vnos'!C96)>0,'ročni vnos'!C96,"") ->  | D103: ='ročni vnos'!D96 -> 0 | E103: ='ročni vnos'!E96*$D$34 -> 0 | F103: ='ročni vnos'!F96*$D$35 -> 0 | G103: ='ročni vnos'!G96*$D$35 -> 0 | H103: ='ročni vnos'!H96*$D$35 -> 0 | I103: ='ročni vnos'!I96*$D$35 -> 0 | J103: ='ročni vnos'!J96*$D$35 -> 0 | K103: ='ročni vnos'!K96 -> 0 | L103: =SUM(E103:K103) -> 0 | M103: =+D103*L103 -> 0 | N103: =D103*E103 -> 0 | O103: =(F103+G103+H103+I103+J103)*D103 -> 0 | P103: =+D103*K103 -> 0 | Q103: =IF(SUM(E103:K103)>30%,"VSOTA MORA BITI MANJŠA ALI ENAKA 30%","") -> 
B104: 67 | C104: =IF(LEN('ročni vnos'!C97)>0,'ročni vnos'!C97,"") ->  | D104: ='ročni vnos'!D97 -> 0 | E104: ='ročni vnos'!E97*$D$34 -> 0 | F104: ='ročni vnos'!F97*$D$35 -> 0 | G104: ='ročni vnos'!G97*$D$35 -> 0 | H104: ='ročni vnos'!H97*$D$35 -> 0 | I104: ='ročni vnos'!I97*$D$35 -> 0 | J104: ='ročni vnos'!J97*$D$35 -> 0 | K104: ='ročni vnos'!K97 -> 0 | L104: 0 | M104: 0 | N104: 0 | O104: 0 | P104: 0
B105: 68 | C105: =IF(LEN('ročni vnos'!C98)>0,'ročni vnos'!C98,"") ->  | D105: ='ročni vnos'!D98 -> 0 | E105: ='ročni vnos'!E98*$D$34 -> 0 | F105: ='ročni vnos'!F98*$D$35 -> 0 | G105: ='ročni vnos'!G98*$D$35 -> 0 | H105: ='ročni vnos'!H98*$D$35 -> 0 | I105: ='ročni vnos'!I98*$D$35 -> 0 | J105: ='ročni vnos'!J98*$D$35 -> 0 | K105: ='ročni vnos'!K98 -> 0 | L105: 0 | M105: 0 | N105: 0 | O105: 0 | P105: 0
B106: 69 | C106: =IF(LEN('ročni vnos'!C99)>0,'ročni vnos'!C99,"") ->  | D106: ='ročni vnos'!D99 -> 0 | E106: ='ročni vnos'!E99*$D$34 -> 0 | F106: ='ročni vnos'!F99*$D$35 -> 0 | G106: ='ročni vnos'!G99*$D$35 -> 0 | H106: ='ročni vnos'!H99*$D$35 -> 0 | I106: ='ročni vnos'!I99*$D$35 -> 0 | J106: ='ročni vnos'!J99*$D$35 -> 0 | K106: ='ročni vnos'!K99 -> 0 | L106: 0 | M106: 0 | N106: 0 | O106: 0 | P106: 0
B107: 70 | C107: =IF(LEN('ročni vnos'!C100)>0,'ročni vnos'!C100,"") ->  | D107: ='ročni vnos'!D100 -> 0 | E107: ='ročni vnos'!E100*$D$34 -> 0 | F107: ='ročni vnos'!F100*$D$35 -> 0 | G107: ='ročni vnos'!G100*$D$35 -> 0 | H107: ='ročni vnos'!H100*$D$35 -> 0 | I107: ='ročni vnos'!I100*$D$35 -> 0 | J107: ='ročni vnos'!J100*$D$35 -> 0 | K107: ='ročni vnos'!K100 -> 0 | L107: 0 | M107: 0 | N107: 0 | O107: 0 | P107: 0
B108: 71 | C108: =IF(LEN('ročni vnos'!C101)>0,'ročni vnos'!C101,"") ->  | D108: ='ročni vnos'!D101 -> 0 | E108: ='ročni vnos'!E101*$D$34 -> 0 | F108: ='ročni vnos'!F101*$D$35 -> 0 | G108: ='ročni vnos'!G101*$D$35 -> 0 | H108: ='ročni vnos'!H101*$D$35 -> 0 | I108: ='ročni vnos'!I101*$D$35 -> 0 | J108: ='ročni vnos'!J101*$D$35 -> 0 | K108: ='ročni vnos'!K101 -> 0 | L108: 0 | M108: 0 | N108: 0 | O108: 0 | P108: 0
B109: 72 | C109: =IF(LEN('ročni vnos'!C102)>0,'ročni vnos'!C102,"") ->  | D109: ='ročni vnos'!D102 -> 0 | E109: ='ročni vnos'!E102*$D$34 -> 0 | F109: ='ročni vnos'!F102*$D$35 -> 0 | G109: ='ročni vnos'!G102*$D$35 -> 0 | H109: ='ročni vnos'!H102*$D$35 -> 0 | I109: ='ročni vnos'!I102*$D$35 -> 0 | J109: ='ročni vnos'!J102*$D$35 -> 0 | K109: ='ročni vnos'!K102 -> 0 | L109: 0 | M109: 0 | N109: 0 | O109: 0 | P109: 0
B110: 73 | C110: =IF(LEN('ročni vnos'!C103)>0,'ročni vnos'!C103,"") ->  | D110: ='ročni vnos'!D103 -> 0 | E110: ='ročni vnos'!E103*$D$34 -> 0 | F110: ='ročni vnos'!F103*$D$35 -> 0 | G110: ='ročni vnos'!G103*$D$35 -> 0 | H110: ='ročni vnos'!H103*$D$35 -> 0 | I110: ='ročni vnos'!I103*$D$35 -> 0 | J110: ='ročni vnos'!J103*$D$35 -> 0 | K110: ='ročni vnos'!K103 -> 0 | L110: 0 | M110: 0 | N110: 0 | O110: 0 | P110: 0
B111: 74 | C111: =IF(LEN('ročni vnos'!C104)>0,'ročni vnos'!C104,"") ->  | D111: ='ročni vnos'!D104 -> 0 | E111: ='ročni vnos'!E104*$D$34 -> 0 | F111: ='ročni vnos'!F104*$D$35 -> 0 | G111: ='ročni vnos'!G104*$D$35 -> 0 | H111: ='ročni vnos'!H104*$D$35 -> 0 | I111: ='ročni vnos'!I104*$D$35 -> 0 | J111: ='ročni vnos'!J104*$D$35 -> 0 | K111: ='ročni vnos'!K104 -> 0 | L111: 0 | M111: 0 | N111: 0 | O111: 0 | P111: 0
B112: 75 | C112: =IF(LEN('ročni vnos'!C105)>0,'ročni vnos'!C105,"") ->  | D112: ='ročni vnos'!D105 -> 0 | E112: ='ročni vnos'!E105*$D$34 -> 0 | F112: ='ročni vnos'!F105*$D$35 -> 0 | G112: ='ročni vnos'!G105*$D$35 -> 0 | H112: ='ročni vnos'!H105*$D$35 -> 0 | I112: ='ročni vnos'!I105*$D$35 -> 0 | J112: ='ročni vnos'!J105*$D$35 -> 0 | K112: ='ročni vnos'!K105 -> 0 | L112: 0 | M112: 0 | N112: 0 | O112: 0 | P112: 0
B113: 76 | C113: =IF(LEN('ročni vnos'!C106)>0,'ročni vnos'!C106,"") ->  | D113: ='ročni vnos'!D106 -> 0 | E113: ='ročni vnos'!E106*$D$34 -> 0 | F113: ='ročni vnos'!F106*$D$35 -> 0 | G113: ='ročni vnos'!G106*$D$35 -> 0 | H113: ='ročni vnos'!H106*$D$35 -> 0 | I113: ='ročni vnos'!I106*$D$35 -> 0 | J113: ='ročni vnos'!J106*$D$35 -> 0 | K113: ='ročni vnos'!K106 -> 0 | L113: 0 | M113: 0 | N113: 0 | O113: 0 | P113: 0
B114: 77 | C114: =IF(LEN('ročni vnos'!C107)>0,'ročni vnos'!C107,"") ->  | D114: ='ročni vnos'!D107 -> 0 | E114: ='ročni vnos'!E107*$D$34 -> 0 | F114: ='ročni vnos'!F107*$D$35 -> 0 | G114: ='ročni vnos'!G107*$D$35 -> 0 | H114: ='ročni vnos'!H107*$D$35 -> 0 | I114: ='ročni vnos'!I107*$D$35 -> 0 | J114: ='ročni vnos'!J107*$D$35 -> 0 | K114: ='ročni vnos'!K107 -> 0 | L114: 0 | M114: 0 | N114: 0 | O114: 0 | P114: 0
B115: 78 | C115: =IF(LEN('ročni vnos'!C108)>0,'ročni vnos'!C108,"") ->  | D115: ='ročni vnos'!D108 -> 0 | E115: ='ročni vnos'!E108*$D$34 -> 0 | F115: ='ročni vnos'!F108*$D$35 -> 0 | G115: ='ročni vnos'!G108*$D$35 -> 0 | H115: ='ročni vnos'!H108*$D$35 -> 0 | I115: ='ročni vnos'!I108*$D$35 -> 0 | J115: ='ročni vnos'!J108*$D$35 -> 0 | K115: ='ročni vnos'!K108 -> 0 | L115: 0 | M115: 0 | N115: 0 | O115: 0 | P115: 0
B116: 79 | C116: =IF(LEN('ročni vnos'!C109)>0,'ročni vnos'!C109,"") ->  | D116: ='ročni vnos'!D109 -> 0 | E116: ='ročni vnos'!E109*$D$34 -> 0 | F116: ='ročni vnos'!F109*$D$35 -> 0 | G116: ='ročni vnos'!G109*$D$35 -> 0 | H116: ='ročni vnos'!H109*$D$35 -> 0 | I116: ='ročni vnos'!I109*$D$35 -> 0 | J116: ='ročni vnos'!J109*$D$35 -> 0 | K116: ='ročni vnos'!K109 -> 0 | L116: 0 | M116: 0 | N116: 0 | O116: 0 | P116: 0
B117: 80 | C117: =IF(LEN('ročni vnos'!C110)>0,'ročni vnos'!C110,"") ->  | D117: ='ročni vnos'!D110 -> 0 | E117: ='ročni vnos'!E110*$D$34 -> 0 | F117: ='ročni vnos'!F110*$D$35 -> 0 | G117: ='ročni vnos'!G110*$D$35 -> 0 | H117: ='ročni vnos'!H110*$D$35 -> 0 | I117: ='ročni vnos'!I110*$D$35 -> 0 | J117: ='ročni vnos'!J110*$D$35 -> 0 | K117: ='ročni vnos'!K110 -> 0 | L117: 0 | M117: 0 | N117: 0 | O117: 0 | P117: 0
B118: 81 | C118: =IF(LEN('ročni vnos'!C111)>0,'ročni vnos'!C111,"") ->  | D118: ='ročni vnos'!D111 -> 0 | E118: ='ročni vnos'!E111*$D$34 -> 0 | F118: ='ročni vnos'!F111*$D$35 -> 0 | G118: ='ročni vnos'!G111*$D$35 -> 0 | H118: ='ročni vnos'!H111*$D$35 -> 0 | I118: ='ročni vnos'!I111*$D$35 -> 0 | J118: ='ročni vnos'!J111*$D$35 -> 0 | K118: ='ročni vnos'!K111 -> 0 | L118: 0 | M118: 0 | N118: 0 | O118: 0 | P118: 0
B119: 82 | C119: =IF(LEN('ročni vnos'!C112)>0,'ročni vnos'!C112,"") ->  | D119: ='ročni vnos'!D112 -> 0 | E119: ='ročni vnos'!E112*$D$34 -> 0 | F119: ='ročni vnos'!F112*$D$35 -> 0 | G119: ='ročni vnos'!G112*$D$35 -> 0 | H119: ='ročni vnos'!H112*$D$35 -> 0 | I119: ='ročni vnos'!I112*$D$35 -> 0 | J119: ='ročni vnos'!J112*$D$35 -> 0 | K119: ='ročni vnos'!K112 -> 0 | L119: 0 | M119: 0 | N119: 0 | O119: 0 | P119: 0
B120: 83 | C120: =IF(LEN('ročni vnos'!C113)>0,'ročni vnos'!C113,"") ->  | D120: ='ročni vnos'!D113 -> 0 | E120: ='ročni vnos'!E113*$D$34 -> 0 | F120: ='ročni vnos'!F113*$D$35 -> 0 | G120: ='ročni vnos'!G113*$D$35 -> 0 | H120: ='ročni vnos'!H113*$D$35 -> 0 | I120: ='ročni vnos'!I113*$D$35 -> 0 | J120: ='ročni vnos'!J113*$D$35 -> 0 | K120: ='ročni vnos'!K113 -> 0 | L120: 0 | M120: 0 | N120: 0 | O120: 0 | P120: 0
B121: 84 | C121: =IF(LEN('ročni vnos'!C114)>0,'ročni vnos'!C114,"") ->  | D121: ='ročni vnos'!D114 -> 0 | E121: ='ročni vnos'!E114*$D$34 -> 0 | F121: ='ročni vnos'!F114*$D$35 -> 0 | G121: ='ročni vnos'!G114*$D$35 -> 0 | H121: ='ročni vnos'!H114*$D$35 -> 0 | I121: ='ročni vnos'!I114*$D$35 -> 0 | J121: ='ročni vnos'!J114*$D$35 -> 0 | K121: ='ročni vnos'!K114 -> 0 | L121: 0 | M121: 0 | N121: 0 | O121: 0 | P121: 0
B122: 85 | C122: =IF(LEN('ročni vnos'!C115)>0,'ročni vnos'!C115,"") ->  | D122: ='ročni vnos'!D115 -> 0 | E122: ='ročni vnos'!E115*$D$34 -> 0 | F122: ='ročni vnos'!F115*$D$35 -> 0 | G122: ='ročni vnos'!G115*$D$35 -> 0 | H122: ='ročni vnos'!H115*$D$35 -> 0 | I122: ='ročni vnos'!I115*$D$35 -> 0 | J122: ='ročni vnos'!J115*$D$35 -> 0 | K122: ='ročni vnos'!K115 -> 0 | L122: 0 | M122: 0 | N122: 0 | O122: 0 | P122: 0
B123: 86 | C123: =IF(LEN('ročni vnos'!C116)>0,'ročni vnos'!C116,"") ->  | D123: ='ročni vnos'!D116 -> 0 | E123: ='ročni vnos'!E116*$D$34 -> 0 | F123: ='ročni vnos'!F116*$D$35 -> 0 | G123: ='ročni vnos'!G116*$D$35 -> 0 | H123: ='ročni vnos'!H116*$D$35 -> 0 | I123: ='ročni vnos'!I116*$D$35 -> 0 | J123: ='ročni vnos'!J116*$D$35 -> 0 | K123: ='ročni vnos'!K116 -> 0 | L123: 0 | M123: 0 | N123: 0 | O123: 0 | P123: 0
B124: 87 | C124: =IF(LEN('ročni vnos'!C117)>0,'ročni vnos'!C117,"") ->  | D124: ='ročni vnos'!D117 -> 0 | E124: ='ročni vnos'!E117*$D$34 -> 0 | F124: ='ročni vnos'!F117*$D$35 -> 0 | G124: ='ročni vnos'!G117*$D$35 -> 0 | H124: ='ročni vnos'!H117*$D$35 -> 0 | I124: ='ročni vnos'!I117*$D$35 -> 0 | J124: ='ročni vnos'!J117*$D$35 -> 0 | K124: ='ročni vnos'!K117 -> 0 | L124: 0 | M124: 0 | N124: 0 | O124: 0 | P124: 0
B125: 88 | C125: =IF(LEN('ročni vnos'!C118)>0,'ročni vnos'!C118,"") ->  | D125: ='ročni vnos'!D118 -> 0 | E125: ='ročni vnos'!E118*$D$34 -> 0 | F125: ='ročni vnos'!F118*$D$35 -> 0 | G125: ='ročni vnos'!G118*$D$35 -> 0 | H125: ='ročni vnos'!H118*$D$35 -> 0 | I125: ='ročni vnos'!I118*$D$35 -> 0 | J125: ='ročni vnos'!J118*$D$35 -> 0 | K125: ='ročni vnos'!K118 -> 0 | L125: 0 | M125: 0 | N125: 0 | O125: 0 | P125: 0
B126: 89 | C126: =IF(LEN('ročni vnos'!C119)>0,'ročni vnos'!C119,"") ->  | D126: ='ročni vnos'!D119 -> 0 | E126: ='ročni vnos'!E119*$D$34 -> 0 | F126: ='ročni vnos'!F119*$D$35 -> 0 | G126: ='ročni vnos'!G119*$D$35 -> 0 | H126: ='ročni vnos'!H119*$D$35 -> 0 | I126: ='ročni vnos'!I119*$D$35 -> 0 | J126: ='ročni vnos'!J119*$D$35 -> 0 | K126: ='ročni vnos'!K119 -> 0 | L126: 0 | M126: 0 | N126: 0 | O126: 0 | P126: 0
B127: 90 | C127: =IF(LEN('ročni vnos'!C120)>0,'ročni vnos'!C120,"") ->  | D127: ='ročni vnos'!D120 -> 0 | E127: ='ročni vnos'!E120*$D$34 -> 0 | F127: ='ročni vnos'!F120*$D$35 -> 0 | G127: ='ročni vnos'!G120*$D$35 -> 0 | H127: ='ročni vnos'!H120*$D$35 -> 0 | I127: ='ročni vnos'!I120*$D$35 -> 0 | J127: ='ročni vnos'!J120*$D$35 -> 0 | K127: ='ročni vnos'!K120 -> 0 | L127: 0 | M127: 0 | N127: 0 | O127: 0 | P127: 0
B128: 91 | C128: =IF(LEN('ročni vnos'!C121)>0,'ročni vnos'!C121,"") ->  | D128: ='ročni vnos'!D121 -> 0 | E128: ='ročni vnos'!E121*$D$34 -> 0 | F128: ='ročni vnos'!F121*$D$35 -> 0 | G128: ='ročni vnos'!G121*$D$35 -> 0 | H128: ='ročni vnos'!H121*$D$35 -> 0 | I128: ='ročni vnos'!I121*$D$35 -> 0 | J128: ='ročni vnos'!J121*$D$35 -> 0 | K128: ='ročni vnos'!K121 -> 0 | L128: 0 | M128: 0 | N128: 0 | O128: 0 | P128: 0
B129: 92 | C129: =IF(LEN('ročni vnos'!C122)>0,'ročni vnos'!C122,"") ->  | D129: ='ročni vnos'!D122 -> 0 | E129: ='ročni vnos'!E122*$D$34 -> 0 | F129: ='ročni vnos'!F122*$D$35 -> 0 | G129: ='ročni vnos'!G122*$D$35 -> 0 | H129: ='ročni vnos'!H122*$D$35 -> 0 | I129: ='ročni vnos'!I122*$D$35 -> 0 | J129: ='ročni vnos'!J122*$D$35 -> 0 | K129: ='ročni vnos'!K122 -> 0 | L129: 0 | M129: 0 | N129: 0 | O129: 0 | P129: 0
B130: 93 | C130: =IF(LEN('ročni vnos'!C123)>0,'ročni vnos'!C123,"") ->  | D130: ='ročni vnos'!D123 -> 0 | E130: ='ročni vnos'!E123*$D$34 -> 0 | F130: ='ročni vnos'!F123*$D$35 -> 0 | G130: ='ročni vnos'!G123*$D$35 -> 0 | H130: ='ročni vnos'!H123*$D$35 -> 0 | I130: ='ročni vnos'!I123*$D$35 -> 0 | J130: ='ročni vnos'!J123*$D$35 -> 0 | K130: ='ročni vnos'!K123 -> 0 | L130: 0 | M130: 0 | N130: 0 | O130: 0 | P130: 0
B131: 94 | C131: =IF(LEN('ročni vnos'!C124)>0,'ročni vnos'!C124,"") ->  | D131: ='ročni vnos'!D124 -> 0 | E131: ='ročni vnos'!E124*$D$34 -> 0 | F131: ='ročni vnos'!F124*$D$35 -> 0 | G131: ='ročni vnos'!G124*$D$35 -> 0 | H131: ='ročni vnos'!H124*$D$35 -> 0 | I131: ='ročni vnos'!I124*$D$35 -> 0 | J131: ='ročni vnos'!J124*$D$35 -> 0 | K131: ='ročni vnos'!K124 -> 0 | L131: 0 | M131: 0 | N131: 0 | O131: 0 | P131: 0
B132: 95 | C132: =IF(LEN('ročni vnos'!C125)>0,'ročni vnos'!C125,"") ->  | D132: ='ročni vnos'!D125 -> 0 | E132: ='ročni vnos'!E125*$D$34 -> 0 | F132: ='ročni vnos'!F125*$D$35 -> 0 | G132: ='ročni vnos'!G125*$D$35 -> 0 | H132: ='ročni vnos'!H125*$D$35 -> 0 | I132: ='ročni vnos'!I125*$D$35 -> 0 | J132: ='ročni vnos'!J125*$D$35 -> 0 | K132: ='ročni vnos'!K125 -> 0 | L132: 0 | M132: 0 | N132: 0 | O132: 0 | P132: 0
B133: 96 | C133: =IF(LEN('ročni vnos'!C126)>0,'ročni vnos'!C126,"") ->  | D133: ='ročni vnos'!D126 -> 0 | E133: ='ročni vnos'!E126*$D$34 -> 0 | F133: ='ročni vnos'!F126*$D$35 -> 0 | G133: ='ročni vnos'!G126*$D$35 -> 0 | H133: ='ročni vnos'!H126*$D$35 -> 0 | I133: ='ročni vnos'!I126*$D$35 -> 0 | J133: ='ročni vnos'!J126*$D$35 -> 0 | K133: ='ročni vnos'!K126 -> 0 | L133: 0 | M133: 0 | N133: 0 | O133: 0 | P133: 0
B134: 97 | C134: =IF(LEN('ročni vnos'!C127)>0,'ročni vnos'!C127,"") ->  | D134: ='ročni vnos'!D127 -> 0 | E134: ='ročni vnos'!E127*$D$34 -> 0 | F134: ='ročni vnos'!F127*$D$35 -> 0 | G134: ='ročni vnos'!G127*$D$35 -> 0 | H134: ='ročni vnos'!H127*$D$35 -> 0 | I134: ='ročni vnos'!I127*$D$35 -> 0 | J134: ='ročni vnos'!J127*$D$35 -> 0 | K134: ='ročni vnos'!K127 -> 0 | L134: 0 | M134: 0 | N134: 0 | O134: 0 | P134: 0
B135: 98 | C135: =IF(LEN('ročni vnos'!C128)>0,'ročni vnos'!C128,"") ->  | D135: ='ročni vnos'!D128 -> 0 | E135: ='ročni vnos'!E128*$D$34 -> 0 | F135: ='ročni vnos'!F128*$D$35 -> 0 | G135: ='ročni vnos'!G128*$D$35 -> 0 | H135: ='ročni vnos'!H128*$D$35 -> 0 | I135: ='ročni vnos'!I128*$D$35 -> 0 | J135: ='ročni vnos'!J128*$D$35 -> 0 | K135: ='ročni vnos'!K128 -> 0 | L135: 0 | M135: 0 | N135: 0 | O135: 0 | P135: 0
B136: 99 | C136: =IF(LEN('ročni vnos'!C129)>0,'ročni vnos'!C129,"") ->  | D136: ='ročni vnos'!D129 -> 0 | E136: ='ročni vnos'!E129*$D$34 -> 0 | F136: ='ročni vnos'!F129*$D$35 -> 0 | G136: ='ročni vnos'!G129*$D$35 -> 0 | H136: ='ročni vnos'!H129*$D$35 -> 0 | I136: ='ročni vnos'!I129*$D$35 -> 0 | J136: ='ročni vnos'!J129*$D$35 -> 0 | K136: ='ročni vnos'!K129 -> 0 | L136: 0 | M136: 0 | N136: 0 | O136: 0 | P136: 0
B137: 100 | C137: =IF(LEN('ročni vnos'!C130)>0,'ročni vnos'!C130,"") ->  | D137: ='ročni vnos'!D130 -> 0 | E137: ='ročni vnos'!E130*$D$34 -> 0 | F137: ='ročni vnos'!F130*$D$35 -> 0 | G137: ='ročni vnos'!G130*$D$35 -> 0 | H137: ='ročni vnos'!H130*$D$35 -> 0 | I137: ='ročni vnos'!I130*$D$35 -> 0 | J137: ='ročni vnos'!J130*$D$35 -> 0 | K137: ='ročni vnos'!K130 -> 0 | L137: 0 | M137: 0 | N137: 0 | O137: 0 | P137: 0
B138: 101 | C138: =IF(LEN('ročni vnos'!C131)>0,'ročni vnos'!C131,"") ->  | D138: ='ročni vnos'!D131 -> 0 | E138: ='ročni vnos'!E131*$D$34 -> 0 | F138: ='ročni vnos'!F131*$D$35 -> 0 | G138: ='ročni vnos'!G131*$D$35 -> 0 | H138: ='ročni vnos'!H131*$D$35 -> 0 | I138: ='ročni vnos'!I131*$D$35 -> 0 | J138: ='ročni vnos'!J131*$D$35 -> 0 | K138: ='ročni vnos'!K131 -> 0 | L138: 0 | M138: 0 | N138: 0 | O138: 0 | P138: 0
B139: 102 | C139: =IF(LEN('ročni vnos'!C132)>0,'ročni vnos'!C132,"") ->  | D139: ='ročni vnos'!D132 -> 0 | E139: ='ročni vnos'!E132*$D$34 -> 0 | F139: ='ročni vnos'!F132*$D$35 -> 0 | G139: ='ročni vnos'!G132*$D$35 -> 0 | H139: ='ročni vnos'!H132*$D$35 -> 0 | I139: ='ročni vnos'!I132*$D$35 -> 0 | J139: ='ročni vnos'!J132*$D$35 -> 0 | K139: ='ročni vnos'!K132 -> 0 | L139: 0 | M139: 0 | N139: 0 | O139: 0 | P139: 0
B140: 103 | C140: =IF(LEN('ročni vnos'!C133)>0,'ročni vnos'!C133,"") ->  | D140: ='ročni vnos'!D133 -> 0 | E140: ='ročni vnos'!E133*$D$34 -> 0 | F140: ='ročni vnos'!F133*$D$35 -> 0 | G140: ='ročni vnos'!G133*$D$35 -> 0 | H140: ='ročni vnos'!H133*$D$35 -> 0 | I140: ='ročni vnos'!I133*$D$35 -> 0 | J140: ='ročni vnos'!J133*$D$35 -> 0 | K140: ='ročni vnos'!K133 -> 0 | L140: 0 | M140: 0 | N140: 0 | O140: 0 | P140: 0
B141: 104 | C141: =IF(LEN('ročni vnos'!C134)>0,'ročni vnos'!C134,"") ->  | D141: ='ročni vnos'!D134 -> 0 | E141: ='ročni vnos'!E134*$D$34 -> 0 | F141: ='ročni vnos'!F134*$D$35 -> 0 | G141: ='ročni vnos'!G134*$D$35 -> 0 | H141: ='ročni vnos'!H134*$D$35 -> 0 | I141: ='ročni vnos'!I134*$D$35 -> 0 | J141: ='ročni vnos'!J134*$D$35 -> 0 | K141: ='ročni vnos'!K134 -> 0 | L141: 0 | M141: 0 | N141: 0 | O141: 0 | P141: 0
B142: 105 | C142: =IF(LEN('ročni vnos'!C135)>0,'ročni vnos'!C135,"") ->  | D142: ='ročni vnos'!D135 -> 0 | E142: ='ročni vnos'!E135*$D$34 -> 0 | F142: ='ročni vnos'!F135*$D$35 -> 0 | G142: ='ročni vnos'!G135*$D$35 -> 0 | H142: ='ročni vnos'!H135*$D$35 -> 0 | I142: ='ročni vnos'!I135*$D$35 -> 0 | J142: ='ročni vnos'!J135*$D$35 -> 0 | K142: ='ročni vnos'!K135 -> 0 | L142: 0 | M142: 0 | N142: 0 | O142: 0 | P142: 0
B143: 106 | C143: =IF(LEN('ročni vnos'!C136)>0,'ročni vnos'!C136,"") ->  | D143: ='ročni vnos'!D136 -> 0 | E143: ='ročni vnos'!E136*$D$34 -> 0 | F143: ='ročni vnos'!F136*$D$35 -> 0 | G143: ='ročni vnos'!G136*$D$35 -> 0 | H143: ='ročni vnos'!H136*$D$35 -> 0 | I143: ='ročni vnos'!I136*$D$35 -> 0 | J143: ='ročni vnos'!J136*$D$35 -> 0 | K143: ='ročni vnos'!K136 -> 0 | L143: 0 | M143: 0 | N143: 0 | O143: 0 | P143: 0
B144: 107 | C144: =IF(LEN('ročni vnos'!C137)>0,'ročni vnos'!C137,"") ->  | D144: ='ročni vnos'!D137 -> 0 | E144: ='ročni vnos'!E137*$D$34 -> 0 | F144: ='ročni vnos'!F137*$D$35 -> 0 | G144: ='ročni vnos'!G137*$D$35 -> 0 | H144: ='ročni vnos'!H137*$D$35 -> 0 | I144: ='ročni vnos'!I137*$D$35 -> 0 | J144: ='ročni vnos'!J137*$D$35 -> 0 | K144: ='ročni vnos'!K137 -> 0 | L144: 0 | M144: 0 | N144: 0 | O144: 0 | P144: 0
B145: 108 | C145: =IF(LEN('ročni vnos'!C138)>0,'ročni vnos'!C138,"") ->  | D145: ='ročni vnos'!D138 -> 0 | E145: ='ročni vnos'!E138*$D$34 -> 0 | F145: ='ročni vnos'!F138*$D$35 -> 0 | G145: ='ročni vnos'!G138*$D$35 -> 0 | H145: ='ročni vnos'!H138*$D$35 -> 0 | I145: ='ročni vnos'!I138*$D$35 -> 0 | J145: ='ročni vnos'!J138*$D$35 -> 0 | K145: ='ročni vnos'!K138 -> 0 | L145: 0 | M145: 0 | N145: 0 | O145: 0 | P145: 0
B146: 109 | C146: =IF(LEN('ročni vnos'!C139)>0,'ročni vnos'!C139,"") ->  | D146: ='ročni vnos'!D139 -> 0 | E146: ='ročni vnos'!E139*$D$34 -> 0 | F146: ='ročni vnos'!F139*$D$35 -> 0 | G146: ='ročni vnos'!G139*$D$35 -> 0 | H146: ='ročni vnos'!H139*$D$35 -> 0 | I146: ='ročni vnos'!I139*$D$35 -> 0 | J146: ='ročni vnos'!J139*$D$35 -> 0 | K146: ='ročni vnos'!K139 -> 0 | L146: 0 | M146: 0 | N146: 0 | O146: 0 | P146: 0
B147: 110 | C147: =IF(LEN('ročni vnos'!C140)>0,'ročni vnos'!C140,"") ->  | D147: ='ročni vnos'!D140 -> 0 | E147: ='ročni vnos'!E140*$D$34 -> 0 | F147: ='ročni vnos'!F140*$D$35 -> 0 | G147: ='ročni vnos'!G140*$D$35 -> 0 | H147: ='ročni vnos'!H140*$D$35 -> 0 | I147: ='ročni vnos'!I140*$D$35 -> 0 | J147: ='ročni vnos'!J140*$D$35 -> 0 | K147: ='ročni vnos'!K140 -> 0 | L147: 0 | M147: 0 | N147: 0 | O147: 0 | P147: 0
B148: 111 | C148: =IF(LEN('ročni vnos'!C141)>0,'ročni vnos'!C141,"") ->  | D148: ='ročni vnos'!D141 -> 0 | E148: ='ročni vnos'!E141*$D$34 -> 0 | F148: ='ročni vnos'!F141*$D$35 -> 0 | G148: ='ročni vnos'!G141*$D$35 -> 0 | H148: ='ročni vnos'!H141*$D$35 -> 0 | I148: ='ročni vnos'!I141*$D$35 -> 0 | J148: ='ročni vnos'!J141*$D$35 -> 0 | K148: ='ročni vnos'!K141 -> 0 | L148: 0 | M148: 0 | N148: 0 | O148: 0 | P148: 0
B149: 112 | C149: =IF(LEN('ročni vnos'!C142)>0,'ročni vnos'!C142,"") ->  | D149: ='ročni vnos'!D142 -> 0 | E149: ='ročni vnos'!E142*$D$34 -> 0 | F149: ='ročni vnos'!F142*$D$35 -> 0 | G149: ='ročni vnos'!G142*$D$35 -> 0 | H149: ='ročni vnos'!H142*$D$35 -> 0 | I149: ='ročni vnos'!I142*$D$35 -> 0 | J149: ='ročni vnos'!J142*$D$35 -> 0 | K149: ='ročni vnos'!K142 -> 0 | L149: 0 | M149: 0 | N149: 0 | O149: 0 | P149: 0
B150: 113 | C150: =IF(LEN('ročni vnos'!C143)>0,'ročni vnos'!C143,"") ->  | D150: ='ročni vnos'!D143 -> 0 | E150: ='ročni vnos'!E143*$D$34 -> 0 | F150: ='ročni vnos'!F143*$D$35 -> 0 | G150: ='ročni vnos'!G143*$D$35 -> 0 | H150: ='ročni vnos'!H143*$D$35 -> 0 | I150: ='ročni vnos'!I143*$D$35 -> 0 | J150: ='ročni vnos'!J143*$D$35 -> 0 | K150: ='ročni vnos'!K143 -> 0 | L150: 0 | M150: 0 | N150: 0 | O150: 0 | P150: 0
B151: 114 | C151: =IF(LEN('ročni vnos'!C144)>0,'ročni vnos'!C144,"") ->  | D151: ='ročni vnos'!D144 -> 0 | E151: ='ročni vnos'!E144*$D$34 -> 0 | F151: ='ročni vnos'!F144*$D$35 -> 0 | G151: ='ročni vnos'!G144*$D$35 -> 0 | H151: ='ročni vnos'!H144*$D$35 -> 0 | I151: ='ročni vnos'!I144*$D$35 -> 0 | J151: ='ročni vnos'!J144*$D$35 -> 0 | K151: ='ročni vnos'!K144 -> 0 | L151: 0 | M151: 0 | N151: 0 | O151: 0 | P151: 0
B152: 115 | C152: =IF(LEN('ročni vnos'!C145)>0,'ročni vnos'!C145,"") ->  | D152: ='ročni vnos'!D145 -> 0 | E152: ='ročni vnos'!E145*$D$34 -> 0 | F152: ='ročni vnos'!F145*$D$35 -> 0 | G152: ='ročni vnos'!G145*$D$35 -> 0 | H152: ='ročni vnos'!H145*$D$35 -> 0 | I152: ='ročni vnos'!I145*$D$35 -> 0 | J152: ='ročni vnos'!J145*$D$35 -> 0 | K152: ='ročni vnos'!K145 -> 0 | L152: 0 | M152: 0 | N152: 0 | O152: 0 | P152: 0
B153: 116 | C153: =IF(LEN('ročni vnos'!C146)>0,'ročni vnos'!C146,"") ->  | D153: ='ročni vnos'!D146 -> 0 | E153: ='ročni vnos'!E146*$D$34 -> 0 | F153: ='ročni vnos'!F146*$D$35 -> 0 | G153: ='ročni vnos'!G146*$D$35 -> 0 | H153: ='ročni vnos'!H146*$D$35 -> 0 | I153: ='ročni vnos'!I146*$D$35 -> 0 | J153: ='ročni vnos'!J146*$D$35 -> 0 | K153: ='ročni vnos'!K146 -> 0 | L153: 0 | M153: 0 | N153: 0 | O153: 0 | P153: 0
B154: 117 | C154: =IF(LEN('ročni vnos'!C147)>0,'ročni vnos'!C147,"") ->  | D154: ='ročni vnos'!D147 -> 0 | E154: ='ročni vnos'!E147*$D$34 -> 0 | F154: ='ročni vnos'!F147*$D$35 -> 0 | G154: ='ročni vnos'!G147*$D$35 -> 0 | H154: ='ročni vnos'!H147*$D$35 -> 0 | I154: ='ročni vnos'!I147*$D$35 -> 0 | J154: ='ročni vnos'!J147*$D$35 -> 0 | K154: ='ročni vnos'!K147 -> 0 | L154: 0 | M154: 0 | N154: 0 | O154: 0 | P154: 0
B155: 118 | C155: =IF(LEN('ročni vnos'!C148)>0,'ročni vnos'!C148,"") ->  | D155: ='ročni vnos'!D148 -> 0 | E155: ='ročni vnos'!E148*$D$34 -> 0 | F155: ='ročni vnos'!F148*$D$35 -> 0 | G155: ='ročni vnos'!G148*$D$35 -> 0 | H155: ='ročni vnos'!H148*$D$35 -> 0 | I155: ='ročni vnos'!I148*$D$35 -> 0 | J155: ='ročni vnos'!J148*$D$35 -> 0 | K155: ='ročni vnos'!K148 -> 0 | L155: 0 | M155: 0 | N155: 0 | O155: 0 | P155: 0
B156: 119 | C156: =IF(LEN('ročni vnos'!C149)>0,'ročni vnos'!C149,"") ->  | D156: ='ročni vnos'!D149 -> 0 | E156: ='ročni vnos'!E149*$D$34 -> 0 | F156: ='ročni vnos'!F149*$D$35 -> 0 | G156: ='ročni vnos'!G149*$D$35 -> 0 | H156: ='ročni vnos'!H149*$D$35 -> 0 | I156: ='ročni vnos'!I149*$D$35 -> 0 | J156: ='ročni vnos'!J149*$D$35 -> 0 | K156: ='ročni vnos'!K149 -> 0 | L156: 0 | M156: 0 | N156: 0 | O156: 0 | P156: 0
B157: 120 | C157: =IF(LEN('ročni vnos'!C150)>0,'ročni vnos'!C150,"") ->  | D157: ='ročni vnos'!D150 -> 0 | E157: ='ročni vnos'!E150*$D$34 -> 0 | F157: ='ročni vnos'!F150*$D$35 -> 0 | G157: ='ročni vnos'!G150*$D$35 -> 0 | H157: ='ročni vnos'!H150*$D$35 -> 0 | I157: ='ročni vnos'!I150*$D$35 -> 0 | J157: ='ročni vnos'!J150*$D$35 -> 0 | K157: ='ročni vnos'!K150 -> 0 | L157: 0 | M157: 0 | N157: 0 | O157: 0 | P157: 0
B158: 121 | C158: =IF(LEN('ročni vnos'!C151)>0,'ročni vnos'!C151,"") ->  | D158: ='ročni vnos'!D151 -> 0 | E158: ='ročni vnos'!E151*$D$34 -> 0 | F158: ='ročni vnos'!F151*$D$35 -> 0 | G158: ='ročni vnos'!G151*$D$35 -> 0 | H158: ='ročni vnos'!H151*$D$35 -> 0 | I158: ='ročni vnos'!I151*$D$35 -> 0 | J158: ='ročni vnos'!J151*$D$35 -> 0 | K158: ='ročni vnos'!K151 -> 0 | L158: 0 | M158: 0 | N158: 0 | O158: 0 | P158: 0
B159: 122 | C159: =IF(LEN('ročni vnos'!C152)>0,'ročni vnos'!C152,"") ->  | D159: ='ročni vnos'!D152 -> 0 | E159: ='ročni vnos'!E152*$D$34 -> 0 | F159: ='ročni vnos'!F152*$D$35 -> 0 | G159: ='ročni vnos'!G152*$D$35 -> 0 | H159: ='ročni vnos'!H152*$D$35 -> 0 | I159: ='ročni vnos'!I152*$D$35 -> 0 | J159: ='ročni vnos'!J152*$D$35 -> 0 | K159: ='ročni vnos'!K152 -> 0 | L159: 0 | M159: 0 | N159: 0 | O159: 0 | P159: 0
B160: 123 | C160: =IF(LEN('ročni vnos'!C153)>0,'ročni vnos'!C153,"") ->  | D160: ='ročni vnos'!D153 -> 0 | E160: ='ročni vnos'!E153*$D$34 -> 0 | F160: ='ročni vnos'!F153*$D$35 -> 0 | G160: ='ročni vnos'!G153*$D$35 -> 0 | H160: ='ročni vnos'!H153*$D$35 -> 0 | I160: ='ročni vnos'!I153*$D$35 -> 0 | J160: ='ročni vnos'!J153*$D$35 -> 0 | K160: ='ročni vnos'!K153 -> 0 | L160: 0 | M160: 0 | N160: 0 | O160: 0 | P160: 0
B161: 124 | C161: =IF(LEN('ročni vnos'!C154)>0,'ročni vnos'!C154,"") ->  | D161: ='ročni vnos'!D154 -> 0 | E161: ='ročni vnos'!E154*$D$34 -> 0 | F161: ='ročni vnos'!F154*$D$35 -> 0 | G161: ='ročni vnos'!G154*$D$35 -> 0 | H161: ='ročni vnos'!H154*$D$35 -> 0 | I161: ='ročni vnos'!I154*$D$35 -> 0 | J161: ='ročni vnos'!J154*$D$35 -> 0 | K161: ='ročni vnos'!K154 -> 0 | L161: 0 | M161: 0 | N161: 0 | O161: 0 | P161: 0
B162: 125 | C162: =IF(LEN('ročni vnos'!C155)>0,'ročni vnos'!C155,"") ->  | D162: ='ročni vnos'!D155 -> 0 | E162: ='ročni vnos'!E155*$D$34 -> 0 | F162: ='ročni vnos'!F155*$D$35 -> 0 | G162: ='ročni vnos'!G155*$D$35 -> 0 | H162: ='ročni vnos'!H155*$D$35 -> 0 | I162: ='ročni vnos'!I155*$D$35 -> 0 | J162: ='ročni vnos'!J155*$D$35 -> 0 | K162: ='ročni vnos'!K155 -> 0 | L162: 0 | M162: 0 | N162: 0 | O162: 0 | P162: 0
B163: 126 | C163: =IF(LEN('ročni vnos'!C156)>0,'ročni vnos'!C156,"") ->  | D163: ='ročni vnos'!D156 -> 0 | E163: ='ročni vnos'!E156*$D$34 -> 0 | F163: ='ročni vnos'!F156*$D$35 -> 0 | G163: ='ročni vnos'!G156*$D$35 -> 0 | H163: ='ročni vnos'!H156*$D$35 -> 0 | I163: ='ročni vnos'!I156*$D$35 -> 0 | J163: ='ročni vnos'!J156*$D$35 -> 0 | K163: ='ročni vnos'!K156 -> 0 | L163: 0 | M163: 0 | N163: 0 | O163: 0 | P163: 0
B164: 127 | C164: =IF(LEN('ročni vnos'!C157)>0,'ročni vnos'!C157,"") ->  | D164: ='ročni vnos'!D157 -> 0 | E164: ='ročni vnos'!E157*$D$34 -> 0 | F164: ='ročni vnos'!F157*$D$35 -> 0 | G164: ='ročni vnos'!G157*$D$35 -> 0 | H164: ='ročni vnos'!H157*$D$35 -> 0 | I164: ='ročni vnos'!I157*$D$35 -> 0 | J164: ='ročni vnos'!J157*$D$35 -> 0 | K164: ='ročni vnos'!K157 -> 0 | L164: 0 | M164: 0 | N164: 0 | O164: 0 | P164: 0
B165: 128 | C165: =IF(LEN('ročni vnos'!C158)>0,'ročni vnos'!C158,"") ->  | D165: ='ročni vnos'!D158 -> 0 | E165: ='ročni vnos'!E158*$D$34 -> 0 | F165: ='ročni vnos'!F158*$D$35 -> 0 | G165: ='ročni vnos'!G158*$D$35 -> 0 | H165: ='ročni vnos'!H158*$D$35 -> 0 | I165: ='ročni vnos'!I158*$D$35 -> 0 | J165: ='ročni vnos'!J158*$D$35 -> 0 | K165: ='ročni vnos'!K158 -> 0 | L165: 0 | M165: 0 | N165: 0 | O165: 0 | P165: 0
B166: 129 | C166: =IF(LEN('ročni vnos'!C159)>0,'ročni vnos'!C159,"") ->  | D166: ='ročni vnos'!D159 -> 0 | E166: ='ročni vnos'!E159*$D$34 -> 0 | F166: ='ročni vnos'!F159*$D$35 -> 0 | G166: ='ročni vnos'!G159*$D$35 -> 0 | H166: ='ročni vnos'!H159*$D$35 -> 0 | I166: ='ročni vnos'!I159*$D$35 -> 0 | J166: ='ročni vnos'!J159*$D$35 -> 0 | K166: ='ročni vnos'!K159 -> 0 | L166: 0 | M166: 0 | N166: 0 | O166: 0 | P166: 0
B167: 130 | C167: =IF(LEN('ročni vnos'!C160)>0,'ročni vnos'!C160,"") ->  | D167: ='ročni vnos'!D160 -> 0 | E167: ='ročni vnos'!E160*$D$34 -> 0 | F167: ='ročni vnos'!F160*$D$35 -> 0 | G167: ='ročni vnos'!G160*$D$35 -> 0 | H167: ='ročni vnos'!H160*$D$35 -> 0 | I167: ='ročni vnos'!I160*$D$35 -> 0 | J167: ='ročni vnos'!J160*$D$35 -> 0 | K167: ='ročni vnos'!K160 -> 0 | L167: =SUM(E167:K167) -> 0 | M167: =+D167*L167 -> 0 | N167: =D167*E167 -> 0 | O167: =(F167+G167+H167+I167+J167)*D167 -> 0 | P167: =+D167*K167 -> 0 | Q167: =IF(SUM(E167:K167)>30%,"VSOTA MORA BITI MANJŠA ALI ENAKA 30%","") -> 
B168: 131 | C168: =IF(LEN('ročni vnos'!C161)>0,'ročni vnos'!C161,"") ->  | D168: ='ročni vnos'!D161 -> 0 | E168: ='ročni vnos'!E161*$D$34 -> 0 | F168: ='ročni vnos'!F161*$D$35 -> 0 | G168: ='ročni vnos'!G161*$D$35 -> 0 | H168: ='ročni vnos'!H161*$D$35 -> 0 | I168: ='ročni vnos'!I161*$D$35 -> 0 | J168: ='ročni vnos'!J161*$D$35 -> 0 | K168: ='ročni vnos'!K161 -> 0 | L168: 0 | M168: 0 | N168: 0 | O168: 0 | P168: 0
B169: 132 | C169: =IF(LEN('ročni vnos'!C162)>0,'ročni vnos'!C162,"") ->  | D169: ='ročni vnos'!D162 -> 0 | E169: ='ročni vnos'!E162*$D$34 -> 0 | F169: ='ročni vnos'!F162*$D$35 -> 0 | G169: ='ročni vnos'!G162*$D$35 -> 0 | H169: ='ročni vnos'!H162*$D$35 -> 0 | I169: ='ročni vnos'!I162*$D$35 -> 0 | J169: ='ročni vnos'!J162*$D$35 -> 0 | K169: ='ročni vnos'!K162 -> 0 | L169: 0 | M169: 0 | N169: 0 | O169: 0 | P169: 0
B170: 133 | C170: =IF(LEN('ročni vnos'!C163)>0,'ročni vnos'!C163,"") ->  | D170: ='ročni vnos'!D163 -> 0 | E170: ='ročni vnos'!E163*$D$34 -> 0 | F170: ='ročni vnos'!F163*$D$35 -> 0 | G170: ='ročni vnos'!G163*$D$35 -> 0 | H170: ='ročni vnos'!H163*$D$35 -> 0 | I170: ='ročni vnos'!I163*$D$35 -> 0 | J170: ='ročni vnos'!J163*$D$35 -> 0 | K170: ='ročni vnos'!K163 -> 0 | L170: 0 | M170: 0 | N170: 0 | O170: 0 | P170: 0
B171: 134 | C171: =IF(LEN('ročni vnos'!C164)>0,'ročni vnos'!C164,"") ->  | D171: ='ročni vnos'!D164 -> 0 | E171: ='ročni vnos'!E164*$D$34 -> 0 | F171: ='ročni vnos'!F164*$D$35 -> 0 | G171: ='ročni vnos'!G164*$D$35 -> 0 | H171: ='ročni vnos'!H164*$D$35 -> 0 | I171: ='ročni vnos'!I164*$D$35 -> 0 | J171: ='ročni vnos'!J164*$D$35 -> 0 | K171: ='ročni vnos'!K164 -> 0 | L171: 0 | M171: 0 | N171: 0 | O171: 0 | P171: 0
B172: 135 | C172: =IF(LEN('ročni vnos'!C165)>0,'ročni vnos'!C165,"") ->  | D172: ='ročni vnos'!D165 -> 0 | E172: ='ročni vnos'!E165*$D$34 -> 0 | F172: ='ročni vnos'!F165*$D$35 -> 0 | G172: ='ročni vnos'!G165*$D$35 -> 0 | H172: ='ročni vnos'!H165*$D$35 -> 0 | I172: ='ročni vnos'!I165*$D$35 -> 0 | J172: ='ročni vnos'!J165*$D$35 -> 0 | K172: ='ročni vnos'!K165 -> 0 | L172: 0 | M172: 0 | N172: 0 | O172: 0 | P172: 0
B173: 136 | C173: =IF(LEN('ročni vnos'!C166)>0,'ročni vnos'!C166,"") ->  | D173: ='ročni vnos'!D166 -> 0 | E173: ='ročni vnos'!E166*$D$34 -> 0 | F173: ='ročni vnos'!F166*$D$35 -> 0 | G173: ='ročni vnos'!G166*$D$35 -> 0 | H173: ='ročni vnos'!H166*$D$35 -> 0 | I173: ='ročni vnos'!I166*$D$35 -> 0 | J173: ='ročni vnos'!J166*$D$35 -> 0 | K173: ='ročni vnos'!K166 -> 0 | L173: 0 | M173: 0 | N173: 0 | O173: 0 | P173: 0
B174: 137 | C174: =IF(LEN('ročni vnos'!C167)>0,'ročni vnos'!C167,"") ->  | D174: ='ročni vnos'!D167 -> 0 | E174: ='ročni vnos'!E167*$D$34 -> 0 | F174: ='ročni vnos'!F167*$D$35 -> 0 | G174: ='ročni vnos'!G167*$D$35 -> 0 | H174: ='ročni vnos'!H167*$D$35 -> 0 | I174: ='ročni vnos'!I167*$D$35 -> 0 | J174: ='ročni vnos'!J167*$D$35 -> 0 | K174: ='ročni vnos'!K167 -> 0 | L174: 0 | M174: 0 | N174: 0 | O174: 0 | P174: 0
B175: 138 | C175: =IF(LEN('ročni vnos'!C168)>0,'ročni vnos'!C168,"") ->  | D175: ='ročni vnos'!D168 -> 0 | E175: ='ročni vnos'!E168*$D$34 -> 0 | F175: ='ročni vnos'!F168*$D$35 -> 0 | G175: ='ročni vnos'!G168*$D$35 -> 0 | H175: ='ročni vnos'!H168*$D$35 -> 0 | I175: ='ročni vnos'!I168*$D$35 -> 0 | J175: ='ročni vnos'!J168*$D$35 -> 0 | K175: ='ročni vnos'!K168 -> 0 | L175: 0 | M175: 0 | N175: 0 | O175: 0 | P175: 0
B176: 139 | C176: =IF(LEN('ročni vnos'!C169)>0,'ročni vnos'!C169,"") ->  | D176: ='ročni vnos'!D169 -> 0 | E176: ='ročni vnos'!E169*$D$34 -> 0 | F176: ='ročni vnos'!F169*$D$35 -> 0 | G176: ='ročni vnos'!G169*$D$35 -> 0 | H176: ='ročni vnos'!H169*$D$35 -> 0 | I176: ='ročni vnos'!I169*$D$35 -> 0 | J176: ='ročni vnos'!J169*$D$35 -> 0 | K176: ='ročni vnos'!K169 -> 0 | L176: 0 | M176: 0 | N176: 0 | O176: 0 | P176: 0
B177: 140 | C177: =IF(LEN('ročni vnos'!C170)>0,'ročni vnos'!C170,"") ->  | D177: ='ročni vnos'!D170 -> 0 | E177: ='ročni vnos'!E170*$D$34 -> 0 | F177: ='ročni vnos'!F170*$D$35 -> 0 | G177: ='ročni vnos'!G170*$D$35 -> 0 | H177: ='ročni vnos'!H170*$D$35 -> 0 | I177: ='ročni vnos'!I170*$D$35 -> 0 | J177: ='ročni vnos'!J170*$D$35 -> 0 | K177: ='ročni vnos'!K170 -> 0 | L177: 0 | M177: 0 | N177: 0 | O177: 0 | P177: 0
B178: 141 | C178: =IF(LEN('ročni vnos'!C171)>0,'ročni vnos'!C171,"") ->  | D178: ='ročni vnos'!D171 -> 0 | E178: ='ročni vnos'!E171*$D$34 -> 0 | F178: ='ročni vnos'!F171*$D$35 -> 0 | G178: ='ročni vnos'!G171*$D$35 -> 0 | H178: ='ročni vnos'!H171*$D$35 -> 0 | I178: ='ročni vnos'!I171*$D$35 -> 0 | J178: ='ročni vnos'!J171*$D$35 -> 0 | K178: ='ročni vnos'!K171 -> 0 | L178: 0 | M178: 0 | N178: 0 | O178: 0 | P178: 0
B179: 142 | C179: =IF(LEN('ročni vnos'!C172)>0,'ročni vnos'!C172,"") ->  | D179: ='ročni vnos'!D172 -> 0 | E179: ='ročni vnos'!E172*$D$34 -> 0 | F179: ='ročni vnos'!F172*$D$35 -> 0 | G179: ='ročni vnos'!G172*$D$35 -> 0 | H179: ='ročni vnos'!H172*$D$35 -> 0 | I179: ='ročni vnos'!I172*$D$35 -> 0 | J179: ='ročni vnos'!J172*$D$35 -> 0 | K179: ='ročni vnos'!K172 -> 0 | L179: 0 | M179: 0 | N179: 0 | O179: 0 | P179: 0
B180: 143 | C180: =IF(LEN('ročni vnos'!C173)>0,'ročni vnos'!C173,"") ->  | D180: ='ročni vnos'!D173 -> 0 | E180: ='ročni vnos'!E173*$D$34 -> 0 | F180: ='ročni vnos'!F173*$D$35 -> 0 | G180: ='ročni vnos'!G173*$D$35 -> 0 | H180: ='ročni vnos'!H173*$D$35 -> 0 | I180: ='ročni vnos'!I173*$D$35 -> 0 | J180: ='ročni vnos'!J173*$D$35 -> 0 | K180: ='ročni vnos'!K173 -> 0 | L180: 0 | M180: 0 | N180: 0 | O180: 0 | P180: 0
B181: 144 | C181: =IF(LEN('ročni vnos'!C174)>0,'ročni vnos'!C174,"") ->  | D181: ='ročni vnos'!D174 -> 0 | E181: ='ročni vnos'!E174*$D$34 -> 0 | F181: ='ročni vnos'!F174*$D$35 -> 0 | G181: ='ročni vnos'!G174*$D$35 -> 0 | H181: ='ročni vnos'!H174*$D$35 -> 0 | I181: ='ročni vnos'!I174*$D$35 -> 0 | J181: ='ročni vnos'!J174*$D$35 -> 0 | K181: ='ročni vnos'!K174 -> 0 | L181: 0 | M181: 0 | N181: 0 | O181: 0 | P181: 0
B182: 145 | C182: =IF(LEN('ročni vnos'!C175)>0,'ročni vnos'!C175,"") ->  | D182: ='ročni vnos'!D175 -> 0 | E182: ='ročni vnos'!E175*$D$34 -> 0 | F182: ='ročni vnos'!F175*$D$35 -> 0 | G182: ='ročni vnos'!G175*$D$35 -> 0 | H182: ='ročni vnos'!H175*$D$35 -> 0 | I182: ='ročni vnos'!I175*$D$35 -> 0 | J182: ='ročni vnos'!J175*$D$35 -> 0 | K182: ='ročni vnos'!K175 -> 0 | L182: 0 | M182: 0 | N182: 0 | O182: 0 | P182: 0
B183: 146 | C183: =IF(LEN('ročni vnos'!C176)>0,'ročni vnos'!C176,"") ->  | D183: ='ročni vnos'!D176 -> 0 | E183: ='ročni vnos'!E176*$D$34 -> 0 | F183: ='ročni vnos'!F176*$D$35 -> 0 | G183: ='ročni vnos'!G176*$D$35 -> 0 | H183: ='ročni vnos'!H176*$D$35 -> 0 | I183: ='ročni vnos'!I176*$D$35 -> 0 | J183: ='ročni vnos'!J176*$D$35 -> 0 | K183: ='ročni vnos'!K176 -> 0 | L183: 0 | M183: 0 | N183: 0 | O183: 0 | P183: 0
B184: 147 | C184: =IF(LEN('ročni vnos'!C177)>0,'ročni vnos'!C177,"") ->  | D184: ='ročni vnos'!D177 -> 0 | E184: ='ročni vnos'!E177*$D$34 -> 0 | F184: ='ročni vnos'!F177*$D$35 -> 0 | G184: ='ročni vnos'!G177*$D$35 -> 0 | H184: ='ročni vnos'!H177*$D$35 -> 0 | I184: ='ročni vnos'!I177*$D$35 -> 0 | J184: ='ročni vnos'!J177*$D$35 -> 0 | K184: ='ročni vnos'!K177 -> 0 | L184: 0 | M184: 0 | N184: 0 | O184: 0 | P184: 0
B185: 148 | C185: =IF(LEN('ročni vnos'!C178)>0,'ročni vnos'!C178,"") ->  | D185: ='ročni vnos'!D178 -> 0 | E185: ='ročni vnos'!E178*$D$34 -> 0 | F185: ='ročni vnos'!F178*$D$35 -> 0 | G185: ='ročni vnos'!G178*$D$35 -> 0 | H185: ='ročni vnos'!H178*$D$35 -> 0 | I185: ='ročni vnos'!I178*$D$35 -> 0 | J185: ='ročni vnos'!J178*$D$35 -> 0 | K185: ='ročni vnos'!K178 -> 0 | L185: 0 | M185: 0 | N185: 0 | O185: 0 | P185: 0
B186: 149 | C186: =IF(LEN('ročni vnos'!C179)>0,'ročni vnos'!C179,"") ->  | D186: ='ročni vnos'!D179 -> 0 | E186: ='ročni vnos'!E179*$D$34 -> 0 | F186: ='ročni vnos'!F179*$D$35 -> 0 | G186: ='ročni vnos'!G179*$D$35 -> 0 | H186: ='ročni vnos'!H179*$D$35 -> 0 | I186: ='ročni vnos'!I179*$D$35 -> 0 | J186: ='ročni vnos'!J179*$D$35 -> 0 | K186: ='ročni vnos'!K179 -> 0 | L186: 0 | M186: 0 | N186: 0 | O186: 0 | P186: 0
B187: 150 | C187: =IF(LEN('ročni vnos'!C180)>0,'ročni vnos'!C180,"") ->  | D187: ='ročni vnos'!D180 -> 0 | E187: ='ročni vnos'!E180*$D$34 -> 0 | F187: ='ročni vnos'!F180*$D$35 -> 0 | G187: ='ročni vnos'!G180*$D$35 -> 0 | H187: ='ročni vnos'!H180*$D$35 -> 0 | I187: ='ročni vnos'!I180*$D$35 -> 0 | J187: ='ročni vnos'!J180*$D$35 -> 0 | K187: ='ročni vnos'!K180 -> 0 | L187: 0 | M187: 0 | N187: 0 | O187: 0 | P187: 0
B188: 151 | C188: =IF(LEN('ročni vnos'!C181)>0,'ročni vnos'!C181,"") ->  | D188: ='ročni vnos'!D181 -> 0 | E188: ='ročni vnos'!E181*$D$34 -> 0 | F188: ='ročni vnos'!F181*$D$35 -> 0 | G188: ='ročni vnos'!G181*$D$35 -> 0 | H188: ='ročni vnos'!H181*$D$35 -> 0 | I188: ='ročni vnos'!I181*$D$35 -> 0 | J188: ='ročni vnos'!J181*$D$35 -> 0 | K188: ='ročni vnos'!K181 -> 0 | L188: 0 | M188: 0 | N188: 0 | O188: 0 | P188: 0
B189: 152 | C189: =IF(LEN('ročni vnos'!C182)>0,'ročni vnos'!C182,"") ->  | D189: ='ročni vnos'!D182 -> 0 | E189: ='ročni vnos'!E182*$D$34 -> 0 | F189: ='ročni vnos'!F182*$D$35 -> 0 | G189: ='ročni vnos'!G182*$D$35 -> 0 | H189: ='ročni vnos'!H182*$D$35 -> 0 | I189: ='ročni vnos'!I182*$D$35 -> 0 | J189: ='ročni vnos'!J182*$D$35 -> 0 | K189: ='ročni vnos'!K182 -> 0 | L189: 0 | M189: 0 | N189: 0 | O189: 0 | P189: 0
B190: 153 | C190: =IF(LEN('ročni vnos'!C183)>0,'ročni vnos'!C183,"") ->  | D190: ='ročni vnos'!D183 -> 0 | E190: ='ročni vnos'!E183*$D$34 -> 0 | F190: ='ročni vnos'!F183*$D$35 -> 0 | G190: ='ročni vnos'!G183*$D$35 -> 0 | H190: ='ročni vnos'!H183*$D$35 -> 0 | I190: ='ročni vnos'!I183*$D$35 -> 0 | J190: ='ročni vnos'!J183*$D$35 -> 0 | K190: ='ročni vnos'!K183 -> 0 | L190: 0 | M190: 0 | N190: 0 | O190: 0 | P190: 0
B191: 154 | C191: =IF(LEN('ročni vnos'!C184)>0,'ročni vnos'!C184,"") ->  | D191: ='ročni vnos'!D184 -> 0 | E191: ='ročni vnos'!E184*$D$34 -> 0 | F191: ='ročni vnos'!F184*$D$35 -> 0 | G191: ='ročni vnos'!G184*$D$35 -> 0 | H191: ='ročni vnos'!H184*$D$35 -> 0 | I191: ='ročni vnos'!I184*$D$35 -> 0 | J191: ='ročni vnos'!J184*$D$35 -> 0 | K191: ='ročni vnos'!K184 -> 0 | L191: 0 | M191: 0 | N191: 0 | O191: 0 | P191: 0
B192: 155 | C192: =IF(LEN('ročni vnos'!C185)>0,'ročni vnos'!C185,"") ->  | D192: ='ročni vnos'!D185 -> 0 | E192: ='ročni vnos'!E185*$D$34 -> 0 | F192: ='ročni vnos'!F185*$D$35 -> 0 | G192: ='ročni vnos'!G185*$D$35 -> 0 | H192: ='ročni vnos'!H185*$D$35 -> 0 | I192: ='ročni vnos'!I185*$D$35 -> 0 | J192: ='ročni vnos'!J185*$D$35 -> 0 | K192: ='ročni vnos'!K185 -> 0 | L192: 0 | M192: 0 | N192: 0 | O192: 0 | P192: 0
B193: 156 | C193: =IF(LEN('ročni vnos'!C186)>0,'ročni vnos'!C186,"") ->  | D193: ='ročni vnos'!D186 -> 0 | E193: ='ročni vnos'!E186*$D$34 -> 0 | F193: ='ročni vnos'!F186*$D$35 -> 0 | G193: ='ročni vnos'!G186*$D$35 -> 0 | H193: ='ročni vnos'!H186*$D$35 -> 0 | I193: ='ročni vnos'!I186*$D$35 -> 0 | J193: ='ročni vnos'!J186*$D$35 -> 0 | K193: ='ročni vnos'!K186 -> 0 | L193: 0 | M193: 0 | N193: 0 | O193: 0 | P193: 0
B194: 157 | C194: =IF(LEN('ročni vnos'!C187)>0,'ročni vnos'!C187,"") ->  | D194: ='ročni vnos'!D187 -> 0 | E194: ='ročni vnos'!E187*$D$34 -> 0 | F194: ='ročni vnos'!F187*$D$35 -> 0 | G194: ='ročni vnos'!G187*$D$35 -> 0 | H194: ='ročni vnos'!H187*$D$35 -> 0 | I194: ='ročni vnos'!I187*$D$35 -> 0 | J194: ='ročni vnos'!J187*$D$35 -> 0 | K194: ='ročni vnos'!K187 -> 0 | L194: 0 | M194: 0 | N194: 0 | O194: 0 | P194: 0
B195: 158 | C195: =IF(LEN('ročni vnos'!C188)>0,'ročni vnos'!C188,"") ->  | D195: ='ročni vnos'!D188 -> 0 | E195: ='ročni vnos'!E188*$D$34 -> 0 | F195: ='ročni vnos'!F188*$D$35 -> 0 | G195: ='ročni vnos'!G188*$D$35 -> 0 | H195: ='ročni vnos'!H188*$D$35 -> 0 | I195: ='ročni vnos'!I188*$D$35 -> 0 | J195: ='ročni vnos'!J188*$D$35 -> 0 | K195: ='ročni vnos'!K188 -> 0 | L195: 0 | M195: 0 | N195: 0 | O195: 0 | P195: 0
B196: 159 | C196: =IF(LEN('ročni vnos'!C189)>0,'ročni vnos'!C189,"") ->  | D196: ='ročni vnos'!D189 -> 0 | E196: ='ročni vnos'!E189*$D$34 -> 0 | F196: ='ročni vnos'!F189*$D$35 -> 0 | G196: ='ročni vnos'!G189*$D$35 -> 0 | H196: ='ročni vnos'!H189*$D$35 -> 0 | I196: ='ročni vnos'!I189*$D$35 -> 0 | J196: ='ročni vnos'!J189*$D$35 -> 0 | K196: ='ročni vnos'!K189 -> 0 | L196: 0 | M196: 0 | N196: 0 | O196: 0 | P196: 0
B197: 160 | C197: =IF(LEN('ročni vnos'!C190)>0,'ročni vnos'!C190,"") ->  | D197: ='ročni vnos'!D190 -> 0 | E197: ='ročni vnos'!E190*$D$34 -> 0 | F197: ='ročni vnos'!F190*$D$35 -> 0 | G197: ='ročni vnos'!G190*$D$35 -> 0 | H197: ='ročni vnos'!H190*$D$35 -> 0 | I197: ='ročni vnos'!I190*$D$35 -> 0 | J197: ='ročni vnos'!J190*$D$35 -> 0 | K197: ='ročni vnos'!K190 -> 0 | L197: 0 | M197: 0 | N197: 0 | O197: 0 | P197: 0
B198: 161 | C198: =IF(LEN('ročni vnos'!C191)>0,'ročni vnos'!C191,"") ->  | D198: ='ročni vnos'!D191 -> 0 | E198: ='ročni vnos'!E191*$D$34 -> 0 | F198: ='ročni vnos'!F191*$D$35 -> 0 | G198: ='ročni vnos'!G191*$D$35 -> 0 | H198: ='ročni vnos'!H191*$D$35 -> 0 | I198: ='ročni vnos'!I191*$D$35 -> 0 | J198: ='ročni vnos'!J191*$D$35 -> 0 | K198: ='ročni vnos'!K191 -> 0 | L198: 0 | M198: 0 | N198: 0 | O198: 0 | P198: 0
B199: 162 | C199: =IF(LEN('ročni vnos'!C192)>0,'ročni vnos'!C192,"") ->  | D199: ='ročni vnos'!D192 -> 0 | E199: ='ročni vnos'!E192*$D$34 -> 0 | F199: ='ročni vnos'!F192*$D$35 -> 0 | G199: ='ročni vnos'!G192*$D$35 -> 0 | H199: ='ročni vnos'!H192*$D$35 -> 0 | I199: ='ročni vnos'!I192*$D$35 -> 0 | J199: ='ročni vnos'!J192*$D$35 -> 0 | K199: ='ročni vnos'!K192 -> 0 | L199: 0 | M199: 0 | N199: 0 | O199: 0 | P199: 0
B200: 163 | C200: =IF(LEN('ročni vnos'!C193)>0,'ročni vnos'!C193,"") ->  | D200: ='ročni vnos'!D193 -> 0 | E200: ='ročni vnos'!E193*$D$34 -> 0 | F200: ='ročni vnos'!F193*$D$35 -> 0 | G200: ='ročni vnos'!G193*$D$35 -> 0 | H200: ='ročni vnos'!H193*$D$35 -> 0 | I200: ='ročni vnos'!I193*$D$35 -> 0 | J200: ='ročni vnos'!J193*$D$35 -> 0 | K200: ='ročni vnos'!K193 -> 0 | L200: 0 | M200: 0 | N200: 0 | O200: 0 | P200: 0
B201: 164 | C201: =IF(LEN('ročni vnos'!C194)>0,'ročni vnos'!C194,"") ->  | D201: ='ročni vnos'!D194 -> 0 | E201: ='ročni vnos'!E194*$D$34 -> 0 | F201: ='ročni vnos'!F194*$D$35 -> 0 | G201: ='ročni vnos'!G194*$D$35 -> 0 | H201: ='ročni vnos'!H194*$D$35 -> 0 | I201: ='ročni vnos'!I194*$D$35 -> 0 | J201: ='ročni vnos'!J194*$D$35 -> 0 | K201: ='ročni vnos'!K194 -> 0 | L201: 0 | M201: 0 | N201: 0 | O201: 0 | P201: 0
B202: 165 | C202: =IF(LEN('ročni vnos'!C195)>0,'ročni vnos'!C195,"") ->  | D202: ='ročni vnos'!D195 -> 0 | E202: ='ročni vnos'!E195*$D$34 -> 0 | F202: ='ročni vnos'!F195*$D$35 -> 0 | G202: ='ročni vnos'!G195*$D$35 -> 0 | H202: ='ročni vnos'!H195*$D$35 -> 0 | I202: ='ročni vnos'!I195*$D$35 -> 0 | J202: ='ročni vnos'!J195*$D$35 -> 0 | K202: ='ročni vnos'!K195 -> 0 | L202: 0 | M202: 0 | N202: 0 | O202: 0 | P202: 0
B203: 166 | C203: =IF(LEN('ročni vnos'!C196)>0,'ročni vnos'!C196,"") ->  | D203: ='ročni vnos'!D196 -> 0 | E203: ='ročni vnos'!E196*$D$34 -> 0 | F203: ='ročni vnos'!F196*$D$35 -> 0 | G203: ='ročni vnos'!G196*$D$35 -> 0 | H203: ='ročni vnos'!H196*$D$35 -> 0 | I203: ='ročni vnos'!I196*$D$35 -> 0 | J203: ='ročni vnos'!J196*$D$35 -> 0 | K203: ='ročni vnos'!K196 -> 0 | L203: 0 | M203: 0 | N203: 0 | O203: 0 | P203: 0
B204: 167 | C204: =IF(LEN('ročni vnos'!C197)>0,'ročni vnos'!C197,"") ->  | D204: ='ročni vnos'!D197 -> 0 | E204: ='ročni vnos'!E197*$D$34 -> 0 | F204: ='ročni vnos'!F197*$D$35 -> 0 | G204: ='ročni vnos'!G197*$D$35 -> 0 | H204: ='ročni vnos'!H197*$D$35 -> 0 | I204: ='ročni vnos'!I197*$D$35 -> 0 | J204: ='ročni vnos'!J197*$D$35 -> 0 | K204: ='ročni vnos'!K197 -> 0 | L204: 0 | M204: 0 | N204: 0 | O204: 0 | P204: 0
B205: 168 | C205: =IF(LEN('ročni vnos'!C198)>0,'ročni vnos'!C198,"") ->  | D205: ='ročni vnos'!D198 -> 0 | E205: ='ročni vnos'!E198*$D$34 -> 0 | F205: ='ročni vnos'!F198*$D$35 -> 0 | G205: ='ročni vnos'!G198*$D$35 -> 0 | H205: ='ročni vnos'!H198*$D$35 -> 0 | I205: ='ročni vnos'!I198*$D$35 -> 0 | J205: ='ročni vnos'!J198*$D$35 -> 0 | K205: ='ročni vnos'!K198 -> 0 | L205: 0 | M205: 0 | N205: 0 | O205: 0 | P205: 0
B206: 169 | C206: =IF(LEN('ročni vnos'!C199)>0,'ročni vnos'!C199,"") ->  | D206: ='ročni vnos'!D199 -> 0 | E206: ='ročni vnos'!E199*$D$34 -> 0 | F206: ='ročni vnos'!F199*$D$35 -> 0 | G206: ='ročni vnos'!G199*$D$35 -> 0 | H206: ='ročni vnos'!H199*$D$35 -> 0 | I206: ='ročni vnos'!I199*$D$35 -> 0 | J206: ='ročni vnos'!J199*$D$35 -> 0 | K206: ='ročni vnos'!K199 -> 0 | L206: 0 | M206: 0 | N206: 0 | O206: 0 | P206: 0
B207: 170 | C207: =IF(LEN('ročni vnos'!C200)>0,'ročni vnos'!C200,"") ->  | D207: ='ročni vnos'!D200 -> 0 | E207: ='ročni vnos'!E200*$D$34 -> 0 | F207: ='ročni vnos'!F200*$D$35 -> 0 | G207: ='ročni vnos'!G200*$D$35 -> 0 | H207: ='ročni vnos'!H200*$D$35 -> 0 | I207: ='ročni vnos'!I200*$D$35 -> 0 | J207: ='ročni vnos'!J200*$D$35 -> 0 | K207: ='ročni vnos'!K200 -> 0 | L207: 0 | M207: 0 | N207: 0 | O207: 0 | P207: 0
B208: 171 | C208: =IF(LEN('ročni vnos'!C201)>0,'ročni vnos'!C201,"") ->  | D208: ='ročni vnos'!D201 -> 0 | E208: ='ročni vnos'!E201*$D$34 -> 0 | F208: ='ročni vnos'!F201*$D$35 -> 0 | G208: ='ročni vnos'!G201*$D$35 -> 0 | H208: ='ročni vnos'!H201*$D$35 -> 0 | I208: ='ročni vnos'!I201*$D$35 -> 0 | J208: ='ročni vnos'!J201*$D$35 -> 0 | K208: ='ročni vnos'!K201 -> 0 | L208: 0 | M208: 0 | N208: 0 | O208: 0 | P208: 0
B209: 172 | C209: =IF(LEN('ročni vnos'!C202)>0,'ročni vnos'!C202,"") ->  | D209: ='ročni vnos'!D202 -> 0 | E209: ='ročni vnos'!E202*$D$34 -> 0 | F209: ='ročni vnos'!F202*$D$35 -> 0 | G209: ='ročni vnos'!G202*$D$35 -> 0 | H209: ='ročni vnos'!H202*$D$35 -> 0 | I209: ='ročni vnos'!I202*$D$35 -> 0 | J209: ='ročni vnos'!J202*$D$35 -> 0 | K209: ='ročni vnos'!K202 -> 0 | L209: 0 | M209: 0 | N209: 0 | O209: 0 | P209: 0
... 827 more rows

Sheet selektivna korekcija vsi krit.
C1: Izplačilo delovne uspešnosti za | D1: ='ročni vnos'!D1 -> januar | E1: ='ročni vnos'!E1 -> 2026
C2: Šifra proračunskega uporabnika: | D2: =IF(LEN('ročni vnos'!D2)>0,'ročni vnos'!D2,"") -> 1234
C3: Organizacijska enota: | D3: =IF(LEN('ročni vnos'!D3)>0,'ročni vnos'!D3,"") -> Sektor za splošne zadeve
C5: Določitev skupnega obsega sredstev za delovno uspešnost - za delitev po kriterijih (brez sredstev projektov)
C6: Masa osnovnih plač | D6: ='ročni vnos'!D6 -> 55970.04
C7: Odstotek osnovnih plač | D7: ='ročni vnos'!D7 -> 0.02
C8: Masa sredstev iz osnovnih plač za DU | D8: =+D6*D7 -> 1119.4008
C10: Prihranki iz naslova odsotnosti JU ali nezasedenih delovnih mest | D10: ='ročni vnos'!D10 -> 4000
C11: Odstotek prihrankov za delitev | D11: ='ročni vnos'!D11 -> 0.5
C12: Masa sredstev za DU iz prihrankov | D12: =+D10*D11 -> 2000
C14: Nerazdeljena sredstva iz prejšnjega meseca | D14: ='ročni vnos'!D14 -> 100
C16: Razpoložljivi obseg sredstev za DU | D16: =+D8+D12+D14 -> 3219.4008
C17: Določen obseg mase za DU | D17: =+'ročni vnos'!D17 -> 3219.4
C19: Razdelitev sredstev za delovno uspešnost glede na vpisane odstotke (brez sredstev projektov) - kontrola
C20: Masa sredstev za delovno uspešnost | D20: =D17 -> 3219.4
C21: Razdeljena masa za delovno uspešnost | D21: =SUM(N33:O1031) -> 3219.4
C22: Razlika | D22: =+D20-D21 -> 0
C24: Razdelitev sredstev glede na vpisane odstotke (iz vseh virov sredstev)
C25: Razdeljena masa - nadomeščanje | D25: =SUM(N33:N1031) -> 1951.534966 | L25: =IF(L27>30%,"VSAJ EN SKUPNI ODSTOTEK ZA DU JE VEČJI OD 30 %.","") -> 
C26: Razdeljena masa - nadpovprečni rezultati | D26: =SUM(O33:O1031) -> 1267.865034 | L26: =IF(L27>30%,"UREDITE VREDNOSTI NA ZAVIHKU 'ROČNI VNOS'.","") -> 
C27: Razdeljena masa - projekti | D27: =SUM(P33:P1031) -> 310.5789 | L27: =MAX(L33:L1031) -> 0.1694783039
C28: Skupaj | D28: =SUM(D25:D27) -> 3529.9789
C30: Korekcijski faktor: | D30: =+(D17-'ročni vnos'!T1030)/'ročni vnos'!U1030 -> 0.7703559267
B32: Zapor. št. | C32: Javni uslužbenec | D32: Osnovna plača | E32: Opravljanje dodatnega dela ali večji obseg dela | F32: Kakovost | G32: Natančnost | H32: Samostojnost | I32: Obseg dela | J32: Učinkovitost dela | K32: Projekti | L32: Skupni odstotek osnovne plače za DU | M32: Delovna uspešnost | N32: Delovna uspešnost - nadomeščanje | O32: Delovna uspešnost - nadpovprečni rez. | P32: Delovna uspešnost - projekti | Q32: Kontrola
A33: ='ročni vnos'!A31 -> O | B33: 1 | C33: =IF(LEN('ročni vnos'!C31)>0,'ročni vnos'!C31,"") -> Ana Novak | D33: ='ročni vnos'!D31 -> 1330.26 | E33: =IF(A33="Z",'ročni vnos'!E31,'ročni vnos'!E31*$D$30) -> 0 | F33: =IF(A33="Z",'ročni vnos'!F31,'ročni vnos'!F31*$D$30) -> 0 | G33: =IF(A33="Z",'ročni vnos'!G31,'ročni vnos'!G31*$D$30) -> 0.0231106778 | H33: =IF(A33="Z",'ročni vnos'!H31,'ročni vnos'!H31*$D$30) -> 0 | I33: =IF(A33="Z",'ročni vnos'!I31,'ročni vnos'!I31*$D$30) -> 0 | J33: =IF(A33="Z",'ročni vnos'!J31,'ročni vnos'!J31*$D$30) -> 0 | K33: ='ročni vnos'!K31 -> 0.02 | L33: =SUM(E33:K33) -> 0.0431106778 | M33: =+D33*L33 -> 57.34841025 | N33: =D33*E33 -> 0 | O33: =(F33+G33+H33+I33+J33)*D33 -> 30.74321025 | P33: =+D33*K33 -> 26.6052 | Q33: =IF(SUM(E33:K33)>30%,"VSOTA MORA BITI MANJŠA ALI ENAKA 30%","") -> 
A34: ='ročni vnos'!A32 -> O | B34: 2 | C34: =IF(LEN('ročni vnos'!C32)>0,'ročni vnos'!C32,"") -> Marko Kovač | D34: ='ročni vnos'!D32 -> 1411.28 | E34: =IF(A34="Z",'ročni vnos'!E32,'ročni vnos'!E32*$D$30) -> 0.03851779634 | F34: =IF(A34="Z",'ročni vnos'!F32,'ročni vnos'!F32*$D$30) -> 0 | G34: =IF(A34="Z",'ročni vnos'!G32,'ročni vnos'!G32*$D$30) -> 0.03851779634 | H34: =IF(A34="Z",'ročni vnos'!H32,'ročni vnos'!H32*$D$30) -> 0 | I34: =IF(A34="Z",'ročni vnos'!I32,'ročni vnos'!I32*$D$30) -> 0 | J34: =IF(A34="Z",'ročni vnos'!J32,'ročni vnos'!J32*$D$30) -> 0 | K34: ='ročni vnos'!K32 -> 0 | L34: =SUM(E34:K34) -> 0.07703559267 | M34: =+D34*L34 -> 108.7187912 | N34: =D34*E34 -> 54.35939561 | O34: =(F34+G34+H34+I34+J34)*D34 -> 54.35939561 | P34: =+D34*K34 -> 0 | Q34: =IF(SUM(E34:K34)>30%,"VSOTA MORA BITI MANJŠA ALI ENAKA 30%","") -> 
A35: ='ročni vnos'!A33 -> O | B35: 3 | C35: =IF(LEN('ročni vnos'!C33)>0,'ročni vnos'!C33,"") -> Maja Horvat | D35: ='ročni vnos'!D33 -> 1477.72 | E35: =IF(A35="Z",'ročni vnos'!E33,'ročni vnos'!E33*$D$30) -> 0.03851779634 | F35: =IF(A35="Z",'ročni vnos'!F33,'ročni vnos'!F33*$D$30) -> 0 | G35: =IF(A35="Z",'ročni vnos'!G33,'ročni vnos'!G33*$D$30) -> 0 | H35: =IF(A35="Z",'ročni vnos'!H33,'ročni vnos'!H33*$D$30) -> 0 | I35: =IF(A35="Z",'ročni vnos'!I33,'ročni vnos'!I33*$D$30) -> 0 | J35: =IF(A35="Z",'ročni vnos'!J33,'ročni vnos'!J33*$D$30) -> 0 | K35: ='ročni vnos'!K33 -> 0 | L35: 0.03851779634 | M35: 56.918518 | N35: 56.918518 | O35: 0 | P35: 0
A36: ='ročni vnos'!A34 -> O | B36: 4 | C36: =IF(LEN('ročni vnos'!C34)>0,'ročni vnos'!C34,"") -> Luka Zupan | D36: ='ročni vnos'!D34 -> 1804.47 | E36: =IF(A36="Z",'ročni vnos'!E34,'ročni vnos'!E34*$D$30) -> 0.03851779634 | F36: =IF(A36="Z",'ročni vnos'!F34,'ročni vnos'!F34*$D$30) -> 0 | G36: =IF(A36="Z",'ročni vnos'!G34,'ročni vnos'!G34*$D$30) -> 0 | H36: =IF(A36="Z",'ročni vnos'!H34,'ročni vnos'!H34*$D$30) -> 0 | I36: =IF(A36="Z",'ročni vnos'!I34,'ročni vnos'!I34*$D$30) -> 0 | J36: =IF(A36="Z",'ročni vnos'!J34,'ročni vnos'!J34*$D$30) -> 0 | K36: ='ročni vnos'!K34 -> 0.07 | L36: 0.1085177963 | M36: 195.817108 | N36: 69.50420796 | O36: 0 | P36: 126.3129
A37: ='ročni vnos'!A35 -> O | B37: 5 | C37: =IF(LEN('ročni vnos'!C35)>0,'ročni vnos'!C35,"") -> Nina Potočnik | D37: ='ročni vnos'!D35 -> 1868.64 | E37: =IF(A37="Z",'ročni vnos'!E35,'ročni vnos'!E35*$D$30) -> 0.03851779634 | F37: =IF(A37="Z",'ročni vnos'!F35,'ročni vnos'!F35*$D$30) -> 0 | G37: =IF(A37="Z",'ročni vnos'!G35,'ročni vnos'!G35*$D$30) -> 0 | H37: =IF(A37="Z",'ročni vnos'!H35,'ročni vnos'!H35*$D$30) -> 0 | I37: =IF(A37="Z",'ročni vnos'!I35,'ročni vnos'!I35*$D$30) -> 0 | J37: =IF(A37="Z",'ročni vnos'!J35,'ročni vnos'!J35*$D$30) -> 0 | K37: ='ročni vnos'!K35 -> 0.02 | L37: 0.05851779634 | M37: 109.3486949 | N37: 71.97589495 | O37: 0 | P37: 37.3728
A38: ='ročni vnos'!A36 -> O | B38: 6 | C38: =IF(LEN('ročni vnos'!C36)>0,'ročni vnos'!C36,"") -> Peter Mlakar | D38: ='ročni vnos'!D36 -> 1868.64 | E38: =IF(A38="Z",'ročni vnos'!E36,'ročni vnos'!E36*$D$30) -> 0 | F38: =IF(A38="Z",'ročni vnos'!F36,'ročni vnos'!F36*$D$30) -> 0.01540711853 | G38: =IF(A38="Z",'ročni vnos'!G36,'ročni vnos'!G36*$D$30) -> 0 | H38: =IF(A38="Z",'ročni vnos'!H36,'ročni vnos'!H36*$D$30) -> 0 | I38: =IF(A38="Z",'ročni vnos'!I36,'ročni vnos'!I36*$D$30) -> 0.07703559267 | J38: =IF(A38="Z",'ročni vnos'!J36,'ročni vnos'!J36*$D$30) -> 0 | K38: ='ročni vnos'!K36 -> 0 | L38: 0.09244271121 | M38: 172.7421479 | N38: 0 | O38: 172.7421479 | P38: 0
A39: ='ročni vnos'!A37 -> O | B39: 7 | C39: =IF(LEN('ročni vnos'!C37)>0,'ročni vnos'!C37,"") -> Sara Vidmar | D39: ='ročni vnos'!D37 -> 2004.8 | E39: =IF(A39="Z",'ročni vnos'!E37,'ročni vnos'!E37*$D$30) -> 0 | F39: =IF(A39="Z",'ročni vnos'!F37,'ročni vnos'!F37*$D$30) -> 0 | G39: =IF(A39="Z",'ročni vnos'!G37,'ročni vnos'!G37*$D$30) -> 0 | H39: =IF(A39="Z",'ročni vnos'!H37,'ročni vnos'!H37*$D$30) -> 0 | I39: =IF(A39="Z",'ročni vnos'!I37,'ročni vnos'!I37*$D$30) -> 0.07703559267 | J39: =IF(A39="Z",'ročni vnos'!J37,'ročni vnos'!J37*$D$30) -> 0 | K39: ='ročni vnos'!K37 -> 0.06 | L39: 0.1370355927 | M39: 274.7289562 | N39: 0 | O39: 154.4409562 | P39: 120.288
A40: ='ročni vnos'!A38 -> O | B40: 8 | C40: =IF(LEN('ročni vnos'!C38)>0,'ročni vnos'!C38,"") -> Tomaž Kranjc | D40: ='ročni vnos'!D38 -> 2152.08 | E40: =IF(A40="Z",'ročni vnos'!E38,'ročni vnos'!E38*$D$30) -> 0 | F40: =IF(A40="Z",'ročni vnos'!F38,'ročni vnos'!F38*$D$30) -> 0 | G40: =IF(A40="Z",'ročni vnos'!G38,'ročni vnos'!G38*$D$30) -> 0 | H40: =IF(A40="Z",'ročni vnos'!H38,'ročni vnos'!H38*$D$30) -> 0.0231106778 | I40: =IF(A40="Z",'ročni vnos'!I38,'ročni vnos'!I38*$D$30) -> 0 | J40: =IF(A40="Z",'ročni vnos'!J38,'ročni vnos'!J38*$D$30) -> 0 | K40: ='ročni vnos'!K38 -> 0 | L40: 0.0231106778 | M40: 49.73602748 | N40: 0 | O40: 49.73602748 | P40: 0
A41: ='ročni vnos'!A39 -> O | B41: 9 | C41: =IF(LEN('ročni vnos'!C39)>0,'ročni vnos'!C39,"") -> Tina Turk | D41: ='ročni vnos'!D39 -> 2395.84 | E41: =IF(A41="Z",'ročni vnos'!E39,'ročni vnos'!E39*$D$30) -> 0.115553389 | F41: =IF(A41="Z",'ročni vnos'!F39,'ročni vnos'!F39*$D$30) -> 0 | G41: =IF(A41="Z",'ročni vnos'!G39,'ročni vnos'!G39*$D$30) -> 0 | H41: =IF(A41="Z",'ročni vnos'!H39,'ročni vnos'!H39*$D$30) -> 0.0231106778 | I41: =IF(A41="Z",'ročni vnos'!I39,'ročni vnos'!I39*$D$30) -> 0 | J41: =IF(A41="Z",'ročni vnos'!J39,'ročni vnos'!J39*$D$30) -> 0 | K41: ='ročni vnos'!K39 -> 0 | L41: 0.1386640668 | M41: 332.2169178 | N41: 276.8474315 | O41: 55.36948631 | P41: 0
A42: ='ročni vnos'!A40 -> O | B42: 10 | C42: =IF(LEN('ročni vnos'!C40)>0,'ročni vnos'!C40,"") -> Matej Oblak | D42: ='ročni vnos'!D40 -> 2483.67 | E42: =IF(A42="Z",'ročni vnos'!E40,'ročni vnos'!E40*$D$30) -> 0.115553389 | F42: =IF(A42="Z",'ročni vnos'!F40,'ročni vnos'!F40*$D$30) -> 0 | G42: =IF(A42="Z",'ročni vnos'!G40,'ročni vnos'!G40*$D$30) -> 0.01540711853 | H42: =IF(A42="Z",'ročni vnos'!H40,'ročni vnos'!H40*$D$30) -> 0.01540711853 | I42: =IF(A42="Z",'ročni vnos'!I40,'ročni vnos'!I40*$D$30) -> 0 | J42: =IF(A42="Z",'ročni vnos'!J40,'ročni vnos'!J40*$D$30) -> 0 | K42: ='ročni vnos'!K40 -> 0 | L42: 0.1463676261 | M42: 363.5288819 | N42: 286.9964857 | O42: 76.53239618 | P42: 0
A43: ='ročni vnos'!A41 -> O | B43: 11 | C43: =IF(LEN('ročni vnos'!C41)>0,'ročni vnos'!C41,"") -> Katarina Rozman | D43: ='ročni vnos'!D41 -> 2575 | E43: =IF(A43="Z",'ročni vnos'!E41,'ročni vnos'!E41*$D$30) -> 0 | F43: =IF(A43="Z",'ročni vnos'!F41,'ročni vnos'!F41*$D$30) -> 0 | G43: =IF(A43="Z",'ročni vnos'!G41,'ročni vnos'!G41*$D$30) -> 0 | H43: =IF(A43="Z",'ročni vnos'!H41,'ročni vnos'!H41*$D$30) -> 0.0231106778 | I43: =IF(A43="Z",'ročni vnos'!I41,'ročni vnos'!I41*$D$30) -> 0 | J43: =IF(A43="Z",'ročni vnos'!J41,'ročni vnos'!J41*$D$30) -> 0 | K43: ='ročni vnos'!K41 -> 0 | L43: 0.0231106778 | M43: 59.50999534 | N43: 0 | O43: 59.50999534 | P43: 0
A44: ='ročni vnos'!A42 -> O | B44: 12 | C44: =IF(LEN('ročni vnos'!C42)>0,'ročni vnos'!C42,"") -> Jan Bizjak | D44: ='ročni vnos'!D42 -> 2871.56 | E44: =IF(A44="Z",'ročni vnos'!E42,'ročni vnos'!E42*$D$30) -> 0 | F44: =IF(A44="Z",'ročni vnos'!F42,'ročni vnos'!F42*$D$30) -> 0.01540711853 | G44: =IF(A44="Z",'ročni vnos'!G42,'ročni vnos'!G42*$D$30) -> 0 | H44: =IF(A44="Z",'ročni vnos'!H42,'ročni vnos'!H42*$D$30) -> 0.0231106778 | I44: =IF(A44="Z",'ročni vnos'!I42,'ročni vnos'!I42*$D$30) -> 0.115553389 | J44: =IF(A44="Z",'ročni vnos'!J42,'ročni vnos'!J42*$D$30) -> 0 | K44: ='ročni vnos'!K42 -> 0 | L44: 0.1540711853 | M44: 442.424653 | N44: 0 | O44: 442.424653 | P44: 0
A45: ='ročni vnos'!A43 -> O | B45: 13 | C45: =IF(LEN('ročni vnos'!C43)>0,'ročni vnos'!C43,"") -> Barbara Košir | D45: ='ročni vnos'!D43 -> 3089.57 | E45: =IF(A45="Z",'ročni vnos'!E43,'ročni vnos'!E43*$D$30) -> 0 | F45: =IF(A45="Z",'ročni vnos'!F43,'ročni vnos'!F43*$D$30) -> 0 | G45: =IF(A45="Z",'ročni vnos'!G43,'ročni vnos'!G43*$D$30) -> 0 | H45: =IF(A45="Z",'ročni vnos'!H43,'ročni vnos'!H43*$D$30) -> 0 | I45: =IF(A45="Z",'ročni vnos'!I43,'ročni vnos'!I43*$D$30) -> 0 | J45: =IF(A45="Z",'ročni vnos'!J43,'ročni vnos'!J43*$D$30) -> 0 | K45: ='ročni vnos'!K43 -> 0 | L45: 0 | M45: 0 | N45: 0 | O45: =(F45+G45+H45+I45+J45)*D45 -> 0 | P45: 0
A46: ='ročni vnos'!A44 -> O | B46: 14 | C46: =IF(LEN('ročni vnos'!C44)>0,'ročni vnos'!C44,"") -> Rok Petek | D46: ='ročni vnos'!D44 -> 3387.86 | E46: =IF(A46="Z",'ročni vnos'!E44,'ročni vnos'!E44*$D$30) -> 0 | F46: =IF(A46="Z",'ročni vnos'!F44,'ročni vnos'!F44*$D$30) -> 0 | G46: =IF(A46="Z",'ročni vnos'!G44,'ročni vnos'!G44*$D$30) -> 0 | H46: =IF(A46="Z",'ročni vnos'!H44,'ročni vnos'!H44*$D$30) -> 0 | I46: =IF(A46="Z",'ročni vnos'!I44,'ročni vnos'!I44*$D$30) -> 0 | J46: =IF(A46="Z",'ročni vnos'!J44,'ročni vnos'!J44*$D$30) -> 0 | K46: ='ročni vnos'!K44 -> 0 | L46: 0 | M46: 0 | N46: 0 | O46: 0 | P46: 0
A47: ='ročni vnos'!A45 -> O | B47: 15 | C47: =IF(LEN('ročni vnos'!C45)>0,'ročni vnos'!C45,"") -> Urška Golob | D47: ='ročni vnos'!D45 -> 3580.38 | E47: =IF(A47="Z",'ročni vnos'!E45,'ročni vnos'!E45*$D$30) -> 0.1540711853 | F47: =IF(A47="Z",'ročni vnos'!F45,'ročni vnos'!F45*$D$30) -> 0 | G47: =IF(A47="Z",'ročni vnos'!G45,'ročni vnos'!G45*$D$30) -> 0 | H47: =IF(A47="Z",'ročni vnos'!H45,'ročni vnos'!H45*$D$30) -> 0 | I47: =IF(A47="Z",'ročni vnos'!I45,'ročni vnos'!I45*$D$30) -> 0 | J47: =IF(A47="Z",'ročni vnos'!J45,'ročni vnos'!J45*$D$30) -> 0 | K47: ='ročni vnos'!K45 -> 0 | L47: 0.1540711853 | M47: 551.6333906 | N47: 551.6333906 | O47: 0 | P47: 0
A48: ='ročni vnos'!A46 -> O | B48: 16 | C48: =IF(LEN('ročni vnos'!C46)>0,'ročni vnos'!C46,"") -> Miha Prevc | D48: ='ročni vnos'!D46 -> 3785.91 | E48: =IF(A48="Z",'ročni vnos'!E46,'ročni vnos'!E46*$D$30) -> 0.1540711853 | F48: =IF(A48="Z",'ročni vnos'!F46,'ročni vnos'!F46*$D$30) -> 0 | G48: =IF(A48="Z",'ročni vnos'!G46,'ročni vnos'!G46*$D$30) -> 0 | H48: =IF(A48="Z",'ročni vnos'!H46,'ročni vnos'!H46*$D$30) -> 0.01540711853 | I48: =IF(A48="Z",'ročni vnos'!I46,'ročni vnos'!I46*$D$30) -> 0 | J48: =IF(A48="Z",'ročni vnos'!J46,'ročni vnos'!J46*$D$30) -> 0 | K48: ='ročni vnos'!K46 -> 0 | L48: 0.1694783039 | M48: 641.6296055 | N48: 583.2996413 | O48: 58.32996413 | P48: 0
A49: ='ročni vnos'!A47 -> O | B49: 17 | C49: =IF(LEN('ročni vnos'!C47)>0,'ročni vnos'!C47,"") -> Alenka Bajc | D49: ='ročni vnos'!D47 -> 4002.47 | E49: =IF(A49="Z",'ročni vnos'!E47,'ročni vnos'!E47*$D$30) -> 0 | F49: =IF(A49="Z",'ročni vnos'!F47,'ročni vnos'!F47*$D$30) -> 0 | G49: =IF(A49="Z",'ročni vnos'!G47,'ročni vnos'!G47*$D$30) -> 0 | H49: =IF(A49="Z",'ročni vnos'!H47,'ročni vnos'!H47*$D$30) -> 0 | I49: =IF(A49="Z",'ročni vnos'!I47,'ročni vnos'!I47*$D$30) -> 0 | J49: =IF(A49="Z",'ročni vnos'!J47,'ročni vnos'!J47*$D$30) -> 0 | K49: ='ročni vnos'!K47 -> 0 | L49: 0 | M49: 0 | N49: 0 | O49: 0 | P49: 0
A50: ='ročni vnos'!A48 -> O | B50: 18 | C50: =IF(LEN('ročni vnos'!C48)>0,'ročni vnos'!C48,"") -> Jure Krivec | D50: ='ročni vnos'!D48 -> 4312.74 | E50: =IF(A50="Z",'ročni vnos'!E48,'ročni vnos'!E48*$D$30) -> 0 | F50: =IF(A50="Z",'ročni vnos'!F48,'ročni vnos'!F48*$D$30) -> 0 | G50: =IF(A50="Z",'ročni vnos'!G48,'ročni vnos'!G48*$D$30) -> 0 | H50: =IF(A50="Z",'ročni vnos'!H48,'ročni vnos'!H48*$D$30) -> 0 | I50: =IF(A50="Z",'ročni vnos'!I48,'ročni vnos'!I48*$D$30) -> 0 | J50: =IF(A50="Z",'ročni vnos'!J48,'ročni vnos'!J48*$D$30) -> 0 | K50: ='ročni vnos'!K48 -> 0 | L50: 0 | M50: 0 | N50: 0 | O50: 0 | P50: 0
A51: ='ročni vnos'!A49 -> O | B51: 19 | C51: =IF(LEN('ročni vnos'!C49)>0,'ročni vnos'!C49,"") -> Nataša Štravs | D51: ='ročni vnos'!D49 -> 4648.35 | E51: =IF(A51="Z",'ročni vnos'!E49,'ročni vnos'!E49*$D$30) -> 0 | F51: =IF(A51="Z",'ročni vnos'!F49,'ročni vnos'!F49*$D$30) -> 0 | G51: =IF(A51="Z",'ročni vnos'!G49,'ročni vnos'!G49*$D$30) -> 0 | H51: =IF(A51="Z",'ročni vnos'!H49,'ročni vnos'!H49*$D$30) -> 0 | I51: =IF(A51="Z",'ročni vnos'!I49,'ročni vnos'!I49*$D$30) -> 0 | J51: =IF(A51="Z",'ročni vnos'!J49,'ročni vnos'!J49*$D$30) -> 0 | K51: ='ročni vnos'!K49 -> 0 | L51: 0 | M51: 0 | N51: 0 | O51: 0 | P51: 0
A52: ='ročni vnos'!A50 -> O | B52: 20 | C52: =IF(LEN('ročni vnos'!C50)>0,'ročni vnos'!C50,"") -> Blaž Pavlin | D52: ='ročni vnos'!D50 -> 4918.8 | E52: =IF(A52="Z",'ročni vnos'!E50,'ročni vnos'!E50*$D$30) -> 0 | F52: =IF(A52="Z",'ročni vnos'!F50,'ročni vnos'!F50*$D$30) -> 0 | G52: =IF(A52="Z",'ročni vnos'!G50,'ročni vnos'!G50*$D$30) -> 0 | H52: =IF(A52="Z",'ročni vnos'!H50,'ročni vnos'!H50*$D$30) -> 0.0231106778 | I52: =IF(A52="Z",'ročni vnos'!I50,'ročni vnos'!I50*$D$30) -> 0 | J52: =IF(A52="Z",'ročni vnos'!J50,'ročni vnos'!J50*$D$30) -> 0 | K52: ='ročni vnos'!K50 -> 0 | L52: 0.0231106778 | M52: 113.676802 | N52: 0 | O52: 113.676802 | P52: 0
A53: ='ročni vnos'!A51 -> O | B53: 21 | C53: =IF(LEN('ročni vnos'!C51)>0,'ročni vnos'!C51,"") ->  | D53: ='ročni vnos'!D51 -> 0 | E53: =IF(A53="Z",'ročni vnos'!E51,'ročni vnos'!E51*$D$30) -> 0 | F53: =IF(A53="Z",'ročni vnos'!F51,'ročni vnos'!F51*$D$30) -> 0 | G53: =IF(A53="Z",'ročni vnos'!G51,'ročni vnos'!G51*$D$30) -> 0 | H53: =IF(A53="Z",'ročni vnos'!H51,'ročni vnos'!H51*$D$30) -> 0 | I53: =IF(A53="Z",'ročni vnos'!I51,'ročni vnos'!I51*$D$30) -> 0 | J53: =IF(A53="Z",'ročni vnos'!J51,'ročni vnos'!J51*$D$30) -> 0 | K53: ='ročni vnos'!K51 -> 0 | L53: 0 | M53: 0 | N53: 0 | O53: 0 | P53: 0
A54: ='ročni vnos'!A52 -> O | B54: 22 | C54: =IF(LEN('ročni vnos'!C52)>0,'ročni vnos'!C52,"") ->  | D54: ='ročni vnos'!D52 -> 0 | E54: =IF(A54="Z",'ročni vnos'!E52,'ročni vnos'!E52*$D$30) -> 0 | F54: =IF(A54="Z",'ročni vnos'!F52,'ročni vnos'!F52*$D$30) -> 0 | G54: =IF(A54="Z",'ročni vnos'!G52,'ročni vnos'!G52*$D$30) -> 0 | H54: =IF(A54="Z",'ročni vnos'!H52,'ročni vnos'!H52*$D$30) -> 0 | I54: =IF(A54="Z",'ročni vnos'!I52,'ročni vnos'!I52*$D$30) -> 0 | J54: =IF(A54="Z",'ročni vnos'!J52,'ročni vnos'!J52*$D$30) -> 0 | K54: ='ročni vnos'!K52 -> 0 | L54: 0 | M54: 0 | N54: 0 | O54: 0 | P54: 0
A55: ='ročni vnos'!A53 -> O | B55: 23 | C55: =IF(LEN('ročni vnos'!C53)>0,'ročni vnos'!C53,"") ->  | D55: ='ročni vnos'!D53 -> 0 | E55: =IF(A55="Z",'ročni vnos'!E53,'ročni vnos'!E53*$D$30) -> 0 | F55: =IF(A55="Z",'ročni vnos'!F53,'ročni vnos'!F53*$D$30) -> 0 | G55: =IF(A55="Z",'ročni vnos'!G53,'ročni vnos'!G53*$D$30) -> 0 | H55: =IF(A55="Z",'ročni vnos'!H53,'ročni vnos'!H53*$D$30) -> 0 | I55: =IF(A55="Z",'ročni vnos'!I53,'ročni vnos'!I53*$D$30) -> 0 | J55: =IF(A55="Z",'ročni vnos'!J53,'ročni vnos'!J53*$D$30) -> 0 | K55: ='ročni vnos'!K53 -> 0 | L55: 0 | M55: 0 | N55: 0 | O55: 0 | P55: 0
A56: ='ročni vnos'!A54 -> O | B56: 24 | C56: =IF(LEN('ročni vnos'!C54)>0,'ročni vnos'!C54,"") ->  | D56: ='ročni vnos'!D54 -> 0 | E56: =IF(A56="Z",'ročni vnos'!E54,'ročni vnos'!E54*$D$30) -> 0 | F56: =IF(A56="Z",'ročni vnos'!F54,'ročni vnos'!F54*$D$30) -> 0 | G56: =IF(A56="Z",'ročni vnos'!G54,'ročni vnos'!G54*$D$30) -> 0 | H56: =IF(A56="Z",'ročni vnos'!H54,'ročni vnos'!H54*$D$30) -> 0 | I56: =IF(A56="Z",'ročni vnos'!I54,'ročni vnos'!I54*$D$30) -> 0 | J56: =IF(A56="Z",'ročni vnos'!J54,'ročni vnos'!J54*$D$30) -> 0 | K56: ='ročni vnos'!K54 -> 0 | L56: 0 | M56: 0 | N56: 0 | O56: 0 | P56: 0
A57: ='ročni vnos'!A55 -> O | B57: 25 | C57: =IF(LEN('ročni vnos'!C55)>0,'ročni vnos'!C55,"") ->  | D57: ='ročni vnos'!D55 -> 0 | E57: =IF(A57="Z",'ročni vnos'!E55,'ročni vnos'!E55*$D$30) -> 0 | F57: =IF(A57="Z",'ročni vnos'!F55,'ročni vnos'!F55*$D$30) -> 0 | G57: =IF(A57="Z",'ročni vnos'!G55,'ročni vnos'!G55*$D$30) -> 0 | H57: =IF(A57="Z",'ročni vnos'!H55,'ročni vnos'!H55*$D$30) -> 0 | I57: =IF(A57="Z",'ročni vnos'!I55,'ročni vnos'!I55*$D$30) -> 0 | J57: =IF(A57="Z",'ročni vnos'!J55,'ročni vnos'!J55*$D$30) -> 0 | K57: ='ročni vnos'!K55 -> 0 | L57: 0 | M57: 0 | N57: 0 | O57: 0 | P57: 0
A58: ='ročni vnos'!A56 -> O | B58: 26 | C58: =IF(LEN('ročni vnos'!C56)>0,'ročni vnos'!C56,"") ->  | D58: ='ročni vnos'!D56 -> 0 | E58: =IF(A58="Z",'ročni vnos'!E56,'ročni vnos'!E56*$D$30) -> 0 | F58: =IF(A58="Z",'ročni vnos'!F56,'ročni vnos'!F56*$D$30) -> 0 | G58: =IF(A58="Z",'ročni vnos'!G56,'ročni vnos'!G56*$D$30) -> 0 | H58: =IF(A58="Z",'ročni vnos'!H56,'ročni vnos'!H56*$D$30) -> 0 | I58: =IF(A58="Z",'ročni vnos'!I56,'ročni vnos'!I56*$D$30) -> 0 | J58: =IF(A58="Z",'ročni vnos'!J56,'ročni vnos'!J56*$D$30) -> 0 | K58: ='ročni vnos'!K56 -> 0 | L58: 0 | M58: 0 | N58: 0 | O58: 0 | P58: 0
A59: ='ročni vnos'!A57 -> O | B59: 27 | C59: =IF(LEN('ročni vnos'!C57)>0,'ročni vnos'!C57,"") ->  | D59: ='ročni vnos'!D57 -> 0 | E59: =IF(A59="Z",'ročni vnos'!E57,'ročni vnos'!E57*$D$30) -> 0 | F59: =IF(A59="Z",'ročni vnos'!F57,'ročni vnos'!F57*$D$30) -> 0 | G59: =IF(A59="Z",'ročni vnos'!G57,'ročni vnos'!G57*$D$30) -> 0 | H59: =IF(A59="Z",'ročni vnos'!H57,'ročni vnos'!H57*$D$30) -> 0 | I59: =IF(A59="Z",'ročni vnos'!I57,'ročni vnos'!I57*$D$30) -> 0 | J59: =IF(A59="Z",'ročni vnos'!J57,'ročni vnos'!J57*$D$30) -> 0 | K59: ='ročni vnos'!K57 -> 0 | L59: 0 | M59: 0 | N59: 0 | O59: 0 | P59: 0
A60: ='ročni vnos'!A58 -> O | B60: 28 | C60: =IF(LEN('ročni vnos'!C58)>0,'ročni vnos'!C58,"") ->  | D60: ='ročni vnos'!D58 -> 0 | E60: =IF(A60="Z",'ročni vnos'!E58,'ročni vnos'!E58*$D$30) -> 0 | F60: =IF(A60="Z",'ročni vnos'!F58,'ročni vnos'!F58*$D$30) -> 0 | G60: =IF(A60="Z",'ročni vnos'!G58,'ročni vnos'!G58*$D$30) -> 0 | H60: =IF(A60="Z",'ročni vnos'!H58,'ročni vnos'!H58*$D$30) -> 0 | I60: =IF(A60="Z",'ročni vnos'!I58,'ročni vnos'!I58*$D$30) -> 0 | J60: =IF(A60="Z",'ročni vnos'!J58,'ročni vnos'!J58*$D$30) -> 0 | K60: ='ročni vnos'!K58 -> 0 | L60: 0 | M60: 0 | N60: 0 | O60: 0 | P60: 0
A61: ='ročni vnos'!A59 -> O | B61: 29 | C61: =IF(LEN('ročni vnos'!C59)>0,'ročni vnos'!C59,"") ->  | D61: ='ročni vnos'!D59 -> 0 | E61: =IF(A61="Z",'ročni vnos'!E59,'ročni vnos'!E59*$D$30) -> 0 | F61: =IF(A61="Z",'ročni vnos'!F59,'ročni vnos'!F59*$D$30) -> 0 | G61: =IF(A61="Z",'ročni vnos'!G59,'ročni vnos'!G59*$D$30) -> 0 | H61: =IF(A61="Z",'ročni vnos'!H59,'ročni vnos'!H59*$D$30) -> 0 | I61: =IF(A61="Z",'ročni vnos'!I59,'ročni vnos'!I59*$D$30) -> 0 | J61: =IF(A61="Z",'ročni vnos'!J59,'ročni vnos'!J59*$D$30) -> 0 | K61: ='ročni vnos'!K59 -> 0 | L61: 0 | M61: 0 | N61: 0 | O61: 0 | P61: 0
A62: ='ročni vnos'!A60 -> O | B62: 30 | C62: =IF(LEN('ročni vnos'!C60)>0,'ročni vnos'!C60,"") ->  | D62: ='ročni vnos'!D60 -> 0 | E62: =IF(A62="Z",'ročni vnos'!E60,'ročni vnos'!E60*$D$30) -> 0 | F62: =IF(A62="Z",'ročni vnos'!F60,'ročni vnos'!F60*$D$30) -> 0 | G62: =IF(A62="Z",'ročni vnos'!G60,'ročni vnos'!G60*$D$30) -> 0 | H62: =IF(A62="Z",'ročni vnos'!H60,'ročni vnos'!H60*$D$30) -> 0 | I62: =IF(A62="Z",'ročni vnos'!I60,'ročni vnos'!I60*$D$30) -> 0 | J62: =IF(A62="Z",'ročni vnos'!J60,'ročni vnos'!J60*$D$30) -> 0 | K62: ='ročni vnos'!K60 -> 0 | L62: 0 | M62: 0 | N62: 0 | O62: 0 | P62: 0
A63: ='ročni vnos'!A61 -> O | B63: 31 | C63: =IF(LEN('ročni vnos'!C61)>0,'ročni vnos'!C61,"") ->  | D63: ='ročni vnos'!D61 -> 0 | E63: =IF(A63="Z",'ročni vnos'!E61,'ročni vnos'!E61*$D$30) -> 0 | F63: =IF(A63="Z",'ročni vnos'!F61,'ročni vnos'!F61*$D$30) -> 0 | G63: =IF(A63="Z",'ročni vnos'!G61,'ročni vnos'!G61*$D$30) -> 0 | H63: =IF(A63="Z",'ročni vnos'!H61,'ročni vnos'!H61*$D$30) -> 0 | I63: =IF(A63="Z",'ročni vnos'!I61,'ročni vnos'!I61*$D$30) -> 0 | J63: =IF(A63="Z",'ročni vnos'!J61,'ročni vnos'!J61*$D$30) -> 0 | K63: ='ročni vnos'!K61 -> 0 | L63: 0 | M63: 0 | N63: 0 | O63: 0 | P63: 0
A64: ='ročni vnos'!A62 -> O | B64: 32 | C64: =IF(LEN('ročni vnos'!C62)>0,'ročni vnos'!C62,"") ->  | D64: ='ročni vnos'!D62 -> 0 | E64: =IF(A64="Z",'ročni vnos'!E62,'ročni vnos'!E62*$D$30) -> 0 | F64: =IF(A64="Z",'ročni vnos'!F62,'ročni vnos'!F62*$D$30) -> 0 | G64: =IF(A64="Z",'ročni vnos'!G62,'ročni vnos'!G62*$D$30) -> 0 | H64: =IF(A64="Z",'ročni vnos'!H62,'ročni vnos'!H62*$D$30) -> 0 | I64: =IF(A64="Z",'ročni vnos'!I62,'ročni vnos'!I62*$D$30) -> 0 | J64: =IF(A64="Z",'ročni vnos'!J62,'ročni vnos'!J62*$D$30) -> 0 | K64: ='ročni vnos'!K62 -> 0 | L64: 0 | M64: 0 | N64: 0 | O64: 0 | P64: 0
A65: ='ročni vnos'!A63 -> O | B65: 33 | C65: =IF(LEN('ročni vnos'!C63)>0,'ročni vnos'!C63,"") ->  | D65: ='ročni vnos'!D63 -> 0 | E65: =IF(A65="Z",'ročni vnos'!E63,'ročni vnos'!E63*$D$30) -> 0 | F65: =IF(A65="Z",'ročni vnos'!F63,'ročni vnos'!F63*$D$30) -> 0 | G65: =IF(A65="Z",'ročni vnos'!G63,'ročni vnos'!G63*$D$30) -> 0 | H65: =IF(A65="Z",'ročni vnos'!H63,'ročni vnos'!H63*$D$30) -> 0 | I65: =IF(A65="Z",'ročni vnos'!I63,'ročni vnos'!I63*$D$30) -> 0 | J65: =IF(A65="Z",'ročni vnos'!J63,'ročni vnos'!J63*$D$30) -> 0 | K65: ='ročni vnos'!K63 -> 0 | L65: 0 | M65: 0 | N65: 0 | O65: 0 | P65: 0
A66: ='ročni vnos'!A64 -> O | B66: 34 | C66: =IF(LEN('ročni vnos'!C64)>0,'ročni vnos'!C64,"") ->  | D66: ='ročni vnos'!D64 -> 0 | E66: =IF(A66="Z",'ročni vnos'!E64,'ročni vnos'!E64*$D$30) -> 0 | F66: =IF(A66="Z",'ročni vnos'!F64,'ročni vnos'!F64*$D$30) -> 0 | G66: =IF(A66="Z",'ročni vnos'!G64,'ročni vnos'!G64*$D$30) -> 0 | H66: =IF(A66="Z",'ročni vnos'!H64,'ročni vnos'!H64*$D$30) -> 0 | I66: =IF(A66="Z",'ročni vnos'!I64,'ročni vnos'!I64*$D$30) -> 0 | J66: =IF(A66="Z",'ročni vnos'!J64,'ročni vnos'!J64*$D$30) -> 0 | K66: ='ročni vnos'!K64 -> 0 | L66: 0 | M66: 0 | N66: 0 | O66: 0 | P66: 0
A67: ='ročni vnos'!A65 -> O | B67: 35 | C67: =IF(LEN('ročni vnos'!C65)>0,'ročni vnos'!C65,"") ->  | D67: ='ročni vnos'!D65 -> 0 | E67: =IF(A67="Z",'ročni vnos'!E65,'ročni vnos'!E65*$D$30) -> 0 | F67: =IF(A67="Z",'ročni vnos'!F65,'ročni vnos'!F65*$D$30) -> 0 | G67: =IF(A67="Z",'ročni vnos'!G65,'ročni vnos'!G65*$D$30) -> 0 | H67: =IF(A67="Z",'ročni vnos'!H65,'ročni vnos'!H65*$D$30) -> 0 | I67: =IF(A67="Z",'ročni vnos'!I65,'ročni vnos'!I65*$D$30) -> 0 | J67: =IF(A67="Z",'ročni vnos'!J65,'ročni vnos'!J65*$D$30) -> 0 | K67: ='ročni vnos'!K65 -> 0 | L67: 0 | M67: 0 | N67: 0 | O67: 0 | P67: 0
A68: ='ročni vnos'!A66 -> O | B68: 36 | C68: =IF(LEN('ročni vnos'!C66)>0,'ročni vnos'!C66,"") ->  | D68: ='ročni vnos'!D66 -> 0 | E68: =IF(A68="Z",'ročni vnos'!E66,'ročni vnos'!E66*$D$30) -> 0 | F68: =IF(A68="Z",'ročni vnos'!F66,'ročni vnos'!F66*$D$30) -> 0 | G68: =IF(A68="Z",'ročni vnos'!G66,'ročni vnos'!G66*$D$30) -> 0 | H68: =IF(A68="Z",'ročni vnos'!H66,'ročni vnos'!H66*$D$30) -> 0 | I68: =IF(A68="Z",'ročni vnos'!I66,'ročni vnos'!I66*$D$30) -> 0 | J68: =IF(A68="Z",'ročni vnos'!J66,'ročni vnos'!J66*$D$30) -> 0 | K68: ='ročni vnos'!K66 -> 0 | L68: 0 | M68: 0 | N68: 0 | O68: 0 | P68: 0
A69: ='ročni vnos'!A67 -> O | B69: 37 | C69: =IF(LEN('ročni vnos'!C67)>0,'ročni vnos'!C67,"") ->  | D69: ='ročni vnos'!D67 -> 0 | E69: =IF(A69="Z",'ročni vnos'!E67,'ročni vnos'!E67*$D$30) -> 0 | F69: =IF(A69="Z",'ročni vnos'!F67,'ročni vnos'!F67*$D$30) -> 0 | G69: =IF(A69="Z",'ročni vnos'!G67,'ročni vnos'!G67*$D$30) -> 0 | H69: =IF(A69="Z",'ročni vnos'!H67,'ročni vnos'!H67*$D$30) -> 0 | I69: =IF(A69="Z",'ročni vnos'!I67,'ročni vnos'!I67*$D$30) -> 0 | J69: =IF(A69="Z",'ročni vnos'!J67,'ročni vnos'!J67*$D$30) -> 0 | K69: ='ročni vnos'!K67 -> 0 | L69: 0 | M69: 0 | N69: 0 | O69: 0 | P69: 0
A70: ='ročni vnos'!A68 -> O | B70: 38 | C70: =IF(LEN('ročni vnos'!C68)>0,'ročni vnos'!C68,"") ->  | D70: ='ročni vnos'!D68 -> 0 | E70: =IF(A70="Z",'ročni vnos'!E68,'ročni vnos'!E68*$D$30) -> 0 | F70: =IF(A70="Z",'ročni vnos'!F68,'ročni vnos'!F68*$D$30) -> 0 | G70: =IF(A70="Z",'ročni vnos'!G68,'ročni vnos'!G68*$D$30) -> 0 | H70: =IF(A70="Z",'ročni vnos'!H68,'ročni vnos'!H68*$D$30) -> 0 | I70: =IF(A70="Z",'ročni vnos'!I68,'ročni vnos'!I68*$D$30) -> 0 | J70: =IF(A70="Z",'ročni vnos'!J68,'ročni vnos'!J68*$D$30) -> 0 | K70: ='ročni vnos'!K68 -> 0 | L70: 0 | M70: 0 | N70: 0 | O70: 0 | P70: 0
A71: ='ročni vnos'!A69 -> O | B71: 39 | C71: =IF(LEN('ročni vnos'!C69)>0,'ročni vnos'!C69,"") ->  | D71: ='ročni vnos'!D69 -> 0 | E71: =IF(A71="Z",'ročni vnos'!E69,'ročni vnos'!E69*$D$30) -> 0 | F71: =IF(A71="Z",'ročni vnos'!F69,'ročni vnos'!F69*$D$30) -> 0 | G71: =IF(A71="Z",'ročni vnos'!G69,'ročni vnos'!G69*$D$30) -> 0 | H71: =IF(A71="Z",'ročni vnos'!H69,'ročni vnos'!H69*$D$30) -> 0 | I71: =IF(A71="Z",'ročni vnos'!I69,'ročni vnos'!I69*$D$30) -> 0 | J71: =IF(A71="Z",'ročni vnos'!J69,'ročni vnos'!J69*$D$30) -> 0 | K71: ='ročni vnos'!K69 -> 0 | L71: 0 | M71: 0 | N71: 0 | O71: 0 | P71: 0
A72: ='ročni vnos'!A70 -> O | B72: 40 | C72: =IF(LEN('ročni vnos'!C70)>0,'ročni vnos'!C70,"") ->  | D72: ='ročni vnos'!D70 -> 0 | E72: =IF(A72="Z",'ročni vnos'!E70,'ročni vnos'!E70*$D$30) -> 0 | F72: =IF(A72="Z",'ročni vnos'!F70,'ročni vnos'!F70*$D$30) -> 0 | G72: =IF(A72="Z",'ročni vnos'!G70,'ročni vnos'!G70*$D$30) -> 0 | H72: =IF(A72="Z",'ročni vnos'!H70,'ročni vnos'!H70*$D$30) -> 0 | I72: =IF(A72="Z",'ročni vnos'!I70,'ročni vnos'!I70*$D$30) -> 0 | J72: =IF(A72="Z",'ročni vnos'!J70,'ročni vnos'!J70*$D$30) -> 0 | K72: ='ročni vnos'!K70 -> 0 | L72: 0 | M72: 0 | N72: 0 | O72: 0 | P72: 0
A73: ='ročni vnos'!A71 -> O | B73: 41 | C73: =IF(LEN('ročni vnos'!C71)>0,'ročni vnos'!C71,"") ->  | D73: ='ročni vnos'!D71 -> 0 | E73: =IF(A73="Z",'ročni vnos'!E71,'ročni vnos'!E71*$D$30) -> 0 | F73: =IF(A73="Z",'ročni vnos'!F71,'ročni vnos'!F71*$D$30) -> 0 | G73: =IF(A73="Z",'ročni vnos'!G71,'ročni vnos'!G71*$D$30) -> 0 | H73: =IF(A73="Z",'ročni vnos'!H71,'ročni vnos'!H71*$D$30) -> 0 | I73: =IF(A73="Z",'ročni vnos'!I71,'ročni vnos'!I71*$D$30) -> 0 | J73: =IF(A73="Z",'ročni vnos'!J71,'ročni vnos'!J71*$D$30) -> 0 | K73: ='ročni vnos'!K71 -> 0 | L73: 0 | M73: 0 | N73: 0 | O73: 0 | P73: 0
A74: ='ročni vnos'!A72 -> O | B74: 42 | C74: =IF(LEN('ročni vnos'!C72)>0,'ročni vnos'!C72,"") ->  | D74: ='ročni vnos'!D72 -> 0 | E74: =IF(A74="Z",'ročni vnos'!E72,'ročni vnos'!E72*$D$30) -> 0 | F74: =IF(A74="Z",'ročni vnos'!F72,'ročni vnos'!F72*$D$30) -> 0 | G74: =IF(A74="Z",'ročni vnos'!G72,'ročni vnos'!G72*$D$30) -> 0 | H74: =IF(A74="Z",'ročni vnos'!H72,'ročni vnos'!H72*$D$30) -> 0 | I74: =IF(A74="Z",'ročni vnos'!I72,'ročni vnos'!I72*$D$30) -> 0 | J74: =IF(A74="Z",'ročni vnos'!J72,'ročni vnos'!J72*$D$30) -> 0 | K74: ='ročni vnos'!K72 -> 0 | L74: 0 | M74: 0 | N74: 0 | O74: 0 | P74: 0
A75: ='ročni vnos'!A73 -> O | B75: 43 | C75: =IF(LEN('ročni vnos'!C73)>0,'ročni vnos'!C73,"") ->  | D75: ='ročni vnos'!D73 -> 0 | E75: =IF(A75="Z",'ročni vnos'!E73,'ročni vnos'!E73*$D$30) -> 0 | F75: =IF(A75="Z",'ročni vnos'!F73,'ročni vnos'!F73*$D$30) -> 0 | G75: =IF(A75="Z",'ročni vnos'!G73,'ročni vnos'!G73*$D$30) -> 0 | H75: =IF(A75="Z",'ročni vnos'!H73,'ročni vnos'!H73*$D$30) -> 0 | I75: =IF(A75="Z",'ročni vnos'!I73,'ročni vnos'!I73*$D$30) -> 0 | J75: =IF(A75="Z",'ročni vnos'!J73,'ročni vnos'!J73*$D$30) -> 0 | K75: ='ročni vnos'!K73 -> 0 | L75: 0 | M75: 0 | N75: 0 | O75: 0 | P75: 0
A76: ='ročni vnos'!A74 -> O | B76: 44 | C76: =IF(LEN('ročni vnos'!C74)>0,'ročni vnos'!C74,"") ->  | D76: ='ročni vnos'!D74 -> 0 | E76: =IF(A76="Z",'ročni vnos'!E74,'ročni vnos'!E74*$D$30) -> 0 | F76: =IF(A76="Z",'ročni vnos'!F74,'ročni vnos'!F74*$D$30) -> 0 | G76: =IF(A76="Z",'ročni vnos'!G74,'ročni vnos'!G74*$D$30) -> 0 | H76: =IF(A76="Z",'ročni vnos'!H74,'ročni vnos'!H74*$D$30) -> 0 | I76: =IF(A76="Z",'ročni vnos'!I74,'ročni vnos'!I74*$D$30) -> 0 | J76: =IF(A76="Z",'ročni vnos'!J74,'ročni vnos'!J74*$D$30) -> 0 | K76: ='ročni vnos'!K74 -> 0 | L76: 0 | M76: 0 | N76: 0 | O76: 0 | P76: 0
A77: ='ročni vnos'!A75 -> O | B77: 45 | C77: =IF(LEN('ročni vnos'!C75)>0,'ročni vnos'!C75,"") ->  | D77: ='ročni vnos'!D75 -> 0 | E77: =IF(A77="Z",'ročni vnos'!E75,'ročni vnos'!E75*$D$30) -> 0 | F77: =IF(A77="Z",'ročni vnos'!F75,'ročni vnos'!F75*$D$30) -> 0 | G77: =IF(A77="Z",'ročni vnos'!G75,'ročni vnos'!G75*$D$30) -> 0 | H77: =IF(A77="Z",'ročni vnos'!H75,'ročni vnos'!H75*$D$30) -> 0 | I77: =IF(A77="Z",'ročni vnos'!I75,'ročni vnos'!I75*$D$30) -> 0 | J77: =IF(A77="Z",'ročni vnos'!J75,'ročni vnos'!J75*$D$30) -> 0 | K77: ='ročni vnos'!K75 -> 0 | L77: 0 | M77: 0 | N77: 0 | O77: 0 | P77: 0
A78: ='ročni vnos'!A76 -> O | B78: 46 | C78: =IF(LEN('ročni vnos'!C76)>0,'ročni vnos'!C76,"") ->  | D78: ='ročni vnos'!D76 -> 0 | E78: =IF(A78="Z",'ročni vnos'!E76,'ročni vnos'!E76*$D$30) -> 0 | F78: =IF(A78="Z",'ročni vnos'!F76,'ročni vnos'!F76*$D$30) -> 0 | G78: =IF(A78="Z",'ročni vnos'!G76,'ročni vnos'!G76*$D$30) -> 0 | H78: =IF(A78="Z",'ročni vnos'!H76,'ročni vnos'!H76*$D$30) -> 0 | I78: =IF(A78="Z",'ročni vnos'!I76,'ročni vnos'!I76*$D$30) -> 0 | J78: =IF(A78="Z",'ročni vnos'!J76,'ročni vnos'!J76*$D$30) -> 0 | K78: ='ročni vnos'!K76 -> 0 | L78: 0 | M78: 0 | N78: 0 | O78: 0 | P78: 0
A79: ='ročni vnos'!A77 -> O | B79: 47 | C79: =IF(LEN('ročni vnos'!C77)>0,'ročni vnos'!C77,"") ->  | D79: ='ročni vnos'!D77 -> 0 | E79: =IF(A79="Z",'ročni vnos'!E77,'ročni vnos'!E77*$D$30) -> 0 | F79: =IF(A79="Z",'ročni vnos'!F77,'ročni vnos'!F77*$D$30) -> 0 | G79: =IF(A79="Z",'ročni vnos'!G77,'ročni vnos'!G77*$D$30) -> 0 | H79: =IF(A79="Z",'ročni vnos'!H77,'ročni vnos'!H77*$D$30) -> 0 | I79: =IF(A79="Z",'ročni vnos'!I77,'ročni vnos'!I77*$D$30) -> 0 | J79: =IF(A79="Z",'ročni vnos'!J77,'ročni vnos'!J77*$D$30) -> 0 | K79: ='ročni vnos'!K77 -> 0 | L79: 0 | M79: 0 | N79: 0 | O79: 0 | P79: 0
A80: ='ročni vnos'!A78 -> O | B80: 48 | C80: =IF(LEN('ročni vnos'!C78)>0,'ročni vnos'!C78,"") ->  | D80: ='ročni vnos'!D78 -> 0 | E80: =IF(A80="Z",'ročni vnos'!E78,'ročni vnos'!E78*$D$30) -> 0 | F80: =IF(A80="Z",'ročni vnos'!F78,'ročni vnos'!F78*$D$30) -> 0 | G80: =IF(A80="Z",'ročni vnos'!G78,'ročni vnos'!G78*$D$30) -> 0 | H80: =IF(A80="Z",'ročni vnos'!H78,'ročni vnos'!H78*$D$30) -> 0 | I80: =IF(A80="Z",'ročni vnos'!I78,'ročni vnos'!I78*$D$30) -> 0 | J80: =IF(A80="Z",'ročni vnos'!J78,'ročni vnos'!J78*$D$30) -> 0 | K80: ='ročni vnos'!K78 -> 0 | L80: 0 | M80: 0 | N80: 0 | O80: 0 | P80: 0
A81: ='ročni vnos'!A79 -> O | B81: 49 | C81: =IF(LEN('ročni vnos'!C79)>0,'ročni vnos'!C79,"") ->  | D81: ='ročni vnos'!D79 -> 0 | E81: =IF(A81="Z",'ročni vnos'!E79,'ročni vnos'!E79*$D$30) -> 0 | F81: =IF(A81="Z",'ročni vnos'!F79,'ročni vnos'!F79*$D$30) -> 0 | G81: =IF(A81="Z",'ročni vnos'!G79,'ročni vnos'!G79*$D$30) -> 0 | H81: =IF(A81="Z",'ročni vnos'!H79,'ročni vnos'!H79*$D$30) -> 0 | I81: =IF(A81="Z",'ročni vnos'!I79,'ročni vnos'!I79*$D$30) -> 0 | J81: =IF(A81="Z",'ročni vnos'!J79,'ročni vnos'!J79*$D$30) -> 0 | K81: ='ročni vnos'!K79 -> 0 | L81: 0 | M81: 0 | N81: 0 | O81: 0 | P81: 0
A82: ='ročni vnos'!A80 -> O | B82: 50 | C82: =IF(LEN('ročni vnos'!C80)>0,'ročni vnos'!C80,"") ->  | D82: ='ročni vnos'!D80 -> 0 | E82: =IF(A82="Z",'ročni vnos'!E80,'ročni vnos'!E80*$D$30) -> 0 | F82: =IF(A82="Z",'ročni vnos'!F80,'ročni vnos'!F80*$D$30) -> 0 | G82: =IF(A82="Z",'ročni vnos'!G80,'ročni vnos'!G80*$D$30) -> 0 | H82: =IF(A82="Z",'ročni vnos'!H80,'ročni vnos'!H80*$D$30) -> 0 | I82: =IF(A82="Z",'ročni vnos'!I80,'ročni vnos'!I80*$D$30) -> 0 | J82: =IF(A82="Z",'ročni vnos'!J80,'ročni vnos'!J80*$D$30) -> 0 | K82: ='ročni vnos'!K80 -> 0 | L82: 0 | M82: 0 | N82: 0 | O82: 0 | P82: 0
A83: ='ročni vnos'!A81 -> O | B83: 51 | C83: =IF(LEN('ročni vnos'!C81)>0,'ročni vnos'!C81,"") ->  | D83: ='ročni vnos'!D81 -> 0 | E83: =IF(A83="Z",'ročni vnos'!E81,'ročni vnos'!E81*$D$30) -> 0 | F83: =IF(A83="Z",'ročni vnos'!F81,'ročni vnos'!F81*$D$30) -> 0 | G83: =IF(A83="Z",'ročni vnos'!G81,'ročni vnos'!G81*$D$30) -> 0 | H83: =IF(A83="Z",'ročni vnos'!H81,'ročni vnos'!H81*$D$30) -> 0 | I83: =IF(A83="Z",'ročni vnos'!I81,'ročni vnos'!I81*$D$30) -> 0 | J83: =IF(A83="Z",'ročni vnos'!J81,'ročni vnos'!J81*$D$30) -> 0 | K83: ='ročni vnos'!K81 -> 0 | L83: 0 | M83: 0 | N83: 0 | O83: 0 | P83: 0
A84: ='ročni vnos'!A82 -> O | B84: 52 | C84: =IF(LEN('ročni vnos'!C82)>0,'ročni vnos'!C82,"") ->  | D84: ='ročni vnos'!D82 -> 0 | E84: =IF(A84="Z",'ročni vnos'!E82,'ročni vnos'!E82*$D$30) -> 0 | F84: =IF(A84="Z",'ročni vnos'!F82,'ročni vnos'!F82*$D$30) -> 0 | G84: =IF(A84="Z",'ročni vnos'!G82,'ročni vnos'!G82*$D$30) -> 0 | H84: =IF(A84="Z",'ročni vnos'!H82,'ročni vnos'!H82*$D$30) -> 0 | I84: =IF(A84="Z",'ročni vnos'!I82,'ročni vnos'!I82*$D$30) -> 0 | J84: =IF(A84="Z",'ročni vnos'!J82,'ročni vnos'!J82*$D$30) -> 0 | K84: ='ročni vnos'!K82 -> 0 | L84: 0 | M84: 0 | N84: 0 | O84: 0 | P84: 0
A85: ='ročni vnos'!A83 -> O | B85: 53 | C85: =IF(LEN('ročni vnos'!C83)>0,'ročni vnos'!C83,"") ->  | D85: ='ročni vnos'!D83 -> 0 | E85: =IF(A85="Z",'ročni vnos'!E83,'ročni vnos'!E83*$D$30) -> 0 | F85: =IF(A85="Z",'ročni vnos'!F83,'ročni vnos'!F83*$D$30) -> 0 | G85: =IF(A85="Z",'ročni vnos'!G83,'ročni vnos'!G83*$D$30) -> 0 | H85: =IF(A85="Z",'ročni vnos'!H83,'ročni vnos'!H83*$D$30) -> 0 | I85: =IF(A85="Z",'ročni vnos'!I83,'ročni vnos'!I83*$D$30) -> 0 | J85: =IF(A85="Z",'ročni vnos'!J83,'ročni vnos'!J83*$D$30) -> 0 | K85: ='ročni vnos'!K83 -> 0 | L85: 0 | M85: 0 | N85: 0 | O85: 0 | P85: 0
A86: ='ročni vnos'!A84 -> O | B86: 54 | C86: =IF(LEN('ročni vnos'!C84)>0,'ročni vnos'!C84,"") ->  | D86: ='ročni vnos'!D84 -> 0 | E86: =IF(A86="Z",'ročni vnos'!E84,'ročni vnos'!E84*$D$30) -> 0 | F86: =IF(A86="Z",'ročni vnos'!F84,'ročni vnos'!F84*$D$30) -> 0 | G86: =IF(A86="Z",'ročni vnos'!G84,'ročni vnos'!G84*$D$30) -> 0 | H86: =IF(A86="Z",'ročni vnos'!H84,'ročni vnos'!H84*$D$30) -> 0 | I86: =IF(A86="Z",'ročni vnos'!I84,'ročni vnos'!I84*$D$30) -> 0 | J86: =IF(A86="Z",'ročni vnos'!J84,'ročni vnos'!J84*$D$30) -> 0 | K86: ='ročni vnos'!K84 -> 0 | L86: 0 | M86: 0 | N86: 0 | O86: 0 | P86: 0
A87: ='ročni vnos'!A85 -> O | B87: 55 | C87: =IF(LEN('ročni vnos'!C85)>0,'ročni vnos'!C85,"") ->  | D87: ='ročni vnos'!D85 -> 0 | E87: =IF(A87="Z",'ročni vnos'!E85,'ročni vnos'!E85*$D$30) -> 0 | F87: =IF(A87="Z",'ročni vnos'!F85,'ročni vnos'!F85*$D$30) -> 0 | G87: =IF(A87="Z",'ročni vnos'!G85,'ročni vnos'!G85*$D$30) -> 0 | H87: =IF(A87="Z",'ročni vnos'!H85,'ročni vnos'!H85*$D$30) -> 0 | I87: =IF(A87="Z",'ročni vnos'!I85,'ročni vnos'!I85*$D$30) -> 0 | J87: =IF(A87="Z",'ročni vnos'!J85,'ročni vnos'!J85*$D$30) -> 0 | K87: ='ročni vnos'!K85 -> 0 | L87: 0 | M87: 0 | N87: 0 | O87: 0 | P87: 0
A88: ='ročni vnos'!A86 -> O | B88: 56 | C88: =IF(LEN('ročni vnos'!C86)>0,'ročni vnos'!C86,"") ->  | D88: ='ročni vnos'!D86 -> 0 | E88: =IF(A88="Z",'ročni vnos'!E86,'ročni vnos'!E86*$D$30) -> 0 | F88: =IF(A88="Z",'ročni vnos'!F86,'ročni vnos'!F86*$D$30) -> 0 | G88: =IF(A88="Z",'ročni vnos'!G86,'ročni vnos'!G86*$D$30) -> 0 | H88: =IF(A88="Z",'ročni vnos'!H86,'ročni vnos'!H86*$D$30) -> 0 | I88: =IF(A88="Z",'ročni vnos'!I86,'ročni vnos'!I86*$D$30) -> 0 | J88: =IF(A88="Z",'ročni vnos'!J86,'ročni vnos'!J86*$D$30) -> 0 | K88: ='ročni vnos'!K86 -> 0 | L88: 0 | M88: 0 | N88: 0 | O88: 0 | P88: 0
A89: ='ročni vnos'!A87 -> O | B89: 57 | C89: =IF(LEN('ročni vnos'!C87)>0,'ročni vnos'!C87,"") ->  | D89: ='ročni vnos'!D87 -> 0 | E89: =IF(A89="Z",'ročni vnos'!E87,'ročni vnos'!E87*$D$30) -> 0 | F89: =IF(A89="Z",'ročni vnos'!F87,'ročni vnos'!F87*$D$30) -> 0 | G89: =IF(A89="Z",'ročni vnos'!G87,'ročni vnos'!G87*$D$30) -> 0 | H89: =IF(A89="Z",'ročni vnos'!H87,'ročni vnos'!H87*$D$30) -> 0 | I89: =IF(A89="Z",'ročni vnos'!I87,'ročni vnos'!I87*$D$30) -> 0 | J89: =IF(A89="Z",'ročni vnos'!J87,'ročni vnos'!J87*$D$30) -> 0 | K89: ='ročni vnos'!K87 -> 0 | L89: 0 | M89: 0 | N89: 0 | O89: 0 | P89: 0
A90: ='ročni vnos'!A88 -> O | B90: 58 | C90: =IF(LEN('ročni vnos'!C88)>0,'ročni vnos'!C88,"") ->  | D90: ='ročni vnos'!D88 -> 0 | E90: =IF(A90="Z",'ročni vnos'!E88,'ročni vnos'!E88*$D$30) -> 0 | F90: =IF(A90="Z",'ročni vnos'!F88,'ročni vnos'!F88*$D$30) -> 0 | G90: =IF(A90="Z",'ročni vnos'!G88,'ročni vnos'!G88*$D$30) -> 0 | H90: =IF(A90="Z",'ročni vnos'!H88,'ročni vnos'!H88*$D$30) -> 0 | I90: =IF(A90="Z",'ročni vnos'!I88,'ročni vnos'!I88*$D$30) -> 0 | J90: =IF(A90="Z",'ročni vnos'!J88,'ročni vnos'!J88*$D$30) -> 0 | K90: ='ročni vnos'!K88 -> 0 | L90: 0 | M90: 0 | N90: 0 | O90: 0 | P90: 0
A91: ='ročni vnos'!A89 -> O | B91: 59 | C91: =IF(LEN('ročni vnos'!C89)>0,'ročni vnos'!C89,"") ->  | D91: ='ročni vnos'!D89 -> 0 | E91: =IF(A91="Z",'ročni vnos'!E89,'ročni vnos'!E89*$D$30) -> 0 | F91: =IF(A91="Z",'ročni vnos'!F89,'ročni vnos'!F89*$D$30) -> 0 | G91: =IF(A91="Z",'ročni vnos'!G89,'ročni vnos'!G89*$D$30) -> 0 | H91: =IF(A91="Z",'ročni vnos'!H89,'ročni vnos'!H89*$D$30) -> 0 | I91: =IF(A91="Z",'ročni vnos'!I89,'ročni vnos'!I89*$D$30) -> 0 | J91: =IF(A91="Z",'ročni vnos'!J89,'ročni vnos'!J89*$D$30) -> 0 | K91: ='ročni vnos'!K89 -> 0 | L91: 0 | M91: 0 | N91: 0 | O91: 0 | P91: 0
A92: ='ročni vnos'!A90 -> O | B92: 60 | C92: =IF(LEN('ročni vnos'!C90)>0,'ročni vnos'!C90,"") ->  | D92: ='ročni vnos'!D90 -> 0 | E92: =IF(A92="Z",'ročni vnos'!E90,'ročni vnos'!E90*$D$30) -> 0 | F92: =IF(A92="Z",'ročni vnos'!F90,'ročni vnos'!F90*$D$30) -> 0 | G92: =IF(A92="Z",'ročni vnos'!G90,'ročni vnos'!G90*$D$30) -> 0 | H92: =IF(A92="Z",'ročni vnos'!H90,'ročni vnos'!H90*$D$30) -> 0 | I92: =IF(A92="Z",'ročni vnos'!I90,'ročni vnos'!I90*$D$30) -> 0 | J92: =IF(A92="Z",'ročni vnos'!J90,'ročni vnos'!J90*$D$30) -> 0 | K92: ='ročni vnos'!K90 -> 0 | L92: 0 | M92: 0 | N92: 0 | O92: 0 | P92: 0
A93: ='ročni vnos'!A91 -> O | B93: 61 | C93: =IF(LEN('ročni vnos'!C91)>0,'ročni vnos'!C91,"") ->  | D93: ='ročni vnos'!D91 -> 0 | E93: =IF(A93="Z",'ročni vnos'!E91,'ročni vnos'!E91*$D$30) -> 0 | F93: =IF(A93="Z",'ročni vnos'!F91,'ročni vnos'!F91*$D$30) -> 0 | G93: =IF(A93="Z",'ročni vnos'!G91,'ročni vnos'!G91*$D$30) -> 0 | H93: =IF(A93="Z",'ročni vnos'!H91,'ročni vnos'!H91*$D$30) -> 0 | I93: =IF(A93="Z",'ročni vnos'!I91,'ročni vnos'!I91*$D$30) -> 0 | J93: =IF(A93="Z",'ročni vnos'!J91,'ročni vnos'!J91*$D$30) -> 0 | K93: ='ročni vnos'!K91 -> 0 | L93: 0 | M93: 0 | N93: 0 | O93: 0 | P93: 0
A94: ='ročni vnos'!A92 -> O | B94: 62 | C94: =IF(LEN('ročni vnos'!C92)>0,'ročni vnos'!C92,"") ->  | D94: ='ročni vnos'!D92 -> 0 | E94: =IF(A94="Z",'ročni vnos'!E92,'ročni vnos'!E92*$D$30) -> 0 | F94: =IF(A94="Z",'ročni vnos'!F92,'ročni vnos'!F92*$D$30) -> 0 | G94: =IF(A94="Z",'ročni vnos'!G92,'ročni vnos'!G92*$D$30) -> 0 | H94: =IF(A94="Z",'ročni vnos'!H92,'ročni vnos'!H92*$D$30) -> 0 | I94: =IF(A94="Z",'ročni vnos'!I92,'ročni vnos'!I92*$D$30) -> 0 | J94: =IF(A94="Z",'ročni vnos'!J92,'ročni vnos'!J92*$D$30) -> 0 | K94: ='ročni vnos'!K92 -> 0 | L94: 0 | M94: 0 | N94: 0 | O94: 0 | P94: 0
A95: ='ročni vnos'!A93 -> O | B95: 63 | C95: =IF(LEN('ročni vnos'!C93)>0,'ročni vnos'!C93,"") ->  | D95: ='ročni vnos'!D93 -> 0 | E95: =IF(A95="Z",'ročni vnos'!E93,'ročni vnos'!E93*$D$30) -> 0 | F95: =IF(A95="Z",'ročni vnos'!F93,'ročni vnos'!F93*$D$30) -> 0 | G95: =IF(A95="Z",'ročni vnos'!G93,'ročni vnos'!G93*$D$30) -> 0 | H95: =IF(A95="Z",'ročni vnos'!H93,'ročni vnos'!H93*$D$30) -> 0 | I95: =IF(A95="Z",'ročni vnos'!I93,'ročni vnos'!I93*$D$30) -> 0 | J95: =IF(A95="Z",'ročni vnos'!J93,'ročni vnos'!J93*$D$30) -> 0 | K95: ='ročni vnos'!K93 -> 0 | L95: 0 | M95: 0 | N95: 0 | O95: 0 | P95: 0
A96: ='ročni vnos'!A94 -> O | B96: 64 | C96: =IF(LEN('ročni vnos'!C94)>0,'ročni vnos'!C94,"") ->  | D96: ='ročni vnos'!D94 -> 0 | E96: =IF(A96="Z",'ročni vnos'!E94,'ročni vnos'!E94*$D$30) -> 0 | F96: =IF(A96="Z",'ročni vnos'!F94,'ročni vnos'!F94*$D$30) -> 0 | G96: =IF(A96="Z",'ročni vnos'!G94,'ročni vnos'!G94*$D$30) -> 0 | H96: =IF(A96="Z",'ročni vnos'!H94,'ročni vnos'!H94*$D$30) -> 0 | I96: =IF(A96="Z",'ročni vnos'!I94,'ročni vnos'!I94*$D$30) -> 0 | J96: =IF(A96="Z",'ročni vnos'!J94,'ročni vnos'!J94*$D$30) -> 0 | K96: ='ročni vnos'!K94 -> 0 | L96: 0 | M96: 0 | N96: 0 | O96: 0 | P96: 0
A97: ='ročni vnos'!A95 -> O | B97: 65 | C97: =IF(LEN('ročni vnos'!C95)>0,'ročni vnos'!C95,"") ->  | D97: ='ročni vnos'!D95 -> 0 | E97: =IF(A97="Z",'ročni vnos'!E95,'ročni vnos'!E95*$D$30) -> 0 | F97: =IF(A97="Z",'ročni vnos'!F95,'ročni vnos'!F95*$D$30) -> 0 | G97: =IF(A97="Z",'ročni vnos'!G95,'ročni vnos'!G95*$D$30) -> 0 | H97: =IF(A97="Z",'ročni vnos'!H95,'ročni vnos'!H95*$D$30) -> 0 | I97: =IF(A97="Z",'ročni vnos'!I95,'ročni vnos'!I95*$D$30) -> 0 | J97: =IF(A97="Z",'ročni vnos'!J95,'ročni vnos'!J95*$D$30) -> 0 | K97: ='ročni vnos'!K95 -> 0 | L97: 0 | M97: 0 | N97: 0 | O97: 0 | P97: 0
A98: ='ročni vnos'!A96 -> O | B98: 66 | C98: =IF(LEN('ročni vnos'!C96)>0,'ročni vnos'!C96,"") ->  | D98: ='ročni vnos'!D96 -> 0 | E98: =IF(A98="Z",'ročni vnos'!E96,'ročni vnos'!E96*$D$30) -> 0 | F98: =IF(A98="Z",'ročni vnos'!F96,'ročni vnos'!F96*$D$30) -> 0 | G98: =IF(A98="Z",'ročni vnos'!G96,'ročni vnos'!G96*$D$30) -> 0 | H98: =IF(A98="Z",'ročni vnos'!H96,'ročni vnos'!H96*$D$30) -> 0 | I98: =IF(A98="Z",'ročni vnos'!I96,'ročni vnos'!I96*$D$30) -> 0 | J98: =IF(A98="Z",'ročni vnos'!J96,'ročni vnos'!J96*$D$30) -> 0 | K98: ='ročni vnos'!K96 -> 0 | L98: =SUM(E98:K98) -> 0 | M98: =+D98*L98 -> 0 | N98: =D98*E98 -> 0 | O98: =(F98+G98+H98+I98+J98)*D98 -> 0 | P98: =+D98*K98 -> 0 | Q98: =IF(SUM(E98:K98)>30%,"VSOTA MORA BITI MANJŠA ALI ENAKA 30%","") -> 
A99: ='ročni vnos'!A97 -> O | B99: 67 | C99: =IF(LEN('ročni vnos'!C97)>0,'ročni vnos'!C97,"") ->  | D99: ='ročni vnos'!D97 -> 0 | E99: =IF(A99="Z",'ročni vnos'!E97,'ročni vnos'!E97*$D$30) -> 0 | F99: =IF(A99="Z",'ročni vnos'!F97,'ročni vnos'!F97*$D$30) -> 0 | G99: =IF(A99="Z",'ročni vnos'!G97,'ročni vnos'!G97*$D$30) -> 0 | H99: =IF(A99="Z",'ročni vnos'!H97,'ročni vnos'!H97*$D$30) -> 0 | I99: =IF(A99="Z",'ročni vnos'!I97,'ročni vnos'!I97*$D$30) -> 0 | J99: =IF(A99="Z",'ročni vnos'!J97,'ročni vnos'!J97*$D$30) -> 0 | K99: ='ročni vnos'!K97 -> 0 | L99: 0 | M99: 0 | N99: 0 | O99: 0 | P99: 0
A100: ='ročni vnos'!A98 -> O | B100: 68 | C100: =IF(LEN('ročni vnos'!C98)>0,'ročni vnos'!C98,"") ->  | D100: ='ročni vnos'!D98 -> 0 | E100: =IF(A100="Z",'ročni vnos'!E98,'ročni vnos'!E98*$D$30) -> 0 | F100: =IF(A100="Z",'ročni vnos'!F98,'ročni vnos'!F98*$D$30) -> 0 | G100: =IF(A100="Z",'ročni vnos'!G98,'ročni vnos'!G98*$D$30) -> 0 | H100: =IF(A100="Z",'ročni vnos'!H98,'ročni vnos'!H98*$D$30) -> 0 | I100: =IF(A100="Z",'ročni vnos'!I98,'ročni vnos'!I98*$D$30) -> 0 | J100: =IF(A100="Z",'ročni vnos'!J98,'ročni vnos'!J98*$D$30) -> 0 | K100: ='ročni vnos'!K98 -> 0 | L100: 0 | M100: 0 | N100: 0 | O100: 0 | P100: 0
A101: ='ročni vnos'!A99 -> O | B101: 69 | C101: =IF(LEN('ročni vnos'!C99)>0,'ročni vnos'!C99,"") ->  | D101: ='ročni vnos'!D99 -> 0 | E101: =IF(A101="Z",'ročni vnos'!E99,'ročni vnos'!E99*$D$30) -> 0 | F101: =IF(A101="Z",'ročni vnos'!F99,'ročni vnos'!F99*$D$30) -> 0 | G101: =IF(A101="Z",'ročni vnos'!G99,'ročni vnos'!G99*$D$30) -> 0 | H101: =IF(A101="Z",'ročni vnos'!H99,'ročni vnos'!H99*$D$30) -> 0 | I101: =IF(A101="Z",'ročni vnos'!I99,'ročni vnos'!I99*$D$30) -> 0 | J101: =IF(A101="Z",'ročni vnos'!J99,'ročni vnos'!J99*$D$30) -> 0 | K101: ='ročni vnos'!K99 -> 0 | L101: 0 | M101: 0 | N101: 0 | O101: 0 | P101: 0
A102: ='ročni vnos'!A100 -> O | B102: 70 | C102: =IF(LEN('ročni vnos'!C100)>0,'ročni vnos'!C100,"") ->  | D102: ='ročni vnos'!D100 -> 0 | E102: =IF(A102="Z",'ročni vnos'!E100,'ročni vnos'!E100*$D$30) -> 0 | F102: =IF(A102="Z",'ročni vnos'!F100,'ročni vnos'!F100*$D$30) -> 0 | G102: =IF(A102="Z",'ročni vnos'!G100,'ročni vnos'!G100*$D$30) -> 0 | H102: =IF(A102="Z",'ročni vnos'!H100,'ročni vnos'!H100*$D$30) -> 0 | I102: =IF(A102="Z",'ročni vnos'!I100,'ročni vnos'!I100*$D$30) -> 0 | J102: =IF(A102="Z",'ročni vnos'!J100,'ročni vnos'!J100*$D$30) -> 0 | K102: ='ročni vnos'!K100 -> 0 | L102: 0 | M102: 0 | N102: 0 | O102: 0 | P102: 0
A103: ='ročni vnos'!A101 -> O | B103: 71 | C103: =IF(LEN('ročni vnos'!C101)>0,'ročni vnos'!C101,"") ->  | D103: ='ročni vnos'!D101 -> 0 | E103: =IF(A103="Z",'ročni vnos'!E101,'ročni vnos'!E101*$D$30) -> 0 | F103: =IF(A103="Z",'ročni vnos'!F101,'ročni vnos'!F101*$D$30) -> 0 | G103: =IF(A103="Z",'ročni vnos'!G101,'ročni vnos'!G101*$D$30) -> 0 | H103: =IF(A103="Z",'ročni vnos'!H101,'ročni vnos'!H101*$D$30) -> 0 | I103: =IF(A103="Z",'ročni vnos'!I101,'ročni vnos'!I101*$D$30) -> 0 | J103: =IF(A103="Z",'ročni vnos'!J101,'ročni vnos'!J101*$D$30) -> 0 | K103: ='ročni vnos'!K101 -> 0 | L103: 0 | M103: 0 | N103: 0 | O103: 0 | P103: 0
A104: ='ročni vnos'!A102 -> O | B104: 72 | C104: =IF(LEN('ročni vnos'!C102)>0,'ročni vnos'!C102,"") ->  | D104: ='ročni vnos'!D102 -> 0 | E104: =IF(A104="Z",'ročni vnos'!E102,'ročni vnos'!E102*$D$30) -> 0 | F104: =IF(A104="Z",'ročni vnos'!F102,'ročni vnos'!F102*$D$30) -> 0 | G104: =IF(A104="Z",'ročni vnos'!G102,'ročni vnos'!G102*$D$30) -> 0 | H104: =IF(A104="Z",'ročni vnos'!H102,'ročni vnos'!H102*$D$30) -> 0 | I104: =IF(A104="Z",'ročni vnos'!I102,'ročni vnos'!I102*$D$30) -> 0 | J104: =IF(A104="Z",'ročni vnos'!J102,'ročni vnos'!J102*$D$30) -> 0 | K104: ='ročni vnos'!K102 -> 0 | L104: 0 | M104: 0 | N104: 0 | O104: 0 | P104: 0
A105: ='ročni vnos'!A103 -> O | B105: 73 | C105: =IF(LEN('ročni vnos'!C103)>0,'ročni vnos'!C103,"") ->  | D105: ='ročni vnos'!D103 -> 0 | E105: =IF(A105="Z",'ročni vnos'!E103,'ročni vnos'!E103*$D$30) -> 0 | F105: =IF(A105="Z",'ročni vnos'!F103,'ročni vnos'!F103*$D$30) -> 0 | G105: =IF(A105="Z",'ročni vnos'!G103,'ročni vnos'!G103*$D$30) -> 0 | H105: =IF(A105="Z",'ročni vnos'!H103,'ročni vnos'!H103*$D$30) -> 0 | I105: =IF(A105="Z",'ročni vnos'!I103,'ročni vnos'!I103*$D$30) -> 0 | J105: =IF(A105="Z",'ročni vnos'!J103,'ročni vnos'!J103*$D$30) -> 0 | K105: ='ročni vnos'!K103 -> 0 | L105: 0 | M105: 0 | N105: 0 | O105: 0 | P105: 0
A106: ='ročni vnos'!A104 -> O | B106: 74 | C106: =IF(LEN('ročni vnos'!C104)>0,'ročni vnos'!C104,"") ->  | D106: ='ročni vnos'!D104 -> 0 | E106: =IF(A106="Z",'ročni vnos'!E104,'ročni vnos'!E104*$D$30) -> 0 | F106: =IF(A106="Z",'ročni vnos'!F104,'ročni vnos'!F104*$D$30) -> 0 | G106: =IF(A106="Z",'ročni vnos'!G104,'ročni vnos'!G104*$D$30) -> 0 | H106: =IF(A106="Z",'ročni vnos'!H104,'ročni vnos'!H104*$D$30) -> 0 | I106: =IF(A106="Z",'ročni vnos'!I104,'ročni vnos'!I104*$D$30) -> 0 | J106: =IF(A106="Z",'ročni vnos'!J104,'ročni vnos'!J104*$D$30) -> 0 | K106: ='ročni vnos'!K104 -> 0 | L106: 0 | M106: 0 | N106: 0 | O106: 0 | P106: 0
A107: ='ročni vnos'!A105 -> O | B107: 75 | C107: =IF(LEN('ročni vnos'!C105)>0,'ročni vnos'!C105,"") ->  | D107: ='ročni vnos'!D105 -> 0 | E107: =IF(A107="Z",'ročni vnos'!E105,'ročni vnos'!E105*$D$30) -> 0 | F107: =IF(A107="Z",'ročni vnos'!F105,'ročni vnos'!F105*$D$30) -> 0 | G107: =IF(A107="Z",'ročni vnos'!G105,'ročni vnos'!G105*$D$30) -> 0 | H107: =IF(A107="Z",'ročni vnos'!H105,'ročni vnos'!H105*$D$30) -> 0 | I107: =IF(A107="Z",'ročni vnos'!I105,'ročni vnos'!I105*$D$30) -> 0 | J107: =IF(A107="Z",'ročni vnos'!J105,'ročni vnos'!J105*$D$30) -> 0 | K107: ='ročni vnos'!K105 -> 0 | L107: 0 | M107: 0 | N107: 0 | O107: 0 | P107: 0
A108: ='ročni vnos'!A106 -> O | B108: 76 | C108: =IF(LEN('ročni vnos'!C106)>0,'ročni vnos'!C106,"") ->  | D108: ='ročni vnos'!D106 -> 0 | E108: =IF(A108="Z",'ročni vnos'!E106,'ročni vnos'!E106*$D$30) -> 0 | F108: =IF(A108="Z",'ročni vnos'!F106,'ročni vnos'!F106*$D$30) -> 0 | G108: =IF(A108="Z",'ročni vnos'!G106,'ročni vnos'!G106*$D$30) -> 0 | H108: =IF(A108="Z",'ročni vnos'!H106,'ročni vnos'!H106*$D$30) -> 0 | I108: =IF(A108="Z",'ročni vnos'!I106,'ročni vnos'!I106*$D$30) -> 0 | J108: =IF(A108="Z",'ročni vnos'!J106,'ročni vnos'!J106*$D$30) -> 0 | K108: ='ročni vnos'!K106 -> 0 | L108: 0 | M108: 0 | N108: 0 | O108: 0 | P108: 0
A109: ='ročni vnos'!A107 -> O | B109: 77 | C109: =IF(LEN('ročni vnos'!C107)>0,'ročni vnos'!C107,"") ->  | D109: ='ročni vnos'!D107 -> 0 | E109: =IF(A109="Z",'ročni vnos'!E107,'ročni vnos'!E107*$D$30) -> 0 | F109: =IF(A109="Z",'ročni vnos'!F107,'ročni vnos'!F107*$D$30) -> 0 | G109: =IF(A109="Z",'ročni vnos'!G107,'ročni vnos'!G107*$D$30) -> 0 | H109: =IF(A109="Z",'ročni vnos'!H107,'ročni vnos'!H107*$D$30) -> 0 | I109: =IF(A109="Z",'ročni vnos'!I107,'ročni vnos'!I107*$D$30) -> 0 | J109: =IF(A109="Z",'ročni vnos'!J107,'ročni vnos'!J107*$D$30) -> 0 | K109: ='ročni vnos'!K107 -> 0 | L109: 0 | M109: 0 | N109: 0 | O109: 0 | P109: 0
A110: ='ročni vnos'!A108 -> O | B110: 78 | C110: =IF(LEN('ročni vnos'!C108)>0,'ročni vnos'!C108,"") ->  | D110: ='ročni vnos'!D108 -> 0 | E110: =IF(A110="Z",'ročni vnos'!E108,'ročni vnos'!E108*$D$30) -> 0 | F110: =IF(A110="Z",'ročni vnos'!F108,'ročni vnos'!F108*$D$30) -> 0 | G110: =IF(A110="Z",'ročni vnos'!G108,'ročni vnos'!G108*$D$30) -> 0 | H110: =IF(A110="Z",'ročni vnos'!H108,'ročni vnos'!H108*$D$30) -> 0 | I110: =IF(A110="Z",'ročni vnos'!I108,'ročni vnos'!I108*$D$30) -> 0 | J110: =IF(A110="Z",'ročni vnos'!J108,'ročni vnos'!J108*$D$30) -> 0 | K110: ='ročni vnos'!K108 -> 0 | L110: 0 | M110: 0 | N110: 0 | O110: 0 | P110: 0
